Workbook

Sheet kezdolap
A1: Kezdőlap
B4: A projekt címe
B5: Pályázó neve
B7: Felhívás kiválasztása | C7: felhívás azonosítója alapján | E7: A vonatkozó felhívás kiválasztása történhet a felhívás azonosítójának kiválasztásával vagy a felhívás nevének kiválasztásával. A kiválasztás után meg kell nyomni az "Állami támogatás alá eső tevékenységek lekérdezése" gombot.
C8: =IF(C7="felhívás azonosítója alapján",1,2) -> 1
B10: =IF(ISBLANK(C7),"",CHOOSE($C$8,"Felhívás azonosítója","Felhívás címe")) -> Felhívás azonosítója | C10: 4.3.1-16
B11: =IF(ISBLANK(C8),"",CHOOSE($C$8,"Felhívás címe","Felhívás azonosítója")) -> Felhívás címe | C11: =IFERROR(CHOOSE($C$8,VLOOKUP($C$10,felh_hatter!$A$2:$B$70,2,0),INDEX(felh_hatter!$A$2:$B$70,MATCH($C$10,felh_hatter!$B$2:$B$70,0),1)),"HIBÁS KITÖLTÉS") -> Leromlott városi területek rehabilitációja
C18: =IF(C11="hibás kitöltés","HIBA",CHOOSE($C$8,C10,C11)) -> 4.3.1-16
A21: Figyelem! A felsorolt tevékenységek a felhívások 5.3. fejezetében felsorolt, állami támogatás alá eső tevékenységek. A tevékenységek egy része a 1303/2013/EU rendelet 61. cikke szerinti (azaz nem állami támogatás [közcélú]) tevékenység is lehet. A felsorolás a felhívások 2016.02.15-i állapota alapján került összeállításra. A benne szereplő esetleges hibákért felelősséget nem vállalunk!
B24: Támogatható tevékenység | C24: támogatási kategória | D24: helyi infrastruktúra fejlesztéséhez nyújtott támogatás | E24: regionális beruházási támogatás | F24: csekély összegű támogatás | G24: közszolgáltatásért járó ellentételezés | H24: személyszállítási közszolgáltatásért járó ellentételezés; közszolgáltatásért járó ellentételezés | I24: sportlétesítményhez és multifunkcionális szabadidős létesítményhez nyújtott beruházási támogatás | J24: kultúrát és kulturális örökség megőrzését előmozdító támo-gatás | K24: megváltozott munkaképességű munkavállaló foglalkoztatásával járó többletköltség ellentételezéséhez nyújtott támogatás | L24: hátrányos helyzetű munkavállaló segítésével foglalkozó személy költségeinek ellentételezéséhez nyújtott támogatás | M24: szennyeződésmentesítéséhez nyújtott beruházási támogatás | N24: megújuló energia termeléséhez nyújtott beruházási támogatás | O24: igazodik a főtevékenység támogatási kategóriájához | P24: a kivitelezendő projekt támogatási kategóriájával azonos
B25: Felhívás 3.1.1 I. a) pontja szerint lakóépület felújítása, kapcsolt energiahatékonysági korszerűsítése esetén a lakóépületben tulajdonjoggal rendelkező gazdasági tevékenységet végző végső kedvezményezettek részére | C25: Csekély összegű támogatás | F25: 1
B26: A Felhívás alapján elnyert finanszírozásból megvalósított infrastruktúra kialakítása, korszerűsítése, kapcsolt energiahatékonysági korszerűsítése, amennyiben a tulajdonos nonprofit szolgáltató vagy 100%-os tulajdonú önkormányzati gazdasági társaság | C26: Közszolgáltatás ellentételezésére nyújtott támogatás | G26: 1
B27: Foglalkoztatást segítő gazdasági tevékenységek, kapcsolt energiahatékonysági korszerűsítése (amennyiben gazdasági tevékenységnek minősül) | C27: Csekély összegű támogatás | F27: 1
B28: Parkolóhely építés, felújítás esetén az elektromos járművek használatához szükséges alapvető töltő-infrastruktúra kiépítése | C28: Csekély összegű támogatás; Helyi infrastruktúra fejlesztéséhez nyújtott beruházási támogatás | D28: 1 | F28: 1
D67: 1 | E67: =D67+1 -> 2 | F67: =E67+1 -> 3 | G67: 4 | H67: 5 | I67: 6 | J67: 7 | K67: 8 | L67: 9 | M67: 10 | N67: 11
D68: =IF(SUM(D25:D47)>0,D67,"-") -> 1 | E68: =IF(SUM(E25:E47)>0,E67,"-") -> - | F68: =IF(SUM(F25:F47)>0,F67,"-") -> 3 | G68: 4 | H68: - | I68: - | J68: - | K68: - | L68: - | M68: - | N68: -
D70: state-aid támogatási kategória | E70: a kiíráshoz tartozó tám.kat-ok | F70: sorrend | G70: releváns tám.kat sorszáma | J70: lista hossza | K70: =COUNTA(H71:H81) -> 4
H71: nem állami támogatás (közcélú)
D72: =Hatter!B12 -> helyi infrastruktúra fejlesztéséhez nyújtott támogatás | E72: =TRANSPOSE(D68:N68) -> 1 | F72: =IFERROR(_xlfn.RANK.EQ(E72,E$72:E$82,1),"-") -> 1 | G72: =IFERROR(VLOOKUP(1,$F$72:$F$82,1,0),"-") -> 1 | H72: =INDEX($D$72:$F$82,MATCH(G72,$F$72:$F$82,0),1) -> helyi infrastruktúra fejlesztéséhez nyújtott támogatás
D73: =Hatter!B13 -> regionális beruházási támogatás | E73: - | F73: - | G73: =IF(AND(ISERROR(VLOOKUP(G72+1,F72:F$82,1,0))=FALSE,ISERROR(VLOOKUP(G72+1,G$72:G72,1,0))=TRUE),G72+1,"-") -> 2 | H73: =INDEX($D$72:$F$82,MATCH(G73,$F$72:$F$82,0),1) -> csekély összegű támogatás
D74: =Hatter!B14 -> csekély összegű támogatás | E74: 3 | F74: 2 | G74: =IF(AND(ISERROR(VLOOKUP(G73+1,F73:F$82,1,0))=FALSE,ISERROR(VLOOKUP(G73+1,G$72:G73,1,0))=TRUE),G73+1,"-") -> 3 | H74: =INDEX($D$72:$F$82,MATCH(G74,$F$72:$F$82,0),1) -> közszolgáltatásért járó ellentételezés
D75: =Hatter!B15 -> közszolgáltatásért járó ellentételezés | E75: 4 | F75: 3 | G75: =IF(AND(ISERROR(VLOOKUP(G74+1,F74:F$82,1,0))=FALSE,ISERROR(VLOOKUP(G74+1,G$72:G74,1,0))=TRUE),G74+1,"-") -> -
D76: =Hatter!B16 -> személyszállítási közszolgáltatásért járó ellentételezés | E76: - | F76: - | G76: =IF(AND(ISERROR(VLOOKUP(G75+1,F75:F$82,1,0))=FALSE,ISERROR(VLOOKUP(G75+1,G$72:G75,1,0))=TRUE),G75+1,"-") -> -
D77: =Hatter!B17 -> sportlétesítményhez és multifunkcionális szabadidős létesítményhez nyújtott beruházási támogatás | E77: - | F77: - | G77: =IF(AND(ISERROR(VLOOKUP(G76+1,F76:F$82,1,0))=FALSE,ISERROR(VLOOKUP(G76+1,G$72:G76,1,0))=TRUE),G76+1,"-") -> -
D78: =Hatter!B18 -> kultúrát és kulturális örökség megőrzését előmozdító támogatás | E78: - | F78: - | G78: =IF(AND(ISERROR(VLOOKUP(G77+1,F77:F$82,1,0))=FALSE,ISERROR(VLOOKUP(G77+1,G$72:G77,1,0))=TRUE),G77+1,"-") -> -
D79: =Hatter!B19 -> megváltozott munkaképességű munkavállaló foglalkoztatásával járó többletköltség ellentételezéséhez nyújtott támogatás | E79: - | F79: - | G79: =IF(AND(ISERROR(VLOOKUP(G78+1,F78:F$82,1,0))=FALSE,ISERROR(VLOOKUP(G78+1,G$72:G78,1,0))=TRUE),G78+1,"-") -> -
D80: =Hatter!B20 -> hátrányos helyzetű munkavállaló segítésével foglalkozó személy költségeinek ellentételezéséhez nyújtott támogatás | E80: - | F80: - | G80: =IF(AND(ISERROR(VLOOKUP(G79+1,F79:F$81,1,0))=FALSE,ISERROR(VLOOKUP(G79+1,G$72:G79,1,0))=TRUE),G79+1,"-") -> -
D81: =Hatter!B21 -> szennyeződésmentesítéséhez nyújtott beruházási támogatás | E81: - | F81: - | G81: =IF(AND(ISERROR(VLOOKUP(G80+1,F80:F$82,1,0))=FALSE,ISERROR(VLOOKUP(G80+1,G$72:G80,1,0))=TRUE),G80+1,"-") -> -
D82: =Hatter!B22 -> megújuló energia termeléséhez nyújtott beruházási támogatás | E82: - | F82: - | G82: =IF(AND(ISERROR(VLOOKUP(G81+1,F81:F$82,1,0))=FALSE,ISERROR(VLOOKUP(G81+1,G$72:G81,1,0))=TRUE),G81+1,"-") -> -

Sheet Beruhazasi_ktg
B1: Vissza a tartalomjegyzékhez
E3: A változat beruházási költségei
E5: Az elemzés megfelelő elvégzéséhez szükséges valamennyi cellát ki kell tölteni. Az ütemezés pontos számításához a beruházási költségek éves arányainak összege 100% kell legyen.
A7: Fősor/alsor | B7: Támogatási kategória | E7: Beruházási elem | F7: Mértékegység | G7: Mennyiség | H7: Egységár | I7: Beruházási elem nettó ára | J7: Nettó ár | K7: Áfa kulcs | L7: Számított Áfa | M7: Bruttó ár | N7: Elszámolható költség/Nem elszámolható költség | O7: Költség besorolás | P7: Kedvezményezett Áfa státusza | Q7: Nettó elszámolható költség | R7: Elszámolható költség Áfá-ja | S7: Összes elszámolható költség | T7: Elszámolható költség NEM visszaigényelhető Áfája. (NEM elszámolható ktg-ként) | U7: Elszámolható költség visszaigénylehető Áfája. (NEM elszámolható tétel) | V7: Nettó NEM elszámolható költség | W7: NEM elszámolható költség visszaigényelhető Áfája. | X7: Nem elszámolható költség NEM visszaigényelhető Áfája | Y7: Nem elszámolható költség és annak Áfája | Z7: Összes elszámolható költség és a nem elszámolható költség nem visszaigényelhető Áfával | AA7: Összes NEM elszámolható költség | AB7: Összes költség | AC7: =Alapadatok!C9 -> 2023 | AD7: =AC7+1 -> 2024 | AE7: 2025 | AF7: 2026 | AG7: 2027 | AH7: ütemezés ellenőrzés | AI7: =CONCATENATE("elszámolható költségek ",AC7) -> elszámolható költségek 2023 | AJ7: elszámolható költségek 2024 | AK7: elszámolható költségek 2025 | AL7: elszámolható költségek 2026 | AM7: elszámolható költségek 2027 | AN7: =CONCATENATE("nem elszámolható költségek ",AC7) -> nem elszámolható költségek 2023 | AO7: nem elszámolható költségek 2024 | AP7: nem elszámolható költségek 2025 | AQ7: nem elszámolható költségek 2026 | AR7: nem elszámolható költségek 2027 | AS7: =CONCATENATE("áfa nélküli költség ",AC7) -> áfa nélküli költség 2023 | AT7: áfa nélküli költség 2024 | AU7: áfa nélküli költség 2025 | AV7: áfa nélküli költség 2026 | AW7: áfa nélküli költség 2027 | AX7: Beruházási elem részletes kifejtése, szükségességének indoklása | AY7: Csatolandó mellékletek listája
A8: Fősor | C8: =+IF(A8="fősor",1,0) -> 1 | D8: =IF(C8=C7,D7,D7+1) -> 1 | E8: Beruházási elem | I8: =IF(A8="fősor","",G8*H8) ->  | J8: =+IF($A8="fősor",SUMIF(D9:$D$107,D8+1,J9:$J$107),$I8) -> 0 | L8: =IF($A8="fősor",SUMIF(D9:$D$107,D8+1,L9:$L$107),ROUND(J8*K8,0)) -> 0 | M8: =+IF($A8="fősor",SUMIF($D9:D$107,D8+1,$M9:M$107),$J8+$L8) -> 0 | Q8: =IF($A8="fősor",SUMIF($D9:D$107,D8+1,$Q9:Q$107),IF(N8="Elszámolható költség",J8,0)) -> 0 | R8: =IF($A8="fősor",SUMIF($D9:D$107,D8+1,$R9:R$107),IF(AND(N8="Elszámolható költség",P8="Nem ÁFA visszaigénylő",Alapadatok!$C$60="IGEN"),L8,0)) -> 0 | S8: =SUM(Q8:R8) -> 0 | T8: =IF($A8="fősor",SUMIF($D9:D$107,D8+1,$T9:T$107),IF(AND(N8="Elszámolható költség",P8="Nem ÁFA visszaigénylő",Alapadatok!$C$60="NEM"),L8,0)) -> 0 | U8: =IF($A8="fősor",SUMIF($D9:D$107,D8+1,$U9:U$107),IF(AND(N8="Elszámolható költség",P8="ÁFA visszaigénylő"),L8,0)) -> 0 | V8: =IF($A8="fősor",SUMIF($D9:D$107,D8+1,$V9:V$107),IF(N8="NEM Elszámolható költség",J8,0)) -> 0 | W8: =IF($A8="fősor",SUMIF($D9:D$107,D8+1,$W9:W$107),IF(AND(N8="NEM Elszámolható költség",P8="ÁFA visszaigénylő"),L8,0)) -> 0 | X8: =IF($A8="fősor",SUMIF($D9:D$107,D8+1,$X9:X$107),IF(AND(N8="NEM Elszámolható költség",P8="Nem ÁFA visszaigénylő"),L8,0)) -> 0 | Y8: =SUM(V8,X8) -> 0 | Z8: =SUM(S8,Y8) -> 0 | AA8: =SUM(T8:X8) -> 0 | AB8: =SUM(S8,AA8) -> 0 | AZ8: =IF($A8="fősor",0,IF(N8="Elszámolható költség",J8,0)) -> 0
C9: =+IF(A9="fősor",MAX(C$8:C8)+1,0) -> 0 | D9: =IF(C9=C8,D8,D8+1) -> 2 | E9: Beruházási elem | I9: 0 | J9: =+IF($A9="fősor",SUMIF(D10:$D$107,D9+1,J10:$J$107),$I9) -> 0 | L9: =IF($A9="fősor",SUMIF(D10:$D$107,D9+1,L10:$L$107),ROUND(J9*K9,0)) -> 0 | M9: =+IF($A9="fősor",SUMIF($D10:D$107,D9+1,$M10:M$107),$J9+$L9) -> 0 | Q9: =IF($A9="fősor",SUMIF($D10:D$107,D9+1,$Q10:Q$107),IF(N9="Elszámolható költség",J9,0)) -> 0 | R9: =IF($A9="fősor",SUMIF($D10:D$107,D9+1,$R10:R$107),IF(AND(N9="Elszámolható költség",P9="Nem ÁFA visszaigénylő",Alapadatok!$C$60="IGEN"),L9,0)) -> 0 | S9: 0 | T9: =IF($A9="fősor",SUMIF($D10:D$107,D9+1,$T10:T$107),IF(AND(N9="Elszámolható költség",P9="Nem ÁFA visszaigénylő",Alapadatok!$C$60="NEM"),L9,0)) -> 0 | U9: =IF($A9="fősor",SUMIF($D10:D$107,D9+1,$U10:U$107),IF(AND(N9="Elszámolható költség",P9="ÁFA visszaigénylő"),L9,0)) -> 0 | V9: =IF($A9="fősor",SUMIF($D10:D$107,D9+1,$V10:V$107),IF(N9="NEM Elszámolható költség",J9,0)) -> 0 | W9: =IF($A9="fősor",SUMIF($D10:D$107,D9+1,$W10:W$107),IF(AND(N9="NEM Elszámolható költség",P9="ÁFA visszaigénylő"),L9,0)) -> 0 | X9: =IF($A9="fősor",SUMIF($D10:D$107,D9+1,$X10:X$107),IF(AND(N9="NEM Elszámolható költség",P9="Nem ÁFA visszaigénylő"),L9,0)) -> 0 | Y9: =SUM(V9,X9) -> 0 | Z9: =SUM(S9,Y9) -> 0 | AA9: =SUM(T9,V9,X9) -> 0 | AB9: 0 | AH9: =IF(AND(A9="alsor",AB9>0),IF(SUM(AC9:AG9)=100%,"OK","nem 100%"),"") ->  | AI9: =IF($AB9=0,0,IF($A9="Alsor",$S9*AC9,"")) -> 0 | AJ9: =IF($AB9=0,0,IF($A9="Alsor",$S9*AD9,"")) -> 0 | AK9: =IF($AB9=0,0,IF($A9="Alsor",$S9*AE9,"")) -> 0 | AL9: =IF($AB9=0,0,IF($A9="Alsor",$S9*AF9,"")) -> 0 | AM9: =IF($AB9=0,0,IF($A9="Alsor",$S9*AG9,"")) -> 0 | AN9: =IF($AB9=0,0,IF($A9="Alsor",$AA9*AC9,"")) -> 0 | AO9: 0 | AP9: 0 | AQ9: 0 | AR9: 0 | AS9: =IF($AB9=0,0,IF($A9="Alsor",($Q9+$V9)*AC9,"")) -> 0 | AT9: 0 | AU9: 0 | AV9: 0 | AW9: 0 | AZ9: 0
C10: =+IF(A10="fősor",MAX(C$8:C9)+1,0) -> 0 | D10: 2 | E10: Beruházási elem | I10: 0 | J10: =+IF($A10="fősor",SUMIF(D11:$D$107,D10+1,J11:$J$107),$I10) -> 0 | L10: =IF($A10="fősor",SUMIF(D11:$D$107,D10+1,L11:$L$107),ROUND(J10*K10,0)) -> 0 | M10: =+IF($A10="fősor",SUMIF($D11:D$107,D10+1,$M11:M$107),$J10+$L10) -> 0 | Q10: =IF($A10="fősor",SUMIF($D11:D$107,D10+1,$Q11:Q$107),IF(N10="Elszámolható költség",J10,0)) -> 0 | R10: =IF($A10="fősor",SUMIF($D11:D$107,D10+1,$R11:R$107),IF(AND(N10="Elszámolható költség",P10="Nem ÁFA visszaigénylő",Alapadatok!$C$60="IGEN"),L10,0)) -> 0 | S10: 0 | T10: =IF($A10="fősor",SUMIF($D11:D$107,D10+1,$T11:T$107),IF(AND(N10="Elszámolható költség",P10="Nem ÁFA visszaigénylő",Alapadatok!$C$60="NEM"),L10,0)) -> 0 | U10: =IF($A10="fősor",SUMIF($D11:D$107,D10+1,$U11:U$107),IF(AND(N10="Elszámolható költség",P10="ÁFA visszaigénylő"),L10,0)) -> 0 | V10: =IF($A10="fősor",SUMIF($D11:D$107,D10+1,$V11:V$107),IF(N10="NEM Elszámolható költség",J10,0)) -> 0 | W10: =IF($A10="fősor",SUMIF($D11:D$107,D10+1,$W11:W$107),IF(AND(N10="NEM Elszámolható költség",P10="ÁFA visszaigénylő"),L10,0)) -> 0 | X10: =IF($A10="fősor",SUMIF($D11:D$107,D10+1,$X11:X$107),IF(AND(N10="NEM Elszámolható költség",P10="Nem ÁFA visszaigénylő"),L10,0)) -> 0 | Y10: 0 | Z10: 0 | AA10: =SUM(T10,V10,X10) -> 0 | AB10: 0 | AH10: =IF(AND(A10="alsor",AB10>0),IF(SUM(AC10:AG10)=100%,"OK","nem 100%"),"") ->  | AI10: 0 | AJ10: 0 | AK10: 0 | AL10: 0 | AM10: 0 | AN10: =IF($AB10=0,0,IF($A10="Alsor",$AA10*AC10,"")) -> 0 | AO10: =IF($AB10=0,0,IF($A10="Alsor",$AA10*AD10,"")) -> 0 | AP10: =IF($AB10=0,0,IF($A10="Alsor",$AA10*AE10,"")) -> 0 | AQ10: =IF($AB10=0,0,IF($A10="Alsor",$AA10*AF10,"")) -> 0 | AR10: =IF($AB10=0,0,IF($A10="Alsor",$AA10*AG10,"")) -> 0 | AS10: =IF($AB10=0,0,IF($A10="Alsor",($Q10+$V10)*AC10,"")) -> 0 | AT10: =IF($AB10=0,0,IF($A10="Alsor",($Q10+$V10)*AD10,"")) -> 0 | AU10: =IF($AB10=0,0,IF($A10="Alsor",($Q10+$V10)*AE10,"")) -> 0 | AV10: =IF($AB10=0,0,IF($A10="Alsor",($Q10+$V10)*AF10,"")) -> 0 | AW10: =IF($AB10=0,0,IF($A10="Alsor",($Q10+$V10)*AG10,"")) -> 0 | AZ10: 0
C11: =+IF(A11="fősor",MAX(C$8:C10)+1,0) -> 0 | D11: 2 | E11: Beruházási elem | I11: 0 | J11: =+IF($A11="fősor",SUMIF(D12:$D$107,D11+1,J12:$J$107),$I11) -> 0 | L11: =IF($A11="fősor",SUMIF(D12:$D$107,D11+1,L12:$L$107),ROUND(J11*K11,0)) -> 0 | M11: =+IF($A11="fősor",SUMIF($D12:D$107,D11+1,$M12:M$107),$J11+$L11) -> 0 | Q11: =IF($A11="fősor",SUMIF($D12:D$107,D11+1,$Q12:Q$107),IF(N11="Elszámolható költség",J11,0)) -> 0 | R11: =IF($A11="fősor",SUMIF($D12:D$107,D11+1,$R12:R$107),IF(AND(N11="Elszámolható költség",P11="Nem ÁFA visszaigénylő",Alapadatok!$C$60="IGEN"),L11,0)) -> 0 | S11: 0 | T11: =IF($A11="fősor",SUMIF($D12:D$107,D11+1,$T12:T$107),IF(AND(N11="Elszámolható költség",P11="Nem ÁFA visszaigénylő",Alapadatok!$C$60="NEM"),L11,0)) -> 0 | U11: =IF($A11="fősor",SUMIF($D12:D$107,D11+1,$U12:U$107),IF(AND(N11="Elszámolható költség",P11="ÁFA visszaigénylő"),L11,0)) -> 0 | V11: =IF($A11="fősor",SUMIF($D12:D$107,D11+1,$V12:V$107),IF(N11="NEM Elszámolható költség",J11,0)) -> 0 | W11: =IF($A11="fősor",SUMIF($D12:D$107,D11+1,$W12:W$107),IF(AND(N11="NEM Elszámolható költség",P11="ÁFA visszaigénylő"),L11,0)) -> 0 | X11: =IF($A11="fősor",SUMIF($D12:D$107,D11+1,$X12:X$107),IF(AND(N11="NEM Elszámolható költség",P11="Nem ÁFA visszaigénylő"),L11,0)) -> 0 | Y11: 0 | Z11: 0 | AA11: 0 | AB11: 0 | AI11: 0 | AJ11: 0 | AK11: 0 | AL11: 0 | AM11: 0 | AN11: 0 | AO11: 0 | AP11: 0 | AQ11: 0 | AR11: 0 | AS11: 0 | AT11: 0 | AU11: 0 | AV11: 0 | AW11: 0 | AZ11: 0
C12: =+IF(A12="fősor",MAX(C$8:C11)+1,0) -> 0 | D12: 2 | E12: Beruházási elem | I12: 0 | J12: =+IF($A12="fősor",SUMIF(D13:$D$107,D12+1,J13:$J$107),$I12) -> 0 | L12: =IF($A12="fősor",SUMIF(D13:$D$107,D12+1,L13:$L$107),ROUND(J12*K12,0)) -> 0 | M12: =+IF($A12="fősor",SUMIF($D13:D$107,D12+1,$M13:M$107),$J12+$L12) -> 0 | Q12: =IF($A12="fősor",SUMIF($D13:D$107,D12+1,$Q13:Q$107),IF(N12="Elszámolható költség",J12,0)) -> 0 | R12: =IF($A12="fősor",SUMIF($D13:D$107,D12+1,$R13:R$107),IF(AND(N12="Elszámolható költség",P12="Nem ÁFA visszaigénylő",Alapadatok!$C$60="IGEN"),L12,0)) -> 0 | S12: 0 | T12: =IF($A12="fősor",SUMIF($D13:D$107,D12+1,$T13:T$107),IF(AND(N12="Elszámolható költség",P12="Nem ÁFA visszaigénylő",Alapadatok!$C$60="NEM"),L12,0)) -> 0 | U12: =IF($A12="fősor",SUMIF($D13:D$107,D12+1,$U13:U$107),IF(AND(N12="Elszámolható költség",P12="ÁFA visszaigénylő"),L12,0)) -> 0 | V12: =IF($A12="fősor",SUMIF($D13:D$107,D12+1,$V13:V$107),IF(N12="NEM Elszámolható költség",J12,0)) -> 0 | W12: =IF($A12="fősor",SUMIF($D13:D$107,D12+1,$W13:W$107),IF(AND(N12="NEM Elszámolható költség",P12="ÁFA visszaigénylő"),L12,0)) -> 0 | X12: =IF($A12="fősor",SUMIF($D13:D$107,D12+1,$X13:X$107),IF(AND(N12="NEM Elszámolható költség",P12="Nem ÁFA visszaigénylő"),L12,0)) -> 0 | Y12: 0 | Z12: 0 | AA12: 0 | AB12: 0 | AI12: 0 | AJ12: 0 | AK12: 0 | AL12: 0 | AM12: 0 | AN12: 0 | AO12: 0 | AP12: 0 | AQ12: 0 | AR12: 0 | AS12: 0 | AT12: 0 | AU12: 0 | AV12: 0 | AW12: 0 | AZ12: 0
C13: =+IF(A13="fősor",MAX(C$8:C12)+1,0) -> 0 | D13: 2 | E13: Beruházási elem | I13: 0 | J13: =+IF($A13="fősor",SUMIF(D14:$D$107,D13+1,J14:$J$107),$I13) -> 0 | L13: =IF($A13="fősor",SUMIF(D14:$D$107,D13+1,L14:$L$107),ROUND(J13*K13,0)) -> 0 | M13: =+IF($A13="fősor",SUMIF($D14:D$107,D13+1,$M14:M$107),$J13+$L13) -> 0 | Q13: =IF($A13="fősor",SUMIF($D14:D$107,D13+1,$Q14:Q$107),IF(N13="Elszámolható költség",J13,0)) -> 0 | R13: =IF($A13="fősor",SUMIF($D14:D$107,D13+1,$R14:R$107),IF(AND(N13="Elszámolható költség",P13="Nem ÁFA visszaigénylő",Alapadatok!$C$60="IGEN"),L13,0)) -> 0 | S13: 0 | T13: =IF($A13="fősor",SUMIF($D14:D$107,D13+1,$T14:T$107),IF(AND(N13="Elszámolható költség",P13="Nem ÁFA visszaigénylő",Alapadatok!$C$60="NEM"),L13,0)) -> 0 | U13: =IF($A13="fősor",SUMIF($D14:D$107,D13+1,$U14:U$107),IF(AND(N13="Elszámolható költség",P13="ÁFA visszaigénylő"),L13,0)) -> 0 | V13: =IF($A13="fősor",SUMIF($D14:D$107,D13+1,$V14:V$107),IF(N13="NEM Elszámolható költség",J13,0)) -> 0 | W13: =IF($A13="fősor",SUMIF($D14:D$107,D13+1,$W14:W$107),IF(AND(N13="NEM Elszámolható költség",P13="ÁFA visszaigénylő"),L13,0)) -> 0 | X13: =IF($A13="fősor",SUMIF($D14:D$107,D13+1,$X14:X$107),IF(AND(N13="NEM Elszámolható költség",P13="Nem ÁFA visszaigénylő"),L13,0)) -> 0 | Y13: 0 | Z13: 0 | AA13: 0 | AB13: 0 | AI13: 0 | AJ13: 0 | AK13: 0 | AL13: 0 | AM13: 0 | AN13: 0 | AO13: 0 | AP13: 0 | AQ13: 0 | AR13: 0 | AS13: 0 | AT13: 0 | AU13: 0 | AV13: 0 | AW13: 0 | AZ13: 0
C14: =+IF(A14="fősor",MAX(C$8:C13)+1,0) -> 0 | D14: 2 | E14: Beruházási elem | I14: 0 | J14: =+IF($A14="fősor",SUMIF(D15:$D$107,D14+1,J15:$J$107),$I14) -> 0 | L14: =IF($A14="fősor",SUMIF(D15:$D$107,D14+1,L15:$L$107),ROUND(J14*K14,0)) -> 0 | M14: =+IF($A14="fősor",SUMIF($D15:D$107,D14+1,$M15:M$107),$J14+$L14) -> 0 | Q14: =IF($A14="fősor",SUMIF($D15:D$107,D14+1,$Q15:Q$107),IF(N14="Elszámolható költség",J14,0)) -> 0 | R14: =IF($A14="fősor",SUMIF($D15:D$107,D14+1,$R15:R$107),IF(AND(N14="Elszámolható költség",P14="Nem ÁFA visszaigénylő",Alapadatok!$C$60="IGEN"),L14,0)) -> 0 | S14: 0 | T14: =IF($A14="fősor",SUMIF($D15:D$107,D14+1,$T15:T$107),IF(AND(N14="Elszámolható költség",P14="Nem ÁFA visszaigénylő",Alapadatok!$C$60="NEM"),L14,0)) -> 0 | U14: =IF($A14="fősor",SUMIF($D15:D$107,D14+1,$U15:U$107),IF(AND(N14="Elszámolható költség",P14="ÁFA visszaigénylő"),L14,0)) -> 0 | V14: =IF($A14="fősor",SUMIF($D15:D$107,D14+1,$V15:V$107),IF(N14="NEM Elszámolható költség",J14,0)) -> 0 | W14: =IF($A14="fősor",SUMIF($D15:D$107,D14+1,$W15:W$107),IF(AND(N14="NEM Elszámolható költség",P14="ÁFA visszaigénylő"),L14,0)) -> 0 | X14: =IF($A14="fősor",SUMIF($D15:D$107,D14+1,$X15:X$107),IF(AND(N14="NEM Elszámolható költség",P14="Nem ÁFA visszaigénylő"),L14,0)) -> 0 | Y14: 0 | Z14: 0 | AA14: 0 | AB14: 0 | AI14: 0 | AJ14: 0 | AK14: 0 | AL14: 0 | AM14: 0 | AN14: 0 | AO14: 0 | AP14: 0 | AQ14: 0 | AR14: 0 | AS14: 0 | AT14: 0 | AU14: 0 | AV14: 0 | AW14: 0 | AZ14: 0
C15: =+IF(A15="fősor",MAX(C$8:C14)+1,0) -> 0 | D15: 2 | E15: Beruházási elem | I15: 0 | J15: =+IF($A15="fősor",SUMIF(D16:$D$107,D15+1,J16:$J$107),$I15) -> 0 | L15: =IF($A15="fősor",SUMIF(D16:$D$107,D15+1,L16:$L$107),ROUND(J15*K15,0)) -> 0 | M15: =+IF($A15="fősor",SUMIF($D16:D$107,D15+1,$M16:M$107),$J15+$L15) -> 0 | Q15: =IF($A15="fősor",SUMIF($D16:D$107,D15+1,$Q16:Q$107),IF(N15="Elszámolható költség",J15,0)) -> 0 | R15: =IF($A15="fősor",SUMIF($D16:D$107,D15+1,$R16:R$107),IF(AND(N15="Elszámolható költség",P15="Nem ÁFA visszaigénylő",Alapadatok!$C$60="IGEN"),L15,0)) -> 0 | S15: 0 | T15: =IF($A15="fősor",SUMIF($D16:D$107,D15+1,$T16:T$107),IF(AND(N15="Elszámolható költség",P15="Nem ÁFA visszaigénylő",Alapadatok!$C$60="NEM"),L15,0)) -> 0 | U15: =IF($A15="fősor",SUMIF($D16:D$107,D15+1,$U16:U$107),IF(AND(N15="Elszámolható költség",P15="ÁFA visszaigénylő"),L15,0)) -> 0 | V15: =IF($A15="fősor",SUMIF($D16:D$107,D15+1,$V16:V$107),IF(N15="NEM Elszámolható költség",J15,0)) -> 0 | W15: =IF($A15="fősor",SUMIF($D16:D$107,D15+1,$W16:W$107),IF(AND(N15="NEM Elszámolható költség",P15="ÁFA visszaigénylő"),L15,0)) -> 0 | X15: =IF($A15="fősor",SUMIF($D16:D$107,D15+1,$X16:X$107),IF(AND(N15="NEM Elszámolható költség",P15="Nem ÁFA visszaigénylő"),L15,0)) -> 0 | Y15: 0 | Z15: 0 | AA15: 0 | AB15: 0 | AI15: 0 | AJ15: 0 | AK15: 0 | AL15: 0 | AM15: 0 | AN15: 0 | AO15: 0 | AP15: 0 | AQ15: 0 | AR15: 0 | AS15: 0 | AT15: 0 | AU15: 0 | AV15: 0 | AW15: 0 | AZ15: 0
C16: =+IF(A16="fősor",MAX(C$8:C15)+1,0) -> 0 | D16: 2 | E16: Beruházási elem | I16: 0 | J16: =+IF($A16="fősor",SUMIF(D17:$D$107,D16+1,J17:$J$107),$I16) -> 0 | L16: =IF($A16="fősor",SUMIF(D17:$D$107,D16+1,L17:$L$107),ROUND(J16*K16,0)) -> 0 | M16: =+IF($A16="fősor",SUMIF($D17:D$107,D16+1,$M17:M$107),$J16+$L16) -> 0 | Q16: =IF($A16="fősor",SUMIF($D17:D$107,D16+1,$Q17:Q$107),IF(N16="Elszámolható költség",J16,0)) -> 0 | R16: =IF($A16="fősor",SUMIF($D17:D$107,D16+1,$R17:R$107),IF(AND(N16="Elszámolható költség",P16="Nem ÁFA visszaigénylő",Alapadatok!$C$60="IGEN"),L16,0)) -> 0 | S16: 0 | T16: =IF($A16="fősor",SUMIF($D17:D$107,D16+1,$T17:T$107),IF(AND(N16="Elszámolható költség",P16="Nem ÁFA visszaigénylő",Alapadatok!$C$60="NEM"),L16,0)) -> 0 | U16: =IF($A16="fősor",SUMIF($D17:D$107,D16+1,$U17:U$107),IF(AND(N16="Elszámolható költség",P16="ÁFA visszaigénylő"),L16,0)) -> 0 | V16: =IF($A16="fősor",SUMIF($D17:D$107,D16+1,$V17:V$107),IF(N16="NEM Elszámolható költség",J16,0)) -> 0 | W16: =IF($A16="fősor",SUMIF($D17:D$107,D16+1,$W17:W$107),IF(AND(N16="NEM Elszámolható költség",P16="ÁFA visszaigénylő"),L16,0)) -> 0 | X16: =IF($A16="fősor",SUMIF($D17:D$107,D16+1,$X17:X$107),IF(AND(N16="NEM Elszámolható költség",P16="Nem ÁFA visszaigénylő"),L16,0)) -> 0 | Y16: 0 | Z16: 0 | AA16: 0 | AB16: 0 | AI16: 0 | AJ16: 0 | AK16: 0 | AL16: 0 | AM16: 0 | AN16: 0 | AO16: 0 | AP16: 0 | AQ16: 0 | AR16: 0 | AS16: 0 | AT16: 0 | AU16: 0 | AV16: 0 | AW16: 0 | AZ16: 0
C17: =+IF(A17="fősor",MAX(C$8:C16)+1,0) -> 0 | D17: 2 | E17: Beruházási elem | I17: 0 | J17: =+IF($A17="fősor",SUMIF(D18:$D$107,D17+1,J18:$J$107),$I17) -> 0 | L17: =IF($A17="fősor",SUMIF(D18:$D$107,D17+1,L18:$L$107),ROUND(J17*K17,0)) -> 0 | M17: =+IF($A17="fősor",SUMIF($D18:D$107,D17+1,$M18:M$107),$J17+$L17) -> 0 | Q17: =IF($A17="fősor",SUMIF($D18:D$107,D17+1,$Q18:Q$107),IF(N17="Elszámolható költség",J17,0)) -> 0 | R17: =IF($A17="fősor",SUMIF($D18:D$107,D17+1,$R18:R$107),IF(AND(N17="Elszámolható költség",P17="Nem ÁFA visszaigénylő",Alapadatok!$C$60="IGEN"),L17,0)) -> 0 | S17: 0 | T17: =IF($A17="fősor",SUMIF($D18:D$107,D17+1,$T18:T$107),IF(AND(N17="Elszámolható költség",P17="Nem ÁFA visszaigénylő",Alapadatok!$C$60="NEM"),L17,0)) -> 0 | U17: =IF($A17="fősor",SUMIF($D18:D$107,D17+1,$U18:U$107),IF(AND(N17="Elszámolható költség",P17="ÁFA visszaigénylő"),L17,0)) -> 0 | V17: =IF($A17="fősor",SUMIF($D18:D$107,D17+1,$V18:V$107),IF(N17="NEM Elszámolható költség",J17,0)) -> 0 | W17: =IF($A17="fősor",SUMIF($D18:D$107,D17+1,$W18:W$107),IF(AND(N17="NEM Elszámolható költség",P17="ÁFA visszaigénylő"),L17,0)) -> 0 | X17: =IF($A17="fősor",SUMIF($D18:D$107,D17+1,$X18:X$107),IF(AND(N17="NEM Elszámolható költség",P17="Nem ÁFA visszaigénylő"),L17,0)) -> 0 | Y17: 0 | Z17: 0 | AA17: 0 | AB17: 0 | AI17: 0 | AJ17: 0 | AK17: 0 | AL17: 0 | AM17: 0 | AN17: 0 | AO17: 0 | AP17: 0 | AQ17: 0 | AR17: 0 | AS17: 0 | AT17: 0 | AU17: 0 | AV17: 0 | AW17: 0 | AZ17: 0
C18: =+IF(A18="fősor",MAX(C$8:C17)+1,0) -> 0 | D18: 2 | E18: Beruházási elem | I18: 0 | J18: =+IF($A18="fősor",SUMIF(D19:$D$107,D18+1,J19:$J$107),$I18) -> 0 | L18: =IF($A18="fősor",SUMIF(D19:$D$107,D18+1,L19:$L$107),ROUND(J18*K18,0)) -> 0 | M18: =+IF($A18="fősor",SUMIF($D19:D$107,D18+1,$M19:M$107),$J18+$L18) -> 0 | Q18: =IF($A18="fősor",SUMIF($D19:D$107,D18+1,$Q19:Q$107),IF(N18="Elszámolható költség",J18,0)) -> 0 | R18: =IF($A18="fősor",SUMIF($D19:D$107,D18+1,$R19:R$107),IF(AND(N18="Elszámolható költség",P18="Nem ÁFA visszaigénylő",Alapadatok!$C$60="IGEN"),L18,0)) -> 0 | S18: 0 | T18: =IF($A18="fősor",SUMIF($D19:D$107,D18+1,$T19:T$107),IF(AND(N18="Elszámolható költség",P18="Nem ÁFA visszaigénylő",Alapadatok!$C$60="NEM"),L18,0)) -> 0 | U18: =IF($A18="fősor",SUMIF($D19:D$107,D18+1,$U19:U$107),IF(AND(N18="Elszámolható költség",P18="ÁFA visszaigénylő"),L18,0)) -> 0 | V18: =IF($A18="fősor",SUMIF($D19:D$107,D18+1,$V19:V$107),IF(N18="NEM Elszámolható költség",J18,0)) -> 0 | W18: =IF($A18="fősor",SUMIF($D19:D$107,D18+1,$W19:W$107),IF(AND(N18="NEM Elszámolható költség",P18="ÁFA visszaigénylő"),L18,0)) -> 0 | X18: =IF($A18="fősor",SUMIF($D19:D$107,D18+1,$X19:X$107),IF(AND(N18="NEM Elszámolható költség",P18="Nem ÁFA visszaigénylő"),L18,0)) -> 0 | Y18: 0 | Z18: 0 | AA18: 0 | AB18: 0 | AI18: 0 | AJ18: 0 | AK18: 0 | AL18: 0 | AM18: 0 | AN18: 0 | AO18: 0 | AP18: 0 | AQ18: 0 | AR18: 0 | AS18: 0 | AT18: 0 | AU18: 0 | AV18: 0 | AW18: 0 | AZ18: 0
C19: =+IF(A19="fősor",MAX(C$8:C18)+1,0) -> 0 | D19: 2 | E19: Beruházási elem | I19: 0 | J19: =+IF($A19="fősor",SUMIF(D20:$D$107,D19+1,J20:$J$107),$I19) -> 0 | L19: =IF($A19="fősor",SUMIF(D20:$D$107,D19+1,L20:$L$107),ROUND(J19*K19,0)) -> 0 | M19: =+IF($A19="fősor",SUMIF($D20:D$107,D19+1,$M20:M$107),$J19+$L19) -> 0 | Q19: =IF($A19="fősor",SUMIF($D20:D$107,D19+1,$Q20:Q$107),IF(N19="Elszámolható költség",J19,0)) -> 0 | R19: =IF($A19="fősor",SUMIF($D20:D$107,D19+1,$R20:R$107),IF(AND(N19="Elszámolható költség",P19="Nem ÁFA visszaigénylő",Alapadatok!$C$60="IGEN"),L19,0)) -> 0 | S19: 0 | T19: =IF($A19="fősor",SUMIF($D20:D$107,D19+1,$T20:T$107),IF(AND(N19="Elszámolható költség",P19="Nem ÁFA visszaigénylő",Alapadatok!$C$60="NEM"),L19,0)) -> 0 | U19: =IF($A19="fősor",SUMIF($D20:D$107,D19+1,$U20:U$107),IF(AND(N19="Elszámolható költség",P19="ÁFA visszaigénylő"),L19,0)) -> 0 | V19: =IF($A19="fősor",SUMIF($D20:D$107,D19+1,$V20:V$107),IF(N19="NEM Elszámolható költség",J19,0)) -> 0 | W19: =IF($A19="fősor",SUMIF($D20:D$107,D19+1,$W20:W$107),IF(AND(N19="NEM Elszámolható költség",P19="ÁFA visszaigénylő"),L19,0)) -> 0 | X19: =IF($A19="fősor",SUMIF($D20:D$107,D19+1,$X20:X$107),IF(AND(N19="NEM Elszámolható költség",P19="Nem ÁFA visszaigénylő"),L19,0)) -> 0 | Y19: 0 | Z19: 0 | AA19: 0 | AB19: 0 | AI19: 0 | AJ19: 0 | AK19: 0 | AL19: 0 | AM19: 0 | AN19: 0 | AO19: 0 | AP19: 0 | AQ19: 0 | AR19: 0 | AS19: 0 | AT19: 0 | AU19: 0 | AV19: 0 | AW19: 0 | AZ19: 0
C20: =+IF(A20="fősor",MAX(C$8:C19)+1,0) -> 0 | D20: 2 | E20: Beruházási elem | I20: 0 | J20: =+IF($A20="fősor",SUMIF(D21:$D$107,D20+1,J21:$J$107),$I20) -> 0 | L20: =IF($A20="fősor",SUMIF(D21:$D$107,D20+1,L21:$L$107),ROUND(J20*K20,0)) -> 0 | M20: =+IF($A20="fősor",SUMIF($D21:D$107,D20+1,$M21:M$107),$J20+$L20) -> 0 | Q20: =IF($A20="fősor",SUMIF($D21:D$107,D20+1,$Q21:Q$107),IF(N20="Elszámolható költség",J20,0)) -> 0 | R20: =IF($A20="fősor",SUMIF($D21:D$107,D20+1,$R21:R$107),IF(AND(N20="Elszámolható költség",P20="Nem ÁFA visszaigénylő",Alapadatok!$C$60="IGEN"),L20,0)) -> 0 | S20: 0 | T20: =IF($A20="fősor",SUMIF($D21:D$107,D20+1,$T21:T$107),IF(AND(N20="Elszámolható költség",P20="Nem ÁFA visszaigénylő",Alapadatok!$C$60="NEM"),L20,0)) -> 0 | U20: =IF($A20="fősor",SUMIF($D21:D$107,D20+1,$U21:U$107),IF(AND(N20="Elszámolható költség",P20="ÁFA visszaigénylő"),L20,0)) -> 0 | V20: =IF($A20="fősor",SUMIF($D21:D$107,D20+1,$V21:V$107),IF(N20="NEM Elszámolható költség",J20,0)) -> 0 | W20: =IF($A20="fősor",SUMIF($D21:D$107,D20+1,$W21:W$107),IF(AND(N20="NEM Elszámolható költség",P20="ÁFA visszaigénylő"),L20,0)) -> 0 | X20: =IF($A20="fősor",SUMIF($D21:D$107,D20+1,$X21:X$107),IF(AND(N20="NEM Elszámolható költség",P20="Nem ÁFA visszaigénylő"),L20,0)) -> 0 | Y20: 0 | Z20: 0 | AA20: 0 | AB20: 0 | AI20: 0 | AJ20: 0 | AK20: 0 | AL20: 0 | AM20: 0 | AN20: 0 | AO20: 0 | AP20: 0 | AQ20: 0 | AR20: 0 | AS20: 0 | AT20: 0 | AU20: 0 | AV20: 0 | AW20: 0 | AZ20: 0
C21: =+IF(A21="fősor",MAX(C$8:C20)+1,0) -> 0 | D21: 2 | E21: Beruházási elem | I21: 0 | J21: =+IF($A21="fősor",SUMIF(D22:$D$107,D21+1,J22:$J$107),$I21) -> 0 | L21: =IF($A21="fősor",SUMIF(D22:$D$107,D21+1,L22:$L$107),ROUND(J21*K21,0)) -> 0 | M21: =+IF($A21="fősor",SUMIF($D22:D$107,D21+1,$M22:M$107),$J21+$L21) -> 0 | Q21: =IF($A21="fősor",SUMIF($D22:D$107,D21+1,$Q22:Q$107),IF(N21="Elszámolható költség",J21,0)) -> 0 | R21: =IF($A21="fősor",SUMIF($D22:D$107,D21+1,$R22:R$107),IF(AND(N21="Elszámolható költség",P21="Nem ÁFA visszaigénylő",Alapadatok!$C$60="IGEN"),L21,0)) -> 0 | S21: 0 | T21: =IF($A21="fősor",SUMIF($D22:D$107,D21+1,$T22:T$107),IF(AND(N21="Elszámolható költség",P21="Nem ÁFA visszaigénylő",Alapadatok!$C$60="NEM"),L21,0)) -> 0 | U21: =IF($A21="fősor",SUMIF($D22:D$107,D21+1,$U22:U$107),IF(AND(N21="Elszámolható költség",P21="ÁFA visszaigénylő"),L21,0)) -> 0 | V21: =IF($A21="fősor",SUMIF($D22:D$107,D21+1,$V22:V$107),IF(N21="NEM Elszámolható költség",J21,0)) -> 0 | W21: =IF($A21="fősor",SUMIF($D22:D$107,D21+1,$W22:W$107),IF(AND(N21="NEM Elszámolható költség",P21="ÁFA visszaigénylő"),L21,0)) -> 0 | X21: =IF($A21="fősor",SUMIF($D22:D$107,D21+1,$X22:X$107),IF(AND(N21="NEM Elszámolható költség",P21="Nem ÁFA visszaigénylő"),L21,0)) -> 0 | Y21: 0 | Z21: 0 | AA21: 0 | AB21: 0 | AI21: 0 | AJ21: 0 | AK21: 0 | AL21: 0 | AM21: 0 | AN21: 0 | AO21: 0 | AP21: 0 | AQ21: 0 | AR21: 0 | AS21: 0 | AT21: 0 | AU21: 0 | AV21: 0 | AW21: 0 | AZ21: 0
C22: =+IF(A22="fősor",MAX(C$8:C21)+1,0) -> 0 | D22: 2 | E22: Beruházási elem | I22: 0 | J22: =+IF($A22="fősor",SUMIF(D23:$D$107,D22+1,J23:$J$107),$I22) -> 0 | L22: =IF($A22="fősor",SUMIF(D23:$D$107,D22+1,L23:$L$107),ROUND(J22*K22,0)) -> 0 | M22: =+IF($A22="fősor",SUMIF($D23:D$107,D22+1,$M23:M$107),$J22+$L22) -> 0 | Q22: =IF($A22="fősor",SUMIF($D23:D$107,D22+1,$Q23:Q$107),IF(N22="Elszámolható költség",J22,0)) -> 0 | R22: =IF($A22="fősor",SUMIF($D23:D$107,D22+1,$R23:R$107),IF(AND(N22="Elszámolható költség",P22="Nem ÁFA visszaigénylő",Alapadatok!$C$60="IGEN"),L22,0)) -> 0 | S22: 0 | T22: =IF($A22="fősor",SUMIF($D23:D$107,D22+1,$T23:T$107),IF(AND(N22="Elszámolható költség",P22="Nem ÁFA visszaigénylő",Alapadatok!$C$60="NEM"),L22,0)) -> 0 | U22: =IF($A22="fősor",SUMIF($D23:D$107,D22+1,$U23:U$107),IF(AND(N22="Elszámolható költség",P22="ÁFA visszaigénylő"),L22,0)) -> 0 | V22: =IF($A22="fősor",SUMIF($D23:D$107,D22+1,$V23:V$107),IF(N22="NEM Elszámolható költség",J22,0)) -> 0 | W22: =IF($A22="fősor",SUMIF($D23:D$107,D22+1,$W23:W$107),IF(AND(N22="NEM Elszámolható költség",P22="ÁFA visszaigénylő"),L22,0)) -> 0 | X22: =IF($A22="fősor",SUMIF($D23:D$107,D22+1,$X23:X$107),IF(AND(N22="NEM Elszámolható költség",P22="Nem ÁFA visszaigénylő"),L22,0)) -> 0 | Y22: 0 | Z22: 0 | AA22: 0 | AB22: 0 | AI22: 0 | AJ22: 0 | AK22: 0 | AL22: 0 | AM22: 0 | AN22: 0 | AO22: 0 | AP22: 0 | AQ22: 0 | AR22: 0 | AS22: 0 | AT22: 0 | AU22: 0 | AV22: 0 | AW22: 0 | AZ22: 0
C23: =+IF(A23="fősor",MAX(C$8:C22)+1,0) -> 0 | D23: 2 | E23: Beruházási elem | I23: 0 | J23: =+IF($A23="fősor",SUMIF(D24:$D$107,D23+1,J24:$J$107),$I23) -> 0 | L23: =IF($A23="fősor",SUMIF(D24:$D$107,D23+1,L24:$L$107),ROUND(J23*K23,0)) -> 0 | M23: =+IF($A23="fősor",SUMIF($D24:D$107,D23+1,$M24:M$107),$J23+$L23) -> 0 | Q23: =IF($A23="fősor",SUMIF($D24:D$107,D23+1,$Q24:Q$107),IF(N23="Elszámolható költség",J23,0)) -> 0 | R23: =IF($A23="fősor",SUMIF($D24:D$107,D23+1,$R24:R$107),IF(AND(N23="Elszámolható költség",P23="Nem ÁFA visszaigénylő",Alapadatok!$C$60="IGEN"),L23,0)) -> 0 | S23: 0 | T23: =IF($A23="fősor",SUMIF($D24:D$107,D23+1,$T24:T$107),IF(AND(N23="Elszámolható költség",P23="Nem ÁFA visszaigénylő",Alapadatok!$C$60="NEM"),L23,0)) -> 0 | U23: =IF($A23="fősor",SUMIF($D24:D$107,D23+1,$U24:U$107),IF(AND(N23="Elszámolható költség",P23="ÁFA visszaigénylő"),L23,0)) -> 0 | V23: =IF($A23="fősor",SUMIF($D24:D$107,D23+1,$V24:V$107),IF(N23="NEM Elszámolható költség",J23,0)) -> 0 | W23: =IF($A23="fősor",SUMIF($D24:D$107,D23+1,$W24:W$107),IF(AND(N23="NEM Elszámolható költség",P23="ÁFA visszaigénylő"),L23,0)) -> 0 | X23: =IF($A23="fősor",SUMIF($D24:D$107,D23+1,$X24:X$107),IF(AND(N23="NEM Elszámolható költség",P23="Nem ÁFA visszaigénylő"),L23,0)) -> 0 | Y23: 0 | Z23: 0 | AA23: 0 | AB23: 0 | AI23: 0 | AJ23: 0 | AK23: 0 | AL23: 0 | AM23: 0 | AN23: 0 | AO23: 0 | AP23: 0 | AQ23: 0 | AR23: 0 | AS23: 0 | AT23: 0 | AU23: 0 | AV23: 0 | AW23: 0 | AZ23: 0
C24: =+IF(A24="fősor",MAX(C$8:C23)+1,0) -> 0 | D24: 2 | E24: Beruházási elem | I24: 0 | J24: =+IF($A24="fősor",SUMIF(D25:$D$107,D24+1,J25:$J$107),$I24) -> 0 | L24: =IF($A24="fősor",SUMIF(D25:$D$107,D24+1,L25:$L$107),ROUND(J24*K24,0)) -> 0 | M24: =+IF($A24="fősor",SUMIF($D25:D$107,D24+1,$M25:M$107),$J24+$L24) -> 0 | Q24: =IF($A24="fősor",SUMIF($D25:D$107,D24+1,$Q25:Q$107),IF(N24="Elszámolható költség",J24,0)) -> 0 | R24: =IF($A24="fősor",SUMIF($D25:D$107,D24+1,$R25:R$107),IF(AND(N24="Elszámolható költség",P24="Nem ÁFA visszaigénylő",Alapadatok!$C$60="IGEN"),L24,0)) -> 0 | S24: 0 | T24: =IF($A24="fősor",SUMIF($D25:D$107,D24+1,$T25:T$107),IF(AND(N24="Elszámolható költség",P24="Nem ÁFA visszaigénylő",Alapadatok!$C$60="NEM"),L24,0)) -> 0 | U24: =IF($A24="fősor",SUMIF($D25:D$107,D24+1,$U25:U$107),IF(AND(N24="Elszámolható költség",P24="ÁFA visszaigénylő"),L24,0)) -> 0 | V24: =IF($A24="fősor",SUMIF($D25:D$107,D24+1,$V25:V$107),IF(N24="NEM Elszámolható költség",J24,0)) -> 0 | W24: =IF($A24="fősor",SUMIF($D25:D$107,D24+1,$W25:W$107),IF(AND(N24="NEM Elszámolható költség",P24="ÁFA visszaigénylő"),L24,0)) -> 0 | X24: =IF($A24="fősor",SUMIF($D25:D$107,D24+1,$X25:X$107),IF(AND(N24="NEM Elszámolható költség",P24="Nem ÁFA visszaigénylő"),L24,0)) -> 0 | Y24: 0 | Z24: 0 | AA24: 0 | AB24: 0 | AI24: 0 | AJ24: 0 | AK24: 0 | AL24: 0 | AM24: 0 | AN24: 0 | AO24: 0 | AP24: 0 | AQ24: 0 | AR24: 0 | AS24: 0 | AT24: 0 | AU24: 0 | AV24: 0 | AW24: 0 | AZ24: 0
C25: =+IF(A25="fősor",MAX(C$8:C24)+1,0) -> 0 | D25: 2 | E25: Beruházási elem | I25: 0 | J25: =+IF($A25="fősor",SUMIF(D26:$D$107,D25+1,J26:$J$107),$I25) -> 0 | L25: =IF($A25="fősor",SUMIF(D26:$D$107,D25+1,L26:$L$107),ROUND(J25*K25,0)) -> 0 | M25: =+IF($A25="fősor",SUMIF($D26:D$107,D25+1,$M26:M$107),$J25+$L25) -> 0 | Q25: =IF($A25="fősor",SUMIF($D26:D$107,D25+1,$Q26:Q$107),IF(N25="Elszámolható költség",J25,0)) -> 0 | R25: =IF($A25="fősor",SUMIF($D26:D$107,D25+1,$R26:R$107),IF(AND(N25="Elszámolható költség",P25="Nem ÁFA visszaigénylő",Alapadatok!$C$60="IGEN"),L25,0)) -> 0 | S25: 0 | T25: =IF($A25="fősor",SUMIF($D26:D$107,D25+1,$T26:T$107),IF(AND(N25="Elszámolható költség",P25="Nem ÁFA visszaigénylő",Alapadatok!$C$60="NEM"),L25,0)) -> 0 | U25: =IF($A25="fősor",SUMIF($D26:D$107,D25+1,$U26:U$107),IF(AND(N25="Elszámolható költség",P25="ÁFA visszaigénylő"),L25,0)) -> 0 | V25: =IF($A25="fősor",SUMIF($D26:D$107,D25+1,$V26:V$107),IF(N25="NEM Elszámolható költség",J25,0)) -> 0 | W25: =IF($A25="fősor",SUMIF($D26:D$107,D25+1,$W26:W$107),IF(AND(N25="NEM Elszámolható költség",P25="ÁFA visszaigénylő"),L25,0)) -> 0 | X25: =IF($A25="fősor",SUMIF($D26:D$107,D25+1,$X26:X$107),IF(AND(N25="NEM Elszámolható költség",P25="Nem ÁFA visszaigénylő"),L25,0)) -> 0 | Y25: 0 | Z25: 0 | AA25: 0 | AB25: 0 | AI25: 0 | AJ25: 0 | AK25: 0 | AL25: 0 | AM25: 0 | AN25: 0 | AO25: 0 | AP25: 0 | AQ25: 0 | AR25: 0 | AS25: 0 | AT25: 0 | AU25: 0 | AV25: 0 | AW25: 0 | AZ25: 0
C26: =+IF(A26="fősor",MAX(C$8:C25)+1,0) -> 0 | D26: 2 | E26: Beruházási elem | I26: 0 | J26: =+IF($A26="fősor",SUMIF(D27:$D$107,D26+1,J27:$J$107),$I26) -> 0 | L26: =IF($A26="fősor",SUMIF(D27:$D$107,D26+1,L27:$L$107),ROUND(J26*K26,0)) -> 0 | M26: =+IF($A26="fősor",SUMIF($D27:D$107,D26+1,$M27:M$107),$J26+$L26) -> 0 | Q26: =IF($A26="fősor",SUMIF($D27:D$107,D26+1,$Q27:Q$107),IF(N26="Elszámolható költség",J26,0)) -> 0 | R26: =IF($A26="fősor",SUMIF($D27:D$107,D26+1,$R27:R$107),IF(AND(N26="Elszámolható költség",P26="Nem ÁFA visszaigénylő",Alapadatok!$C$60="IGEN"),L26,0)) -> 0 | S26: 0 | T26: =IF($A26="fősor",SUMIF($D27:D$107,D26+1,$T27:T$107),IF(AND(N26="Elszámolható költség",P26="Nem ÁFA visszaigénylő",Alapadatok!$C$60="NEM"),L26,0)) -> 0 | U26: =IF($A26="fősor",SUMIF($D27:D$107,D26+1,$U27:U$107),IF(AND(N26="Elszámolható költség",P26="ÁFA visszaigénylő"),L26,0)) -> 0 | V26: =IF($A26="fősor",SUMIF($D27:D$107,D26+1,$V27:V$107),IF(N26="NEM Elszámolható költség",J26,0)) -> 0 | W26: =IF($A26="fősor",SUMIF($D27:D$107,D26+1,$W27:W$107),IF(AND(N26="NEM Elszámolható költség",P26="ÁFA visszaigénylő"),L26,0)) -> 0 | X26: =IF($A26="fősor",SUMIF($D27:D$107,D26+1,$X27:X$107),IF(AND(N26="NEM Elszámolható költség",P26="Nem ÁFA visszaigénylő"),L26,0)) -> 0 | Y26: 0 | Z26: 0 | AA26: 0 | AB26: 0 | AI26: 0 | AJ26: 0 | AK26: 0 | AL26: 0 | AM26: 0 | AN26: 0 | AO26: 0 | AP26: 0 | AQ26: 0 | AR26: 0 | AS26: 0 | AT26: 0 | AU26: 0 | AV26: 0 | AW26: 0 | AZ26: 0
C27: =+IF(A27="fősor",MAX(C$8:C26)+1,0) -> 0 | D27: 2 | E27: Beruházási elem | I27: 0 | J27: =+IF($A27="fősor",SUMIF(D28:$D$107,D27+1,J28:$J$107),$I27) -> 0 | L27: =IF($A27="fősor",SUMIF(D28:$D$107,D27+1,L28:$L$107),ROUND(J27*K27,0)) -> 0 | M27: =+IF($A27="fősor",SUMIF($D28:D$107,D27+1,$M28:M$107),$J27+$L27) -> 0 | Q27: =IF($A27="fősor",SUMIF($D28:D$107,D27+1,$Q28:Q$107),IF(N27="Elszámolható költség",J27,0)) -> 0 | R27: =IF($A27="fősor",SUMIF($D28:D$107,D27+1,$R28:R$107),IF(AND(N27="Elszámolható költség",P27="Nem ÁFA visszaigénylő",Alapadatok!$C$60="IGEN"),L27,0)) -> 0 | S27: 0 | T27: =IF($A27="fősor",SUMIF($D28:D$107,D27+1,$T28:T$107),IF(AND(N27="Elszámolható költség",P27="Nem ÁFA visszaigénylő",Alapadatok!$C$60="NEM"),L27,0)) -> 0 | U27: =IF($A27="fősor",SUMIF($D28:D$107,D27+1,$U28:U$107),IF(AND(N27="Elszámolható költség",P27="ÁFA visszaigénylő"),L27,0)) -> 0 | V27: =IF($A27="fősor",SUMIF($D28:D$107,D27+1,$V28:V$107),IF(N27="NEM Elszámolható költség",J27,0)) -> 0 | W27: =IF($A27="fősor",SUMIF($D28:D$107,D27+1,$W28:W$107),IF(AND(N27="NEM Elszámolható költség",P27="ÁFA visszaigénylő"),L27,0)) -> 0 | X27: =IF($A27="fősor",SUMIF($D28:D$107,D27+1,$X28:X$107),IF(AND(N27="NEM Elszámolható költség",P27="Nem ÁFA visszaigénylő"),L27,0)) -> 0 | Y27: 0 | Z27: 0 | AA27: 0 | AB27: 0 | AI27: 0 | AJ27: 0 | AK27: 0 | AL27: 0 | AM27: 0 | AN27: 0 | AO27: 0 | AP27: 0 | AQ27: 0 | AR27: 0 | AS27: 0 | AT27: 0 | AU27: 0 | AV27: 0 | AW27: 0 | AZ27: 0
C28: =+IF(A28="fősor",MAX(C$8:C27)+1,0) -> 0 | D28: 2 | E28: Beruházási elem | I28: 0 | J28: =+IF($A28="fősor",SUMIF(D29:$D$107,D28+1,J29:$J$107),$I28) -> 0 | L28: =IF($A28="fősor",SUMIF(D29:$D$107,D28+1,L29:$L$107),ROUND(J28*K28,0)) -> 0 | M28: =+IF($A28="fősor",SUMIF($D29:D$107,D28+1,$M29:M$107),$J28+$L28) -> 0 | Q28: =IF($A28="fősor",SUMIF($D29:D$107,D28+1,$Q29:Q$107),IF(N28="Elszámolható költség",J28,0)) -> 0 | R28: =IF($A28="fősor",SUMIF($D29:D$107,D28+1,$R29:R$107),IF(AND(N28="Elszámolható költség",P28="Nem ÁFA visszaigénylő",Alapadatok!$C$60="IGEN"),L28,0)) -> 0 | S28: 0 | T28: =IF($A28="fősor",SUMIF($D29:D$107,D28+1,$T29:T$107),IF(AND(N28="Elszámolható költség",P28="Nem ÁFA visszaigénylő",Alapadatok!$C$60="NEM"),L28,0)) -> 0 | U28: =IF($A28="fősor",SUMIF($D29:D$107,D28+1,$U29:U$107),IF(AND(N28="Elszámolható költség",P28="ÁFA visszaigénylő"),L28,0)) -> 0 | V28: =IF($A28="fősor",SUMIF($D29:D$107,D28+1,$V29:V$107),IF(N28="NEM Elszámolható költség",J28,0)) -> 0 | W28: =IF($A28="fősor",SUMIF($D29:D$107,D28+1,$W29:W$107),IF(AND(N28="NEM Elszámolható költség",P28="ÁFA visszaigénylő"),L28,0)) -> 0 | X28: =IF($A28="fősor",SUMIF($D29:D$107,D28+1,$X29:X$107),IF(AND(N28="NEM Elszámolható költség",P28="Nem ÁFA visszaigénylő"),L28,0)) -> 0 | Y28: 0 | Z28: 0 | AA28: 0 | AB28: 0 | AI28: 0 | AJ28: 0 | AK28: 0 | AL28: 0 | AM28: 0 | AN28: 0 | AO28: 0 | AP28: 0 | AQ28: 0 | AR28: 0 | AS28: 0 | AT28: 0 | AU28: 0 | AV28: 0 | AW28: 0 | AZ28: 0
C29: =+IF(A29="fősor",MAX(C$8:C28)+1,0) -> 0 | D29: 2 | E29: Beruházási elem | I29: 0 | J29: =+IF($A29="fősor",SUMIF(D30:$D$107,D29+1,J30:$J$107),$I29) -> 0 | L29: =IF($A29="fősor",SUMIF(D30:$D$107,D29+1,L30:$L$107),ROUND(J29*K29,0)) -> 0 | M29: =+IF($A29="fősor",SUMIF($D30:D$107,D29+1,$M30:M$107),$J29+$L29) -> 0 | Q29: =IF($A29="fősor",SUMIF($D30:D$107,D29+1,$Q30:Q$107),IF(N29="Elszámolható költség",J29,0)) -> 0 | R29: =IF($A29="fősor",SUMIF($D30:D$107,D29+1,$R30:R$107),IF(AND(N29="Elszámolható költség",P29="Nem ÁFA visszaigénylő",Alapadatok!$C$60="IGEN"),L29,0)) -> 0 | S29: 0 | T29: =IF($A29="fősor",SUMIF($D30:D$107,D29+1,$T30:T$107),IF(AND(N29="Elszámolható költség",P29="Nem ÁFA visszaigénylő",Alapadatok!$C$60="NEM"),L29,0)) -> 0 | U29: =IF($A29="fősor",SUMIF($D30:D$107,D29+1,$U30:U$107),IF(AND(N29="Elszámolható költség",P29="ÁFA visszaigénylő"),L29,0)) -> 0 | V29: =IF($A29="fősor",SUMIF($D30:D$107,D29+1,$V30:V$107),IF(N29="NEM Elszámolható költség",J29,0)) -> 0 | W29: =IF($A29="fősor",SUMIF($D30:D$107,D29+1,$W30:W$107),IF(AND(N29="NEM Elszámolható költség",P29="ÁFA visszaigénylő"),L29,0)) -> 0 | X29: =IF($A29="fősor",SUMIF($D30:D$107,D29+1,$X30:X$107),IF(AND(N29="NEM Elszámolható költség",P29="Nem ÁFA visszaigénylő"),L29,0)) -> 0 | Y29: 0 | Z29: 0 | AA29: 0 | AB29: 0 | AI29: 0 | AJ29: 0 | AK29: 0 | AL29: 0 | AM29: 0 | AN29: 0 | AO29: 0 | AP29: 0 | AQ29: 0 | AR29: 0 | AS29: 0 | AT29: 0 | AU29: 0 | AV29: 0 | AW29: 0 | AZ29: 0
C30: =+IF(A30="fősor",MAX(C$8:C29)+1,0) -> 0 | D30: 2 | E30: Beruházási elem | I30: 0 | J30: =+IF($A30="fősor",SUMIF(D31:$D$107,D30+1,J31:$J$107),$I30) -> 0 | L30: =IF($A30="fősor",SUMIF(D31:$D$107,D30+1,L31:$L$107),ROUND(J30*K30,0)) -> 0 | M30: =+IF($A30="fősor",SUMIF($D31:D$107,D30+1,$M31:M$107),$J30+$L30) -> 0 | Q30: =IF($A30="fősor",SUMIF($D31:D$107,D30+1,$Q31:Q$107),IF(N30="Elszámolható költség",J30,0)) -> 0 | R30: =IF($A30="fősor",SUMIF($D31:D$107,D30+1,$R31:R$107),IF(AND(N30="Elszámolható költség",P30="Nem ÁFA visszaigénylő",Alapadatok!$C$60="IGEN"),L30,0)) -> 0 | S30: 0 | T30: =IF($A30="fősor",SUMIF($D31:D$107,D30+1,$T31:T$107),IF(AND(N30="Elszámolható költség",P30="Nem ÁFA visszaigénylő",Alapadatok!$C$60="NEM"),L30,0)) -> 0 | U30: =IF($A30="fősor",SUMIF($D31:D$107,D30+1,$U31:U$107),IF(AND(N30="Elszámolható költség",P30="ÁFA visszaigénylő"),L30,0)) -> 0 | V30: =IF($A30="fősor",SUMIF($D31:D$107,D30+1,$V31:V$107),IF(N30="NEM Elszámolható költség",J30,0)) -> 0 | W30: =IF($A30="fősor",SUMIF($D31:D$107,D30+1,$W31:W$107),IF(AND(N30="NEM Elszámolható költség",P30="ÁFA visszaigénylő"),L30,0)) -> 0 | X30: =IF($A30="fősor",SUMIF($D31:D$107,D30+1,$X31:X$107),IF(AND(N30="NEM Elszámolható költség",P30="Nem ÁFA visszaigénylő"),L30,0)) -> 0 | Y30: 0 | Z30: 0 | AA30: 0 | AB30: 0 | AI30: 0 | AJ30: 0 | AK30: 0 | AL30: 0 | AM30: 0 | AN30: 0 | AO30: 0 | AP30: 0 | AQ30: 0 | AR30: 0 | AS30: 0 | AT30: 0 | AU30: 0 | AV30: 0 | AW30: 0 | AZ30: 0
C31: =+IF(A31="fősor",MAX(C$8:C30)+1,0) -> 0 | D31: 2 | E31: Beruházási elem | I31: 0 | J31: =+IF($A31="fősor",SUMIF(D32:$D$107,D31+1,J32:$J$107),$I31) -> 0 | L31: =IF($A31="fősor",SUMIF(D32:$D$107,D31+1,L32:$L$107),ROUND(J31*K31,0)) -> 0 | M31: =+IF($A31="fősor",SUMIF($D32:D$107,D31+1,$M32:M$107),$J31+$L31) -> 0 | Q31: =IF($A31="fősor",SUMIF($D32:D$107,D31+1,$Q32:Q$107),IF(N31="Elszámolható költség",J31,0)) -> 0 | R31: =IF($A31="fősor",SUMIF($D32:D$107,D31+1,$R32:R$107),IF(AND(N31="Elszámolható költség",P31="Nem ÁFA visszaigénylő",Alapadatok!$C$60="IGEN"),L31,0)) -> 0 | S31: 0 | T31: =IF($A31="fősor",SUMIF($D32:D$107,D31+1,$T32:T$107),IF(AND(N31="Elszámolható költség",P31="Nem ÁFA visszaigénylő",Alapadatok!$C$60="NEM"),L31,0)) -> 0 | U31: =IF($A31="fősor",SUMIF($D32:D$107,D31+1,$U32:U$107),IF(AND(N31="Elszámolható költség",P31="ÁFA visszaigénylő"),L31,0)) -> 0 | V31: =IF($A31="fősor",SUMIF($D32:D$107,D31+1,$V32:V$107),IF(N31="NEM Elszámolható költség",J31,0)) -> 0 | W31: =IF($A31="fősor",SUMIF($D32:D$107,D31+1,$W32:W$107),IF(AND(N31="NEM Elszámolható költség",P31="ÁFA visszaigénylő"),L31,0)) -> 0 | X31: =IF($A31="fősor",SUMIF($D32:D$107,D31+1,$X32:X$107),IF(AND(N31="NEM Elszámolható költség",P31="Nem ÁFA visszaigénylő"),L31,0)) -> 0 | Y31: 0 | Z31: 0 | AA31: 0 | AB31: 0 | AI31: 0 | AJ31: 0 | AK31: 0 | AL31: 0 | AM31: 0 | AN31: 0 | AO31: 0 | AP31: 0 | AQ31: 0 | AR31: 0 | AS31: 0 | AT31: 0 | AU31: 0 | AV31: 0 | AW31: 0 | AZ31: 0
C32: =+IF(A32="fősor",MAX(C$8:C31)+1,0) -> 0 | D32: 2 | E32: Beruházási elem | I32: 0 | J32: =+IF($A32="fősor",SUMIF(D33:$D$107,D32+1,J33:$J$107),$I32) -> 0 | L32: =IF($A32="fősor",SUMIF(D33:$D$107,D32+1,L33:$L$107),ROUND(J32*K32,0)) -> 0 | M32: =+IF($A32="fősor",SUMIF($D33:D$107,D32+1,$M33:M$107),$J32+$L32) -> 0 | Q32: =IF($A32="fősor",SUMIF($D33:D$107,D32+1,$Q33:Q$107),IF(N32="Elszámolható költség",J32,0)) -> 0 | R32: =IF($A32="fősor",SUMIF($D33:D$107,D32+1,$R33:R$107),IF(AND(N32="Elszámolható költség",P32="Nem ÁFA visszaigénylő",Alapadatok!$C$60="IGEN"),L32,0)) -> 0 | S32: 0 | T32: =IF($A32="fősor",SUMIF($D33:D$107,D32+1,$T33:T$107),IF(AND(N32="Elszámolható költség",P32="Nem ÁFA visszaigénylő",Alapadatok!$C$60="NEM"),L32,0)) -> 0 | U32: =IF($A32="fősor",SUMIF($D33:D$107,D32+1,$U33:U$107),IF(AND(N32="Elszámolható költség",P32="ÁFA visszaigénylő"),L32,0)) -> 0 | V32: =IF($A32="fősor",SUMIF($D33:D$107,D32+1,$V33:V$107),IF(N32="NEM Elszámolható költség",J32,0)) -> 0 | W32: =IF($A32="fősor",SUMIF($D33:D$107,D32+1,$W33:W$107),IF(AND(N32="NEM Elszámolható költség",P32="ÁFA visszaigénylő"),L32,0)) -> 0 | X32: =IF($A32="fősor",SUMIF($D33:D$107,D32+1,$X33:X$107),IF(AND(N32="NEM Elszámolható költség",P32="Nem ÁFA visszaigénylő"),L32,0)) -> 0 | Y32: 0 | Z32: 0 | AA32: 0 | AB32: 0 | AI32: 0 | AJ32: 0 | AK32: 0 | AL32: 0 | AM32: 0 | AN32: 0 | AO32: 0 | AP32: 0 | AQ32: 0 | AR32: 0 | AS32: 0 | AT32: 0 | AU32: 0 | AV32: 0 | AW32: 0 | AZ32: 0
C33: =+IF(A33="fősor",MAX(C$8:C32)+1,0) -> 0 | D33: 2 | E33: Beruházási elem | I33: 0 | J33: =+IF($A33="fősor",SUMIF(D34:$D$107,D33+1,J34:$J$107),$I33) -> 0 | L33: =IF($A33="fősor",SUMIF(D34:$D$107,D33+1,L34:$L$107),ROUND(J33*K33,0)) -> 0 | M33: =+IF($A33="fősor",SUMIF($D34:D$107,D33+1,$M34:M$107),$J33+$L33) -> 0 | Q33: =IF($A33="fősor",SUMIF($D34:D$107,D33+1,$Q34:Q$107),IF(N33="Elszámolható költség",J33,0)) -> 0 | R33: =IF($A33="fősor",SUMIF($D34:D$107,D33+1,$R34:R$107),IF(AND(N33="Elszámolható költség",P33="Nem ÁFA visszaigénylő",Alapadatok!$C$60="IGEN"),L33,0)) -> 0 | S33: 0 | T33: =IF($A33="fősor",SUMIF($D34:D$107,D33+1,$T34:T$107),IF(AND(N33="Elszámolható költség",P33="Nem ÁFA visszaigénylő",Alapadatok!$C$60="NEM"),L33,0)) -> 0 | U33: =IF($A33="fősor",SUMIF($D34:D$107,D33+1,$U34:U$107),IF(AND(N33="Elszámolható költség",P33="ÁFA visszaigénylő"),L33,0)) -> 0 | V33: =IF($A33="fősor",SUMIF($D34:D$107,D33+1,$V34:V$107),IF(N33="NEM Elszámolható költség",J33,0)) -> 0 | W33: =IF($A33="fősor",SUMIF($D34:D$107,D33+1,$W34:W$107),IF(AND(N33="NEM Elszámolható költség",P33="ÁFA visszaigénylő"),L33,0)) -> 0 | X33: =IF($A33="fősor",SUMIF($D34:D$107,D33+1,$X34:X$107),IF(AND(N33="NEM Elszámolható költség",P33="Nem ÁFA visszaigénylő"),L33,0)) -> 0 | Y33: 0 | Z33: 0 | AA33: 0 | AB33: 0 | AI33: 0 | AJ33: 0 | AK33: 0 | AL33: 0 | AM33: 0 | AN33: 0 | AO33: 0 | AP33: 0 | AQ33: 0 | AR33: 0 | AS33: 0 | AT33: 0 | AU33: 0 | AV33: 0 | AW33: 0 | AZ33: 0
C34: =+IF(A34="fősor",MAX(C$8:C33)+1,0) -> 0 | D34: 2 | E34: Beruházási elem | I34: 0 | J34: =+IF($A34="fősor",SUMIF(D35:$D$107,D34+1,J35:$J$107),$I34) -> 0 | L34: =IF($A34="fősor",SUMIF(D35:$D$107,D34+1,L35:$L$107),ROUND(J34*K34,0)) -> 0 | M34: =+IF($A34="fősor",SUMIF($D35:D$107,D34+1,$M35:M$107),$J34+$L34) -> 0 | Q34: =IF($A34="fősor",SUMIF($D35:D$107,D34+1,$Q35:Q$107),IF(N34="Elszámolható költség",J34,0)) -> 0 | R34: =IF($A34="fősor",SUMIF($D35:D$107,D34+1,$R35:R$107),IF(AND(N34="Elszámolható költség",P34="Nem ÁFA visszaigénylő",Alapadatok!$C$60="IGEN"),L34,0)) -> 0 | S34: 0 | T34: =IF($A34="fősor",SUMIF($D35:D$107,D34+1,$T35:T$107),IF(AND(N34="Elszámolható költség",P34="Nem ÁFA visszaigénylő",Alapadatok!$C$60="NEM"),L34,0)) -> 0 | U34: =IF($A34="fősor",SUMIF($D35:D$107,D34+1,$U35:U$107),IF(AND(N34="Elszámolható költség",P34="ÁFA visszaigénylő"),L34,0)) -> 0 | V34: =IF($A34="fősor",SUMIF($D35:D$107,D34+1,$V35:V$107),IF(N34="NEM Elszámolható költség",J34,0)) -> 0 | W34: =IF($A34="fősor",SUMIF($D35:D$107,D34+1,$W35:W$107),IF(AND(N34="NEM Elszámolható költség",P34="ÁFA visszaigénylő"),L34,0)) -> 0 | X34: =IF($A34="fősor",SUMIF($D35:D$107,D34+1,$X35:X$107),IF(AND(N34="NEM Elszámolható költség",P34="Nem ÁFA visszaigénylő"),L34,0)) -> 0 | Y34: 0 | Z34: 0 | AA34: 0 | AB34: 0 | AI34: 0 | AJ34: 0 | AK34: 0 | AL34: 0 | AM34: 0 | AN34: 0 | AO34: 0 | AP34: 0 | AQ34: 0 | AR34: 0 | AS34: 0 | AT34: 0 | AU34: 0 | AV34: 0 | AW34: 0 | AZ34: 0
C35: =+IF(A35="fősor",MAX(C$8:C34)+1,0) -> 0 | D35: 2 | E35: Beruházási elem | I35: 0 | J35: =+IF($A35="fősor",SUMIF(D36:$D$107,D35+1,J36:$J$107),$I35) -> 0 | L35: =IF($A35="fősor",SUMIF(D36:$D$107,D35+1,L36:$L$107),ROUND(J35*K35,0)) -> 0 | M35: =+IF($A35="fősor",SUMIF($D36:D$107,D35+1,$M36:M$107),$J35+$L35) -> 0 | Q35: =IF($A35="fősor",SUMIF($D36:D$107,D35+1,$Q36:Q$107),IF(N35="Elszámolható költség",J35,0)) -> 0 | R35: =IF($A35="fősor",SUMIF($D36:D$107,D35+1,$R36:R$107),IF(AND(N35="Elszámolható költség",P35="Nem ÁFA visszaigénylő",Alapadatok!$C$60="IGEN"),L35,0)) -> 0 | S35: 0 | T35: =IF($A35="fősor",SUMIF($D36:D$107,D35+1,$T36:T$107),IF(AND(N35="Elszámolható költség",P35="Nem ÁFA visszaigénylő",Alapadatok!$C$60="NEM"),L35,0)) -> 0 | U35: =IF($A35="fősor",SUMIF($D36:D$107,D35+1,$U36:U$107),IF(AND(N35="Elszámolható költség",P35="ÁFA visszaigénylő"),L35,0)) -> 0 | V35: =IF($A35="fősor",SUMIF($D36:D$107,D35+1,$V36:V$107),IF(N35="NEM Elszámolható költség",J35,0)) -> 0 | W35: =IF($A35="fősor",SUMIF($D36:D$107,D35+1,$W36:W$107),IF(AND(N35="NEM Elszámolható költség",P35="ÁFA visszaigénylő"),L35,0)) -> 0 | X35: =IF($A35="fősor",SUMIF($D36:D$107,D35+1,$X36:X$107),IF(AND(N35="NEM Elszámolható költség",P35="Nem ÁFA visszaigénylő"),L35,0)) -> 0 | Y35: 0 | Z35: 0 | AA35: 0 | AB35: 0 | AI35: 0 | AJ35: 0 | AK35: 0 | AL35: 0 | AM35: 0 | AN35: 0 | AO35: 0 | AP35: 0 | AQ35: 0 | AR35: 0 | AS35: 0 | AT35: 0 | AU35: 0 | AV35: 0 | AW35: 0 | AZ35: 0
C36: =+IF(A36="fősor",MAX(C$8:C35)+1,0) -> 0 | D36: 2 | E36: Beruházási elem | I36: 0 | J36: =+IF($A36="fősor",SUMIF(D37:$D$107,D36+1,J37:$J$107),$I36) -> 0 | L36: =IF($A36="fősor",SUMIF(D37:$D$107,D36+1,L37:$L$107),ROUND(J36*K36,0)) -> 0 | M36: =+IF($A36="fősor",SUMIF($D37:D$107,D36+1,$M37:M$107),$J36+$L36) -> 0 | Q36: =IF($A36="fősor",SUMIF($D37:D$107,D36+1,$Q37:Q$107),IF(N36="Elszámolható költség",J36,0)) -> 0 | R36: =IF($A36="fősor",SUMIF($D37:D$107,D36+1,$R37:R$107),IF(AND(N36="Elszámolható költség",P36="Nem ÁFA visszaigénylő",Alapadatok!$C$60="IGEN"),L36,0)) -> 0 | S36: 0 | T36: =IF($A36="fősor",SUMIF($D37:D$107,D36+1,$T37:T$107),IF(AND(N36="Elszámolható költség",P36="Nem ÁFA visszaigénylő",Alapadatok!$C$60="NEM"),L36,0)) -> 0 | U36: =IF($A36="fősor",SUMIF($D37:D$107,D36+1,$U37:U$107),IF(AND(N36="Elszámolható költség",P36="ÁFA visszaigénylő"),L36,0)) -> 0 | V36: =IF($A36="fősor",SUMIF($D37:D$107,D36+1,$V37:V$107),IF(N36="NEM Elszámolható költség",J36,0)) -> 0 | W36: =IF($A36="fősor",SUMIF($D37:D$107,D36+1,$W37:W$107),IF(AND(N36="NEM Elszámolható költség",P36="ÁFA visszaigénylő"),L36,0)) -> 0 | X36: =IF($A36="fősor",SUMIF($D37:D$107,D36+1,$X37:X$107),IF(AND(N36="NEM Elszámolható költség",P36="Nem ÁFA visszaigénylő"),L36,0)) -> 0 | Y36: 0 | Z36: 0 | AA36: 0 | AB36: 0 | AI36: 0 | AJ36: 0 | AK36: 0 | AL36: 0 | AM36: 0 | AN36: 0 | AO36: 0 | AP36: 0 | AQ36: 0 | AR36: 0 | AS36: 0 | AT36: 0 | AU36: 0 | AV36: 0 | AW36: 0 | AZ36: 0
C37: =+IF(A37="fősor",MAX(C$8:C36)+1,0) -> 0 | D37: 2 | E37: Beruházási elem | I37: 0 | J37: =+IF($A37="fősor",SUMIF(D38:$D$107,D37+1,J38:$J$107),$I37) -> 0 | L37: =IF($A37="fősor",SUMIF(D38:$D$107,D37+1,L38:$L$107),ROUND(J37*K37,0)) -> 0 | M37: =+IF($A37="fősor",SUMIF($D38:D$107,D37+1,$M38:M$107),$J37+$L37) -> 0 | Q37: =IF($A37="fősor",SUMIF($D38:D$107,D37+1,$Q38:Q$107),IF(N37="Elszámolható költség",J37,0)) -> 0 | R37: =IF($A37="fősor",SUMIF($D38:D$107,D37+1,$R38:R$107),IF(AND(N37="Elszámolható költség",P37="Nem ÁFA visszaigénylő",Alapadatok!$C$60="IGEN"),L37,0)) -> 0 | S37: 0 | T37: =IF($A37="fősor",SUMIF($D38:D$107,D37+1,$T38:T$107),IF(AND(N37="Elszámolható költség",P37="Nem ÁFA visszaigénylő",Alapadatok!$C$60="NEM"),L37,0)) -> 0 | U37: =IF($A37="fősor",SUMIF($D38:D$107,D37+1,$U38:U$107),IF(AND(N37="Elszámolható költség",P37="ÁFA visszaigénylő"),L37,0)) -> 0 | V37: =IF($A37="fősor",SUMIF($D38:D$107,D37+1,$V38:V$107),IF(N37="NEM Elszámolható költség",J37,0)) -> 0 | W37: =IF($A37="fősor",SUMIF($D38:D$107,D37+1,$W38:W$107),IF(AND(N37="NEM Elszámolható költség",P37="ÁFA visszaigénylő"),L37,0)) -> 0 | X37: =IF($A37="fősor",SUMIF($D38:D$107,D37+1,$X38:X$107),IF(AND(N37="NEM Elszámolható költség",P37="Nem ÁFA visszaigénylő"),L37,0)) -> 0 | Y37: 0 | Z37: 0 | AA37: 0 | AB37: 0 | AI37: 0 | AJ37: 0 | AK37: 0 | AL37: 0 | AM37: 0 | AN37: 0 | AO37: 0 | AP37: 0 | AQ37: 0 | AR37: 0 | AS37: 0 | AT37: 0 | AU37: 0 | AV37: 0 | AW37: 0 | AZ37: 0
C38: =+IF(A38="fősor",MAX(C$8:C37)+1,0) -> 0 | D38: 2 | E38: Beruházási elem | I38: 0 | J38: =+IF($A38="fősor",SUMIF(D39:$D$107,D38+1,J39:$J$107),$I38) -> 0 | L38: =IF($A38="fősor",SUMIF(D39:$D$107,D38+1,L39:$L$107),ROUND(J38*K38,0)) -> 0 | M38: =+IF($A38="fősor",SUMIF($D39:D$107,D38+1,$M39:M$107),$J38+$L38) -> 0 | Q38: =IF($A38="fősor",SUMIF($D39:D$107,D38+1,$Q39:Q$107),IF(N38="Elszámolható költség",J38,0)) -> 0 | R38: =IF($A38="fősor",SUMIF($D39:D$107,D38+1,$R39:R$107),IF(AND(N38="Elszámolható költség",P38="Nem ÁFA visszaigénylő",Alapadatok!$C$60="IGEN"),L38,0)) -> 0 | S38: 0 | T38: =IF($A38="fősor",SUMIF($D39:D$107,D38+1,$T39:T$107),IF(AND(N38="Elszámolható költség",P38="Nem ÁFA visszaigénylő",Alapadatok!$C$60="NEM"),L38,0)) -> 0 | U38: =IF($A38="fősor",SUMIF($D39:D$107,D38+1,$U39:U$107),IF(AND(N38="Elszámolható költség",P38="ÁFA visszaigénylő"),L38,0)) -> 0 | V38: =IF($A38="fősor",SUMIF($D39:D$107,D38+1,$V39:V$107),IF(N38="NEM Elszámolható költség",J38,0)) -> 0 | W38: =IF($A38="fősor",SUMIF($D39:D$107,D38+1,$W39:W$107),IF(AND(N38="NEM Elszámolható költség",P38="ÁFA visszaigénylő"),L38,0)) -> 0 | X38: =IF($A38="fősor",SUMIF($D39:D$107,D38+1,$X39:X$107),IF(AND(N38="NEM Elszámolható költség",P38="Nem ÁFA visszaigénylő"),L38,0)) -> 0 | Y38: 0 | Z38: 0 | AA38: 0 | AB38: 0 | AI38: 0 | AJ38: 0 | AK38: 0 | AL38: 0 | AM38: 0 | AN38: 0 | AO38: 0 | AP38: 0 | AQ38: 0 | AR38: 0 | AS38: 0 | AT38: 0 | AU38: 0 | AV38: 0 | AW38: 0 | AZ38: 0
C39: =+IF(A39="fősor",MAX(C$8:C38)+1,0) -> 0 | D39: 2 | E39: Beruházási elem | I39: 0 | J39: =+IF($A39="fősor",SUMIF(D40:$D$107,D39+1,J40:$J$107),$I39) -> 0 | L39: =IF($A39="fősor",SUMIF(D40:$D$107,D39+1,L40:$L$107),ROUND(J39*K39,0)) -> 0 | M39: =+IF($A39="fősor",SUMIF($D40:D$107,D39+1,$M40:M$107),$J39+$L39) -> 0 | Q39: =IF($A39="fősor",SUMIF($D40:D$107,D39+1,$Q40:Q$107),IF(N39="Elszámolható költség",J39,0)) -> 0 | R39: =IF($A39="fősor",SUMIF($D40:D$107,D39+1,$R40:R$107),IF(AND(N39="Elszámolható költség",P39="Nem ÁFA visszaigénylő",Alapadatok!$C$60="IGEN"),L39,0)) -> 0 | S39: 0 | T39: =IF($A39="fősor",SUMIF($D40:D$107,D39+1,$T40:T$107),IF(AND(N39="Elszámolható költség",P39="Nem ÁFA visszaigénylő",Alapadatok!$C$60="NEM"),L39,0)) -> 0 | U39: =IF($A39="fősor",SUMIF($D40:D$107,D39+1,$U40:U$107),IF(AND(N39="Elszámolható költség",P39="ÁFA visszaigénylő"),L39,0)) -> 0 | V39: =IF($A39="fősor",SUMIF($D40:D$107,D39+1,$V40:V$107),IF(N39="NEM Elszámolható költség",J39,0)) -> 0 | W39: =IF($A39="fősor",SUMIF($D40:D$107,D39+1,$W40:W$107),IF(AND(N39="NEM Elszámolható költség",P39="ÁFA visszaigénylő"),L39,0)) -> 0 | X39: =IF($A39="fősor",SUMIF($D40:D$107,D39+1,$X40:X$107),IF(AND(N39="NEM Elszámolható költség",P39="Nem ÁFA visszaigénylő"),L39,0)) -> 0 | Y39: 0 | Z39: 0 | AA39: 0 | AB39: 0 | AI39: 0 | AJ39: 0 | AK39: 0 | AL39: 0 | AM39: 0 | AN39: 0 | AO39: 0 | AP39: 0 | AQ39: 0 | AR39: 0 | AS39: 0 | AT39: 0 | AU39: 0 | AV39: 0 | AW39: 0 | AZ39: 0
C40: =+IF(A40="fősor",MAX(C$8:C39)+1,0) -> 0 | D40: =IF(C40=C39,D39,D39+1) -> 2 | E40: Beruházási elem | I40: =IF(A40="fősor","",G40*H40) -> 0 | J40: =+IF($A40="fősor",SUMIF(D41:$D$107,D40+1,J41:$J$107),$I40) -> 0 | L40: =IF($A40="fősor",SUMIF(D41:$D$107,D40+1,L41:$L$107),ROUND(J40*K40,0)) -> 0 | M40: =+IF($A40="fősor",SUMIF($D41:D$107,D40+1,$M41:M$107),$J40+$L40) -> 0 | Q40: =IF($A40="fősor",SUMIF($D41:D$107,D40+1,$Q41:Q$107),IF(N40="Elszámolható költség",J40,0)) -> 0 | R40: =IF($A40="fősor",SUMIF($D41:D$107,D40+1,$R41:R$107),IF(AND(N40="Elszámolható költség",P40="Nem ÁFA visszaigénylő",Alapadatok!$C$60="IGEN"),L40,0)) -> 0 | S40: =SUM(Q40:R40) -> 0 | T40: =IF($A40="fősor",SUMIF($D41:D$107,D40+1,$T41:T$107),IF(AND(N40="Elszámolható költség",P40="Nem ÁFA visszaigénylő",Alapadatok!$C$60="NEM"),L40,0)) -> 0 | U40: =IF($A40="fősor",SUMIF($D41:D$107,D40+1,$U41:U$107),IF(AND(N40="Elszámolható költség",P40="ÁFA visszaigénylő"),L40,0)) -> 0 | V40: =IF($A40="fősor",SUMIF($D41:D$107,D40+1,$V41:V$107),IF(N40="NEM Elszámolható költség",J40,0)) -> 0 | W40: =IF($A40="fősor",SUMIF($D41:D$107,D40+1,$W41:W$107),IF(AND(N40="NEM Elszámolható költség",P40="ÁFA visszaigénylő"),L40,0)) -> 0 | X40: =IF($A40="fősor",SUMIF($D41:D$107,D40+1,$X41:X$107),IF(AND(N40="NEM Elszámolható költség",P40="Nem ÁFA visszaigénylő"),L40,0)) -> 0 | Y40: =SUM(V40,X40) -> 0 | Z40: =SUM(S40,Y40) -> 0 | AA40: 0 | AB40: =SUM(S40,AA40) -> 0 | AI40: 0 | AJ40: 0 | AK40: 0 | AL40: 0 | AM40: 0 | AN40: 0 | AO40: 0 | AP40: 0 | AQ40: 0 | AR40: 0 | AS40: 0 | AT40: 0 | AU40: 0 | AV40: 0 | AW40: 0 | AZ40: =IF($A40="fősor",0,IF(N40="Elszámolható költség",J40,0)) -> 0
C41: =+IF(A41="fősor",MAX(C$8:C40)+1,0) -> 0 | D41: 2 | E41: Beruházási elem | I41: 0 | J41: =+IF($A41="fősor",SUMIF(D42:$D$107,D41+1,J42:$J$107),$I41) -> 0 | L41: =IF($A41="fősor",SUMIF(D42:$D$107,D41+1,L42:$L$107),ROUND(J41*K41,0)) -> 0 | M41: =+IF($A41="fősor",SUMIF($D42:D$107,D41+1,$M42:M$107),$J41+$L41) -> 0 | Q41: =IF($A41="fősor",SUMIF($D42:D$107,D41+1,$Q42:Q$107),IF(N41="Elszámolható költség",J41,0)) -> 0 | R41: =IF($A41="fősor",SUMIF($D42:D$107,D41+1,$R42:R$107),IF(AND(N41="Elszámolható költség",P41="Nem ÁFA visszaigénylő",Alapadatok!$C$60="IGEN"),L41,0)) -> 0 | S41: 0 | T41: =IF($A41="fősor",SUMIF($D42:D$107,D41+1,$T42:T$107),IF(AND(N41="Elszámolható költség",P41="Nem ÁFA visszaigénylő",Alapadatok!$C$60="NEM"),L41,0)) -> 0 | U41: =IF($A41="fősor",SUMIF($D42:D$107,D41+1,$U42:U$107),IF(AND(N41="Elszámolható költség",P41="ÁFA visszaigénylő"),L41,0)) -> 0 | V41: =IF($A41="fősor",SUMIF($D42:D$107,D41+1,$V42:V$107),IF(N41="NEM Elszámolható költség",J41,0)) -> 0 | W41: =IF($A41="fősor",SUMIF($D42:D$107,D41+1,$W42:W$107),IF(AND(N41="NEM Elszámolható költség",P41="ÁFA visszaigénylő"),L41,0)) -> 0 | X41: =IF($A41="fősor",SUMIF($D42:D$107,D41+1,$X42:X$107),IF(AND(N41="NEM Elszámolható költség",P41="Nem ÁFA visszaigénylő"),L41,0)) -> 0 | Y41: 0 | Z41: 0 | AA41: =SUM(T41,V41,X41) -> 0 | AB41: 0 | AI41: =IF($AB41=0,0,IF($A41="Alsor",$S41*AC41,"")) -> 0 | AJ41: =IF($AB41=0,0,IF($A41="Alsor",$S41*AD41,"")) -> 0 | AK41: =IF($AB41=0,0,IF($A41="Alsor",$S41*AE41,"")) -> 0 | AL41: =IF($AB41=0,0,IF($A41="Alsor",$S41*AF41,"")) -> 0 | AM41: =IF($AB41=0,0,IF($A41="Alsor",$S41*AG41,"")) -> 0 | AN41: 0 | AO41: 0 | AP41: 0 | AQ41: 0 | AR41: 0 | AS41: 0 | AT41: 0 | AU41: 0 | AV41: 0 | AW41: 0 | AZ41: 0
C42: =+IF(A42="fősor",MAX(C$8:C41)+1,0) -> 0 | D42: 2 | E42: Beruházási elem | I42: 0 | J42: =+IF($A42="fősor",SUMIF(D43:$D$107,D42+1,J43:$J$107),$I42) -> 0 | L42: =IF($A42="fősor",SUMIF(D43:$D$107,D42+1,L43:$L$107),ROUND(J42*K42,0)) -> 0 | M42: =+IF($A42="fősor",SUMIF($D43:D$107,D42+1,$M43:M$107),$J42+$L42) -> 0 | Q42: =IF($A42="fősor",SUMIF($D43:D$107,D42+1,$Q43:Q$107),IF(N42="Elszámolható költség",J42,0)) -> 0 | R42: =IF($A42="fősor",SUMIF($D43:D$107,D42+1,$R43:R$107),IF(AND(N42="Elszámolható költség",P42="Nem ÁFA visszaigénylő",Alapadatok!$C$60="IGEN"),L42,0)) -> 0 | S42: 0 | T42: =IF($A42="fősor",SUMIF($D43:D$107,D42+1,$T43:T$107),IF(AND(N42="Elszámolható költség",P42="Nem ÁFA visszaigénylő",Alapadatok!$C$60="NEM"),L42,0)) -> 0 | U42: =IF($A42="fősor",SUMIF($D43:D$107,D42+1,$U43:U$107),IF(AND(N42="Elszámolható költség",P42="ÁFA visszaigénylő"),L42,0)) -> 0 | V42: =IF($A42="fősor",SUMIF($D43:D$107,D42+1,$V43:V$107),IF(N42="NEM Elszámolható költség",J42,0)) -> 0 | W42: =IF($A42="fősor",SUMIF($D43:D$107,D42+1,$W43:W$107),IF(AND(N42="NEM Elszámolható költség",P42="ÁFA visszaigénylő"),L42,0)) -> 0 | X42: =IF($A42="fősor",SUMIF($D43:D$107,D42+1,$X43:X$107),IF(AND(N42="NEM Elszámolható költség",P42="Nem ÁFA visszaigénylő"),L42,0)) -> 0 | Y42: 0 | Z42: 0 | AA42: 0 | AB42: 0 | AI42: 0 | AJ42: 0 | AK42: 0 | AL42: 0 | AM42: 0 | AN42: 0 | AO42: 0 | AP42: 0 | AQ42: 0 | AR42: 0 | AS42: 0 | AT42: 0 | AU42: 0 | AV42: 0 | AW42: 0 | AZ42: 0
C43: =+IF(A43="fősor",MAX(C$8:C42)+1,0) -> 0 | D43: 2 | E43: Beruházási elem | I43: 0 | J43: =+IF($A43="fősor",SUMIF(D44:$D$107,D43+1,J44:$J$107),$I43) -> 0 | L43: =IF($A43="fősor",SUMIF(D44:$D$107,D43+1,L44:$L$107),ROUND(J43*K43,0)) -> 0 | M43: =+IF($A43="fősor",SUMIF($D44:D$107,D43+1,$M44:M$107),$J43+$L43) -> 0 | Q43: =IF($A43="fősor",SUMIF($D44:D$107,D43+1,$Q44:Q$107),IF(N43="Elszámolható költség",J43,0)) -> 0 | R43: =IF($A43="fősor",SUMIF($D44:D$107,D43+1,$R44:R$107),IF(AND(N43="Elszámolható költség",P43="Nem ÁFA visszaigénylő",Alapadatok!$C$60="IGEN"),L43,0)) -> 0 | S43: 0 | T43: =IF($A43="fősor",SUMIF($D44:D$107,D43+1,$T44:T$107),IF(AND(N43="Elszámolható költség",P43="Nem ÁFA visszaigénylő",Alapadatok!$C$60="NEM"),L43,0)) -> 0 | U43: =IF($A43="fősor",SUMIF($D44:D$107,D43+1,$U44:U$107),IF(AND(N43="Elszámolható költség",P43="ÁFA visszaigénylő"),L43,0)) -> 0 | V43: =IF($A43="fősor",SUMIF($D44:D$107,D43+1,$V44:V$107),IF(N43="NEM Elszámolható költség",J43,0)) -> 0 | W43: =IF($A43="fősor",SUMIF($D44:D$107,D43+1,$W44:W$107),IF(AND(N43="NEM Elszámolható költség",P43="ÁFA visszaigénylő"),L43,0)) -> 0 | X43: =IF($A43="fősor",SUMIF($D44:D$107,D43+1,$X44:X$107),IF(AND(N43="NEM Elszámolható költség",P43="Nem ÁFA visszaigénylő"),L43,0)) -> 0 | Y43: 0 | Z43: 0 | AA43: 0 | AB43: 0 | AI43: 0 | AJ43: 0 | AK43: 0 | AL43: 0 | AM43: 0 | AN43: 0 | AO43: 0 | AP43: 0 | AQ43: 0 | AR43: 0 | AS43: 0 | AT43: 0 | AU43: 0 | AV43: 0 | AW43: 0 | AZ43: 0
C44: =+IF(A44="fősor",MAX(C$8:C43)+1,0) -> 0 | D44: 2 | E44: Beruházási elem | I44: 0 | J44: =+IF($A44="fősor",SUMIF(D45:$D$107,D44+1,J45:$J$107),$I44) -> 0 | L44: =IF($A44="fősor",SUMIF(D45:$D$107,D44+1,L45:$L$107),ROUND(J44*K44,0)) -> 0 | M44: =+IF($A44="fősor",SUMIF($D45:D$107,D44+1,$M45:M$107),$J44+$L44) -> 0 | Q44: =IF($A44="fősor",SUMIF($D45:D$107,D44+1,$Q45:Q$107),IF(N44="Elszámolható költség",J44,0)) -> 0 | R44: =IF($A44="fősor",SUMIF($D45:D$107,D44+1,$R45:R$107),IF(AND(N44="Elszámolható költség",P44="Nem ÁFA visszaigénylő",Alapadatok!$C$60="IGEN"),L44,0)) -> 0 | S44: 0 | T44: =IF($A44="fősor",SUMIF($D45:D$107,D44+1,$T45:T$107),IF(AND(N44="Elszámolható költség",P44="Nem ÁFA visszaigénylő",Alapadatok!$C$60="NEM"),L44,0)) -> 0 | U44: =IF($A44="fősor",SUMIF($D45:D$107,D44+1,$U45:U$107),IF(AND(N44="Elszámolható költség",P44="ÁFA visszaigénylő"),L44,0)) -> 0 | V44: =IF($A44="fősor",SUMIF($D45:D$107,D44+1,$V45:V$107),IF(N44="NEM Elszámolható költség",J44,0)) -> 0 | W44: =IF($A44="fősor",SUMIF($D45:D$107,D44+1,$W45:W$107),IF(AND(N44="NEM Elszámolható költség",P44="ÁFA visszaigénylő"),L44,0)) -> 0 | X44: =IF($A44="fősor",SUMIF($D45:D$107,D44+1,$X45:X$107),IF(AND(N44="NEM Elszámolható költség",P44="Nem ÁFA visszaigénylő"),L44,0)) -> 0 | Y44: 0 | Z44: 0 | AA44: 0 | AB44: 0 | AI44: 0 | AJ44: 0 | AK44: 0 | AL44: 0 | AM44: 0 | AN44: 0 | AO44: 0 | AP44: 0 | AQ44: 0 | AR44: 0 | AS44: 0 | AT44: 0 | AU44: 0 | AV44: 0 | AW44: 0 | AZ44: 0
C45: =+IF(A45="fősor",MAX(C$8:C44)+1,0) -> 0 | D45: 2 | E45: Beruházási elem | I45: 0 | J45: =+IF($A45="fősor",SUMIF(D46:$D$107,D45+1,J46:$J$107),$I45) -> 0 | L45: =IF($A45="fősor",SUMIF(D46:$D$107,D45+1,L46:$L$107),ROUND(J45*K45,0)) -> 0 | M45: =+IF($A45="fősor",SUMIF($D46:D$107,D45+1,$M46:M$107),$J45+$L45) -> 0 | Q45: =IF($A45="fősor",SUMIF($D46:D$107,D45+1,$Q46:Q$107),IF(N45="Elszámolható költség",J45,0)) -> 0 | R45: =IF($A45="fősor",SUMIF($D46:D$107,D45+1,$R46:R$107),IF(AND(N45="Elszámolható költség",P45="Nem ÁFA visszaigénylő",Alapadatok!$C$60="IGEN"),L45,0)) -> 0 | S45: 0 | T45: =IF($A45="fősor",SUMIF($D46:D$107,D45+1,$T46:T$107),IF(AND(N45="Elszámolható költség",P45="Nem ÁFA visszaigénylő",Alapadatok!$C$60="NEM"),L45,0)) -> 0 | U45: =IF($A45="fősor",SUMIF($D46:D$107,D45+1,$U46:U$107),IF(AND(N45="Elszámolható költség",P45="ÁFA visszaigénylő"),L45,0)) -> 0 | V45: =IF($A45="fősor",SUMIF($D46:D$107,D45+1,$V46:V$107),IF(N45="NEM Elszámolható költség",J45,0)) -> 0 | W45: =IF($A45="fősor",SUMIF($D46:D$107,D45+1,$W46:W$107),IF(AND(N45="NEM Elszámolható költség",P45="ÁFA visszaigénylő"),L45,0)) -> 0 | X45: =IF($A45="fősor",SUMIF($D46:D$107,D45+1,$X46:X$107),IF(AND(N45="NEM Elszámolható költség",P45="Nem ÁFA visszaigénylő"),L45,0)) -> 0 | Y45: 0 | Z45: 0 | AA45: 0 | AB45: 0 | AI45: 0 | AJ45: 0 | AK45: 0 | AL45: 0 | AM45: 0 | AN45: 0 | AO45: 0 | AP45: 0 | AQ45: 0 | AR45: 0 | AS45: 0 | AT45: 0 | AU45: 0 | AV45: 0 | AW45: 0 | AZ45: 0
C46: =+IF(A46="fősor",MAX(C$8:C45)+1,0) -> 0 | D46: 2 | E46: Beruházási elem | I46: 0 | J46: =+IF($A46="fősor",SUMIF(D47:$D$107,D46+1,J47:$J$107),$I46) -> 0 | L46: =IF($A46="fősor",SUMIF(D47:$D$107,D46+1,L47:$L$107),ROUND(J46*K46,0)) -> 0 | M46: =+IF($A46="fősor",SUMIF($D47:D$107,D46+1,$M47:M$107),$J46+$L46) -> 0 | Q46: =IF($A46="fősor",SUMIF($D47:D$107,D46+1,$Q47:Q$107),IF(N46="Elszámolható költség",J46,0)) -> 0 | R46: =IF($A46="fősor",SUMIF($D47:D$107,D46+1,$R47:R$107),IF(AND(N46="Elszámolható költség",P46="Nem ÁFA visszaigénylő",Alapadatok!$C$60="IGEN"),L46,0)) -> 0 | S46: 0 | T46: =IF($A46="fősor",SUMIF($D47:D$107,D46+1,$T47:T$107),IF(AND(N46="Elszámolható költség",P46="Nem ÁFA visszaigénylő",Alapadatok!$C$60="NEM"),L46,0)) -> 0 | U46: =IF($A46="fősor",SUMIF($D47:D$107,D46+1,$U47:U$107),IF(AND(N46="Elszámolható költség",P46="ÁFA visszaigénylő"),L46,0)) -> 0 | V46: =IF($A46="fősor",SUMIF($D47:D$107,D46+1,$V47:V$107),IF(N46="NEM Elszámolható költség",J46,0)) -> 0 | W46: =IF($A46="fősor",SUMIF($D47:D$107,D46+1,$W47:W$107),IF(AND(N46="NEM Elszámolható költség",P46="ÁFA visszaigénylő"),L46,0)) -> 0 | X46: =IF($A46="fősor",SUMIF($D47:D$107,D46+1,$X47:X$107),IF(AND(N46="NEM Elszámolható költség",P46="Nem ÁFA visszaigénylő"),L46,0)) -> 0 | Y46: 0 | Z46: 0 | AA46: 0 | AB46: 0 | AI46: 0 | AJ46: 0 | AK46: 0 | AL46: 0 | AM46: 0 | AN46: 0 | AO46: 0 | AP46: 0 | AQ46: 0 | AR46: 0 | AS46: 0 | AT46: 0 | AU46: 0 | AV46: 0 | AW46: 0 | AZ46: 0
C47: =+IF(A47="fősor",MAX(C$8:C46)+1,0) -> 0 | D47: 2 | E47: Beruházási elem | I47: 0 | J47: =+IF($A47="fősor",SUMIF(D48:$D$107,D47+1,J48:$J$107),$I47) -> 0 | L47: =IF($A47="fősor",SUMIF(D48:$D$107,D47+1,L48:$L$107),ROUND(J47*K47,0)) -> 0 | M47: =+IF($A47="fősor",SUMIF($D48:D$107,D47+1,$M48:M$107),$J47+$L47) -> 0 | Q47: =IF($A47="fősor",SUMIF($D48:D$107,D47+1,$Q48:Q$107),IF(N47="Elszámolható költség",J47,0)) -> 0 | R47: =IF($A47="fősor",SUMIF($D48:D$107,D47+1,$R48:R$107),IF(AND(N47="Elszámolható költség",P47="Nem ÁFA visszaigénylő",Alapadatok!$C$60="IGEN"),L47,0)) -> 0 | S47: 0 | T47: =IF($A47="fősor",SUMIF($D48:D$107,D47+1,$T48:T$107),IF(AND(N47="Elszámolható költség",P47="Nem ÁFA visszaigénylő",Alapadatok!$C$60="NEM"),L47,0)) -> 0 | U47: =IF($A47="fősor",SUMIF($D48:D$107,D47+1,$U48:U$107),IF(AND(N47="Elszámolható költség",P47="ÁFA visszaigénylő"),L47,0)) -> 0 | V47: =IF($A47="fősor",SUMIF($D48:D$107,D47+1,$V48:V$107),IF(N47="NEM Elszámolható költség",J47,0)) -> 0 | W47: =IF($A47="fősor",SUMIF($D48:D$107,D47+1,$W48:W$107),IF(AND(N47="NEM Elszámolható költség",P47="ÁFA visszaigénylő"),L47,0)) -> 0 | X47: =IF($A47="fősor",SUMIF($D48:D$107,D47+1,$X48:X$107),IF(AND(N47="NEM Elszámolható költség",P47="Nem ÁFA visszaigénylő"),L47,0)) -> 0 | Y47: 0 | Z47: 0 | AA47: 0 | AB47: 0 | AI47: 0 | AJ47: 0 | AK47: 0 | AL47: 0 | AM47: 0 | AN47: 0 | AO47: 0 | AP47: 0 | AQ47: 0 | AR47: 0 | AS47: 0 | AT47: 0 | AU47: 0 | AV47: 0 | AW47: 0 | AZ47: 0
C48: =+IF(A48="fősor",MAX(C$8:C47)+1,0) -> 0 | D48: 2 | E48: Beruházási elem | I48: 0 | J48: =+IF($A48="fősor",SUMIF(D49:$D$107,D48+1,J49:$J$107),$I48) -> 0 | L48: =IF($A48="fősor",SUMIF(D49:$D$107,D48+1,L49:$L$107),ROUND(J48*K48,0)) -> 0 | M48: =+IF($A48="fősor",SUMIF($D49:D$107,D48+1,$M49:M$107),$J48+$L48) -> 0 | Q48: =IF($A48="fősor",SUMIF($D49:D$107,D48+1,$Q49:Q$107),IF(N48="Elszámolható költség",J48,0)) -> 0 | R48: =IF($A48="fősor",SUMIF($D49:D$107,D48+1,$R49:R$107),IF(AND(N48="Elszámolható költség",P48="Nem ÁFA visszaigénylő",Alapadatok!$C$60="IGEN"),L48,0)) -> 0 | S48: 0 | T48: =IF($A48="fősor",SUMIF($D49:D$107,D48+1,$T49:T$107),IF(AND(N48="Elszámolható költség",P48="Nem ÁFA visszaigénylő",Alapadatok!$C$60="NEM"),L48,0)) -> 0 | U48: =IF($A48="fősor",SUMIF($D49:D$107,D48+1,$U49:U$107),IF(AND(N48="Elszámolható költség",P48="ÁFA visszaigénylő"),L48,0)) -> 0 | V48: =IF($A48="fősor",SUMIF($D49:D$107,D48+1,$V49:V$107),IF(N48="NEM Elszámolható költség",J48,0)) -> 0 | W48: =IF($A48="fősor",SUMIF($D49:D$107,D48+1,$W49:W$107),IF(AND(N48="NEM Elszámolható költség",P48="ÁFA visszaigénylő"),L48,0)) -> 0 | X48: =IF($A48="fősor",SUMIF($D49:D$107,D48+1,$X49:X$107),IF(AND(N48="NEM Elszámolható költség",P48="Nem ÁFA visszaigénylő"),L48,0)) -> 0 | Y48: 0 | Z48: 0 | AA48: 0 | AB48: 0 | AI48: 0 | AJ48: 0 | AK48: 0 | AL48: 0 | AM48: 0 | AN48: 0 | AO48: 0 | AP48: 0 | AQ48: 0 | AR48: 0 | AS48: 0 | AT48: 0 | AU48: 0 | AV48: 0 | AW48: 0 | AZ48: 0
C49: =+IF(A49="fősor",MAX(C$8:C48)+1,0) -> 0 | D49: 2 | E49: Beruházási elem | I49: 0 | J49: =+IF($A49="fősor",SUMIF(D50:$D$107,D49+1,J50:$J$107),$I49) -> 0 | L49: =IF($A49="fősor",SUMIF(D50:$D$107,D49+1,L50:$L$107),ROUND(J49*K49,0)) -> 0 | M49: =+IF($A49="fősor",SUMIF($D50:D$107,D49+1,$M50:M$107),$J49+$L49) -> 0 | Q49: =IF($A49="fősor",SUMIF($D50:D$107,D49+1,$Q50:Q$107),IF(N49="Elszámolható költség",J49,0)) -> 0 | R49: =IF($A49="fősor",SUMIF($D50:D$107,D49+1,$R50:R$107),IF(AND(N49="Elszámolható költség",P49="Nem ÁFA visszaigénylő",Alapadatok!$C$60="IGEN"),L49,0)) -> 0 | S49: 0 | T49: =IF($A49="fősor",SUMIF($D50:D$107,D49+1,$T50:T$107),IF(AND(N49="Elszámolható költség",P49="Nem ÁFA visszaigénylő",Alapadatok!$C$60="NEM"),L49,0)) -> 0 | U49: =IF($A49="fősor",SUMIF($D50:D$107,D49+1,$U50:U$107),IF(AND(N49="Elszámolható költség",P49="ÁFA visszaigénylő"),L49,0)) -> 0 | V49: =IF($A49="fősor",SUMIF($D50:D$107,D49+1,$V50:V$107),IF(N49="NEM Elszámolható költség",J49,0)) -> 0 | W49: =IF($A49="fősor",SUMIF($D50:D$107,D49+1,$W50:W$107),IF(AND(N49="NEM Elszámolható költség",P49="ÁFA visszaigénylő"),L49,0)) -> 0 | X49: =IF($A49="fősor",SUMIF($D50:D$107,D49+1,$X50:X$107),IF(AND(N49="NEM Elszámolható költség",P49="Nem ÁFA visszaigénylő"),L49,0)) -> 0 | Y49: 0 | Z49: 0 | AA49: 0 | AB49: 0 | AI49: 0 | AJ49: 0 | AK49: 0 | AL49: 0 | AM49: 0 | AN49: 0 | AO49: 0 | AP49: 0 | AQ49: 0 | AR49: 0 | AS49: 0 | AT49: 0 | AU49: 0 | AV49: 0 | AW49: 0 | AZ49: 0
C50: =+IF(A50="fősor",MAX(C$8:C49)+1,0) -> 0 | D50: 2 | E50: Beruházási elem | I50: 0 | J50: =+IF($A50="fősor",SUMIF(D51:$D$107,D50+1,J51:$J$107),$I50) -> 0 | L50: =IF($A50="fősor",SUMIF(D51:$D$107,D50+1,L51:$L$107),ROUND(J50*K50,0)) -> 0 | M50: =+IF($A50="fősor",SUMIF($D51:D$107,D50+1,$M51:M$107),$J50+$L50) -> 0 | Q50: =IF($A50="fősor",SUMIF($D51:D$107,D50+1,$Q51:Q$107),IF(N50="Elszámolható költség",J50,0)) -> 0 | R50: =IF($A50="fősor",SUMIF($D51:D$107,D50+1,$R51:R$107),IF(AND(N50="Elszámolható költség",P50="Nem ÁFA visszaigénylő",Alapadatok!$C$60="IGEN"),L50,0)) -> 0 | S50: 0 | T50: =IF($A50="fősor",SUMIF($D51:D$107,D50+1,$T51:T$107),IF(AND(N50="Elszámolható költség",P50="Nem ÁFA visszaigénylő",Alapadatok!$C$60="NEM"),L50,0)) -> 0 | U50: =IF($A50="fősor",SUMIF($D51:D$107,D50+1,$U51:U$107),IF(AND(N50="Elszámolható költség",P50="ÁFA visszaigénylő"),L50,0)) -> 0 | V50: =IF($A50="fősor",SUMIF($D51:D$107,D50+1,$V51:V$107),IF(N50="NEM Elszámolható költség",J50,0)) -> 0 | W50: =IF($A50="fősor",SUMIF($D51:D$107,D50+1,$W51:W$107),IF(AND(N50="NEM Elszámolható költség",P50="ÁFA visszaigénylő"),L50,0)) -> 0 | X50: =IF($A50="fősor",SUMIF($D51:D$107,D50+1,$X51:X$107),IF(AND(N50="NEM Elszámolható költség",P50="Nem ÁFA visszaigénylő"),L50,0)) -> 0 | Y50: 0 | Z50: 0 | AA50: 0 | AB50: 0 | AI50: 0 | AJ50: 0 | AK50: 0 | AL50: 0 | AM50: 0 | AN50: 0 | AO50: 0 | AP50: 0 | AQ50: 0 | AR50: 0 | AS50: 0 | AT50: 0 | AU50: 0 | AV50: 0 | AW50: 0 | AZ50: 0
C51: =+IF(A51="fősor",MAX(C$8:C50)+1,0) -> 0 | D51: 2 | E51: Beruházási elem | I51: 0 | J51: =+IF($A51="fősor",SUMIF(D52:$D$107,D51+1,J52:$J$107),$I51) -> 0 | L51: =IF($A51="fősor",SUMIF(D52:$D$107,D51+1,L52:$L$107),ROUND(J51*K51,0)) -> 0 | M51: =+IF($A51="fősor",SUMIF($D52:D$107,D51+1,$M52:M$107),$J51+$L51) -> 0 | Q51: =IF($A51="fősor",SUMIF($D52:D$107,D51+1,$Q52:Q$107),IF(N51="Elszámolható költség",J51,0)) -> 0 | R51: =IF($A51="fősor",SUMIF($D52:D$107,D51+1,$R52:R$107),IF(AND(N51="Elszámolható költség",P51="Nem ÁFA visszaigénylő",Alapadatok!$C$60="IGEN"),L51,0)) -> 0 | S51: 0 | T51: =IF($A51="fősor",SUMIF($D52:D$107,D51+1,$T52:T$107),IF(AND(N51="Elszámolható költség",P51="Nem ÁFA visszaigénylő",Alapadatok!$C$60="NEM"),L51,0)) -> 0 | U51: =IF($A51="fősor",SUMIF($D52:D$107,D51+1,$U52:U$107),IF(AND(N51="Elszámolható költség",P51="ÁFA visszaigénylő"),L51,0)) -> 0 | V51: =IF($A51="fősor",SUMIF($D52:D$107,D51+1,$V52:V$107),IF(N51="NEM Elszámolható költség",J51,0)) -> 0 | W51: =IF($A51="fősor",SUMIF($D52:D$107,D51+1,$W52:W$107),IF(AND(N51="NEM Elszámolható költség",P51="ÁFA visszaigénylő"),L51,0)) -> 0 | X51: =IF($A51="fősor",SUMIF($D52:D$107,D51+1,$X52:X$107),IF(AND(N51="NEM Elszámolható költség",P51="Nem ÁFA visszaigénylő"),L51,0)) -> 0 | Y51: 0 | Z51: 0 | AA51: 0 | AB51: 0 | AI51: 0 | AJ51: 0 | AK51: 0 | AL51: 0 | AM51: 0 | AN51: 0 | AO51: 0 | AP51: 0 | AQ51: 0 | AR51: 0 | AS51: 0 | AT51: 0 | AU51: 0 | AV51: 0 | AW51: 0 | AZ51: 0
C52: =+IF(A52="fősor",MAX(C$8:C51)+1,0) -> 0 | D52: 2 | E52: Beruházási elem | I52: 0 | J52: =+IF($A52="fősor",SUMIF(D53:$D$107,D52+1,J53:$J$107),$I52) -> 0 | L52: =IF($A52="fősor",SUMIF(D53:$D$107,D52+1,L53:$L$107),ROUND(J52*K52,0)) -> 0 | M52: =+IF($A52="fősor",SUMIF($D53:D$107,D52+1,$M53:M$107),$J52+$L52) -> 0 | Q52: =IF($A52="fősor",SUMIF($D53:D$107,D52+1,$Q53:Q$107),IF(N52="Elszámolható költség",J52,0)) -> 0 | R52: =IF($A52="fősor",SUMIF($D53:D$107,D52+1,$R53:R$107),IF(AND(N52="Elszámolható költség",P52="Nem ÁFA visszaigénylő",Alapadatok!$C$60="IGEN"),L52,0)) -> 0 | S52: 0 | T52: =IF($A52="fősor",SUMIF($D53:D$107,D52+1,$T53:T$107),IF(AND(N52="Elszámolható költség",P52="Nem ÁFA visszaigénylő",Alapadatok!$C$60="NEM"),L52,0)) -> 0 | U52: =IF($A52="fősor",SUMIF($D53:D$107,D52+1,$U53:U$107),IF(AND(N52="Elszámolható költség",P52="ÁFA visszaigénylő"),L52,0)) -> 0 | V52: =IF($A52="fősor",SUMIF($D53:D$107,D52+1,$V53:V$107),IF(N52="NEM Elszámolható költség",J52,0)) -> 0 | W52: =IF($A52="fősor",SUMIF($D53:D$107,D52+1,$W53:W$107),IF(AND(N52="NEM Elszámolható költség",P52="ÁFA visszaigénylő"),L52,0)) -> 0 | X52: =IF($A52="fősor",SUMIF($D53:D$107,D52+1,$X53:X$107),IF(AND(N52="NEM Elszámolható költség",P52="Nem ÁFA visszaigénylő"),L52,0)) -> 0 | Y52: 0 | Z52: 0 | AA52: 0 | AB52: 0 | AI52: 0 | AJ52: 0 | AK52: 0 | AL52: 0 | AM52: 0 | AN52: 0 | AO52: 0 | AP52: 0 | AQ52: 0 | AR52: 0 | AS52: 0 | AT52: 0 | AU52: 0 | AV52: 0 | AW52: 0 | AZ52: 0
C53: =+IF(A53="fősor",MAX(C$8:C52)+1,0) -> 0 | D53: 2 | E53: Beruházási elem | I53: 0 | J53: =+IF($A53="fősor",SUMIF(D54:$D$107,D53+1,J54:$J$107),$I53) -> 0 | L53: =IF($A53="fősor",SUMIF(D54:$D$107,D53+1,L54:$L$107),ROUND(J53*K53,0)) -> 0 | M53: =+IF($A53="fősor",SUMIF($D54:D$107,D53+1,$M54:M$107),$J53+$L53) -> 0 | Q53: =IF($A53="fősor",SUMIF($D54:D$107,D53+1,$Q54:Q$107),IF(N53="Elszámolható költség",J53,0)) -> 0 | R53: =IF($A53="fősor",SUMIF($D54:D$107,D53+1,$R54:R$107),IF(AND(N53="Elszámolható költség",P53="Nem ÁFA visszaigénylő",Alapadatok!$C$60="IGEN"),L53,0)) -> 0 | S53: 0 | T53: =IF($A53="fősor",SUMIF($D54:D$107,D53+1,$T54:T$107),IF(AND(N53="Elszámolható költség",P53="Nem ÁFA visszaigénylő",Alapadatok!$C$60="NEM"),L53,0)) -> 0 | U53: =IF($A53="fősor",SUMIF($D54:D$107,D53+1,$U54:U$107),IF(AND(N53="Elszámolható költség",P53="ÁFA visszaigénylő"),L53,0)) -> 0 | V53: =IF($A53="fősor",SUMIF($D54:D$107,D53+1,$V54:V$107),IF(N53="NEM Elszámolható költség",J53,0)) -> 0 | W53: =IF($A53="fősor",SUMIF($D54:D$107,D53+1,$W54:W$107),IF(AND(N53="NEM Elszámolható költség",P53="ÁFA visszaigénylő"),L53,0)) -> 0 | X53: =IF($A53="fősor",SUMIF($D54:D$107,D53+1,$X54:X$107),IF(AND(N53="NEM Elszámolható költség",P53="Nem ÁFA visszaigénylő"),L53,0)) -> 0 | Y53: 0 | Z53: 0 | AA53: 0 | AB53: 0 | AI53: 0 | AJ53: 0 | AK53: 0 | AL53: 0 | AM53: 0 | AN53: 0 | AO53: 0 | AP53: 0 | AQ53: 0 | AR53: 0 | AS53: 0 | AT53: 0 | AU53: 0 | AV53: 0 | AW53: 0 | AZ53: 0
C54: =+IF(A54="fősor",MAX(C$8:C53)+1,0) -> 0 | D54: 2 | E54: Beruházási elem | I54: 0 | J54: =+IF($A54="fősor",SUMIF(D55:$D$107,D54+1,J55:$J$107),$I54) -> 0 | L54: =IF($A54="fősor",SUMIF(D55:$D$107,D54+1,L55:$L$107),ROUND(J54*K54,0)) -> 0 | M54: =+IF($A54="fősor",SUMIF($D55:D$107,D54+1,$M55:M$107),$J54+$L54) -> 0 | Q54: =IF($A54="fősor",SUMIF($D55:D$107,D54+1,$Q55:Q$107),IF(N54="Elszámolható költség",J54,0)) -> 0 | R54: =IF($A54="fősor",SUMIF($D55:D$107,D54+1,$R55:R$107),IF(AND(N54="Elszámolható költség",P54="Nem ÁFA visszaigénylő",Alapadatok!$C$60="IGEN"),L54,0)) -> 0 | S54: 0 | T54: =IF($A54="fősor",SUMIF($D55:D$107,D54+1,$T55:T$107),IF(AND(N54="Elszámolható költség",P54="Nem ÁFA visszaigénylő",Alapadatok!$C$60="NEM"),L54,0)) -> 0 | U54: =IF($A54="fősor",SUMIF($D55:D$107,D54+1,$U55:U$107),IF(AND(N54="Elszámolható költség",P54="ÁFA visszaigénylő"),L54,0)) -> 0 | V54: =IF($A54="fősor",SUMIF($D55:D$107,D54+1,$V55:V$107),IF(N54="NEM Elszámolható költség",J54,0)) -> 0 | W54: =IF($A54="fősor",SUMIF($D55:D$107,D54+1,$W55:W$107),IF(AND(N54="NEM Elszámolható költség",P54="ÁFA visszaigénylő"),L54,0)) -> 0 | X54: =IF($A54="fősor",SUMIF($D55:D$107,D54+1,$X55:X$107),IF(AND(N54="NEM Elszámolható költség",P54="Nem ÁFA visszaigénylő"),L54,0)) -> 0 | Y54: 0 | Z54: 0 | AA54: 0 | AB54: 0 | AI54: 0 | AJ54: 0 | AK54: 0 | AL54: 0 | AM54: 0 | AN54: 0 | AO54: 0 | AP54: 0 | AQ54: 0 | AR54: 0 | AS54: 0 | AT54: 0 | AU54: 0 | AV54: 0 | AW54: 0 | AZ54: 0
C55: =+IF(A55="fősor",MAX(C$8:C54)+1,0) -> 0 | D55: 2 | E55: Beruházási elem | I55: 0 | J55: =+IF($A55="fősor",SUMIF(D56:$D$107,D55+1,J56:$J$107),$I55) -> 0 | L55: =IF($A55="fősor",SUMIF(D56:$D$107,D55+1,L56:$L$107),ROUND(J55*K55,0)) -> 0 | M55: =+IF($A55="fősor",SUMIF($D56:D$107,D55+1,$M56:M$107),$J55+$L55) -> 0 | Q55: =IF($A55="fősor",SUMIF($D56:D$107,D55+1,$Q56:Q$107),IF(N55="Elszámolható költség",J55,0)) -> 0 | R55: =IF($A55="fősor",SUMIF($D56:D$107,D55+1,$R56:R$107),IF(AND(N55="Elszámolható költség",P55="Nem ÁFA visszaigénylő",Alapadatok!$C$60="IGEN"),L55,0)) -> 0 | S55: 0 | T55: =IF($A55="fősor",SUMIF($D56:D$107,D55+1,$T56:T$107),IF(AND(N55="Elszámolható költség",P55="Nem ÁFA visszaigénylő",Alapadatok!$C$60="NEM"),L55,0)) -> 0 | U55: =IF($A55="fősor",SUMIF($D56:D$107,D55+1,$U56:U$107),IF(AND(N55="Elszámolható költség",P55="ÁFA visszaigénylő"),L55,0)) -> 0 | V55: =IF($A55="fősor",SUMIF($D56:D$107,D55+1,$V56:V$107),IF(N55="NEM Elszámolható költség",J55,0)) -> 0 | W55: =IF($A55="fősor",SUMIF($D56:D$107,D55+1,$W56:W$107),IF(AND(N55="NEM Elszámolható költség",P55="ÁFA visszaigénylő"),L55,0)) -> 0 | X55: =IF($A55="fősor",SUMIF($D56:D$107,D55+1,$X56:X$107),IF(AND(N55="NEM Elszámolható költség",P55="Nem ÁFA visszaigénylő"),L55,0)) -> 0 | Y55: 0 | Z55: 0 | AA55: 0 | AB55: 0 | AI55: 0 | AJ55: 0 | AK55: 0 | AL55: 0 | AM55: 0 | AN55: 0 | AO55: 0 | AP55: 0 | AQ55: 0 | AR55: 0 | AS55: 0 | AT55: 0 | AU55: 0 | AV55: 0 | AW55: 0 | AZ55: 0
C56: =+IF(A56="fősor",MAX(C$8:C55)+1,0) -> 0 | D56: 2 | E56: Beruházási elem | I56: 0 | J56: =+IF($A56="fősor",SUMIF(D57:$D$107,D56+1,J57:$J$107),$I56) -> 0 | L56: =IF($A56="fősor",SUMIF(D57:$D$107,D56+1,L57:$L$107),ROUND(J56*K56,0)) -> 0 | M56: =+IF($A56="fősor",SUMIF($D57:D$107,D56+1,$M57:M$107),$J56+$L56) -> 0 | Q56: =IF($A56="fősor",SUMIF($D57:D$107,D56+1,$Q57:Q$107),IF(N56="Elszámolható költség",J56,0)) -> 0 | R56: =IF($A56="fősor",SUMIF($D57:D$107,D56+1,$R57:R$107),IF(AND(N56="Elszámolható költség",P56="Nem ÁFA visszaigénylő",Alapadatok!$C$60="IGEN"),L56,0)) -> 0 | S56: 0 | T56: =IF($A56="fősor",SUMIF($D57:D$107,D56+1,$T57:T$107),IF(AND(N56="Elszámolható költség",P56="Nem ÁFA visszaigénylő",Alapadatok!$C$60="NEM"),L56,0)) -> 0 | U56: =IF($A56="fősor",SUMIF($D57:D$107,D56+1,$U57:U$107),IF(AND(N56="Elszámolható költség",P56="ÁFA visszaigénylő"),L56,0)) -> 0 | V56: =IF($A56="fősor",SUMIF($D57:D$107,D56+1,$V57:V$107),IF(N56="NEM Elszámolható költség",J56,0)) -> 0 | W56: =IF($A56="fősor",SUMIF($D57:D$107,D56+1,$W57:W$107),IF(AND(N56="NEM Elszámolható költség",P56="ÁFA visszaigénylő"),L56,0)) -> 0 | X56: =IF($A56="fősor",SUMIF($D57:D$107,D56+1,$X57:X$107),IF(AND(N56="NEM Elszámolható költség",P56="Nem ÁFA visszaigénylő"),L56,0)) -> 0 | Y56: 0 | Z56: 0 | AA56: 0 | AB56: 0 | AI56: 0 | AJ56: 0 | AK56: 0 | AL56: 0 | AM56: 0 | AN56: 0 | AO56: 0 | AP56: 0 | AQ56: 0 | AR56: 0 | AS56: 0 | AT56: 0 | AU56: 0 | AV56: 0 | AW56: 0 | AZ56: 0
C57: =+IF(A57="fősor",MAX(C$8:C56)+1,0) -> 0 | D57: 2 | E57: Beruházási elem | I57: 0 | J57: =+IF($A57="fősor",SUMIF(D58:$D$107,D57+1,J58:$J$107),$I57) -> 0 | L57: =IF($A57="fősor",SUMIF(D58:$D$107,D57+1,L58:$L$107),ROUND(J57*K57,0)) -> 0 | M57: =+IF($A57="fősor",SUMIF($D58:D$107,D57+1,$M58:M$107),$J57+$L57) -> 0 | Q57: =IF($A57="fősor",SUMIF($D58:D$107,D57+1,$Q58:Q$107),IF(N57="Elszámolható költség",J57,0)) -> 0 | R57: =IF($A57="fősor",SUMIF($D58:D$107,D57+1,$R58:R$107),IF(AND(N57="Elszámolható költség",P57="Nem ÁFA visszaigénylő",Alapadatok!$C$60="IGEN"),L57,0)) -> 0 | S57: 0 | T57: =IF($A57="fősor",SUMIF($D58:D$107,D57+1,$T58:T$107),IF(AND(N57="Elszámolható költség",P57="Nem ÁFA visszaigénylő",Alapadatok!$C$60="NEM"),L57,0)) -> 0 | U57: =IF($A57="fősor",SUMIF($D58:D$107,D57+1,$U58:U$107),IF(AND(N57="Elszámolható költség",P57="ÁFA visszaigénylő"),L57,0)) -> 0 | V57: =IF($A57="fősor",SUMIF($D58:D$107,D57+1,$V58:V$107),IF(N57="NEM Elszámolható költség",J57,0)) -> 0 | W57: =IF($A57="fősor",SUMIF($D58:D$107,D57+1,$W58:W$107),IF(AND(N57="NEM Elszámolható költség",P57="ÁFA visszaigénylő"),L57,0)) -> 0 | X57: =IF($A57="fősor",SUMIF($D58:D$107,D57+1,$X58:X$107),IF(AND(N57="NEM Elszámolható költség",P57="Nem ÁFA visszaigénylő"),L57,0)) -> 0 | Y57: 0 | Z57: 0 | AA57: 0 | AB57: 0 | AI57: 0 | AJ57: 0 | AK57: 0 | AL57: 0 | AM57: 0 | AN57: 0 | AO57: 0 | AP57: 0 | AQ57: 0 | AR57: 0 | AS57: 0 | AT57: 0 | AU57: 0 | AV57: 0 | AW57: 0 | AZ57: 0
C58: =+IF(A58="fősor",MAX(C$8:C57)+1,0) -> 0 | D58: 2 | E58: Beruházási elem | I58: 0 | J58: =+IF($A58="fősor",SUMIF(D59:$D$107,D58+1,J59:$J$107),$I58) -> 0 | L58: =IF($A58="fősor",SUMIF(D59:$D$107,D58+1,L59:$L$107),ROUND(J58*K58,0)) -> 0 | M58: =+IF($A58="fősor",SUMIF($D59:D$107,D58+1,$M59:M$107),$J58+$L58) -> 0 | Q58: =IF($A58="fősor",SUMIF($D59:D$107,D58+1,$Q59:Q$107),IF(N58="Elszámolható költség",J58,0)) -> 0 | R58: =IF($A58="fősor",SUMIF($D59:D$107,D58+1,$R59:R$107),IF(AND(N58="Elszámolható költség",P58="Nem ÁFA visszaigénylő",Alapadatok!$C$60="IGEN"),L58,0)) -> 0 | S58: 0 | T58: =IF($A58="fősor",SUMIF($D59:D$107,D58+1,$T59:T$107),IF(AND(N58="Elszámolható költség",P58="Nem ÁFA visszaigénylő",Alapadatok!$C$60="NEM"),L58,0)) -> 0 | U58: =IF($A58="fősor",SUMIF($D59:D$107,D58+1,$U59:U$107),IF(AND(N58="Elszámolható költség",P58="ÁFA visszaigénylő"),L58,0)) -> 0 | V58: =IF($A58="fősor",SUMIF($D59:D$107,D58+1,$V59:V$107),IF(N58="NEM Elszámolható költség",J58,0)) -> 0 | W58: =IF($A58="fősor",SUMIF($D59:D$107,D58+1,$W59:W$107),IF(AND(N58="NEM Elszámolható költség",P58="ÁFA visszaigénylő"),L58,0)) -> 0 | X58: =IF($A58="fősor",SUMIF($D59:D$107,D58+1,$X59:X$107),IF(AND(N58="NEM Elszámolható költség",P58="Nem ÁFA visszaigénylő"),L58,0)) -> 0 | Y58: 0 | Z58: 0 | AA58: 0 | AB58: 0 | AI58: 0 | AJ58: 0 | AK58: 0 | AL58: 0 | AM58: 0 | AN58: 0 | AO58: 0 | AP58: 0 | AQ58: 0 | AR58: 0 | AS58: 0 | AT58: 0 | AU58: 0 | AV58: 0 | AW58: 0 | AZ58: 0
C59: =+IF(A59="fősor",MAX(C$8:C58)+1,0) -> 0 | D59: 2 | E59: Beruházási elem | I59: 0 | J59: =+IF($A59="fősor",SUMIF(D60:$D$107,D59+1,J60:$J$107),$I59) -> 0 | L59: =IF($A59="fősor",SUMIF(D60:$D$107,D59+1,L60:$L$107),ROUND(J59*K59,0)) -> 0 | M59: =+IF($A59="fősor",SUMIF($D60:D$107,D59+1,$M60:M$107),$J59+$L59) -> 0 | Q59: =IF($A59="fősor",SUMIF($D60:D$107,D59+1,$Q60:Q$107),IF(N59="Elszámolható költség",J59,0)) -> 0 | R59: =IF($A59="fősor",SUMIF($D60:D$107,D59+1,$R60:R$107),IF(AND(N59="Elszámolható költség",P59="Nem ÁFA visszaigénylő",Alapadatok!$C$60="IGEN"),L59,0)) -> 0 | S59: 0 | T59: =IF($A59="fősor",SUMIF($D60:D$107,D59+1,$T60:T$107),IF(AND(N59="Elszámolható költség",P59="Nem ÁFA visszaigénylő",Alapadatok!$C$60="NEM"),L59,0)) -> 0 | U59: =IF($A59="fősor",SUMIF($D60:D$107,D59+1,$U60:U$107),IF(AND(N59="Elszámolható költség",P59="ÁFA visszaigénylő"),L59,0)) -> 0 | V59: =IF($A59="fősor",SUMIF($D60:D$107,D59+1,$V60:V$107),IF(N59="NEM Elszámolható költség",J59,0)) -> 0 | W59: =IF($A59="fősor",SUMIF($D60:D$107,D59+1,$W60:W$107),IF(AND(N59="NEM Elszámolható költség",P59="ÁFA visszaigénylő"),L59,0)) -> 0 | X59: =IF($A59="fősor",SUMIF($D60:D$107,D59+1,$X60:X$107),IF(AND(N59="NEM Elszámolható költség",P59="Nem ÁFA visszaigénylő"),L59,0)) -> 0 | Y59: 0 | Z59: 0 | AA59: 0 | AB59: 0 | AI59: 0 | AJ59: 0 | AK59: 0 | AL59: 0 | AM59: 0 | AN59: 0 | AO59: 0 | AP59: 0 | AQ59: 0 | AR59: 0 | AS59: 0 | AT59: 0 | AU59: 0 | AV59: 0 | AW59: 0 | AZ59: 0
C60: =+IF(A60="fősor",MAX(C$8:C59)+1,0) -> 0 | D60: 2 | E60: Beruházási elem | I60: 0 | J60: =+IF($A60="fősor",SUMIF(D61:$D$107,D60+1,J61:$J$107),$I60) -> 0 | L60: =IF($A60="fősor",SUMIF(D61:$D$107,D60+1,L61:$L$107),ROUND(J60*K60,0)) -> 0 | M60: =+IF($A60="fősor",SUMIF($D61:D$107,D60+1,$M61:M$107),$J60+$L60) -> 0 | Q60: =IF($A60="fősor",SUMIF($D61:D$107,D60+1,$Q61:Q$107),IF(N60="Elszámolható költség",J60,0)) -> 0 | R60: =IF($A60="fősor",SUMIF($D61:D$107,D60+1,$R61:R$107),IF(AND(N60="Elszámolható költség",P60="Nem ÁFA visszaigénylő",Alapadatok!$C$60="IGEN"),L60,0)) -> 0 | S60: 0 | T60: =IF($A60="fősor",SUMIF($D61:D$107,D60+1,$T61:T$107),IF(AND(N60="Elszámolható költség",P60="Nem ÁFA visszaigénylő",Alapadatok!$C$60="NEM"),L60,0)) -> 0 | U60: =IF($A60="fősor",SUMIF($D61:D$107,D60+1,$U61:U$107),IF(AND(N60="Elszámolható költség",P60="ÁFA visszaigénylő"),L60,0)) -> 0 | V60: =IF($A60="fősor",SUMIF($D61:D$107,D60+1,$V61:V$107),IF(N60="NEM Elszámolható költség",J60,0)) -> 0 | W60: =IF($A60="fősor",SUMIF($D61:D$107,D60+1,$W61:W$107),IF(AND(N60="NEM Elszámolható költség",P60="ÁFA visszaigénylő"),L60,0)) -> 0 | X60: =IF($A60="fősor",SUMIF($D61:D$107,D60+1,$X61:X$107),IF(AND(N60="NEM Elszámolható költség",P60="Nem ÁFA visszaigénylő"),L60,0)) -> 0 | Y60: 0 | Z60: 0 | AA60: 0 | AB60: 0 | AI60: 0 | AJ60: 0 | AK60: 0 | AL60: 0 | AM60: 0 | AN60: 0 | AO60: 0 | AP60: 0 | AQ60: 0 | AR60: 0 | AS60: 0 | AT60: 0 | AU60: 0 | AV60: 0 | AW60: 0 | AZ60: 0
C61: =+IF(A61="fősor",MAX(C$8:C60)+1,0) -> 0 | D61: 2 | E61: Beruházási elem | I61: 0 | J61: =+IF($A61="fősor",SUMIF(D62:$D$107,D61+1,J62:$J$107),$I61) -> 0 | L61: =IF($A61="fősor",SUMIF(D62:$D$107,D61+1,L62:$L$107),ROUND(J61*K61,0)) -> 0 | M61: =+IF($A61="fősor",SUMIF($D62:D$107,D61+1,$M62:M$107),$J61+$L61) -> 0 | Q61: =IF($A61="fősor",SUMIF($D62:D$107,D61+1,$Q62:Q$107),IF(N61="Elszámolható költség",J61,0)) -> 0 | R61: =IF($A61="fősor",SUMIF($D62:D$107,D61+1,$R62:R$107),IF(AND(N61="Elszámolható költség",P61="Nem ÁFA visszaigénylő",Alapadatok!$C$60="IGEN"),L61,0)) -> 0 | S61: 0 | T61: =IF($A61="fősor",SUMIF($D62:D$107,D61+1,$T62:T$107),IF(AND(N61="Elszámolható költség",P61="Nem ÁFA visszaigénylő",Alapadatok!$C$60="NEM"),L61,0)) -> 0 | U61: =IF($A61="fősor",SUMIF($D62:D$107,D61+1,$U62:U$107),IF(AND(N61="Elszámolható költség",P61="ÁFA visszaigénylő"),L61,0)) -> 0 | V61: =IF($A61="fősor",SUMIF($D62:D$107,D61+1,$V62:V$107),IF(N61="NEM Elszámolható költség",J61,0)) -> 0 | W61: =IF($A61="fősor",SUMIF($D62:D$107,D61+1,$W62:W$107),IF(AND(N61="NEM Elszámolható költség",P61="ÁFA visszaigénylő"),L61,0)) -> 0 | X61: =IF($A61="fősor",SUMIF($D62:D$107,D61+1,$X62:X$107),IF(AND(N61="NEM Elszámolható költség",P61="Nem ÁFA visszaigénylő"),L61,0)) -> 0 | Y61: 0 | Z61: 0 | AA61: 0 | AB61: 0 | AI61: 0 | AJ61: 0 | AK61: 0 | AL61: 0 | AM61: 0 | AN61: 0 | AO61: 0 | AP61: 0 | AQ61: 0 | AR61: 0 | AS61: 0 | AT61: 0 | AU61: 0 | AV61: 0 | AW61: 0 | AZ61: 0
C62: =+IF(A62="fősor",MAX(C$8:C61)+1,0) -> 0 | D62: 2 | E62: Beruházási elem | I62: 0 | J62: =+IF($A62="fősor",SUMIF(D63:$D$107,D62+1,J63:$J$107),$I62) -> 0 | L62: =IF($A62="fősor",SUMIF(D63:$D$107,D62+1,L63:$L$107),ROUND(J62*K62,0)) -> 0 | M62: =+IF($A62="fősor",SUMIF($D63:D$107,D62+1,$M63:M$107),$J62+$L62) -> 0 | Q62: =IF($A62="fősor",SUMIF($D63:D$107,D62+1,$Q63:Q$107),IF(N62="Elszámolható költség",J62,0)) -> 0 | R62: =IF($A62="fősor",SUMIF($D63:D$107,D62+1,$R63:R$107),IF(AND(N62="Elszámolható költség",P62="Nem ÁFA visszaigénylő",Alapadatok!$C$60="IGEN"),L62,0)) -> 0 | S62: 0 | T62: =IF($A62="fősor",SUMIF($D63:D$107,D62+1,$T63:T$107),IF(AND(N62="Elszámolható költség",P62="Nem ÁFA visszaigénylő",Alapadatok!$C$60="NEM"),L62,0)) -> 0 | U62: =IF($A62="fősor",SUMIF($D63:D$107,D62+1,$U63:U$107),IF(AND(N62="Elszámolható költség",P62="ÁFA visszaigénylő"),L62,0)) -> 0 | V62: =IF($A62="fősor",SUMIF($D63:D$107,D62+1,$V63:V$107),IF(N62="NEM Elszámolható költség",J62,0)) -> 0 | W62: =IF($A62="fősor",SUMIF($D63:D$107,D62+1,$W63:W$107),IF(AND(N62="NEM Elszámolható költség",P62="ÁFA visszaigénylő"),L62,0)) -> 0 | X62: =IF($A62="fősor",SUMIF($D63:D$107,D62+1,$X63:X$107),IF(AND(N62="NEM Elszámolható költség",P62="Nem ÁFA visszaigénylő"),L62,0)) -> 0 | Y62: 0 | Z62: 0 | AA62: 0 | AB62: 0 | AI62: 0 | AJ62: 0 | AK62: 0 | AL62: 0 | AM62: 0 | AN62: 0 | AO62: 0 | AP62: 0 | AQ62: 0 | AR62: 0 | AS62: 0 | AT62: 0 | AU62: 0 | AV62: 0 | AW62: 0 | AZ62: 0
C63: =+IF(A63="fősor",MAX(C$8:C62)+1,0) -> 0 | D63: 2 | E63: Beruházási elem | I63: 0 | J63: =+IF($A63="fősor",SUMIF(D64:$D$107,D63+1,J64:$J$107),$I63) -> 0 | L63: =IF($A63="fősor",SUMIF(D64:$D$107,D63+1,L64:$L$107),ROUND(J63*K63,0)) -> 0 | M63: =+IF($A63="fősor",SUMIF($D64:D$107,D63+1,$M64:M$107),$J63+$L63) -> 0 | Q63: =IF($A63="fősor",SUMIF($D64:D$107,D63+1,$Q64:Q$107),IF(N63="Elszámolható költség",J63,0)) -> 0 | R63: =IF($A63="fősor",SUMIF($D64:D$107,D63+1,$R64:R$107),IF(AND(N63="Elszámolható költség",P63="Nem ÁFA visszaigénylő",Alapadatok!$C$60="IGEN"),L63,0)) -> 0 | S63: 0 | T63: =IF($A63="fősor",SUMIF($D64:D$107,D63+1,$T64:T$107),IF(AND(N63="Elszámolható költség",P63="Nem ÁFA visszaigénylő",Alapadatok!$C$60="NEM"),L63,0)) -> 0 | U63: =IF($A63="fősor",SUMIF($D64:D$107,D63+1,$U64:U$107),IF(AND(N63="Elszámolható költség",P63="ÁFA visszaigénylő"),L63,0)) -> 0 | V63: =IF($A63="fősor",SUMIF($D64:D$107,D63+1,$V64:V$107),IF(N63="NEM Elszámolható költség",J63,0)) -> 0 | W63: =IF($A63="fősor",SUMIF($D64:D$107,D63+1,$W64:W$107),IF(AND(N63="NEM Elszámolható költség",P63="ÁFA visszaigénylő"),L63,0)) -> 0 | X63: =IF($A63="fősor",SUMIF($D64:D$107,D63+1,$X64:X$107),IF(AND(N63="NEM Elszámolható költség",P63="Nem ÁFA visszaigénylő"),L63,0)) -> 0 | Y63: 0 | Z63: 0 | AA63: 0 | AB63: 0 | AI63: 0 | AJ63: 0 | AK63: 0 | AL63: 0 | AM63: 0 | AN63: 0 | AO63: 0 | AP63: 0 | AQ63: 0 | AR63: 0 | AS63: 0 | AT63: 0 | AU63: 0 | AV63: 0 | AW63: 0 | AZ63: 0
C64: =+IF(A64="fősor",MAX(C$8:C63)+1,0) -> 0 | D64: 2 | E64: Beruházási elem | I64: 0 | J64: =+IF($A64="fősor",SUMIF(D65:$D$107,D64+1,J65:$J$107),$I64) -> 0 | L64: =IF($A64="fősor",SUMIF(D65:$D$107,D64+1,L65:$L$107),ROUND(J64*K64,0)) -> 0 | M64: =+IF($A64="fősor",SUMIF($D65:D$107,D64+1,$M65:M$107),$J64+$L64) -> 0 | Q64: =IF($A64="fősor",SUMIF($D65:D$107,D64+1,$Q65:Q$107),IF(N64="Elszámolható költség",J64,0)) -> 0 | R64: =IF($A64="fősor",SUMIF($D65:D$107,D64+1,$R65:R$107),IF(AND(N64="Elszámolható költség",P64="Nem ÁFA visszaigénylő",Alapadatok!$C$60="IGEN"),L64,0)) -> 0 | S64: 0 | T64: =IF($A64="fősor",SUMIF($D65:D$107,D64+1,$T65:T$107),IF(AND(N64="Elszámolható költség",P64="Nem ÁFA visszaigénylő",Alapadatok!$C$60="NEM"),L64,0)) -> 0 | U64: =IF($A64="fősor",SUMIF($D65:D$107,D64+1,$U65:U$107),IF(AND(N64="Elszámolható költség",P64="ÁFA visszaigénylő"),L64,0)) -> 0 | V64: =IF($A64="fősor",SUMIF($D65:D$107,D64+1,$V65:V$107),IF(N64="NEM Elszámolható költség",J64,0)) -> 0 | W64: =IF($A64="fősor",SUMIF($D65:D$107,D64+1,$W65:W$107),IF(AND(N64="NEM Elszámolható költség",P64="ÁFA visszaigénylő"),L64,0)) -> 0 | X64: =IF($A64="fősor",SUMIF($D65:D$107,D64+1,$X65:X$107),IF(AND(N64="NEM Elszámolható költség",P64="Nem ÁFA visszaigénylő"),L64,0)) -> 0 | Y64: 0 | Z64: 0 | AA64: 0 | AB64: 0 | AI64: 0 | AJ64: 0 | AK64: 0 | AL64: 0 | AM64: 0 | AN64: 0 | AO64: 0 | AP64: 0 | AQ64: 0 | AR64: 0 | AS64: 0 | AT64: 0 | AU64: 0 | AV64: 0 | AW64: 0 | AZ64: 0
C65: =+IF(A65="fősor",MAX(C$8:C64)+1,0) -> 0 | D65: 2 | E65: Beruházási elem | I65: 0 | J65: =+IF($A65="fősor",SUMIF(D66:$D$107,D65+1,J66:$J$107),$I65) -> 0 | L65: =IF($A65="fősor",SUMIF(D66:$D$107,D65+1,L66:$L$107),ROUND(J65*K65,0)) -> 0 | M65: =+IF($A65="fősor",SUMIF($D66:D$107,D65+1,$M66:M$107),$J65+$L65) -> 0 | Q65: =IF($A65="fősor",SUMIF($D66:D$107,D65+1,$Q66:Q$107),IF(N65="Elszámolható költség",J65,0)) -> 0 | R65: =IF($A65="fősor",SUMIF($D66:D$107,D65+1,$R66:R$107),IF(AND(N65="Elszámolható költség",P65="Nem ÁFA visszaigénylő",Alapadatok!$C$60="IGEN"),L65,0)) -> 0 | S65: 0 | T65: =IF($A65="fősor",SUMIF($D66:D$107,D65+1,$T66:T$107),IF(AND(N65="Elszámolható költség",P65="Nem ÁFA visszaigénylő",Alapadatok!$C$60="NEM"),L65,0)) -> 0 | U65: =IF($A65="fősor",SUMIF($D66:D$107,D65+1,$U66:U$107),IF(AND(N65="Elszámolható költség",P65="ÁFA visszaigénylő"),L65,0)) -> 0 | V65: =IF($A65="fősor",SUMIF($D66:D$107,D65+1,$V66:V$107),IF(N65="NEM Elszámolható költség",J65,0)) -> 0 | W65: =IF($A65="fősor",SUMIF($D66:D$107,D65+1,$W66:W$107),IF(AND(N65="NEM Elszámolható költség",P65="ÁFA visszaigénylő"),L65,0)) -> 0 | X65: =IF($A65="fősor",SUMIF($D66:D$107,D65+1,$X66:X$107),IF(AND(N65="NEM Elszámolható költség",P65="Nem ÁFA visszaigénylő"),L65,0)) -> 0 | Y65: 0 | Z65: 0 | AA65: 0 | AB65: 0 | AI65: 0 | AJ65: 0 | AK65: 0 | AL65: 0 | AM65: 0 | AN65: 0 | AO65: 0 | AP65: 0 | AQ65: 0 | AR65: 0 | AS65: 0 | AT65: 0 | AU65: 0 | AV65: 0 | AW65: 0 | AZ65: 0
C66: =+IF(A66="fősor",MAX(C$8:C65)+1,0) -> 0 | D66: 2 | E66: Beruházási elem | I66: 0 | J66: =+IF($A66="fősor",SUMIF(D67:$D$107,D66+1,J67:$J$107),$I66) -> 0 | L66: =IF($A66="fősor",SUMIF(D67:$D$107,D66+1,L67:$L$107),ROUND(J66*K66,0)) -> 0 | M66: =+IF($A66="fősor",SUMIF($D67:D$107,D66+1,$M67:M$107),$J66+$L66) -> 0 | Q66: =IF($A66="fősor",SUMIF($D67:D$107,D66+1,$Q67:Q$107),IF(N66="Elszámolható költség",J66,0)) -> 0 | R66: =IF($A66="fősor",SUMIF($D67:D$107,D66+1,$R67:R$107),IF(AND(N66="Elszámolható költség",P66="Nem ÁFA visszaigénylő",Alapadatok!$C$60="IGEN"),L66,0)) -> 0 | S66: 0 | T66: =IF($A66="fősor",SUMIF($D67:D$107,D66+1,$T67:T$107),IF(AND(N66="Elszámolható költség",P66="Nem ÁFA visszaigénylő",Alapadatok!$C$60="NEM"),L66,0)) -> 0 | U66: =IF($A66="fősor",SUMIF($D67:D$107,D66+1,$U67:U$107),IF(AND(N66="Elszámolható költség",P66="ÁFA visszaigénylő"),L66,0)) -> 0 | V66: =IF($A66="fősor",SUMIF($D67:D$107,D66+1,$V67:V$107),IF(N66="NEM Elszámolható költség",J66,0)) -> 0 | W66: =IF($A66="fősor",SUMIF($D67:D$107,D66+1,$W67:W$107),IF(AND(N66="NEM Elszámolható költség",P66="ÁFA visszaigénylő"),L66,0)) -> 0 | X66: =IF($A66="fősor",SUMIF($D67:D$107,D66+1,$X67:X$107),IF(AND(N66="NEM Elszámolható költség",P66="Nem ÁFA visszaigénylő"),L66,0)) -> 0 | Y66: 0 | Z66: 0 | AA66: 0 | AB66: 0 | AI66: 0 | AJ66: 0 | AK66: 0 | AL66: 0 | AM66: 0 | AN66: 0 | AO66: 0 | AP66: 0 | AQ66: 0 | AR66: 0 | AS66: 0 | AT66: 0 | AU66: 0 | AV66: 0 | AW66: 0 | AZ66: 0
C67: =+IF(A67="fősor",MAX(C$8:C66)+1,0) -> 0 | D67: 2 | E67: Beruházási elem | I67: 0 | J67: =+IF($A67="fősor",SUMIF(D68:$D$107,D67+1,J68:$J$107),$I67) -> 0 | L67: =IF($A67="fősor",SUMIF(D68:$D$107,D67+1,L68:$L$107),ROUND(J67*K67,0)) -> 0 | M67: =+IF($A67="fősor",SUMIF($D68:D$107,D67+1,$M68:M$107),$J67+$L67) -> 0 | Q67: =IF($A67="fősor",SUMIF($D68:D$107,D67+1,$Q68:Q$107),IF(N67="Elszámolható költség",J67,0)) -> 0 | R67: =IF($A67="fősor",SUMIF($D68:D$107,D67+1,$R68:R$107),IF(AND(N67="Elszámolható költség",P67="Nem ÁFA visszaigénylő",Alapadatok!$C$60="IGEN"),L67,0)) -> 0 | S67: 0 | T67: =IF($A67="fősor",SUMIF($D68:D$107,D67+1,$T68:T$107),IF(AND(N67="Elszámolható költség",P67="Nem ÁFA visszaigénylő",Alapadatok!$C$60="NEM"),L67,0)) -> 0 | U67: =IF($A67="fősor",SUMIF($D68:D$107,D67+1,$U68:U$107),IF(AND(N67="Elszámolható költség",P67="ÁFA visszaigénylő"),L67,0)) -> 0 | V67: =IF($A67="fősor",SUMIF($D68:D$107,D67+1,$V68:V$107),IF(N67="NEM Elszámolható költség",J67,0)) -> 0 | W67: =IF($A67="fősor",SUMIF($D68:D$107,D67+1,$W68:W$107),IF(AND(N67="NEM Elszámolható költség",P67="ÁFA visszaigénylő"),L67,0)) -> 0 | X67: =IF($A67="fősor",SUMIF($D68:D$107,D67+1,$X68:X$107),IF(AND(N67="NEM Elszámolható költség",P67="Nem ÁFA visszaigénylő"),L67,0)) -> 0 | Y67: 0 | Z67: 0 | AA67: 0 | AB67: 0 | AI67: 0 | AJ67: 0 | AK67: 0 | AL67: 0 | AM67: 0 | AN67: 0 | AO67: 0 | AP67: 0 | AQ67: 0 | AR67: 0 | AS67: 0 | AT67: 0 | AU67: 0 | AV67: 0 | AW67: 0 | AZ67: 0
C68: =+IF(A68="fősor",MAX(C$8:C67)+1,0) -> 0 | D68: 2 | E68: Beruházási elem | I68: 0 | J68: =+IF($A68="fősor",SUMIF(D69:$D$107,D68+1,J69:$J$107),$I68) -> 0 | L68: =IF($A68="fősor",SUMIF(D69:$D$107,D68+1,L69:$L$107),ROUND(J68*K68,0)) -> 0 | M68: =+IF($A68="fősor",SUMIF($D69:D$107,D68+1,$M69:M$107),$J68+$L68) -> 0 | Q68: =IF($A68="fősor",SUMIF($D69:D$107,D68+1,$Q69:Q$107),IF(N68="Elszámolható költség",J68,0)) -> 0 | R68: =IF($A68="fősor",SUMIF($D69:D$107,D68+1,$R69:R$107),IF(AND(N68="Elszámolható költség",P68="Nem ÁFA visszaigénylő",Alapadatok!$C$60="IGEN"),L68,0)) -> 0 | S68: 0 | T68: =IF($A68="fősor",SUMIF($D69:D$107,D68+1,$T69:T$107),IF(AND(N68="Elszámolható költség",P68="Nem ÁFA visszaigénylő",Alapadatok!$C$60="NEM"),L68,0)) -> 0 | U68: =IF($A68="fősor",SUMIF($D69:D$107,D68+1,$U69:U$107),IF(AND(N68="Elszámolható költség",P68="ÁFA visszaigénylő"),L68,0)) -> 0 | V68: =IF($A68="fősor",SUMIF($D69:D$107,D68+1,$V69:V$107),IF(N68="NEM Elszámolható költség",J68,0)) -> 0 | W68: =IF($A68="fősor",SUMIF($D69:D$107,D68+1,$W69:W$107),IF(AND(N68="NEM Elszámolható költség",P68="ÁFA visszaigénylő"),L68,0)) -> 0 | X68: =IF($A68="fősor",SUMIF($D69:D$107,D68+1,$X69:X$107),IF(AND(N68="NEM Elszámolható költség",P68="Nem ÁFA visszaigénylő"),L68,0)) -> 0 | Y68: 0 | Z68: 0 | AA68: 0 | AB68: 0 | AI68: 0 | AJ68: 0 | AK68: 0 | AL68: 0 | AM68: 0 | AN68: 0 | AO68: 0 | AP68: 0 | AQ68: 0 | AR68: 0 | AS68: 0 | AT68: 0 | AU68: 0 | AV68: 0 | AW68: 0 | AZ68: 0
C69: =+IF(A69="fősor",MAX(C$8:C68)+1,0) -> 0 | D69: 2 | E69: Beruházási elem | I69: 0 | J69: =+IF($A69="fősor",SUMIF(D70:$D$107,D69+1,J70:$J$107),$I69) -> 0 | L69: =IF($A69="fősor",SUMIF(D70:$D$107,D69+1,L70:$L$107),ROUND(J69*K69,0)) -> 0 | M69: =+IF($A69="fősor",SUMIF($D70:D$107,D69+1,$M70:M$107),$J69+$L69) -> 0 | Q69: =IF($A69="fősor",SUMIF($D70:D$107,D69+1,$Q70:Q$107),IF(N69="Elszámolható költség",J69,0)) -> 0 | R69: =IF($A69="fősor",SUMIF($D70:D$107,D69+1,$R70:R$107),IF(AND(N69="Elszámolható költség",P69="Nem ÁFA visszaigénylő",Alapadatok!$C$60="IGEN"),L69,0)) -> 0 | S69: 0 | T69: =IF($A69="fősor",SUMIF($D70:D$107,D69+1,$T70:T$107),IF(AND(N69="Elszámolható költség",P69="Nem ÁFA visszaigénylő",Alapadatok!$C$60="NEM"),L69,0)) -> 0 | U69: =IF($A69="fősor",SUMIF($D70:D$107,D69+1,$U70:U$107),IF(AND(N69="Elszámolható költség",P69="ÁFA visszaigénylő"),L69,0)) -> 0 | V69: =IF($A69="fősor",SUMIF($D70:D$107,D69+1,$V70:V$107),IF(N69="NEM Elszámolható költség",J69,0)) -> 0 | W69: =IF($A69="fősor",SUMIF($D70:D$107,D69+1,$W70:W$107),IF(AND(N69="NEM Elszámolható költség",P69="ÁFA visszaigénylő"),L69,0)) -> 0 | X69: =IF($A69="fősor",SUMIF($D70:D$107,D69+1,$X70:X$107),IF(AND(N69="NEM Elszámolható költség",P69="Nem ÁFA visszaigénylő"),L69,0)) -> 0 | Y69: 0 | Z69: 0 | AA69: 0 | AB69: 0 | AI69: 0 | AJ69: 0 | AK69: 0 | AL69: 0 | AM69: 0 | AN69: 0 | AO69: 0 | AP69: 0 | AQ69: 0 | AR69: 0 | AS69: 0 | AT69: 0 | AU69: 0 | AV69: 0 | AW69: 0 | AZ69: 0
C70: =+IF(A70="fősor",MAX(C$8:C69)+1,0) -> 0 | D70: 2 | E70: Beruházási elem | I70: 0 | J70: =+IF($A70="fősor",SUMIF(D71:$D$107,D70+1,J71:$J$107),$I70) -> 0 | L70: =IF($A70="fősor",SUMIF(D71:$D$107,D70+1,L71:$L$107),ROUND(J70*K70,0)) -> 0 | M70: =+IF($A70="fősor",SUMIF($D71:D$107,D70+1,$M71:M$107),$J70+$L70) -> 0 | Q70: =IF($A70="fősor",SUMIF($D71:D$107,D70+1,$Q71:Q$107),IF(N70="Elszámolható költség",J70,0)) -> 0 | R70: =IF($A70="fősor",SUMIF($D71:D$107,D70+1,$R71:R$107),IF(AND(N70="Elszámolható költség",P70="Nem ÁFA visszaigénylő",Alapadatok!$C$60="IGEN"),L70,0)) -> 0 | S70: 0 | T70: =IF($A70="fősor",SUMIF($D71:D$107,D70+1,$T71:T$107),IF(AND(N70="Elszámolható költség",P70="Nem ÁFA visszaigénylő",Alapadatok!$C$60="NEM"),L70,0)) -> 0 | U70: =IF($A70="fősor",SUMIF($D71:D$107,D70+1,$U71:U$107),IF(AND(N70="Elszámolható költség",P70="ÁFA visszaigénylő"),L70,0)) -> 0 | V70: =IF($A70="fősor",SUMIF($D71:D$107,D70+1,$V71:V$107),IF(N70="NEM Elszámolható költség",J70,0)) -> 0 | W70: =IF($A70="fősor",SUMIF($D71:D$107,D70+1,$W71:W$107),IF(AND(N70="NEM Elszámolható költség",P70="ÁFA visszaigénylő"),L70,0)) -> 0 | X70: =IF($A70="fősor",SUMIF($D71:D$107,D70+1,$X71:X$107),IF(AND(N70="NEM Elszámolható költség",P70="Nem ÁFA visszaigénylő"),L70,0)) -> 0 | Y70: 0 | Z70: 0 | AA70: 0 | AB70: 0 | AI70: 0 | AJ70: 0 | AK70: 0 | AL70: 0 | AM70: 0 | AN70: 0 | AO70: 0 | AP70: 0 | AQ70: 0 | AR70: 0 | AS70: 0 | AT70: 0 | AU70: 0 | AV70: 0 | AW70: 0 | AZ70: 0
C71: =+IF(A71="fősor",MAX(C$8:C70)+1,0) -> 0 | D71: 2 | E71: Beruházási elem | I71: 0 | J71: =+IF($A71="fősor",SUMIF(D72:$D$107,D71+1,J72:$J$107),$I71) -> 0 | L71: =IF($A71="fősor",SUMIF(D72:$D$107,D71+1,L72:$L$107),ROUND(J71*K71,0)) -> 0 | M71: =+IF($A71="fősor",SUMIF($D72:D$107,D71+1,$M72:M$107),$J71+$L71) -> 0 | Q71: =IF($A71="fősor",SUMIF($D72:D$107,D71+1,$Q72:Q$107),IF(N71="Elszámolható költség",J71,0)) -> 0 | R71: =IF($A71="fősor",SUMIF($D72:D$107,D71+1,$R72:R$107),IF(AND(N71="Elszámolható költség",P71="Nem ÁFA visszaigénylő",Alapadatok!$C$60="IGEN"),L71,0)) -> 0 | S71: 0 | T71: =IF($A71="fősor",SUMIF($D72:D$107,D71+1,$T72:T$107),IF(AND(N71="Elszámolható költség",P71="Nem ÁFA visszaigénylő",Alapadatok!$C$60="NEM"),L71,0)) -> 0 | U71: =IF($A71="fősor",SUMIF($D72:D$107,D71+1,$U72:U$107),IF(AND(N71="Elszámolható költség",P71="ÁFA visszaigénylő"),L71,0)) -> 0 | V71: =IF($A71="fősor",SUMIF($D72:D$107,D71+1,$V72:V$107),IF(N71="NEM Elszámolható költség",J71,0)) -> 0 | W71: =IF($A71="fősor",SUMIF($D72:D$107,D71+1,$W72:W$107),IF(AND(N71="NEM Elszámolható költség",P71="ÁFA visszaigénylő"),L71,0)) -> 0 | X71: =IF($A71="fősor",SUMIF($D72:D$107,D71+1,$X72:X$107),IF(AND(N71="NEM Elszámolható költség",P71="Nem ÁFA visszaigénylő"),L71,0)) -> 0 | Y71: 0 | Z71: 0 | AA71: 0 | AB71: 0 | AI71: 0 | AJ71: 0 | AK71: 0 | AL71: 0 | AM71: 0 | AN71: 0 | AO71: 0 | AP71: 0 | AQ71: 0 | AR71: 0 | AS71: 0 | AT71: 0 | AU71: 0 | AV71: 0 | AW71: 0 | AZ71: 0
C72: =+IF(A72="fősor",MAX(C$8:C71)+1,0) -> 0 | D72: =IF(C72=C71,D71,D71+1) -> 2 | E72: Beruházási elem | I72: =IF(A72="fősor","",G72*H72) -> 0 | J72: =+IF($A72="fősor",SUMIF(D73:$D$107,D72+1,J73:$J$107),$I72) -> 0 | L72: =IF($A72="fősor",SUMIF(D73:$D$107,D72+1,L73:$L$107),ROUND(J72*K72,0)) -> 0 | M72: =+IF($A72="fősor",SUMIF($D73:D$107,D72+1,$M73:M$107),$J72+$L72) -> 0 | Q72: =IF($A72="fősor",SUMIF($D73:D$107,D72+1,$Q73:Q$107),IF(N72="Elszámolható költség",J72,0)) -> 0 | R72: =IF($A72="fősor",SUMIF($D73:D$107,D72+1,$R73:R$107),IF(AND(N72="Elszámolható költség",P72="Nem ÁFA visszaigénylő",Alapadatok!$C$60="IGEN"),L72,0)) -> 0 | S72: =SUM(Q72:R72) -> 0 | T72: =IF($A72="fősor",SUMIF($D73:D$107,D72+1,$T73:T$107),IF(AND(N72="Elszámolható költség",P72="Nem ÁFA visszaigénylő",Alapadatok!$C$60="NEM"),L72,0)) -> 0 | U72: =IF($A72="fősor",SUMIF($D73:D$107,D72+1,$U73:U$107),IF(AND(N72="Elszámolható költség",P72="ÁFA visszaigénylő"),L72,0)) -> 0 | V72: =IF($A72="fősor",SUMIF($D73:D$107,D72+1,$V73:V$107),IF(N72="NEM Elszámolható költség",J72,0)) -> 0 | W72: =IF($A72="fősor",SUMIF($D73:D$107,D72+1,$W73:W$107),IF(AND(N72="NEM Elszámolható költség",P72="ÁFA visszaigénylő"),L72,0)) -> 0 | X72: =IF($A72="fősor",SUMIF($D73:D$107,D72+1,$X73:X$107),IF(AND(N72="NEM Elszámolható költség",P72="Nem ÁFA visszaigénylő"),L72,0)) -> 0 | Y72: =SUM(V72,X72) -> 0 | Z72: =SUM(S72,Y72) -> 0 | AA72: 0 | AB72: =SUM(S72,AA72) -> 0 | AI72: 0 | AJ72: 0 | AK72: 0 | AL72: 0 | AM72: 0 | AN72: 0 | AO72: 0 | AP72: 0 | AQ72: 0 | AR72: 0 | AS72: 0 | AT72: 0 | AU72: 0 | AV72: 0 | AW72: 0 | AZ72: =IF($A72="fősor",0,IF(N72="Elszámolható költség",J72,0)) -> 0
C73: =+IF(A73="fősor",MAX(C$8:C72)+1,0) -> 0 | D73: =IF(C73=C72,D72,D72+1) -> 2 | E73: Beruházási elem | I73: 0 | J73: =+IF($A73="fősor",SUMIF(D74:$D$107,D73+1,J74:$J$107),$I73) -> 0 | L73: =IF($A73="fősor",SUMIF(D74:$D$107,D73+1,L74:$L$107),ROUND(J73*K73,0)) -> 0 | M73: =+IF($A73="fősor",SUMIF($D74:D$107,D73+1,$M74:M$107),$J73+$L73) -> 0 | Q73: =IF($A73="fősor",SUMIF($D74:D$107,D73+1,$Q74:Q$107),IF(N73="Elszámolható költség",J73,0)) -> 0 | R73: =IF($A73="fősor",SUMIF($D74:D$107,D73+1,$R74:R$107),IF(AND(N73="Elszámolható költség",P73="Nem ÁFA visszaigénylő",Alapadatok!$C$60="IGEN"),L73,0)) -> 0 | S73: 0 | T73: =IF($A73="fősor",SUMIF($D74:D$107,D73+1,$T74:T$107),IF(AND(N73="Elszámolható költség",P73="Nem ÁFA visszaigénylő",Alapadatok!$C$60="NEM"),L73,0)) -> 0 | U73: =IF($A73="fősor",SUMIF($D74:D$107,D73+1,$U74:U$107),IF(AND(N73="Elszámolható költség",P73="ÁFA visszaigénylő"),L73,0)) -> 0 | V73: =IF($A73="fősor",SUMIF($D74:D$107,D73+1,$V74:V$107),IF(N73="NEM Elszámolható költség",J73,0)) -> 0 | W73: =IF($A73="fősor",SUMIF($D74:D$107,D73+1,$W74:W$107),IF(AND(N73="NEM Elszámolható költség",P73="ÁFA visszaigénylő"),L73,0)) -> 0 | X73: =IF($A73="fősor",SUMIF($D74:D$107,D73+1,$X74:X$107),IF(AND(N73="NEM Elszámolható költség",P73="Nem ÁFA visszaigénylő"),L73,0)) -> 0 | Y73: 0 | Z73: 0 | AA73: =SUM(T73,V73,X73) -> 0 | AB73: 0 | AI73: =IF($AB73=0,0,IF($A73="Alsor",$S73*AC73,"")) -> 0 | AJ73: =IF($AB73=0,0,IF($A73="Alsor",$S73*AD73,"")) -> 0 | AK73: =IF($AB73=0,0,IF($A73="Alsor",$S73*AE73,"")) -> 0 | AL73: =IF($AB73=0,0,IF($A73="Alsor",$S73*AF73,"")) -> 0 | AM73: =IF($AB73=0,0,IF($A73="Alsor",$S73*AG73,"")) -> 0 | AN73: 0 | AO73: 0 | AP73: 0 | AQ73: 0 | AR73: 0 | AS73: 0 | AT73: 0 | AU73: 0 | AV73: 0 | AW73: 0 | AZ73: 0
C74: =+IF(A74="fősor",MAX(C$8:C73)+1,0) -> 0 | D74: 2 | E74: Beruházási elem | I74: 0 | J74: =+IF($A74="fősor",SUMIF(D75:$D$107,D74+1,J75:$J$107),$I74) -> 0 | L74: =IF($A74="fősor",SUMIF(D75:$D$107,D74+1,L75:$L$107),ROUND(J74*K74,0)) -> 0 | M74: =+IF($A74="fősor",SUMIF($D75:D$107,D74+1,$M75:M$107),$J74+$L74) -> 0 | Q74: =IF($A74="fősor",SUMIF($D75:D$107,D74+1,$Q75:Q$107),IF(N74="Elszámolható költség",J74,0)) -> 0 | R74: =IF($A74="fősor",SUMIF($D75:D$107,D74+1,$R75:R$107),IF(AND(N74="Elszámolható költség",P74="Nem ÁFA visszaigénylő",Alapadatok!$C$60="IGEN"),L74,0)) -> 0 | S74: 0 | T74: =IF($A74="fősor",SUMIF($D75:D$107,D74+1,$T75:T$107),IF(AND(N74="Elszámolható költség",P74="Nem ÁFA visszaigénylő",Alapadatok!$C$60="NEM"),L74,0)) -> 0 | U74: =IF($A74="fősor",SUMIF($D75:D$107,D74+1,$U75:U$107),IF(AND(N74="Elszámolható költség",P74="ÁFA visszaigénylő"),L74,0)) -> 0 | V74: =IF($A74="fősor",SUMIF($D75:D$107,D74+1,$V75:V$107),IF(N74="NEM Elszámolható költség",J74,0)) -> 0 | W74: =IF($A74="fősor",SUMIF($D75:D$107,D74+1,$W75:W$107),IF(AND(N74="NEM Elszámolható költség",P74="ÁFA visszaigénylő"),L74,0)) -> 0 | X74: =IF($A74="fősor",SUMIF($D75:D$107,D74+1,$X75:X$107),IF(AND(N74="NEM Elszámolható költség",P74="Nem ÁFA visszaigénylő"),L74,0)) -> 0 | Y74: 0 | Z74: 0 | AA74: 0 | AB74: 0 | AH74: =IF(AND(A74="alsor",AB74>0),IF(SUM(AC74:AG74)=100%,"OK","nem 100%"),"") ->  | AI74: 0 | AJ74: 0 | AK74: 0 | AL74: 0 | AM74: 0 | AN74: =IF($AB74=0,0,IF($A74="Alsor",$AA74*AC74,"")) -> 0 | AO74: =IF($AB74=0,0,IF($A74="Alsor",$AA74*AD74,"")) -> 0 | AP74: =IF($AB74=0,0,IF($A74="Alsor",$AA74*AE74,"")) -> 0 | AQ74: =IF($AB74=0,0,IF($A74="Alsor",$AA74*AF74,"")) -> 0 | AR74: =IF($AB74=0,0,IF($A74="Alsor",$AA74*AG74,"")) -> 0 | AS74: =IF($AB74=0,0,IF($A74="Alsor",($Q74+$V74)*AC74,"")) -> 0 | AT74: =IF($AB74=0,0,IF($A74="Alsor",($Q74+$V74)*AD74,"")) -> 0 | AU74: =IF($AB74=0,0,IF($A74="Alsor",($Q74+$V74)*AE74,"")) -> 0 | AV74: =IF($AB74=0,0,IF($A74="Alsor",($Q74+$V74)*AF74,"")) -> 0 | AW74: =IF($AB74=0,0,IF($A74="Alsor",($Q74+$V74)*AG74,"")) -> 0 | AZ74: 0
C75: =+IF(A75="fősor",MAX(C$8:C74)+1,0) -> 0 | D75: 2 | E75: Beruházási elem | I75: 0 | J75: =+IF($A75="fősor",SUMIF(D76:$D$107,D75+1,J76:$J$107),$I75) -> 0 | L75: =IF($A75="fősor",SUMIF(D76:$D$107,D75+1,L76:$L$107),ROUND(J75*K75,0)) -> 0 | M75: =+IF($A75="fősor",SUMIF($D76:D$107,D75+1,$M76:M$107),$J75+$L75) -> 0 | Q75: =IF($A75="fősor",SUMIF($D76:D$107,D75+1,$Q76:Q$107),IF(N75="Elszámolható költség",J75,0)) -> 0 | R75: =IF($A75="fősor",SUMIF($D76:D$107,D75+1,$R76:R$107),IF(AND(N75="Elszámolható költség",P75="Nem ÁFA visszaigénylő",Alapadatok!$C$60="IGEN"),L75,0)) -> 0 | S75: 0 | T75: =IF($A75="fősor",SUMIF($D76:D$107,D75+1,$T76:T$107),IF(AND(N75="Elszámolható költség",P75="Nem ÁFA visszaigénylő",Alapadatok!$C$60="NEM"),L75,0)) -> 0 | U75: =IF($A75="fősor",SUMIF($D76:D$107,D75+1,$U76:U$107),IF(AND(N75="Elszámolható költség",P75="ÁFA visszaigénylő"),L75,0)) -> 0 | V75: =IF($A75="fősor",SUMIF($D76:D$107,D75+1,$V76:V$107),IF(N75="NEM Elszámolható költség",J75,0)) -> 0 | W75: =IF($A75="fősor",SUMIF($D76:D$107,D75+1,$W76:W$107),IF(AND(N75="NEM Elszámolható költség",P75="ÁFA visszaigénylő"),L75,0)) -> 0 | X75: =IF($A75="fősor",SUMIF($D76:D$107,D75+1,$X76:X$107),IF(AND(N75="NEM Elszámolható költség",P75="Nem ÁFA visszaigénylő"),L75,0)) -> 0 | Y75: 0 | Z75: 0 | AA75: 0 | AB75: 0 | AI75: 0 | AJ75: 0 | AK75: 0 | AL75: 0 | AM75: 0 | AN75: 0 | AO75: 0 | AP75: 0 | AQ75: 0 | AR75: 0 | AS75: 0 | AT75: 0 | AU75: 0 | AV75: 0 | AW75: 0 | AZ75: 0
C76: =+IF(A76="fősor",MAX(C$8:C75)+1,0) -> 0 | D76: 2 | E76: Beruházási elem | I76: 0 | J76: =+IF($A76="fősor",SUMIF(D77:$D$107,D76+1,J77:$J$107),$I76) -> 0 | L76: =IF($A76="fősor",SUMIF(D77:$D$107,D76+1,L77:$L$107),ROUND(J76*K76,0)) -> 0 | M76: =+IF($A76="fősor",SUMIF($D77:D$107,D76+1,$M77:M$107),$J76+$L76) -> 0 | Q76: =IF($A76="fősor",SUMIF($D77:D$107,D76+1,$Q77:Q$107),IF(N76="Elszámolható költség",J76,0)) -> 0 | R76: =IF($A76="fősor",SUMIF($D77:D$107,D76+1,$R77:R$107),IF(AND(N76="Elszámolható költség",P76="Nem ÁFA visszaigénylő",Alapadatok!$C$60="IGEN"),L76,0)) -> 0 | S76: 0 | T76: =IF($A76="fősor",SUMIF($D77:D$107,D76+1,$T77:T$107),IF(AND(N76="Elszámolható költség",P76="Nem ÁFA visszaigénylő",Alapadatok!$C$60="NEM"),L76,0)) -> 0 | U76: =IF($A76="fősor",SUMIF($D77:D$107,D76+1,$U77:U$107),IF(AND(N76="Elszámolható költség",P76="ÁFA visszaigénylő"),L76,0)) -> 0 | V76: =IF($A76="fősor",SUMIF($D77:D$107,D76+1,$V77:V$107),IF(N76="NEM Elszámolható költség",J76,0)) -> 0 | W76: =IF($A76="fősor",SUMIF($D77:D$107,D76+1,$W77:W$107),IF(AND(N76="NEM Elszámolható költség",P76="ÁFA visszaigénylő"),L76,0)) -> 0 | X76: =IF($A76="fősor",SUMIF($D77:D$107,D76+1,$X77:X$107),IF(AND(N76="NEM Elszámolható költség",P76="Nem ÁFA visszaigénylő"),L76,0)) -> 0 | Y76: 0 | Z76: 0 | AA76: 0 | AB76: 0 | AI76: 0 | AJ76: 0 | AK76: 0 | AL76: 0 | AM76: 0 | AN76: 0 | AO76: 0 | AP76: 0 | AQ76: 0 | AR76: 0 | AS76: 0 | AT76: 0 | AU76: 0 | AV76: 0 | AW76: 0 | AZ76: 0
C77: =+IF(A77="fősor",MAX(C$8:C76)+1,0) -> 0 | D77: 2 | E77: Beruházási elem | I77: 0 | J77: =+IF($A77="fősor",SUMIF(D78:$D$107,D77+1,J78:$J$107),$I77) -> 0 | L77: =IF($A77="fősor",SUMIF(D78:$D$107,D77+1,L78:$L$107),ROUND(J77*K77,0)) -> 0 | M77: =+IF($A77="fősor",SUMIF($D78:D$107,D77+1,$M78:M$107),$J77+$L77) -> 0 | Q77: =IF($A77="fősor",SUMIF($D78:D$107,D77+1,$Q78:Q$107),IF(N77="Elszámolható költség",J77,0)) -> 0 | R77: =IF($A77="fősor",SUMIF($D78:D$107,D77+1,$R78:R$107),IF(AND(N77="Elszámolható költség",P77="Nem ÁFA visszaigénylő",Alapadatok!$C$60="IGEN"),L77,0)) -> 0 | S77: 0 | T77: =IF($A77="fősor",SUMIF($D78:D$107,D77+1,$T78:T$107),IF(AND(N77="Elszámolható költség",P77="Nem ÁFA visszaigénylő",Alapadatok!$C$60="NEM"),L77,0)) -> 0 | U77: =IF($A77="fősor",SUMIF($D78:D$107,D77+1,$U78:U$107),IF(AND(N77="Elszámolható költség",P77="ÁFA visszaigénylő"),L77,0)) -> 0 | V77: =IF($A77="fősor",SUMIF($D78:D$107,D77+1,$V78:V$107),IF(N77="NEM Elszámolható költség",J77,0)) -> 0 | W77: =IF($A77="fősor",SUMIF($D78:D$107,D77+1,$W78:W$107),IF(AND(N77="NEM Elszámolható költség",P77="ÁFA visszaigénylő"),L77,0)) -> 0 | X77: =IF($A77="fősor",SUMIF($D78:D$107,D77+1,$X78:X$107),IF(AND(N77="NEM Elszámolható költség",P77="Nem ÁFA visszaigénylő"),L77,0)) -> 0 | Y77: 0 | Z77: 0 | AA77: 0 | AB77: =SUM(S77,AA77) -> 0 | AI77: 0 | AJ77: 0 | AK77: 0 | AL77: 0 | AM77: 0 | AN77: 0 | AO77: 0 | AP77: 0 | AQ77: 0 | AR77: 0 | AS77: 0 | AT77: 0 | AU77: 0 | AV77: 0 | AW77: 0 | AZ77: 0
C78: =+IF(A78="fősor",MAX(C$8:C77)+1,0) -> 0 | D78: 2 | E78: Beruházási elem | I78: 0 | J78: =+IF($A78="fősor",SUMIF(D79:$D$107,D78+1,J79:$J$107),$I78) -> 0 | L78: =IF($A78="fősor",SUMIF(D79:$D$107,D78+1,L79:$L$107),ROUND(J78*K78,0)) -> 0 | M78: =+IF($A78="fősor",SUMIF($D79:D$107,D78+1,$M79:M$107),$J78+$L78) -> 0 | Q78: =IF($A78="fősor",SUMIF($D79:D$107,D78+1,$Q79:Q$107),IF(N78="Elszámolható költség",J78,0)) -> 0 | R78: =IF($A78="fősor",SUMIF($D79:D$107,D78+1,$R79:R$107),IF(AND(N78="Elszámolható költség",P78="Nem ÁFA visszaigénylő",Alapadatok!$C$60="IGEN"),L78,0)) -> 0 | S78: 0 | T78: =IF($A78="fősor",SUMIF($D79:D$107,D78+1,$T79:T$107),IF(AND(N78="Elszámolható költség",P78="Nem ÁFA visszaigénylő",Alapadatok!$C$60="NEM"),L78,0)) -> 0 | U78: =IF($A78="fősor",SUMIF($D79:D$107,D78+1,$U79:U$107),IF(AND(N78="Elszámolható költség",P78="ÁFA visszaigénylő"),L78,0)) -> 0 | V78: =IF($A78="fősor",SUMIF($D79:D$107,D78+1,$V79:V$107),IF(N78="NEM Elszámolható költség",J78,0)) -> 0 | W78: =IF($A78="fősor",SUMIF($D79:D$107,D78+1,$W79:W$107),IF(AND(N78="NEM Elszámolható költség",P78="ÁFA visszaigénylő"),L78,0)) -> 0 | X78: =IF($A78="fősor",SUMIF($D79:D$107,D78+1,$X79:X$107),IF(AND(N78="NEM Elszámolható költség",P78="Nem ÁFA visszaigénylő"),L78,0)) -> 0 | Y78: 0 | Z78: 0 | AA78: 0 | AB78: 0 | AI78: 0 | AJ78: 0 | AK78: 0 | AL78: 0 | AM78: 0 | AN78: 0 | AO78: 0 | AP78: 0 | AQ78: 0 | AR78: 0 | AS78: 0 | AT78: 0 | AU78: 0 | AV78: 0 | AW78: 0 | AZ78: 0
C79: =+IF(A79="fősor",MAX(C$8:C78)+1,0) -> 0 | D79: 2 | E79: Beruházási elem | I79: 0 | J79: =+IF($A79="fősor",SUMIF(D80:$D$107,D79+1,J80:$J$107),$I79) -> 0 | L79: =IF($A79="fősor",SUMIF(D80:$D$107,D79+1,L80:$L$107),ROUND(J79*K79,0)) -> 0 | M79: =+IF($A79="fősor",SUMIF($D80:D$107,D79+1,$M80:M$107),$J79+$L79) -> 0 | Q79: =IF($A79="fősor",SUMIF($D80:D$107,D79+1,$Q80:Q$107),IF(N79="Elszámolható költség",J79,0)) -> 0 | R79: =IF($A79="fősor",SUMIF($D80:D$107,D79+1,$R80:R$107),IF(AND(N79="Elszámolható költség",P79="Nem ÁFA visszaigénylő",Alapadatok!$C$60="IGEN"),L79,0)) -> 0 | S79: 0 | T79: =IF($A79="fősor",SUMIF($D80:D$107,D79+1,$T80:T$107),IF(AND(N79="Elszámolható költség",P79="Nem ÁFA visszaigénylő",Alapadatok!$C$60="NEM"),L79,0)) -> 0 | U79: =IF($A79="fősor",SUMIF($D80:D$107,D79+1,$U80:U$107),IF(AND(N79="Elszámolható költség",P79="ÁFA visszaigénylő"),L79,0)) -> 0 | V79: =IF($A79="fősor",SUMIF($D80:D$107,D79+1,$V80:V$107),IF(N79="NEM Elszámolható költség",J79,0)) -> 0 | W79: =IF($A79="fősor",SUMIF($D80:D$107,D79+1,$W80:W$107),IF(AND(N79="NEM Elszámolható költség",P79="ÁFA visszaigénylő"),L79,0)) -> 0 | X79: =IF($A79="fősor",SUMIF($D80:D$107,D79+1,$X80:X$107),IF(AND(N79="NEM Elszámolható költség",P79="Nem ÁFA visszaigénylő"),L79,0)) -> 0 | Y79: 0 | Z79: 0 | AA79: 0 | AB79: 0 | AI79: 0 | AJ79: 0 | AK79: 0 | AL79: 0 | AM79: 0 | AN79: 0 | AO79: 0 | AP79: 0 | AQ79: 0 | AR79: 0 | AS79: 0 | AT79: 0 | AU79: 0 | AV79: 0 | AW79: 0 | AZ79: 0
C80: =+IF(A80="fősor",MAX(C$8:C79)+1,0) -> 0 | D80: 2 | E80: Beruházási elem | I80: 0 | J80: =+IF($A80="fősor",SUMIF(D81:$D$107,D80+1,J81:$J$107),$I80) -> 0 | L80: =IF($A80="fősor",SUMIF(D81:$D$107,D80+1,L81:$L$107),ROUND(J80*K80,0)) -> 0 | M80: =+IF($A80="fősor",SUMIF($D81:D$107,D80+1,$M81:M$107),$J80+$L80) -> 0 | Q80: =IF($A80="fősor",SUMIF($D81:D$107,D80+1,$Q81:Q$107),IF(N80="Elszámolható költség",J80,0)) -> 0 | R80: =IF($A80="fősor",SUMIF($D81:D$107,D80+1,$R81:R$107),IF(AND(N80="Elszámolható költség",P80="Nem ÁFA visszaigénylő",Alapadatok!$C$60="IGEN"),L80,0)) -> 0 | S80: 0 | T80: =IF($A80="fősor",SUMIF($D81:D$107,D80+1,$T81:T$107),IF(AND(N80="Elszámolható költség",P80="Nem ÁFA visszaigénylő",Alapadatok!$C$60="NEM"),L80,0)) -> 0 | U80: =IF($A80="fősor",SUMIF($D81:D$107,D80+1,$U81:U$107),IF(AND(N80="Elszámolható költség",P80="ÁFA visszaigénylő"),L80,0)) -> 0 | V80: =IF($A80="fősor",SUMIF($D81:D$107,D80+1,$V81:V$107),IF(N80="NEM Elszámolható költség",J80,0)) -> 0 | W80: =IF($A80="fősor",SUMIF($D81:D$107,D80+1,$W81:W$107),IF(AND(N80="NEM Elszámolható költség",P80="ÁFA visszaigénylő"),L80,0)) -> 0 | X80: =IF($A80="fősor",SUMIF($D81:D$107,D80+1,$X81:X$107),IF(AND(N80="NEM Elszámolható költség",P80="Nem ÁFA visszaigénylő"),L80,0)) -> 0 | Y80: 0 | Z80: 0 | AA80: 0 | AB80: 0 | AI80: 0 | AJ80: 0 | AK80: 0 | AL80: 0 | AM80: 0 | AN80: 0 | AO80: 0 | AP80: 0 | AQ80: 0 | AR80: 0 | AS80: 0 | AT80: 0 | AU80: 0 | AV80: 0 | AW80: 0 | AZ80: 0
C81: =+IF(A81="fősor",MAX(C$8:C80)+1,0) -> 0 | D81: 2 | E81: Beruházási elem | I81: 0 | J81: =+IF($A81="fősor",SUMIF(D82:$D$107,D81+1,J82:$J$107),$I81) -> 0 | L81: =IF($A81="fősor",SUMIF(D82:$D$107,D81+1,L82:$L$107),ROUND(J81*K81,0)) -> 0 | M81: =+IF($A81="fősor",SUMIF($D82:D$107,D81+1,$M82:M$107),$J81+$L81) -> 0 | Q81: =IF($A81="fősor",SUMIF($D82:D$107,D81+1,$Q82:Q$107),IF(N81="Elszámolható költség",J81,0)) -> 0 | R81: =IF($A81="fősor",SUMIF($D82:D$107,D81+1,$R82:R$107),IF(AND(N81="Elszámolható költség",P81="Nem ÁFA visszaigénylő",Alapadatok!$C$60="IGEN"),L81,0)) -> 0 | S81: 0 | T81: =IF($A81="fősor",SUMIF($D82:D$107,D81+1,$T82:T$107),IF(AND(N81="Elszámolható költség",P81="Nem ÁFA visszaigénylő",Alapadatok!$C$60="NEM"),L81,0)) -> 0 | U81: =IF($A81="fősor",SUMIF($D82:D$107,D81+1,$U82:U$107),IF(AND(N81="Elszámolható költség",P81="ÁFA visszaigénylő"),L81,0)) -> 0 | V81: =IF($A81="fősor",SUMIF($D82:D$107,D81+1,$V82:V$107),IF(N81="NEM Elszámolható költség",J81,0)) -> 0 | W81: =IF($A81="fősor",SUMIF($D82:D$107,D81+1,$W82:W$107),IF(AND(N81="NEM Elszámolható költség",P81="ÁFA visszaigénylő"),L81,0)) -> 0 | X81: =IF($A81="fősor",SUMIF($D82:D$107,D81+1,$X82:X$107),IF(AND(N81="NEM Elszámolható költség",P81="Nem ÁFA visszaigénylő"),L81,0)) -> 0 | Y81: 0 | Z81: 0 | AA81: 0 | AB81: 0 | AI81: 0 | AJ81: 0 | AK81: 0 | AL81: 0 | AM81: 0 | AN81: 0 | AO81: 0 | AP81: 0 | AQ81: 0 | AR81: 0 | AS81: 0 | AT81: 0 | AU81: 0 | AV81: 0 | AW81: 0 | AZ81: 0
C82: =+IF(A82="fősor",MAX(C$8:C81)+1,0) -> 0 | D82: 2 | E82: Beruházási elem | I82: 0 | J82: =+IF($A82="fősor",SUMIF(D83:$D$107,D82+1,J83:$J$107),$I82) -> 0 | L82: =IF($A82="fősor",SUMIF(D83:$D$107,D82+1,L83:$L$107),ROUND(J82*K82,0)) -> 0 | M82: =+IF($A82="fősor",SUMIF($D83:D$107,D82+1,$M83:M$107),$J82+$L82) -> 0 | Q82: =IF($A82="fősor",SUMIF($D83:D$107,D82+1,$Q83:Q$107),IF(N82="Elszámolható költség",J82,0)) -> 0 | R82: =IF($A82="fősor",SUMIF($D83:D$107,D82+1,$R83:R$107),IF(AND(N82="Elszámolható költség",P82="Nem ÁFA visszaigénylő",Alapadatok!$C$60="IGEN"),L82,0)) -> 0 | S82: 0 | T82: =IF($A82="fősor",SUMIF($D83:D$107,D82+1,$T83:T$107),IF(AND(N82="Elszámolható költség",P82="Nem ÁFA visszaigénylő",Alapadatok!$C$60="NEM"),L82,0)) -> 0 | U82: =IF($A82="fősor",SUMIF($D83:D$107,D82+1,$U83:U$107),IF(AND(N82="Elszámolható költség",P82="ÁFA visszaigénylő"),L82,0)) -> 0 | V82: =IF($A82="fősor",SUMIF($D83:D$107,D82+1,$V83:V$107),IF(N82="NEM Elszámolható költség",J82,0)) -> 0 | W82: =IF($A82="fősor",SUMIF($D83:D$107,D82+1,$W83:W$107),IF(AND(N82="NEM Elszámolható költség",P82="ÁFA visszaigénylő"),L82,0)) -> 0 | X82: =IF($A82="fősor",SUMIF($D83:D$107,D82+1,$X83:X$107),IF(AND(N82="NEM Elszámolható költség",P82="Nem ÁFA visszaigénylő"),L82,0)) -> 0 | Y82: 0 | Z82: 0 | AA82: 0 | AB82: 0 | AI82: 0 | AJ82: 0 | AK82: 0 | AL82: 0 | AM82: 0 | AN82: 0 | AO82: 0 | AP82: 0 | AQ82: 0 | AR82: 0 | AS82: 0 | AT82: 0 | AU82: 0 | AV82: 0 | AW82: 0 | AZ82: 0
C83: =+IF(A83="fősor",MAX(C$8:C82)+1,0) -> 0 | D83: 2 | E83: Beruházási elem | I83: 0 | J83: =+IF($A83="fősor",SUMIF(D84:$D$107,D83+1,J84:$J$107),$I83) -> 0 | L83: =IF($A83="fősor",SUMIF(D84:$D$107,D83+1,L84:$L$107),ROUND(J83*K83,0)) -> 0 | M83: =+IF($A83="fősor",SUMIF($D84:D$107,D83+1,$M84:M$107),$J83+$L83) -> 0 | Q83: =IF($A83="fősor",SUMIF($D84:D$107,D83+1,$Q84:Q$107),IF(N83="Elszámolható költség",J83,0)) -> 0 | R83: =IF($A83="fősor",SUMIF($D84:D$107,D83+1,$R84:R$107),IF(AND(N83="Elszámolható költség",P83="Nem ÁFA visszaigénylő",Alapadatok!$C$60="IGEN"),L83,0)) -> 0 | S83: 0 | T83: =IF($A83="fősor",SUMIF($D84:D$107,D83+1,$T84:T$107),IF(AND(N83="Elszámolható költség",P83="Nem ÁFA visszaigénylő",Alapadatok!$C$60="NEM"),L83,0)) -> 0 | U83: =IF($A83="fősor",SUMIF($D84:D$107,D83+1,$U84:U$107),IF(AND(N83="Elszámolható költség",P83="ÁFA visszaigénylő"),L83,0)) -> 0 | V83: =IF($A83="fősor",SUMIF($D84:D$107,D83+1,$V84:V$107),IF(N83="NEM Elszámolható költség",J83,0)) -> 0 | W83: =IF($A83="fősor",SUMIF($D84:D$107,D83+1,$W84:W$107),IF(AND(N83="NEM Elszámolható költség",P83="ÁFA visszaigénylő"),L83,0)) -> 0 | X83: =IF($A83="fősor",SUMIF($D84:D$107,D83+1,$X84:X$107),IF(AND(N83="NEM Elszámolható költség",P83="Nem ÁFA visszaigénylő"),L83,0)) -> 0 | Y83: 0 | Z83: 0 | AA83: 0 | AB83: 0 | AI83: 0 | AJ83: 0 | AK83: 0 | AL83: 0 | AM83: 0 | AN83: 0 | AO83: 0 | AP83: 0 | AQ83: 0 | AR83: 0 | AS83: 0 | AT83: 0 | AU83: 0 | AV83: 0 | AW83: 0 | AZ83: 0
C84: =+IF(A84="fősor",MAX(C$8:C83)+1,0) -> 0 | D84: 2 | E84: Beruházási elem | I84: 0 | J84: =+IF($A84="fősor",SUMIF(D85:$D$107,D84+1,J85:$J$107),$I84) -> 0 | L84: =IF($A84="fősor",SUMIF(D85:$D$107,D84+1,L85:$L$107),ROUND(J84*K84,0)) -> 0 | M84: =+IF($A84="fősor",SUMIF($D85:D$107,D84+1,$M85:M$107),$J84+$L84) -> 0 | Q84: =IF($A84="fősor",SUMIF($D85:D$107,D84+1,$Q85:Q$107),IF(N84="Elszámolható költség",J84,0)) -> 0 | R84: =IF($A84="fősor",SUMIF($D85:D$107,D84+1,$R85:R$107),IF(AND(N84="Elszámolható költség",P84="Nem ÁFA visszaigénylő",Alapadatok!$C$60="IGEN"),L84,0)) -> 0 | S84: 0 | T84: =IF($A84="fősor",SUMIF($D85:D$107,D84+1,$T85:T$107),IF(AND(N84="Elszámolható költség",P84="Nem ÁFA visszaigénylő",Alapadatok!$C$60="NEM"),L84,0)) -> 0 | U84: =IF($A84="fősor",SUMIF($D85:D$107,D84+1,$U85:U$107),IF(AND(N84="Elszámolható költség",P84="ÁFA visszaigénylő"),L84,0)) -> 0 | V84: =IF($A84="fősor",SUMIF($D85:D$107,D84+1,$V85:V$107),IF(N84="NEM Elszámolható költség",J84,0)) -> 0 | W84: =IF($A84="fősor",SUMIF($D85:D$107,D84+1,$W85:W$107),IF(AND(N84="NEM Elszámolható költség",P84="ÁFA visszaigénylő"),L84,0)) -> 0 | X84: =IF($A84="fősor",SUMIF($D85:D$107,D84+1,$X85:X$107),IF(AND(N84="NEM Elszámolható költség",P84="Nem ÁFA visszaigénylő"),L84,0)) -> 0 | Y84: 0 | Z84: 0 | AA84: 0 | AB84: 0 | AI84: 0 | AJ84: 0 | AK84: 0 | AL84: 0 | AM84: 0 | AN84: 0 | AO84: 0 | AP84: 0 | AQ84: 0 | AR84: 0 | AS84: 0 | AT84: 0 | AU84: 0 | AV84: 0 | AW84: 0 | AZ84: 0
C85: =+IF(A85="fősor",MAX(C$8:C84)+1,0) -> 0 | D85: 2 | E85: Beruházási elem | I85: 0 | J85: =+IF($A85="fősor",SUMIF(D86:$D$107,D85+1,J86:$J$107),$I85) -> 0 | L85: =IF($A85="fősor",SUMIF(D86:$D$107,D85+1,L86:$L$107),ROUND(J85*K85,0)) -> 0 | M85: =+IF($A85="fősor",SUMIF($D86:D$107,D85+1,$M86:M$107),$J85+$L85) -> 0 | Q85: =IF($A85="fősor",SUMIF($D86:D$107,D85+1,$Q86:Q$107),IF(N85="Elszámolható költség",J85,0)) -> 0 | R85: =IF($A85="fősor",SUMIF($D86:D$107,D85+1,$R86:R$107),IF(AND(N85="Elszámolható költség",P85="Nem ÁFA visszaigénylő",Alapadatok!$C$60="IGEN"),L85,0)) -> 0 | S85: 0 | T85: =IF($A85="fősor",SUMIF($D86:D$107,D85+1,$T86:T$107),IF(AND(N85="Elszámolható költség",P85="Nem ÁFA visszaigénylő",Alapadatok!$C$60="NEM"),L85,0)) -> 0 | U85: =IF($A85="fősor",SUMIF($D86:D$107,D85+1,$U86:U$107),IF(AND(N85="Elszámolható költség",P85="ÁFA visszaigénylő"),L85,0)) -> 0 | V85: =IF($A85="fősor",SUMIF($D86:D$107,D85+1,$V86:V$107),IF(N85="NEM Elszámolható költség",J85,0)) -> 0 | W85: =IF($A85="fősor",SUMIF($D86:D$107,D85+1,$W86:W$107),IF(AND(N85="NEM Elszámolható költség",P85="ÁFA visszaigénylő"),L85,0)) -> 0 | X85: =IF($A85="fősor",SUMIF($D86:D$107,D85+1,$X86:X$107),IF(AND(N85="NEM Elszámolható költség",P85="Nem ÁFA visszaigénylő"),L85,0)) -> 0 | Y85: 0 | Z85: 0 | AA85: 0 | AB85: 0 | AI85: 0 | AJ85: 0 | AK85: 0 | AL85: 0 | AM85: 0 | AN85: 0 | AO85: 0 | AP85: 0 | AQ85: 0 | AR85: 0 | AS85: 0 | AT85: 0 | AU85: 0 | AV85: 0 | AW85: 0 | AZ85: 0
C86: =+IF(A86="fősor",MAX(C$8:C85)+1,0) -> 0 | D86: 2 | E86: Beruházási elem | I86: 0 | J86: =+IF($A86="fősor",SUMIF(D87:$D$107,D86+1,J87:$J$107),$I86) -> 0 | L86: =IF($A86="fősor",SUMIF(D87:$D$107,D86+1,L87:$L$107),ROUND(J86*K86,0)) -> 0 | M86: =+IF($A86="fősor",SUMIF($D87:D$107,D86+1,$M87:M$107),$J86+$L86) -> 0 | Q86: =IF($A86="fősor",SUMIF($D87:D$107,D86+1,$Q87:Q$107),IF(N86="Elszámolható költség",J86,0)) -> 0 | R86: =IF($A86="fősor",SUMIF($D87:D$107,D86+1,$R87:R$107),IF(AND(N86="Elszámolható költség",P86="Nem ÁFA visszaigénylő",Alapadatok!$C$60="IGEN"),L86,0)) -> 0 | S86: 0 | T86: =IF($A86="fősor",SUMIF($D87:D$107,D86+1,$T87:T$107),IF(AND(N86="Elszámolható költség",P86="Nem ÁFA visszaigénylő",Alapadatok!$C$60="NEM"),L86,0)) -> 0 | U86: =IF($A86="fősor",SUMIF($D87:D$107,D86+1,$U87:U$107),IF(AND(N86="Elszámolható költség",P86="ÁFA visszaigénylő"),L86,0)) -> 0 | V86: =IF($A86="fősor",SUMIF($D87:D$107,D86+1,$V87:V$107),IF(N86="NEM Elszámolható költség",J86,0)) -> 0 | W86: =IF($A86="fősor",SUMIF($D87:D$107,D86+1,$W87:W$107),IF(AND(N86="NEM Elszámolható költség",P86="ÁFA visszaigénylő"),L86,0)) -> 0 | X86: =IF($A86="fősor",SUMIF($D87:D$107,D86+1,$X87:X$107),IF(AND(N86="NEM Elszámolható költség",P86="Nem ÁFA visszaigénylő"),L86,0)) -> 0 | Y86: 0 | Z86: 0 | AA86: 0 | AB86: 0 | AI86: 0 | AJ86: 0 | AK86: 0 | AL86: 0 | AM86: 0 | AN86: 0 | AO86: 0 | AP86: 0 | AQ86: 0 | AR86: 0 | AS86: 0 | AT86: 0 | AU86: 0 | AV86: 0 | AW86: 0 | AZ86: 0
C87: =+IF(A87="fősor",MAX(C$8:C86)+1,0) -> 0 | D87: 2 | E87: Beruházási elem | I87: 0 | J87: =+IF($A87="fősor",SUMIF(D88:$D$107,D87+1,J88:$J$107),$I87) -> 0 | L87: =IF($A87="fősor",SUMIF(D88:$D$107,D87+1,L88:$L$107),ROUND(J87*K87,0)) -> 0 | M87: =+IF($A87="fősor",SUMIF($D88:D$107,D87+1,$M88:M$107),$J87+$L87) -> 0 | Q87: =IF($A87="fősor",SUMIF($D88:D$107,D87+1,$Q88:Q$107),IF(N87="Elszámolható költség",J87,0)) -> 0 | R87: =IF($A87="fősor",SUMIF($D88:D$107,D87+1,$R88:R$107),IF(AND(N87="Elszámolható költség",P87="Nem ÁFA visszaigénylő",Alapadatok!$C$60="IGEN"),L87,0)) -> 0 | S87: 0 | T87: =IF($A87="fősor",SUMIF($D88:D$107,D87+1,$T88:T$107),IF(AND(N87="Elszámolható költség",P87="Nem ÁFA visszaigénylő",Alapadatok!$C$60="NEM"),L87,0)) -> 0 | U87: =IF($A87="fősor",SUMIF($D88:D$107,D87+1,$U88:U$107),IF(AND(N87="Elszámolható költség",P87="ÁFA visszaigénylő"),L87,0)) -> 0 | V87: =IF($A87="fősor",SUMIF($D88:D$107,D87+1,$V88:V$107),IF(N87="NEM Elszámolható költség",J87,0)) -> 0 | W87: =IF($A87="fősor",SUMIF($D88:D$107,D87+1,$W88:W$107),IF(AND(N87="NEM Elszámolható költség",P87="ÁFA visszaigénylő"),L87,0)) -> 0 | X87: =IF($A87="fősor",SUMIF($D88:D$107,D87+1,$X88:X$107),IF(AND(N87="NEM Elszámolható költség",P87="Nem ÁFA visszaigénylő"),L87,0)) -> 0 | Y87: 0 | Z87: 0 | AA87: 0 | AB87: 0 | AI87: 0 | AJ87: 0 | AK87: 0 | AL87: 0 | AM87: 0 | AN87: 0 | AO87: 0 | AP87: 0 | AQ87: 0 | AR87: 0 | AS87: 0 | AT87: 0 | AU87: 0 | AV87: 0 | AW87: 0 | AZ87: 0
C88: =+IF(A88="fősor",MAX(C$8:C87)+1,0) -> 0 | D88: 2 | E88: Beruházási elem | I88: 0 | J88: =+IF($A88="fősor",SUMIF(D89:$D$107,D88+1,J89:$J$107),$I88) -> 0 | L88: =IF($A88="fősor",SUMIF(D89:$D$107,D88+1,L89:$L$107),ROUND(J88*K88,0)) -> 0 | M88: =+IF($A88="fősor",SUMIF($D89:D$107,D88+1,$M89:M$107),$J88+$L88) -> 0 | Q88: =IF($A88="fősor",SUMIF($D89:D$107,D88+1,$Q89:Q$107),IF(N88="Elszámolható költség",J88,0)) -> 0 | R88: =IF($A88="fősor",SUMIF($D89:D$107,D88+1,$R89:R$107),IF(AND(N88="Elszámolható költség",P88="Nem ÁFA visszaigénylő",Alapadatok!$C$60="IGEN"),L88,0)) -> 0 | S88: 0 | T88: =IF($A88="fősor",SUMIF($D89:D$107,D88+1,$T89:T$107),IF(AND(N88="Elszámolható költség",P88="Nem ÁFA visszaigénylő",Alapadatok!$C$60="NEM"),L88,0)) -> 0 | U88: =IF($A88="fősor",SUMIF($D89:D$107,D88+1,$U89:U$107),IF(AND(N88="Elszámolható költség",P88="ÁFA visszaigénylő"),L88,0)) -> 0 | V88: =IF($A88="fősor",SUMIF($D89:D$107,D88+1,$V89:V$107),IF(N88="NEM Elszámolható költség",J88,0)) -> 0 | W88: =IF($A88="fősor",SUMIF($D89:D$107,D88+1,$W89:W$107),IF(AND(N88="NEM Elszámolható költség",P88="ÁFA visszaigénylő"),L88,0)) -> 0 | X88: =IF($A88="fősor",SUMIF($D89:D$107,D88+1,$X89:X$107),IF(AND(N88="NEM Elszámolható költség",P88="Nem ÁFA visszaigénylő"),L88,0)) -> 0 | Y88: 0 | Z88: 0 | AA88: 0 | AB88: 0 | AI88: 0 | AJ88: 0 | AK88: 0 | AL88: 0 | AM88: 0 | AN88: 0 | AO88: 0 | AP88: 0 | AQ88: 0 | AR88: 0 | AS88: 0 | AT88: 0 | AU88: 0 | AV88: 0 | AW88: 0 | AZ88: 0
C89: =+IF(A89="fősor",MAX(C$8:C88)+1,0) -> 0 | D89: 2 | E89: Beruházási elem | I89: 0 | J89: =+IF($A89="fősor",SUMIF(D90:$D$107,D89+1,J90:$J$107),$I89) -> 0 | L89: =IF($A89="fősor",SUMIF(D90:$D$107,D89+1,L90:$L$107),ROUND(J89*K89,0)) -> 0 | M89: =+IF($A89="fősor",SUMIF($D90:D$107,D89+1,$M90:M$107),$J89+$L89) -> 0 | Q89: =IF($A89="fősor",SUMIF($D90:D$107,D89+1,$Q90:Q$107),IF(N89="Elszámolható költség",J89,0)) -> 0 | R89: =IF($A89="fősor",SUMIF($D90:D$107,D89+1,$R90:R$107),IF(AND(N89="Elszámolható költség",P89="Nem ÁFA visszaigénylő",Alapadatok!$C$60="IGEN"),L89,0)) -> 0 | S89: 0 | T89: =IF($A89="fősor",SUMIF($D90:D$107,D89+1,$T90:T$107),IF(AND(N89="Elszámolható költség",P89="Nem ÁFA visszaigénylő",Alapadatok!$C$60="NEM"),L89,0)) -> 0 | U89: =IF($A89="fősor",SUMIF($D90:D$107,D89+1,$U90:U$107),IF(AND(N89="Elszámolható költség",P89="ÁFA visszaigénylő"),L89,0)) -> 0 | V89: =IF($A89="fősor",SUMIF($D90:D$107,D89+1,$V90:V$107),IF(N89="NEM Elszámolható költség",J89,0)) -> 0 | W89: =IF($A89="fősor",SUMIF($D90:D$107,D89+1,$W90:W$107),IF(AND(N89="NEM Elszámolható költség",P89="ÁFA visszaigénylő"),L89,0)) -> 0 | X89: =IF($A89="fősor",SUMIF($D90:D$107,D89+1,$X90:X$107),IF(AND(N89="NEM Elszámolható költség",P89="Nem ÁFA visszaigénylő"),L89,0)) -> 0 | Y89: 0 | Z89: 0 | AA89: 0 | AB89: 0 | AI89: 0 | AJ89: 0 | AK89: 0 | AL89: 0 | AM89: 0 | AN89: 0 | AO89: 0 | AP89: 0 | AQ89: 0 | AR89: 0 | AS89: 0 | AT89: 0 | AU89: 0 | AV89: 0 | AW89: 0 | AZ89: 0
C90: =+IF(A90="fősor",MAX(C$8:C89)+1,0) -> 0 | D90: 2 | E90: Beruházási elem | I90: 0 | J90: =+IF($A90="fősor",SUMIF(D91:$D$107,D90+1,J91:$J$107),$I90) -> 0 | L90: =IF($A90="fősor",SUMIF(D91:$D$107,D90+1,L91:$L$107),ROUND(J90*K90,0)) -> 0 | M90: =+IF($A90="fősor",SUMIF($D91:D$107,D90+1,$M91:M$107),$J90+$L90) -> 0 | Q90: =IF($A90="fősor",SUMIF($D91:D$107,D90+1,$Q91:Q$107),IF(N90="Elszámolható költség",J90,0)) -> 0 | R90: =IF($A90="fősor",SUMIF($D91:D$107,D90+1,$R91:R$107),IF(AND(N90="Elszámolható költség",P90="Nem ÁFA visszaigénylő",Alapadatok!$C$60="IGEN"),L90,0)) -> 0 | S90: 0 | T90: =IF($A90="fősor",SUMIF($D91:D$107,D90+1,$T91:T$107),IF(AND(N90="Elszámolható költség",P90="Nem ÁFA visszaigénylő",Alapadatok!$C$60="NEM"),L90,0)) -> 0 | U90: =IF($A90="fősor",SUMIF($D91:D$107,D90+1,$U91:U$107),IF(AND(N90="Elszámolható költség",P90="ÁFA visszaigénylő"),L90,0)) -> 0 | V90: =IF($A90="fősor",SUMIF($D91:D$107,D90+1,$V91:V$107),IF(N90="NEM Elszámolható költség",J90,0)) -> 0 | W90: =IF($A90="fősor",SUMIF($D91:D$107,D90+1,$W91:W$107),IF(AND(N90="NEM Elszámolható költség",P90="ÁFA visszaigénylő"),L90,0)) -> 0 | X90: =IF($A90="fősor",SUMIF($D91:D$107,D90+1,$X91:X$107),IF(AND(N90="NEM Elszámolható költség",P90="Nem ÁFA visszaigénylő"),L90,0)) -> 0 | Y90: 0 | Z90: 0 | AA90: 0 | AB90: 0 | AI90: 0 | AJ90: 0 | AK90: 0 | AL90: 0 | AM90: 0 | AN90: 0 | AO90: 0 | AP90: 0 | AQ90: 0 | AR90: 0 | AS90: 0 | AT90: 0 | AU90: 0 | AV90: 0 | AW90: 0 | AZ90: 0
C91: =+IF(A91="fősor",MAX(C$8:C90)+1,0) -> 0 | D91: 2 | E91: Beruházási elem | I91: 0 | J91: =+IF($A91="fősor",SUMIF(D92:$D$107,D91+1,J92:$J$107),$I91) -> 0 | L91: =IF($A91="fősor",SUMIF(D92:$D$107,D91+1,L92:$L$107),ROUND(J91*K91,0)) -> 0 | M91: =+IF($A91="fősor",SUMIF($D92:D$107,D91+1,$M92:M$107),$J91+$L91) -> 0 | Q91: =IF($A91="fősor",SUMIF($D92:D$107,D91+1,$Q92:Q$107),IF(N91="Elszámolható költség",J91,0)) -> 0 | R91: =IF($A91="fősor",SUMIF($D92:D$107,D91+1,$R92:R$107),IF(AND(N91="Elszámolható költség",P91="Nem ÁFA visszaigénylő",Alapadatok!$C$60="IGEN"),L91,0)) -> 0 | S91: 0 | T91: =IF($A91="fősor",SUMIF($D92:D$107,D91+1,$T92:T$107),IF(AND(N91="Elszámolható költség",P91="Nem ÁFA visszaigénylő",Alapadatok!$C$60="NEM"),L91,0)) -> 0 | U91: =IF($A91="fősor",SUMIF($D92:D$107,D91+1,$U92:U$107),IF(AND(N91="Elszámolható költség",P91="ÁFA visszaigénylő"),L91,0)) -> 0 | V91: =IF($A91="fősor",SUMIF($D92:D$107,D91+1,$V92:V$107),IF(N91="NEM Elszámolható költség",J91,0)) -> 0 | W91: =IF($A91="fősor",SUMIF($D92:D$107,D91+1,$W92:W$107),IF(AND(N91="NEM Elszámolható költség",P91="ÁFA visszaigénylő"),L91,0)) -> 0 | X91: =IF($A91="fősor",SUMIF($D92:D$107,D91+1,$X92:X$107),IF(AND(N91="NEM Elszámolható költség",P91="Nem ÁFA visszaigénylő"),L91,0)) -> 0 | Y91: 0 | Z91: 0 | AA91: 0 | AB91: 0 | AI91: 0 | AJ91: 0 | AK91: 0 | AL91: 0 | AM91: 0 | AN91: 0 | AO91: 0 | AP91: 0 | AQ91: 0 | AR91: 0 | AS91: 0 | AT91: 0 | AU91: 0 | AV91: 0 | AW91: 0 | AZ91: 0
C92: =+IF(A92="fősor",MAX(C$8:C91)+1,0) -> 0 | D92: 2 | E92: Beruházási elem | I92: 0 | J92: =+IF($A92="fősor",SUMIF(D93:$D$107,D92+1,J93:$J$107),$I92) -> 0 | L92: =IF($A92="fősor",SUMIF(D93:$D$107,D92+1,L93:$L$107),ROUND(J92*K92,0)) -> 0 | M92: =+IF($A92="fősor",SUMIF($D93:D$107,D92+1,$M93:M$107),$J92+$L92) -> 0 | Q92: =IF($A92="fősor",SUMIF($D93:D$107,D92+1,$Q93:Q$107),IF(N92="Elszámolható költség",J92,0)) -> 0 | R92: =IF($A92="fősor",SUMIF($D93:D$107,D92+1,$R93:R$107),IF(AND(N92="Elszámolható költség",P92="Nem ÁFA visszaigénylő",Alapadatok!$C$60="IGEN"),L92,0)) -> 0 | S92: 0 | T92: =IF($A92="fősor",SUMIF($D93:D$107,D92+1,$T93:T$107),IF(AND(N92="Elszámolható költség",P92="Nem ÁFA visszaigénylő",Alapadatok!$C$60="NEM"),L92,0)) -> 0 | U92: =IF($A92="fősor",SUMIF($D93:D$107,D92+1,$U93:U$107),IF(AND(N92="Elszámolható költség",P92="ÁFA visszaigénylő"),L92,0)) -> 0 | V92: =IF($A92="fősor",SUMIF($D93:D$107,D92+1,$V93:V$107),IF(N92="NEM Elszámolható költség",J92,0)) -> 0 | W92: =IF($A92="fősor",SUMIF($D93:D$107,D92+1,$W93:W$107),IF(AND(N92="NEM Elszámolható költség",P92="ÁFA visszaigénylő"),L92,0)) -> 0 | X92: =IF($A92="fősor",SUMIF($D93:D$107,D92+1,$X93:X$107),IF(AND(N92="NEM Elszámolható költség",P92="Nem ÁFA visszaigénylő"),L92,0)) -> 0 | Y92: 0 | Z92: 0 | AA92: 0 | AB92: 0 | AI92: 0 | AJ92: 0 | AK92: 0 | AL92: 0 | AM92: 0 | AN92: 0 | AO92: 0 | AP92: 0 | AQ92: 0 | AR92: 0 | AS92: 0 | AT92: 0 | AU92: 0 | AV92: 0 | AW92: 0 | AZ92: 0
C93: =+IF(A93="fősor",MAX(C$8:C92)+1,0) -> 0 | D93: 2 | E93: Beruházási elem | I93: 0 | J93: =+IF($A93="fősor",SUMIF(D94:$D$107,D93+1,J94:$J$107),$I93) -> 0 | L93: =IF($A93="fősor",SUMIF(D94:$D$107,D93+1,L94:$L$107),ROUND(J93*K93,0)) -> 0 | M93: =+IF($A93="fősor",SUMIF($D94:D$107,D93+1,$M94:M$107),$J93+$L93) -> 0 | Q93: =IF($A93="fősor",SUMIF($D94:D$107,D93+1,$Q94:Q$107),IF(N93="Elszámolható költség",J93,0)) -> 0 | R93: =IF($A93="fősor",SUMIF($D94:D$107,D93+1,$R94:R$107),IF(AND(N93="Elszámolható költség",P93="Nem ÁFA visszaigénylő",Alapadatok!$C$60="IGEN"),L93,0)) -> 0 | S93: 0 | T93: =IF($A93="fősor",SUMIF($D94:D$107,D93+1,$T94:T$107),IF(AND(N93="Elszámolható költség",P93="Nem ÁFA visszaigénylő",Alapadatok!$C$60="NEM"),L93,0)) -> 0 | U93: =IF($A93="fősor",SUMIF($D94:D$107,D93+1,$U94:U$107),IF(AND(N93="Elszámolható költség",P93="ÁFA visszaigénylő"),L93,0)) -> 0 | V93: =IF($A93="fősor",SUMIF($D94:D$107,D93+1,$V94:V$107),IF(N93="NEM Elszámolható költség",J93,0)) -> 0 | W93: =IF($A93="fősor",SUMIF($D94:D$107,D93+1,$W94:W$107),IF(AND(N93="NEM Elszámolható költség",P93="ÁFA visszaigénylő"),L93,0)) -> 0 | X93: =IF($A93="fősor",SUMIF($D94:D$107,D93+1,$X94:X$107),IF(AND(N93="NEM Elszámolható költség",P93="Nem ÁFA visszaigénylő"),L93,0)) -> 0 | Y93: 0 | Z93: 0 | AA93: 0 | AB93: 0 | AI93: 0 | AJ93: 0 | AK93: 0 | AL93: 0 | AM93: 0 | AN93: 0 | AO93: 0 | AP93: 0 | AQ93: 0 | AR93: 0 | AS93: 0 | AT93: 0 | AU93: 0 | AV93: 0 | AW93: 0 | AZ93: 0
C94: =+IF(A94="fősor",MAX(C$8:C93)+1,0) -> 0 | D94: 2 | E94: Beruházási elem | I94: 0 | J94: =+IF($A94="fősor",SUMIF(D95:$D$107,D94+1,J95:$J$107),$I94) -> 0 | L94: =IF($A94="fősor",SUMIF(D95:$D$107,D94+1,L95:$L$107),ROUND(J94*K94,0)) -> 0 | M94: =+IF($A94="fősor",SUMIF($D95:D$107,D94+1,$M95:M$107),$J94+$L94) -> 0 | Q94: =IF($A94="fősor",SUMIF($D95:D$107,D94+1,$Q95:Q$107),IF(N94="Elszámolható költség",J94,0)) -> 0 | R94: =IF($A94="fősor",SUMIF($D95:D$107,D94+1,$R95:R$107),IF(AND(N94="Elszámolható költség",P94="Nem ÁFA visszaigénylő",Alapadatok!$C$60="IGEN"),L94,0)) -> 0 | S94: 0 | T94: =IF($A94="fősor",SUMIF($D95:D$107,D94+1,$T95:T$107),IF(AND(N94="Elszámolható költség",P94="Nem ÁFA visszaigénylő",Alapadatok!$C$60="NEM"),L94,0)) -> 0 | U94: =IF($A94="fősor",SUMIF($D95:D$107,D94+1,$U95:U$107),IF(AND(N94="Elszámolható költség",P94="ÁFA visszaigénylő"),L94,0)) -> 0 | V94: =IF($A94="fősor",SUMIF($D95:D$107,D94+1,$V95:V$107),IF(N94="NEM Elszámolható költség",J94,0)) -> 0 | W94: =IF($A94="fősor",SUMIF($D95:D$107,D94+1,$W95:W$107),IF(AND(N94="NEM Elszámolható költség",P94="ÁFA visszaigénylő"),L94,0)) -> 0 | X94: =IF($A94="fősor",SUMIF($D95:D$107,D94+1,$X95:X$107),IF(AND(N94="NEM Elszámolható költség",P94="Nem ÁFA visszaigénylő"),L94,0)) -> 0 | Y94: 0 | Z94: 0 | AA94: 0 | AB94: 0 | AI94: 0 | AJ94: 0 | AK94: 0 | AL94: 0 | AM94: 0 | AN94: 0 | AO94: 0 | AP94: 0 | AQ94: 0 | AR94: 0 | AS94: 0 | AT94: 0 | AU94: 0 | AV94: 0 | AW94: 0 | AZ94: 0
C95: =+IF(A95="fősor",MAX(C$8:C94)+1,0) -> 0 | D95: 2 | E95: Beruházási elem | I95: 0 | J95: =+IF($A95="fősor",SUMIF(D96:$D$107,D95+1,J96:$J$107),$I95) -> 0 | L95: =IF($A95="fősor",SUMIF(D96:$D$107,D95+1,L96:$L$107),ROUND(J95*K95,0)) -> 0 | M95: =+IF($A95="fősor",SUMIF($D96:D$107,D95+1,$M96:M$107),$J95+$L95) -> 0 | Q95: =IF($A95="fősor",SUMIF($D96:D$107,D95+1,$Q96:Q$107),IF(N95="Elszámolható költség",J95,0)) -> 0 | R95: =IF($A95="fősor",SUMIF($D96:D$107,D95+1,$R96:R$107),IF(AND(N95="Elszámolható költség",P95="Nem ÁFA visszaigénylő",Alapadatok!$C$60="IGEN"),L95,0)) -> 0 | S95: 0 | T95: =IF($A95="fősor",SUMIF($D96:D$107,D95+1,$T96:T$107),IF(AND(N95="Elszámolható költség",P95="Nem ÁFA visszaigénylő",Alapadatok!$C$60="NEM"),L95,0)) -> 0 | U95: =IF($A95="fősor",SUMIF($D96:D$107,D95+1,$U96:U$107),IF(AND(N95="Elszámolható költség",P95="ÁFA visszaigénylő"),L95,0)) -> 0 | V95: =IF($A95="fősor",SUMIF($D96:D$107,D95+1,$V96:V$107),IF(N95="NEM Elszámolható költség",J95,0)) -> 0 | W95: =IF($A95="fősor",SUMIF($D96:D$107,D95+1,$W96:W$107),IF(AND(N95="NEM Elszámolható költség",P95="ÁFA visszaigénylő"),L95,0)) -> 0 | X95: =IF($A95="fősor",SUMIF($D96:D$107,D95+1,$X96:X$107),IF(AND(N95="NEM Elszámolható költség",P95="Nem ÁFA visszaigénylő"),L95,0)) -> 0 | Y95: 0 | Z95: 0 | AA95: 0 | AB95: 0 | AI95: 0 | AJ95: 0 | AK95: 0 | AL95: 0 | AM95: 0 | AN95: 0 | AO95: 0 | AP95: 0 | AQ95: 0 | AR95: 0 | AS95: 0 | AT95: 0 | AU95: 0 | AV95: 0 | AW95: 0 | AZ95: 0
C96: =+IF(A96="fősor",MAX(C$8:C95)+1,0) -> 0 | D96: 2 | E96: Beruházási elem | I96: 0 | J96: =+IF($A96="fősor",SUMIF(D97:$D$107,D96+1,J97:$J$107),$I96) -> 0 | L96: =IF($A96="fősor",SUMIF(D97:$D$107,D96+1,L97:$L$107),ROUND(J96*K96,0)) -> 0 | M96: =+IF($A96="fősor",SUMIF($D97:D$107,D96+1,$M97:M$107),$J96+$L96) -> 0 | Q96: =IF($A96="fősor",SUMIF($D97:D$107,D96+1,$Q97:Q$107),IF(N96="Elszámolható költség",J96,0)) -> 0 | R96: =IF($A96="fősor",SUMIF($D97:D$107,D96+1,$R97:R$107),IF(AND(N96="Elszámolható költség",P96="Nem ÁFA visszaigénylő",Alapadatok!$C$60="IGEN"),L96,0)) -> 0 | S96: 0 | T96: =IF($A96="fősor",SUMIF($D97:D$107,D96+1,$T97:T$107),IF(AND(N96="Elszámolható költség",P96="Nem ÁFA visszaigénylő",Alapadatok!$C$60="NEM"),L96,0)) -> 0 | U96: =IF($A96="fősor",SUMIF($D97:D$107,D96+1,$U97:U$107),IF(AND(N96="Elszámolható költség",P96="ÁFA visszaigénylő"),L96,0)) -> 0 | V96: =IF($A96="fősor",SUMIF($D97:D$107,D96+1,$V97:V$107),IF(N96="NEM Elszámolható költség",J96,0)) -> 0 | W96: =IF($A96="fősor",SUMIF($D97:D$107,D96+1,$W97:W$107),IF(AND(N96="NEM Elszámolható költség",P96="ÁFA visszaigénylő"),L96,0)) -> 0 | X96: =IF($A96="fősor",SUMIF($D97:D$107,D96+1,$X97:X$107),IF(AND(N96="NEM Elszámolható költség",P96="Nem ÁFA visszaigénylő"),L96,0)) -> 0 | Y96: 0 | Z96: 0 | AA96: 0 | AB96: 0 | AI96: 0 | AJ96: 0 | AK96: 0 | AL96: 0 | AM96: 0 | AN96: 0 | AO96: 0 | AP96: 0 | AQ96: 0 | AR96: 0 | AS96: 0 | AT96: 0 | AU96: 0 | AV96: 0 | AW96: 0 | AZ96: 0
C97: =+IF(A97="fősor",MAX(C$8:C96)+1,0) -> 0 | D97: 2 | E97: Beruházási elem | I97: 0 | J97: =+IF($A97="fősor",SUMIF(D98:$D$107,D97+1,J98:$J$107),$I97) -> 0 | L97: =IF($A97="fősor",SUMIF(D98:$D$107,D97+1,L98:$L$107),ROUND(J97*K97,0)) -> 0 | M97: =+IF($A97="fősor",SUMIF($D98:D$107,D97+1,$M98:M$107),$J97+$L97) -> 0 | Q97: =IF($A97="fősor",SUMIF($D98:D$107,D97+1,$Q98:Q$107),IF(N97="Elszámolható költség",J97,0)) -> 0 | R97: =IF($A97="fősor",SUMIF($D98:D$107,D97+1,$R98:R$107),IF(AND(N97="Elszámolható költség",P97="Nem ÁFA visszaigénylő",Alapadatok!$C$60="IGEN"),L97,0)) -> 0 | S97: 0 | T97: =IF($A97="fősor",SUMIF($D98:D$107,D97+1,$T98:T$107),IF(AND(N97="Elszámolható költség",P97="Nem ÁFA visszaigénylő",Alapadatok!$C$60="NEM"),L97,0)) -> 0 | U97: =IF($A97="fősor",SUMIF($D98:D$107,D97+1,$U98:U$107),IF(AND(N97="Elszámolható költség",P97="ÁFA visszaigénylő"),L97,0)) -> 0 | V97: =IF($A97="fősor",SUMIF($D98:D$107,D97+1,$V98:V$107),IF(N97="NEM Elszámolható költség",J97,0)) -> 0 | W97: =IF($A97="fősor",SUMIF($D98:D$107,D97+1,$W98:W$107),IF(AND(N97="NEM Elszámolható költség",P97="ÁFA visszaigénylő"),L97,0)) -> 0 | X97: =IF($A97="fősor",SUMIF($D98:D$107,D97+1,$X98:X$107),IF(AND(N97="NEM Elszámolható költség",P97="Nem ÁFA visszaigénylő"),L97,0)) -> 0 | Y97: 0 | Z97: 0 | AA97: 0 | AB97: 0 | AI97: 0 | AJ97: 0 | AK97: 0 | AL97: 0 | AM97: 0 | AN97: 0 | AO97: 0 | AP97: 0 | AQ97: 0 | AR97: 0 | AS97: 0 | AT97: 0 | AU97: 0 | AV97: 0 | AW97: 0 | AZ97: 0
C98: =+IF(A98="fősor",MAX(C$8:C97)+1,0) -> 0 | D98: 2 | E98: Beruházási elem | I98: 0 | J98: =+IF($A98="fősor",SUMIF(D99:$D$107,D98+1,J99:$J$107),$I98) -> 0 | L98: =IF($A98="fősor",SUMIF(D99:$D$107,D98+1,L99:$L$107),ROUND(J98*K98,0)) -> 0 | M98: =+IF($A98="fősor",SUMIF($D99:D$107,D98+1,$M99:M$107),$J98+$L98) -> 0 | Q98: =IF($A98="fősor",SUMIF($D99:D$107,D98+1,$Q99:Q$107),IF(N98="Elszámolható költség",J98,0)) -> 0 | R98: =IF($A98="fősor",SUMIF($D99:D$107,D98+1,$R99:R$107),IF(AND(N98="Elszámolható költség",P98="Nem ÁFA visszaigénylő",Alapadatok!$C$60="IGEN"),L98,0)) -> 0 | S98: 0 | T98: =IF($A98="fősor",SUMIF($D99:D$107,D98+1,$T99:T$107),IF(AND(N98="Elszámolható költség",P98="Nem ÁFA visszaigénylő",Alapadatok!$C$60="NEM"),L98,0)) -> 0 | U98: =IF($A98="fősor",SUMIF($D99:D$107,D98+1,$U99:U$107),IF(AND(N98="Elszámolható költség",P98="ÁFA visszaigénylő"),L98,0)) -> 0 | V98: =IF($A98="fősor",SUMIF($D99:D$107,D98+1,$V99:V$107),IF(N98="NEM Elszámolható költség",J98,0)) -> 0 | W98: =IF($A98="fősor",SUMIF($D99:D$107,D98+1,$W99:W$107),IF(AND(N98="NEM Elszámolható költség",P98="ÁFA visszaigénylő"),L98,0)) -> 0 | X98: =IF($A98="fősor",SUMIF($D99:D$107,D98+1,$X99:X$107),IF(AND(N98="NEM Elszámolható költség",P98="Nem ÁFA visszaigénylő"),L98,0)) -> 0 | Y98: 0 | Z98: 0 | AA98: 0 | AB98: 0 | AI98: 0 | AJ98: 0 | AK98: 0 | AL98: 0 | AM98: 0 | AN98: 0 | AO98: 0 | AP98: 0 | AQ98: 0 | AR98: 0 | AS98: 0 | AT98: 0 | AU98: 0 | AV98: 0 | AW98: 0 | AZ98: 0
C99: =+IF(A99="fősor",MAX(C$8:C98)+1,0) -> 0 | D99: 2 | E99: Beruházási elem | I99: 0 | J99: =+IF($A99="fősor",SUMIF(D100:$D$107,D99+1,J100:$J$107),$I99) -> 0 | L99: =IF($A99="fősor",SUMIF(D100:$D$107,D99+1,L100:$L$107),ROUND(J99*K99,0)) -> 0 | M99: =+IF($A99="fősor",SUMIF($D100:D$107,D99+1,$M100:M$107),$J99+$L99) -> 0 | Q99: =IF($A99="fősor",SUMIF($D100:D$107,D99+1,$Q100:Q$107),IF(N99="Elszámolható költség",J99,0)) -> 0 | R99: =IF($A99="fősor",SUMIF($D100:D$107,D99+1,$R100:R$107),IF(AND(N99="Elszámolható költség",P99="Nem ÁFA visszaigénylő",Alapadatok!$C$60="IGEN"),L99,0)) -> 0 | S99: 0 | T99: =IF($A99="fősor",SUMIF($D100:D$107,D99+1,$T100:T$107),IF(AND(N99="Elszámolható költség",P99="Nem ÁFA visszaigénylő",Alapadatok!$C$60="NEM"),L99,0)) -> 0 | U99: =IF($A99="fősor",SUMIF($D100:D$107,D99+1,$U100:U$107),IF(AND(N99="Elszámolható költség",P99="ÁFA visszaigénylő"),L99,0)) -> 0 | V99: =IF($A99="fősor",SUMIF($D100:D$107,D99+1,$V100:V$107),IF(N99="NEM Elszámolható költség",J99,0)) -> 0 | W99: =IF($A99="fősor",SUMIF($D100:D$107,D99+1,$W100:W$107),IF(AND(N99="NEM Elszámolható költség",P99="ÁFA visszaigénylő"),L99,0)) -> 0 | X99: =IF($A99="fősor",SUMIF($D100:D$107,D99+1,$X100:X$107),IF(AND(N99="NEM Elszámolható költség",P99="Nem ÁFA visszaigénylő"),L99,0)) -> 0 | Y99: 0 | Z99: 0 | AA99: 0 | AB99: 0 | AI99: 0 | AJ99: 0 | AK99: 0 | AL99: 0 | AM99: 0 | AN99: 0 | AO99: 0 | AP99: 0 | AQ99: 0 | AR99: 0 | AS99: 0 | AT99: 0 | AU99: 0 | AV99: 0 | AW99: 0 | AZ99: 0
C100: =+IF(A100="fősor",MAX(C$8:C99)+1,0) -> 0 | D100: 2 | E100: Beruházási elem | I100: 0 | J100: =+IF($A100="fősor",SUMIF(D101:$D$107,D100+1,J101:$J$107),$I100) -> 0 | L100: =IF($A100="fősor",SUMIF(D101:$D$107,D100+1,L101:$L$107),ROUND(J100*K100,0)) -> 0 | M100: =+IF($A100="fősor",SUMIF($D101:D$107,D100+1,$M101:M$107),$J100+$L100) -> 0 | Q100: =IF($A100="fősor",SUMIF($D101:D$107,D100+1,$Q101:Q$107),IF(N100="Elszámolható költség",J100,0)) -> 0 | R100: =IF($A100="fősor",SUMIF($D101:D$107,D100+1,$R101:R$107),IF(AND(N100="Elszámolható költség",P100="Nem ÁFA visszaigénylő",Alapadatok!$C$60="IGEN"),L100,0)) -> 0 | S100: 0 | T100: =IF($A100="fősor",SUMIF($D101:D$107,D100+1,$T101:T$107),IF(AND(N100="Elszámolható költség",P100="Nem ÁFA visszaigénylő",Alapadatok!$C$60="NEM"),L100,0)) -> 0 | U100: =IF($A100="fősor",SUMIF($D101:D$107,D100+1,$U101:U$107),IF(AND(N100="Elszámolható költség",P100="ÁFA visszaigénylő"),L100,0)) -> 0 | V100: =IF($A100="fősor",SUMIF($D101:D$107,D100+1,$V101:V$107),IF(N100="NEM Elszámolható költség",J100,0)) -> 0 | W100: =IF($A100="fősor",SUMIF($D101:D$107,D100+1,$W101:W$107),IF(AND(N100="NEM Elszámolható költség",P100="ÁFA visszaigénylő"),L100,0)) -> 0 | X100: =IF($A100="fősor",SUMIF($D101:D$107,D100+1,$X101:X$107),IF(AND(N100="NEM Elszámolható költség",P100="Nem ÁFA visszaigénylő"),L100,0)) -> 0 | Y100: 0 | Z100: 0 | AA100: 0 | AB100: 0 | AI100: 0 | AJ100: 0 | AK100: 0 | AL100: 0 | AM100: 0 | AN100: 0 | AO100: 0 | AP100: 0 | AQ100: 0 | AR100: 0 | AS100: 0 | AT100: 0 | AU100: 0 | AV100: 0 | AW100: 0 | AZ100: 0
C101: =+IF(A101="fősor",MAX(C$8:C100)+1,0) -> 0 | D101: 2 | E101: Beruházási elem | I101: 0 | J101: =+IF($A101="fősor",SUMIF(D102:$D$107,D101+1,J102:$J$107),$I101) -> 0 | L101: =IF($A101="fősor",SUMIF(D102:$D$107,D101+1,L102:$L$107),ROUND(J101*K101,0)) -> 0 | M101: =+IF($A101="fősor",SUMIF($D102:D$107,D101+1,$M102:M$107),$J101+$L101) -> 0 | Q101: =IF($A101="fősor",SUMIF($D102:D$107,D101+1,$Q102:Q$107),IF(N101="Elszámolható költség",J101,0)) -> 0 | R101: =IF($A101="fősor",SUMIF($D102:D$107,D101+1,$R102:R$107),IF(AND(N101="Elszámolható költség",P101="Nem ÁFA visszaigénylő",Alapadatok!$C$60="IGEN"),L101,0)) -> 0 | S101: 0 | T101: =IF($A101="fősor",SUMIF($D102:D$107,D101+1,$T102:T$107),IF(AND(N101="Elszámolható költség",P101="Nem ÁFA visszaigénylő",Alapadatok!$C$60="NEM"),L101,0)) -> 0 | U101: =IF($A101="fősor",SUMIF($D102:D$107,D101+1,$U102:U$107),IF(AND(N101="Elszámolható költség",P101="ÁFA visszaigénylő"),L101,0)) -> 0 | V101: =IF($A101="fősor",SUMIF($D102:D$107,D101+1,$V102:V$107),IF(N101="NEM Elszámolható költség",J101,0)) -> 0 | W101: =IF($A101="fősor",SUMIF($D102:D$107,D101+1,$W102:W$107),IF(AND(N101="NEM Elszámolható költség",P101="ÁFA visszaigénylő"),L101,0)) -> 0 | X101: =IF($A101="fősor",SUMIF($D102:D$107,D101+1,$X102:X$107),IF(AND(N101="NEM Elszámolható költség",P101="Nem ÁFA visszaigénylő"),L101,0)) -> 0 | Y101: 0 | Z101: 0 | AA101: 0 | AB101: 0 | AI101: 0 | AJ101: 0 | AK101: 0 | AL101: 0 | AM101: 0 | AN101: 0 | AO101: 0 | AP101: 0 | AQ101: 0 | AR101: 0 | AS101: 0 | AT101: 0 | AU101: 0 | AV101: 0 | AW101: 0 | AZ101: 0
C102: =+IF(A102="fősor",MAX(C$8:C101)+1,0) -> 0 | D102: 2 | E102: Beruházási elem | I102: 0 | J102: =+IF($A102="fősor",SUMIF(D103:$D$107,D102+1,J103:$J$107),$I102) -> 0 | L102: =IF($A102="fősor",SUMIF(D103:$D$107,D102+1,L103:$L$107),ROUND(J102*K102,0)) -> 0 | M102: =+IF($A102="fősor",SUMIF($D103:D$107,D102+1,$M103:M$107),$J102+$L102) -> 0 | Q102: =IF($A102="fősor",SUMIF($D103:D$107,D102+1,$Q103:Q$107),IF(N102="Elszámolható költség",J102,0)) -> 0 | R102: =IF($A102="fősor",SUMIF($D103:D$107,D102+1,$R103:R$107),IF(AND(N102="Elszámolható költség",P102="Nem ÁFA visszaigénylő",Alapadatok!$C$60="IGEN"),L102,0)) -> 0 | S102: 0 | T102: =IF($A102="fősor",SUMIF($D103:D$107,D102+1,$T103:T$107),IF(AND(N102="Elszámolható költség",P102="Nem ÁFA visszaigénylő",Alapadatok!$C$60="NEM"),L102,0)) -> 0 | U102: =IF($A102="fősor",SUMIF($D103:D$107,D102+1,$U103:U$107),IF(AND(N102="Elszámolható költség",P102="ÁFA visszaigénylő"),L102,0)) -> 0 | V102: =IF($A102="fősor",SUMIF($D103:D$107,D102+1,$V103:V$107),IF(N102="NEM Elszámolható költség",J102,0)) -> 0 | W102: =IF($A102="fősor",SUMIF($D103:D$107,D102+1,$W103:W$107),IF(AND(N102="NEM Elszámolható költség",P102="ÁFA visszaigénylő"),L102,0)) -> 0 | X102: =IF($A102="fősor",SUMIF($D103:D$107,D102+1,$X103:X$107),IF(AND(N102="NEM Elszámolható költség",P102="Nem ÁFA visszaigénylő"),L102,0)) -> 0 | Y102: 0 | Z102: 0 | AA102: 0 | AB102: 0 | AI102: 0 | AJ102: 0 | AK102: 0 | AL102: 0 | AM102: 0 | AN102: 0 | AO102: 0 | AP102: 0 | AQ102: 0 | AR102: 0 | AS102: 0 | AT102: 0 | AU102: 0 | AV102: 0 | AW102: 0 | AZ102: 0
C103: =+IF(A103="fősor",MAX(C$8:C102)+1,0) -> 0 | D103: 2 | E103: Beruházási elem | I103: 0 | J103: =+IF($A103="fősor",SUMIF(D104:$D$107,D103+1,J104:$J$107),$I103) -> 0 | L103: =IF($A103="fősor",SUMIF(D104:$D$107,D103+1,L104:$L$107),ROUND(J103*K103,0)) -> 0 | M103: =+IF($A103="fősor",SUMIF($D104:D$107,D103+1,$M104:M$107),$J103+$L103) -> 0 | Q103: =IF($A103="fősor",SUMIF($D104:D$107,D103+1,$Q104:Q$107),IF(N103="Elszámolható költség",J103,0)) -> 0 | R103: =IF($A103="fősor",SUMIF($D104:D$107,D103+1,$R104:R$107),IF(AND(N103="Elszámolható költség",P103="Nem ÁFA visszaigénylő",Alapadatok!$C$60="IGEN"),L103,0)) -> 0 | S103: 0 | T103: =IF($A103="fősor",SUMIF($D104:D$107,D103+1,$T104:T$107),IF(AND(N103="Elszámolható költség",P103="Nem ÁFA visszaigénylő",Alapadatok!$C$60="NEM"),L103,0)) -> 0 | U103: =IF($A103="fősor",SUMIF($D104:D$107,D103+1,$U104:U$107),IF(AND(N103="Elszámolható költség",P103="ÁFA visszaigénylő"),L103,0)) -> 0 | V103: =IF($A103="fősor",SUMIF($D104:D$107,D103+1,$V104:V$107),IF(N103="NEM Elszámolható költség",J103,0)) -> 0 | W103: =IF($A103="fősor",SUMIF($D104:D$107,D103+1,$W104:W$107),IF(AND(N103="NEM Elszámolható költség",P103="ÁFA visszaigénylő"),L103,0)) -> 0 | X103: =IF($A103="fősor",SUMIF($D104:D$107,D103+1,$X104:X$107),IF(AND(N103="NEM Elszámolható költség",P103="Nem ÁFA visszaigénylő"),L103,0)) -> 0 | Y103: 0 | Z103: 0 | AA103: 0 | AB103: 0 | AI103: 0 | AJ103: 0 | AK103: 0 | AL103: 0 | AM103: 0 | AN103: 0 | AO103: 0 | AP103: 0 | AQ103: 0 | AR103: 0 | AS103: 0 | AT103: 0 | AU103: 0 | AV103: 0 | AW103: 0 | AZ103: 0
C104: =+IF(A104="fősor",MAX(C$8:C103)+1,0) -> 0 | D104: =IF(C104=C103,D103,D103+1) -> 2 | E104: Beruházási elem | I104: =IF(A104="fősor","",G104*H104) -> 0 | J104: =+IF($A104="fősor",SUMIF(D105:$D$107,D104+1,J105:$J$107),$I104) -> 0 | L104: =IF($A104="fősor",SUMIF(D105:$D$107,D104+1,L105:$L$107),ROUND(J104*K104,0)) -> 0 | M104: =+IF($A104="fősor",SUMIF($D105:D$107,D104+1,$M105:M$107),$J104+$L104) -> 0 | Q104: =IF($A104="fősor",SUMIF($D105:D$107,D104+1,$Q105:Q$107),IF(N104="Elszámolható költség",J104,0)) -> 0 | R104: =IF($A104="fősor",SUMIF($D105:D$107,D104+1,$R105:R$107),IF(AND(N104="Elszámolható költség",P104="Nem ÁFA visszaigénylő",Alapadatok!$C$60="IGEN"),L104,0)) -> 0 | S104: =SUM(Q104:R104) -> 0 | T104: =IF($A104="fősor",SUMIF($D105:D$107,D104+1,$T105:T$107),IF(AND(N104="Elszámolható költség",P104="Nem ÁFA visszaigénylő",Alapadatok!$C$60="NEM"),L104,0)) -> 0 | U104: =IF($A104="fősor",SUMIF($D105:D$107,D104+1,$U105:U$107),IF(AND(N104="Elszámolható költség",P104="ÁFA visszaigénylő"),L104,0)) -> 0 | V104: =IF($A104="fősor",SUMIF($D105:D$107,D104+1,$V105:V$107),IF(N104="NEM Elszámolható költség",J104,0)) -> 0 | W104: =IF($A104="fősor",SUMIF($D105:D$107,D104+1,$W105:W$107),IF(AND(N104="NEM Elszámolható költség",P104="ÁFA visszaigénylő"),L104,0)) -> 0 | X104: =IF($A104="fősor",SUMIF($D105:D$107,D104+1,$X105:X$107),IF(AND(N104="NEM Elszámolható költség",P104="Nem ÁFA visszaigénylő"),L104,0)) -> 0 | Y104: =SUM(V104,X104) -> 0 | Z104: =SUM(S104,Y104) -> 0 | AA104: 0 | AB104: =SUM(S104,AA104) -> 0 | AI104: 0 | AJ104: 0 | AK104: 0 | AL104: 0 | AM104: 0 | AN104: 0 | AO104: 0 | AP104: 0 | AQ104: 0 | AR104: 0 | AS104: 0 | AT104: 0 | AU104: 0 | AV104: 0 | AW104: 0 | AZ104: 0
C105: =+IF(A105="fősor",MAX(C$8:C104)+1,0) -> 0 | D105: 2 | E105: Beruházási elem | I105: 0 | J105: =+IF($A105="fősor",SUMIF(D106:$D$107,D105+1,J106:$J$107),$I105) -> 0 | L105: =IF($A105="fősor",SUMIF(D106:$D$107,D105+1,L106:$L$107),ROUND(J105*K105,0)) -> 0 | M105: =+IF($A105="fősor",SUMIF($D106:D$107,D105+1,$M106:M$107),$J105+$L105) -> 0 | Q105: =IF($A105="fősor",SUMIF($D106:D$107,D105+1,$Q106:Q$107),IF(N105="Elszámolható költség",J105,0)) -> 0 | R105: =IF($A105="fősor",SUMIF($D106:D$107,D105+1,$R106:R$107),IF(AND(N105="Elszámolható költség",P105="Nem ÁFA visszaigénylő",Alapadatok!$C$60="IGEN"),L105,0)) -> 0 | S105: 0 | T105: =IF($A105="fősor",SUMIF($D106:D$107,D105+1,$T106:T$107),IF(AND(N105="Elszámolható költség",P105="Nem ÁFA visszaigénylő",Alapadatok!$C$60="NEM"),L105,0)) -> 0 | U105: =IF($A105="fősor",SUMIF($D106:D$107,D105+1,$U106:U$107),IF(AND(N105="Elszámolható költség",P105="ÁFA visszaigénylő"),L105,0)) -> 0 | V105: =IF($A105="fősor",SUMIF($D106:D$107,D105+1,$V106:V$107),IF(N105="NEM Elszámolható költség",J105,0)) -> 0 | W105: =IF($A105="fősor",SUMIF($D106:D$107,D105+1,$W106:W$107),IF(AND(N105="NEM Elszámolható költség",P105="ÁFA visszaigénylő"),L105,0)) -> 0 | X105: =IF($A105="fősor",SUMIF($D106:D$107,D105+1,$X106:X$107),IF(AND(N105="NEM Elszámolható költség",P105="Nem ÁFA visszaigénylő"),L105,0)) -> 0 | Y105: 0 | Z105: 0 | AA105: 0 | AB105: 0 | AI105: 0 | AJ105: 0 | AK105: 0 | AL105: 0 | AM105: 0 | AN105: 0 | AO105: 0 | AP105: 0 | AQ105: 0 | AR105: 0 | AS105: 0 | AT105: 0 | AU105: 0 | AV105: 0 | AW105: 0 | AZ105: 0
C106: =+IF(A106="fősor",MAX(C$8:C105)+1,0) -> 0 | D106: 2 | E106: Beruházási elem | I106: 0 | J106: =+IF($A106="fősor",SUMIF(D107:$D$107,D106+1,J107:$J$107),$I106) -> 0 | L106: =IF($A106="fősor",SUMIF(D107:$D$107,D106+1,L107:$L$107),ROUND(J106*K106,0)) -> 0 | M106: =+IF($A106="fősor",SUMIF($D107:D$107,D106+1,$M107:M$107),$J106+$L106) -> 0 | Q106: =IF($A106="fősor",SUMIF($D107:D$107,D106+1,$Q107:Q$107),IF(N106="Elszámolható költség",J106,0)) -> 0 | R106: =IF($A106="fősor",SUMIF($D107:D$107,D106+1,$R107:R$107),IF(AND(N106="Elszámolható költség",P106="Nem ÁFA visszaigénylő",Alapadatok!$C$60="IGEN"),L106,0)) -> 0 | S106: 0 | T106: =IF($A106="fősor",SUMIF($D107:D$107,D106+1,$T107:T$107),IF(AND(N106="Elszámolható költség",P106="Nem ÁFA visszaigénylő",Alapadatok!$C$60="NEM"),L106,0)) -> 0 | U106: =IF($A106="fősor",SUMIF($D107:D$107,D106+1,$U107:U$107),IF(AND(N106="Elszámolható költség",P106="ÁFA visszaigénylő"),L106,0)) -> 0 | V106: =IF($A106="fősor",SUMIF($D107:D$107,D106+1,$V107:V$107),IF(N106="NEM Elszámolható költség",J106,0)) -> 0 | W106: =IF($A106="fősor",SUMIF($D107:D$107,D106+1,$W107:W$107),IF(AND(N106="NEM Elszámolható költség",P106="ÁFA visszaigénylő"),L106,0)) -> 0 | X106: =IF($A106="fősor",SUMIF($D107:D$107,D106+1,$X107:X$107),IF(AND(N106="NEM Elszámolható költség",P106="Nem ÁFA visszaigénylő"),L106,0)) -> 0 | Y106: 0 | Z106: 0 | AA106: 0 | AB106: 0 | AI106: 0 | AJ106: 0 | AK106: 0 | AL106: 0 | AM106: 0 | AN106: 0 | AO106: 0 | AP106: 0 | AQ106: 0 | AR106: 0 | AS106: 0 | AT106: 0 | AU106: 0 | AV106: 0 | AW106: 0 | AZ106: 0
C107: =+IF(A107="fősor",MAX(C$8:C106)+1,0) -> 0 | D107: 2 | E107: Beruházási elem | I107: 0 | J107: =+IF($A107="fősor",SUMIF(D$107:$D108,D107+1,J$107:$J108),$I107) -> 0 | L107: =IF($A107="fősor",SUMIF(D$107:$D108,D107+1,L$107:$L108),ROUND(J107*K107,0)) -> 0 | M107: =+IF($A107="fősor",SUMIF($D$107:D108,D107+1,$M$107:M108),$J107+$L107) -> 0 | Q107: =IF($A107="fősor",SUMIF($D$107:D108,D107+1,$Q$107:Q108),IF(N107="Elszámolható költség",J107,0)) -> 0 | R107: =IF($A107="fősor",SUMIF($D$107:D108,D107+1,$R$107:R108),IF(AND(N107="Elszámolható költség",P107="Nem ÁFA visszaigénylő",Alapadatok!$C$60="IGEN"),L107,0)) -> 0 | S107: 0 | T107: =IF($A107="fősor",SUMIF($D$107:D108,D107+1,$T$107:T108),IF(AND(N107="Elszámolható költség",P107="Nem ÁFA visszaigénylő",Alapadatok!$C$60="NEM"),L107,0)) -> 0 | U107: =IF($A107="fősor",SUMIF($D$107:D108,D107+1,$U$107:U108),IF(AND(N107="Elszámolható költség",P107="ÁFA visszaigénylő"),L107,0)) -> 0 | V107: =IF($A107="fősor",SUMIF($D$107:D108,D107+1,$V$107:V108),IF(N107="NEM Elszámolható költség",J107,0)) -> 0 | W107: =IF($A107="fősor",SUMIF($D$107:D108,D107+1,$W$107:W108),IF(AND(N107="NEM Elszámolható költség",P107="ÁFA visszaigénylő"),L107,0)) -> 0 | X107: =IF($A107="fősor",SUMIF($D$107:D108,D107+1,$X$107:X108),IF(AND(N107="NEM Elszámolható költség",P107="Nem ÁFA visszaigénylő"),L107,0)) -> 0 | Y107: 0 | Z107: 0 | AA107: 0 | AB107: 0 | AH107: =IF(AND(A107="alsor",AB107>0),IF(SUM(AC107:AG107)=100%,"OK","nem 100%"),"") ->  | AI107: 0 | AJ107: 0 | AK107: 0 | AL107: 0 | AM107: 0 | AN107: 0 | AO107: 0 | AP107: 0 | AQ107: 0 | AR107: 0 | AS107: 0 | AT107: 0 | AU107: 0 | AV107: 0 | AW107: 0 | AZ107: 0
J108: =SUMIF($C$8:$C$107,0,J$8:J$107) -> 0 | L108: =IF($A108="fősor",SUMIF(D$107:$D109,D108+1,L$107:$L109),ROUND(J108*K108,0)) -> 0 | M108: =SUMIF($C$8:$C$107,0,M$8:M$107) -> 0 | Q108: =SUMIF($C$8:$C$107,0,Q$8:Q$107) -> 0 | R108: 0 | S108: 0 | T108: 0 | U108: 0 | V108: 0 | W108: 0 | X108: 0 | Y108: 0 | Z108: 0 | AA108: 0 | AB108: 0

Sheet Alapadatok
B1: Vissza a tartalomjegyzékhez
B3: Alapadatok
B5: Alkalmazott árfolyam | C5: 310.1 | E5: Az aktuális technikai árfolyamot az NGM határozza meg.
B6: Pénzügyi diszkontráta | C6: 0.04
B7: Közgazdasági diszkontráta | C7: 0.05
B8: Leszámítolási kamatláb | C8: 0.0237 | E8: A leszámítolási kamatlábat az állami támogatások jelenérték-számításához használjuk. Aktuális értékét a TVI adja meg. Ld. http://tvi.kormany.hu/referencia-rata
B9: Beruházás kezdőéve | C9: 2023 | E9: A beruházás kezdőéve a támogatásból fizetendő beruházási költségek felmerülésének első éve.
B10: Beruházással érintett évek száma | C10: 3 | E10: A beruházás időtartama. A beruházás legfeljebb 5 naptári évet foglalhat magába.
B11: Üzembe helyezés éve | C11: =C9+C10 -> 2026 | D11: pályázó tölti ki
B12: Vizsgált időtáv | C12: 30 | E12: A vizsgált időtáv a teljes projektre azonos. Hosszára útmutatást a lenti, ágazatspecifikus tábla ad.
B14: A projekt 1m euró alatti | C14: =IF(Beruhazasi_ktg!S108>10^6*Alapadatok!$C$5,"nem","igen") -> igen
B16: Van nem állami támogatású projektrész? | C16: =IF(ISERROR(VLOOKUP(lista_0,Beruhazasi_ktg!$B$8:$B$107,1,0)),"nem","igen") -> nem
B23: Termel bevételt? | D23: pályázó tölti ki
B24: Van-e működési költség megtakarítás | D24: pályázó tölti ki
B31: Társfinanszírozási összeg számítása | C31: diszkontált nettó bevétel módszer
B32: Maximáls társfinanszírozási ráta | D32: pályázó tölti ki
B36: Társfinanszírozási összeg számítása | C36: maximális társfinanszírozási ráta
B37: Maximális társfinanszírozási ráta
B40: Ágazat | C40: vizsgált időtáv (év)
B41: Vasút | C41: 30
B42: Vízellátás/közegészségügyi szolgáltatások | C42: 30
B43: Utak | C43: 25–30
B44: Hulladékgazdálkodás | C44: 25–30
B45: Kikötők és repülőterek | C45: 25
B46: Városi közlekedés | C46: 25–30
B47: Energia | C47: 15-25
B48: Kutatás és innováció | C48: 15-25
B49: Széles sávú szolgáltatások | C49: 15-20
B50: Vállalati infrastruktúra | C50: 10–15
B51: Egyéb ágazatok | C51: 10–15
B53: Általános forgalmi adó mértéke
B54: Áfa 1 | C54: 0.27 | D54: pályázó tölti ki
B55: Áfa 2 | C55: 0.18 | D55: pályázó tölti ki
B56: Áfa 3 | C56: 0.05 | D56: pályázó tölti ki
B57: Áfa 4 | C57: 0 | D57: pályázó tölti ki
B59: Projekt-kiírás függő paraméter
B60: Az elszámolható költségek nem visszaigényelhető áfa-tartalma a projekt kiírás alapján elszámolható költség, vagy nem? | C60: igen

Sheet Hatter (hidden)
B2: Háttér adatok
B4: "ágazat"
B5: közcélú
B6: állami támogatás, működési eredményt figyelembe vevő
B7: állami támogatás, működési eredményt figyelembe nem vevő
A9: az elemzős lapok nyitásához | B9: támogatási kategória | C9: =IF(C10=1,1,2) -> 2
B10: nem állami támogatás (közcélú), egyszerű számítás | C10: =IF(OR(AND(Alapadatok!C14="igen",Alapadatok!C16="igen"),AND(Alapadatok!C23="nem",Alapadatok!C24="nem")),1,0) -> 0
B11: nem állami támogatás (közcélú), komplex számítás | C11: =IF(OR(Alapadatok!C23="igen",Alapadatok!C24="igen"),1,0) -> 0
A12: 1 | B12: helyi infrastruktúra fejlesztéséhez nyújtott támogatás | C12: =IF(ISERROR(VLOOKUP(B12,Beruhazasi_ktg!$B$8:$B$107,1,0))=TRUE,0,1) -> 0
A13: 2 | B13: regionális beruházási támogatás | C13: =IF(ISERROR(VLOOKUP(B13,Beruhazasi_ktg!$B$8:$B$107,1,0))=TRUE,0,1) -> 0
A14: 3 | B14: csekély összegű támogatás | C14: =IF(ISERROR(VLOOKUP(B14,Beruhazasi_ktg!$B$8:$B$107,1,0))=TRUE,0,1) -> 0
A15: 4 | B15: közszolgáltatásért járó ellentételezés | C15: =IF(ISERROR(VLOOKUP(B15,Beruhazasi_ktg!$B$8:$B$107,1,0))=TRUE,0,1) -> 0
A16: 5 | B16: személyszállítási közszolgáltatásért járó ellentételezés | C16: =IF(ISERROR(VLOOKUP(B16,Beruhazasi_ktg!$B$8:$B$107,1,0))=TRUE,0,1) -> 0
A17: 6 | B17: sportlétesítményhez és multifunkcionális szabadidős létesítményhez nyújtott beruházási támogatás | C17: =IF(ISERROR(VLOOKUP(B17,Beruhazasi_ktg!$B$8:$B$107,1,0))=TRUE,0,1) -> 0
A18: 7 | B18: kultúrát és kulturális örökség megőrzését előmozdító támogatás | C18: =IF(ISERROR(VLOOKUP(B18,Beruhazasi_ktg!$B$8:$B$107,1,0))=TRUE,0,1) -> 0
A19: 8 | B19: megváltozott munkaképességű munkavállaló foglalkoztatásával járó többletköltség ellentételezéséhez nyújtott támogatás | C19: =IF(ISERROR(VLOOKUP(B19,Beruhazasi_ktg!$B$8:$B$107,1,0))=TRUE,0,1) -> 0
A20: 9 | B20: hátrányos helyzetű munkavállaló segítésével foglalkozó személy költségeinek ellentételezéséhez nyújtott támogatás | C20: =IF(ISERROR(VLOOKUP(B20,Beruhazasi_ktg!$B$8:$B$107,1,0))=TRUE,0,1) -> 0
A21: 10 | B21: szennyeződésmentesítéséhez nyújtott beruházási támogatás | C21: =IF(ISERROR(VLOOKUP(B21,Beruhazasi_ktg!$B$8:$B$107,1,0))=TRUE,0,1) -> 0
A22: 11 | B22: megújuló energia termeléséhez nyújtott beruházási támogatás | C22: =IF(ISERROR(VLOOKUP(B22,Beruhazasi_ktg!$B$8:$B$107,1,0))=TRUE,0,1) -> 0
A25: az összefoglaló laphoz | B25: támogatási kategória
B26: nem állami támogatás, 1m euró alatti / 1m euró feletti, nem bevételtermelő | C26: =C10 -> 0
B27: nem állami támogatás, 1m euró feletti, bevételtermelő | C27: =C11 -> 0
B28: állami támogatás, működési eredményt figyelembe vevő | C28: =IF(SUM(C12,C16,C17)>0,1,0) -> 0
B29: állami támogatás, működési eredményt figyelembe nem vevő | C29: =IF(SUM(C13:C15,C19:C21)>0,1,0) -> 0
B31: utolsó vizsgált év | C31: =Alapadatok!C9+Alapadatok!C12-1 -> 2052
B32: PVA | C32: =(1-(1+Alapadatok!$C$7)^-MAX(kozcelu_komplex!C163:C187))/Alapadatok!$C$7 -> 0
B34: Mértékegység
B35: m
B36: m2
B37: m3
B38: kg
B39: liter
B40: darab
B41: oldal
B42: üzemóra
B43: szakértői óra
B44: szakértői nap
B45: egység
B46: egyéb
B52: Költség besorolás
B53: Projektelőkészítés költségei
B54: Beruházásihoz kapcsolódó költségek
B55: Szakmai megvalósításhoz kapcsolódó szolgáltatások költségei
B56: Projektmenedzsment költségek
B57: Adók, közterhek (ide nem értve a le nem vonható áfát)
B58: Tartalék
B59: -
B60: -
B61: -
B62: -
B64: Költség besorolás
B65: Projektelőkészítés költségei
C66: Előzetes tanulmányok, engedélyezési dokumentumok költsége
C67: Közbeszerzés költsége
C68: Egyéb projektelőkészítéshez kapcsolódó költség
B69: Beruházásihoz kapcsolódó költségek
C70: Ingatlan vásárlás költsége
C71: Ingatlanhoz kapcsolódó, tulajdonszerzéssel nem járó kártalanítási költség
C72: Terület-előkészítési költség
C73: Építéshez kapcsolódó költség
C74: Eszközbeszerzés költsége
B75: Szakmai megvalósításhoz kapcsolódó szolgáltatások költségei
C76: Műszaki ellenőri szolgáltatás költsége
C77: Egyéb műszaki jellegű szolgáltatások költsége
C78: Marketing költségek
C79: Kötelezően előírt nyilvánosság biztosításának költsége
C80: Egyéb szolgáltatási költség
B81: Projektmenedzsment költségek
C82: Projektmenedzsment személyi jellegű ráfordítása
C83: Projektmenedzsmenthez kapcsolódó útiköltség, kiküldetési költség
C84: Projektmenedzsmenthez igénybevett szakértői szolgáltatás díja
C85: Egyéb projektmenedzsment költség
B86: Adók, közterhek (ide nem értve a le nem vonható áfát)
B87: Tartalék
B90: Kedvezményezett ÁFA státusza
B91: Nem ÁFA visszaigénylő
B92: ÁFA visszaigénylő

Sheet kozcelu_szimpla (hidden)
B1: Vissza a tartalomjegyzékhez
B3: támogatási kategória
B4: =Hatter!B10 -> nem állami támogatás (közcélú), egyszerű számítás
B6: A lap olyan projektek elemzésére alkalmas, melyek 1m euró alatti elszámolható költségűek, vagy nem termelnek sem bevételt, sem működési költség megtakarítást. A projekt egyszeri bevételt sem termelhet például a beruházott eszközök értékesítéséből. Ennek megfelelően kevesebb adat megadása szükséges, a számítás egyszerűbb, a támogatási összeg meghatározására korlátozódik.
B8: Beruházási költség
C10: teljes elszámolható költség | D10: nem elszámolható költség | E10: összes költség
B11: =CHOOSE(lang!$A$1,lang!$B6,lang!$C6) -> projektelőkészítés költségei | C11: =SUM(E26:I26) -> 0 | D11: =SUM(E39:I39) -> 0 | E11: =C11+D11 -> 0
B12: =CHOOSE(lang!$A$1,lang!$B7,lang!$C7) -> beruházásihoz kapcsolódó költségek | C12: =SUM(E27:I27) -> 0 | D12: =SUM(E40:I40) -> 0 | E12: =C12+D12 -> 0
B13: =CHOOSE(lang!$A$1,lang!$B8,lang!$C8) -> szakmai megvalósításhoz kapcsolódó szolgáltatások költségei | C13: 0 | D13: 0 | E13: 0
B14: =CHOOSE(lang!$A$1,lang!$B9,lang!$C9) -> projektmenedzsment költségek | C14: 0 | D14: 0 | E14: 0
B15: =CHOOSE(lang!$A$1,lang!$B10,lang!$C10) -> adók, közterhek (ide nem értve a le nem vonható áfát) | C15: 0 | D15: 0 | E15: 0
B16: =CHOOSE(lang!$A$1,lang!$B11,lang!$C11) -> tartalék | C16: 0 | D16: 0 | E16: 0
B17: =CHOOSE(lang!$A$1,lang!$B12,lang!$C12) -> - | C17: 0 | D17: 0 | E17: 0
B18: =CHOOSE(lang!$A$1,lang!$B13,lang!$C13) -> - | C18: 0 | D18: 0 | E18: 0
B19: =CHOOSE(lang!$A$1,lang!$B14,lang!$C14) -> - | C19: 0 | D19: 0 | E19: 0
B20: =CHOOSE(lang!$A$1,lang!$B16,lang!$C16) -> Tartalék nélküli beruházási költség | C20: 0 | D20: 0 | E20: 0
B21: =CHOOSE(lang!$A$1,lang!$B17,lang!$C17) -> Teljes beruházási költség | C21: =SUM(C11:C19) -> 0 | D21: 0 | E21: 0
B23: A beruházási költségeka korábban megadott adatok alapján kerülnek számításra. A "beruhazasi_ktg" lapon szükséges megadni a költségelem támogatási kategóriáját, elszámolhatóságát, költségtípusát, beruházási évét és ÁFA státuszát.
B25: =CHOOSE(lang!A1,lang!B21,lang!C21) -> elszámolható költség | C25: összesen | D25: fpv | E25: =Alapadatok!$C$9 -> 2023 | F25: =E25+1 -> 2024 | G25: =F25+1 -> 2025 | H25: 2026 | I25: 2027
B26: =CHOOSE(lang!$A$1,lang!$B6,lang!$C6) -> projektelőkészítés költségei | C26: =SUM(E26:I26) -> 0 | D26: =E26+NPV(Alapadatok!$C$6,F26:I26) -> 0 | E26: =SUMIFS(Beruhazasi_ktg!AI$8:AI$107,Beruhazasi_ktg!$B$8:$B$107,lista_0,Beruhazasi_ktg!$A$8:$A$107,"alsor",Beruhazasi_ktg!$O$8:$O$107,kozcelu_szimpla!$B26) -> 0 | F26: =SUMIFS(Beruhazasi_ktg!AJ$8:AJ$107,Beruhazasi_ktg!$B$8:$B$107,lista_0,Beruhazasi_ktg!$A$8:$A$107,"alsor",Beruhazasi_ktg!$O$8:$O$107,kozcelu_szimpla!$B26) -> 0 | G26: =SUMIFS(Beruhazasi_ktg!AK$8:AK$107,Beruhazasi_ktg!$B$8:$B$107,lista_0,Beruhazasi_ktg!$A$8:$A$107,"alsor",Beruhazasi_ktg!$O$8:$O$107,kozcelu_szimpla!$B26) -> 0 | H26: =SUMIFS(Beruhazasi_ktg!AL$8:AL$107,Beruhazasi_ktg!$B$8:$B$107,lista_0,Beruhazasi_ktg!$A$8:$A$107,"alsor",Beruhazasi_ktg!$O$8:$O$107,kozcelu_szimpla!$B26) -> 0 | I26: =SUMIFS(Beruhazasi_ktg!AM$8:AM$107,Beruhazasi_ktg!$B$8:$B$107,lista_0,Beruhazasi_ktg!$A$8:$A$107,"alsor",Beruhazasi_ktg!$O$8:$O$107,kozcelu_szimpla!$B26) -> 0
B27: =CHOOSE(lang!$A$1,lang!$B7,lang!$C7) -> beruházásihoz kapcsolódó költségek | C27: 0 | D27: =E27+NPV(Alapadatok!$C$6,F27:I27) -> 0 | E27: =SUMIFS(Beruhazasi_ktg!AI$8:AI$107,Beruhazasi_ktg!$B$8:$B$107,lista_0,Beruhazasi_ktg!$A$8:$A$107,"alsor",Beruhazasi_ktg!$O$8:$O$107,kozcelu_szimpla!$B27) -> 0 | F27: =SUMIFS(Beruhazasi_ktg!AJ$8:AJ$107,Beruhazasi_ktg!$B$8:$B$107,lista_0,Beruhazasi_ktg!$A$8:$A$107,"alsor",Beruhazasi_ktg!$O$8:$O$107,kozcelu_szimpla!$B27) -> 0 | G27: =SUMIFS(Beruhazasi_ktg!AK$8:AK$107,Beruhazasi_ktg!$B$8:$B$107,lista_0,Beruhazasi_ktg!$A$8:$A$107,"alsor",Beruhazasi_ktg!$O$8:$O$107,kozcelu_szimpla!$B27) -> 0 | H27: =SUMIFS(Beruhazasi_ktg!AL$8:AL$107,Beruhazasi_ktg!$B$8:$B$107,lista_0,Beruhazasi_ktg!$A$8:$A$107,"alsor",Beruhazasi_ktg!$O$8:$O$107,kozcelu_szimpla!$B27) -> 0 | I27: =SUMIFS(Beruhazasi_ktg!AM$8:AM$107,Beruhazasi_ktg!$B$8:$B$107,lista_0,Beruhazasi_ktg!$A$8:$A$107,"alsor",Beruhazasi_ktg!$O$8:$O$107,kozcelu_szimpla!$B27) -> 0
B28: =CHOOSE(lang!$A$1,lang!$B8,lang!$C8) -> szakmai megvalósításhoz kapcsolódó szolgáltatások költségei | C28: 0 | D28: =E28+NPV(Alapadatok!$C$6,F28:I28) -> 0 | E28: =SUMIFS(Beruhazasi_ktg!AI$8:AI$107,Beruhazasi_ktg!$B$8:$B$107,lista_0,Beruhazasi_ktg!$A$8:$A$107,"alsor",Beruhazasi_ktg!$O$8:$O$107,kozcelu_szimpla!$B28) -> 0 | F28: =SUMIFS(Beruhazasi_ktg!AJ$8:AJ$107,Beruhazasi_ktg!$B$8:$B$107,lista_0,Beruhazasi_ktg!$A$8:$A$107,"alsor",Beruhazasi_ktg!$O$8:$O$107,kozcelu_szimpla!$B28) -> 0 | G28: =SUMIFS(Beruhazasi_ktg!AK$8:AK$107,Beruhazasi_ktg!$B$8:$B$107,lista_0,Beruhazasi_ktg!$A$8:$A$107,"alsor",Beruhazasi_ktg!$O$8:$O$107,kozcelu_szimpla!$B28) -> 0 | H28: =SUMIFS(Beruhazasi_ktg!AL$8:AL$107,Beruhazasi_ktg!$B$8:$B$107,lista_0,Beruhazasi_ktg!$A$8:$A$107,"alsor",Beruhazasi_ktg!$O$8:$O$107,kozcelu_szimpla!$B28) -> 0 | I28: =SUMIFS(Beruhazasi_ktg!AM$8:AM$107,Beruhazasi_ktg!$B$8:$B$107,lista_0,Beruhazasi_ktg!$A$8:$A$107,"alsor",Beruhazasi_ktg!$O$8:$O$107,kozcelu_szimpla!$B28) -> 0
B29: =CHOOSE(lang!$A$1,lang!$B9,lang!$C9) -> projektmenedzsment költségek | C29: 0 | D29: =E29+NPV(Alapadatok!$C$6,F29:I29) -> 0 | E29: =SUMIFS(Beruhazasi_ktg!AI$8:AI$107,Beruhazasi_ktg!$B$8:$B$107,lista_0,Beruhazasi_ktg!$A$8:$A$107,"alsor",Beruhazasi_ktg!$O$8:$O$107,kozcelu_szimpla!$B29) -> 0 | F29: =SUMIFS(Beruhazasi_ktg!AJ$8:AJ$107,Beruhazasi_ktg!$B$8:$B$107,lista_0,Beruhazasi_ktg!$A$8:$A$107,"alsor",Beruhazasi_ktg!$O$8:$O$107,kozcelu_szimpla!$B29) -> 0 | G29: =SUMIFS(Beruhazasi_ktg!AK$8:AK$107,Beruhazasi_ktg!$B$8:$B$107,lista_0,Beruhazasi_ktg!$A$8:$A$107,"alsor",Beruhazasi_ktg!$O$8:$O$107,kozcelu_szimpla!$B29) -> 0 | H29: =SUMIFS(Beruhazasi_ktg!AL$8:AL$107,Beruhazasi_ktg!$B$8:$B$107,lista_0,Beruhazasi_ktg!$A$8:$A$107,"alsor",Beruhazasi_ktg!$O$8:$O$107,kozcelu_szimpla!$B29) -> 0 | I29: =SUMIFS(Beruhazasi_ktg!AM$8:AM$107,Beruhazasi_ktg!$B$8:$B$107,lista_0,Beruhazasi_ktg!$A$8:$A$107,"alsor",Beruhazasi_ktg!$O$8:$O$107,kozcelu_szimpla!$B29) -> 0
B30: =CHOOSE(lang!$A$1,lang!$B10,lang!$C10) -> adók, közterhek (ide nem értve a le nem vonható áfát) | C30: 0 | D30: =E30+NPV(Alapadatok!$C$6,F30:I30) -> 0 | E30: =SUMIFS(Beruhazasi_ktg!AI$8:AI$107,Beruhazasi_ktg!$B$8:$B$107,lista_0,Beruhazasi_ktg!$A$8:$A$107,"alsor",Beruhazasi_ktg!$O$8:$O$107,kozcelu_szimpla!$B30) -> 0 | F30: =SUMIFS(Beruhazasi_ktg!AJ$8:AJ$107,Beruhazasi_ktg!$B$8:$B$107,lista_0,Beruhazasi_ktg!$A$8:$A$107,"alsor",Beruhazasi_ktg!$O$8:$O$107,kozcelu_szimpla!$B30) -> 0 | G30: =SUMIFS(Beruhazasi_ktg!AK$8:AK$107,Beruhazasi_ktg!$B$8:$B$107,lista_0,Beruhazasi_ktg!$A$8:$A$107,"alsor",Beruhazasi_ktg!$O$8:$O$107,kozcelu_szimpla!$B30) -> 0 | H30: =SUMIFS(Beruhazasi_ktg!AL$8:AL$107,Beruhazasi_ktg!$B$8:$B$107,lista_0,Beruhazasi_ktg!$A$8:$A$107,"alsor",Beruhazasi_ktg!$O$8:$O$107,kozcelu_szimpla!$B30) -> 0 | I30: =SUMIFS(Beruhazasi_ktg!AM$8:AM$107,Beruhazasi_ktg!$B$8:$B$107,lista_0,Beruhazasi_ktg!$A$8:$A$107,"alsor",Beruhazasi_ktg!$O$8:$O$107,kozcelu_szimpla!$B30) -> 0
B31: =CHOOSE(lang!$A$1,lang!$B11,lang!$C11) -> tartalék | C31: 0 | D31: =E31+NPV(Alapadatok!$C$6,F31:I31) -> 0 | E31: =SUMIFS(Beruhazasi_ktg!AI$8:AI$107,Beruhazasi_ktg!$B$8:$B$107,lista_0,Beruhazasi_ktg!$A$8:$A$107,"alsor",Beruhazasi_ktg!$O$8:$O$107,kozcelu_szimpla!$B31) -> 0 | F31: =SUMIFS(Beruhazasi_ktg!AJ$8:AJ$107,Beruhazasi_ktg!$B$8:$B$107,lista_0,Beruhazasi_ktg!$A$8:$A$107,"alsor",Beruhazasi_ktg!$O$8:$O$107,kozcelu_szimpla!$B31) -> 0 | G31: =SUMIFS(Beruhazasi_ktg!AK$8:AK$107,Beruhazasi_ktg!$B$8:$B$107,lista_0,Beruhazasi_ktg!$A$8:$A$107,"alsor",Beruhazasi_ktg!$O$8:$O$107,kozcelu_szimpla!$B31) -> 0 | H31: =SUMIFS(Beruhazasi_ktg!AL$8:AL$107,Beruhazasi_ktg!$B$8:$B$107,lista_0,Beruhazasi_ktg!$A$8:$A$107,"alsor",Beruhazasi_ktg!$O$8:$O$107,kozcelu_szimpla!$B31) -> 0 | I31: =SUMIFS(Beruhazasi_ktg!AM$8:AM$107,Beruhazasi_ktg!$B$8:$B$107,lista_0,Beruhazasi_ktg!$A$8:$A$107,"alsor",Beruhazasi_ktg!$O$8:$O$107,kozcelu_szimpla!$B31) -> 0
B32: =CHOOSE(lang!$A$1,lang!$B12,lang!$C12) -> - | C32: 0 | D32: =E32+NPV(Alapadatok!$C$6,F32:I32) -> 0 | E32: =SUMIFS(Beruhazasi_ktg!AI$8:AI$107,Beruhazasi_ktg!$B$8:$B$107,lista_0,Beruhazasi_ktg!$A$8:$A$107,"alsor",Beruhazasi_ktg!$O$8:$O$107,kozcelu_szimpla!$B32) -> 0 | F32: =SUMIFS(Beruhazasi_ktg!AJ$8:AJ$107,Beruhazasi_ktg!$B$8:$B$107,lista_0,Beruhazasi_ktg!$A$8:$A$107,"alsor",Beruhazasi_ktg!$O$8:$O$107,kozcelu_szimpla!$B32) -> 0 | G32: =SUMIFS(Beruhazasi_ktg!AK$8:AK$107,Beruhazasi_ktg!$B$8:$B$107,lista_0,Beruhazasi_ktg!$A$8:$A$107,"alsor",Beruhazasi_ktg!$O$8:$O$107,kozcelu_szimpla!$B32) -> 0 | H32: =SUMIFS(Beruhazasi_ktg!AL$8:AL$107,Beruhazasi_ktg!$B$8:$B$107,lista_0,Beruhazasi_ktg!$A$8:$A$107,"alsor",Beruhazasi_ktg!$O$8:$O$107,kozcelu_szimpla!$B32) -> 0 | I32: =SUMIFS(Beruhazasi_ktg!AM$8:AM$107,Beruhazasi_ktg!$B$8:$B$107,lista_0,Beruhazasi_ktg!$A$8:$A$107,"alsor",Beruhazasi_ktg!$O$8:$O$107,kozcelu_szimpla!$B32) -> 0
B33: =CHOOSE(lang!$A$1,lang!$B13,lang!$C13) -> - | C33: 0 | D33: =E33+NPV(Alapadatok!$C$6,F33:I33) -> 0 | E33: =SUMIFS(Beruhazasi_ktg!AI$8:AI$107,Beruhazasi_ktg!$B$8:$B$107,lista_0,Beruhazasi_ktg!$A$8:$A$107,"alsor",Beruhazasi_ktg!$O$8:$O$107,kozcelu_szimpla!$B33) -> 0 | F33: =SUMIFS(Beruhazasi_ktg!AJ$8:AJ$107,Beruhazasi_ktg!$B$8:$B$107,lista_0,Beruhazasi_ktg!$A$8:$A$107,"alsor",Beruhazasi_ktg!$O$8:$O$107,kozcelu_szimpla!$B33) -> 0 | G33: =SUMIFS(Beruhazasi_ktg!AK$8:AK$107,Beruhazasi_ktg!$B$8:$B$107,lista_0,Beruhazasi_ktg!$A$8:$A$107,"alsor",Beruhazasi_ktg!$O$8:$O$107,kozcelu_szimpla!$B33) -> 0 | H33: =SUMIFS(Beruhazasi_ktg!AL$8:AL$107,Beruhazasi_ktg!$B$8:$B$107,lista_0,Beruhazasi_ktg!$A$8:$A$107,"alsor",Beruhazasi_ktg!$O$8:$O$107,kozcelu_szimpla!$B33) -> 0 | I33: =SUMIFS(Beruhazasi_ktg!AM$8:AM$107,Beruhazasi_ktg!$B$8:$B$107,lista_0,Beruhazasi_ktg!$A$8:$A$107,"alsor",Beruhazasi_ktg!$O$8:$O$107,kozcelu_szimpla!$B33) -> 0
B34: =CHOOSE(lang!$A$1,lang!$B14,lang!$C14) -> - | C34: 0 | D34: =E34+NPV(Alapadatok!$C$6,F34:I34) -> 0 | E34: =SUMIFS(Beruhazasi_ktg!AI$8:AI$107,Beruhazasi_ktg!$B$8:$B$107,lista_0,Beruhazasi_ktg!$A$8:$A$107,"alsor",Beruhazasi_ktg!$O$8:$O$107,kozcelu_szimpla!$B34) -> 0 | F34: =SUMIFS(Beruhazasi_ktg!AJ$8:AJ$107,Beruhazasi_ktg!$B$8:$B$107,lista_0,Beruhazasi_ktg!$A$8:$A$107,"alsor",Beruhazasi_ktg!$O$8:$O$107,kozcelu_szimpla!$B34) -> 0 | G34: =SUMIFS(Beruhazasi_ktg!AK$8:AK$107,Beruhazasi_ktg!$B$8:$B$107,lista_0,Beruhazasi_ktg!$A$8:$A$107,"alsor",Beruhazasi_ktg!$O$8:$O$107,kozcelu_szimpla!$B34) -> 0 | H34: =SUMIFS(Beruhazasi_ktg!AL$8:AL$107,Beruhazasi_ktg!$B$8:$B$107,lista_0,Beruhazasi_ktg!$A$8:$A$107,"alsor",Beruhazasi_ktg!$O$8:$O$107,kozcelu_szimpla!$B34) -> 0 | I34: =SUMIFS(Beruhazasi_ktg!AM$8:AM$107,Beruhazasi_ktg!$B$8:$B$107,lista_0,Beruhazasi_ktg!$A$8:$A$107,"alsor",Beruhazasi_ktg!$O$8:$O$107,kozcelu_szimpla!$B34) -> 0
B35: =CHOOSE(lang!$A$1,lang!$B16,lang!$C16) -> Tartalék nélküli beruházási költség | C35: =SUM(C26:C34)-SUMIF($B26:$B34,lang!$E$11,C26:C34) -> 0 | D35: =SUM(D26:D34)-SUMIF($B26:$B34,lang!$E$11,D26:D34) -> 0 | E35: =SUM(E26:E34)-SUMIF($B26:$B34,lang!$E$11,E26:E34) -> 0 | F35: =SUM(F26:F34)-SUMIF($B26:$B34,lang!$E$11,F26:F34) -> 0 | G35: =SUM(G26:G34)-SUMIF($B26:$B34,lang!$E$11,G26:G34) -> 0 | H35: =SUM(H26:H34)-SUMIF($B26:$B34,lang!$E$11,H26:H34) -> 0 | I35: =SUM(I26:I34)-SUMIF($B26:$B34,lang!$E$11,I26:I34) -> 0
B36: =CHOOSE(lang!$A$1,lang!$B17,lang!$C17) -> Teljes beruházási költség | C36: =SUM(C26:C34) -> 0 | D36: 0 | E36: =SUM(E26:E34) -> 0 | F36: =SUM(F26:F34) -> 0 | G36: 0 | H36: 0 | I36: 0
B38: =CHOOSE(lang!A1,lang!B22,lang!C22) -> nem elszámolható költség | C38: összesen | D38: fpv | E38: =Alapadatok!$C$9 -> 2023 | F38: =E38+1 -> 2024 | G38: =F38+1 -> 2025 | H38: 2026 | I38: 2027
B39: =CHOOSE(lang!$A$1,lang!$B6,lang!$C6) -> projektelőkészítés költségei | C39: =SUM(E39:I39) -> 0 | D39: =E39+NPV(Alapadatok!$C$6,F39:I39) -> 0 | E39: =SUMIFS(Beruhazasi_ktg!AN$8:AN$107,Beruhazasi_ktg!$B$8:$B$107,lista_0,Beruhazasi_ktg!$A$8:$A$107,"alsor",Beruhazasi_ktg!$O$8:$O$107,$B39) -> 0 | F39: =SUMIFS(Beruhazasi_ktg!AO$8:AO$107,Beruhazasi_ktg!$B$8:$B$107,lista_0,Beruhazasi_ktg!$A$8:$A$107,"alsor",Beruhazasi_ktg!$O$8:$O$107,$B39) -> 0 | G39: =SUMIFS(Beruhazasi_ktg!AP$8:AP$107,Beruhazasi_ktg!$B$8:$B$107,lista_0,Beruhazasi_ktg!$A$8:$A$107,"alsor",Beruhazasi_ktg!$O$8:$O$107,$B39) -> 0 | H39: =SUMIFS(Beruhazasi_ktg!AQ$8:AQ$107,Beruhazasi_ktg!$B$8:$B$107,lista_0,Beruhazasi_ktg!$A$8:$A$107,"alsor",Beruhazasi_ktg!$O$8:$O$107,$B39) -> 0 | I39: =SUMIFS(Beruhazasi_ktg!AR$8:AR$107,Beruhazasi_ktg!$B$8:$B$107,lista_0,Beruhazasi_ktg!$A$8:$A$107,"alsor",Beruhazasi_ktg!$O$8:$O$107,$B39) -> 0
B40: =CHOOSE(lang!$A$1,lang!$B7,lang!$C7) -> beruházásihoz kapcsolódó költségek | C40: 0 | D40: =E40+NPV(Alapadatok!$C$6,F40:I40) -> 0 | E40: =SUMIFS(Beruhazasi_ktg!AN$8:AN$107,Beruhazasi_ktg!$B$8:$B$107,lista_0,Beruhazasi_ktg!$A$8:$A$107,"alsor",Beruhazasi_ktg!$O$8:$O$107,$B40) -> 0 | F40: =SUMIFS(Beruhazasi_ktg!AO$8:AO$107,Beruhazasi_ktg!$B$8:$B$107,lista_0,Beruhazasi_ktg!$A$8:$A$107,"alsor",Beruhazasi_ktg!$O$8:$O$107,$B40) -> 0 | G40: =SUMIFS(Beruhazasi_ktg!AP$8:AP$107,Beruhazasi_ktg!$B$8:$B$107,lista_0,Beruhazasi_ktg!$A$8:$A$107,"alsor",Beruhazasi_ktg!$O$8:$O$107,$B40) -> 0 | H40: =SUMIFS(Beruhazasi_ktg!AQ$8:AQ$107,Beruhazasi_ktg!$B$8:$B$107,lista_0,Beruhazasi_ktg!$A$8:$A$107,"alsor",Beruhazasi_ktg!$O$8:$O$107,$B40) -> 0 | I40: =SUMIFS(Beruhazasi_ktg!AR$8:AR$107,Beruhazasi_ktg!$B$8:$B$107,lista_0,Beruhazasi_ktg!$A$8:$A$107,"alsor",Beruhazasi_ktg!$O$8:$O$107,$B40) -> 0
B41: =CHOOSE(lang!$A$1,lang!$B8,lang!$C8) -> szakmai megvalósításhoz kapcsolódó szolgáltatások költségei | C41: 0 | D41: =E41+NPV(Alapadatok!$C$6,F41:I41) -> 0 | E41: =SUMIFS(Beruhazasi_ktg!AN$8:AN$107,Beruhazasi_ktg!$B$8:$B$107,lista_0,Beruhazasi_ktg!$A$8:$A$107,"alsor",Beruhazasi_ktg!$O$8:$O$107,$B41) -> 0 | F41: =SUMIFS(Beruhazasi_ktg!AO$8:AO$107,Beruhazasi_ktg!$B$8:$B$107,lista_0,Beruhazasi_ktg!$A$8:$A$107,"alsor",Beruhazasi_ktg!$O$8:$O$107,$B41) -> 0 | G41: =SUMIFS(Beruhazasi_ktg!AP$8:AP$107,Beruhazasi_ktg!$B$8:$B$107,lista_0,Beruhazasi_ktg!$A$8:$A$107,"alsor",Beruhazasi_ktg!$O$8:$O$107,$B41) -> 0 | H41: =SUMIFS(Beruhazasi_ktg!AQ$8:AQ$107,Beruhazasi_ktg!$B$8:$B$107,lista_0,Beruhazasi_ktg!$A$8:$A$107,"alsor",Beruhazasi_ktg!$O$8:$O$107,$B41) -> 0 | I41: =SUMIFS(Beruhazasi_ktg!AR$8:AR$107,Beruhazasi_ktg!$B$8:$B$107,lista_0,Beruhazasi_ktg!$A$8:$A$107,"alsor",Beruhazasi_ktg!$O$8:$O$107,$B41) -> 0
B42: =CHOOSE(lang!$A$1,lang!$B9,lang!$C9) -> projektmenedzsment költségek | C42: 0 | D42: =E42+NPV(Alapadatok!$C$6,F42:I42) -> 0 | E42: =SUMIFS(Beruhazasi_ktg!AN$8:AN$107,Beruhazasi_ktg!$B$8:$B$107,lista_0,Beruhazasi_ktg!$A$8:$A$107,"alsor",Beruhazasi_ktg!$O$8:$O$107,$B42) -> 0 | F42: =SUMIFS(Beruhazasi_ktg!AO$8:AO$107,Beruhazasi_ktg!$B$8:$B$107,lista_0,Beruhazasi_ktg!$A$8:$A$107,"alsor",Beruhazasi_ktg!$O$8:$O$107,$B42) -> 0 | G42: =SUMIFS(Beruhazasi_ktg!AP$8:AP$107,Beruhazasi_ktg!$B$8:$B$107,lista_0,Beruhazasi_ktg!$A$8:$A$107,"alsor",Beruhazasi_ktg!$O$8:$O$107,$B42) -> 0 | H42: =SUMIFS(Beruhazasi_ktg!AQ$8:AQ$107,Beruhazasi_ktg!$B$8:$B$107,lista_0,Beruhazasi_ktg!$A$8:$A$107,"alsor",Beruhazasi_ktg!$O$8:$O$107,$B42) -> 0 | I42: =SUMIFS(Beruhazasi_ktg!AR$8:AR$107,Beruhazasi_ktg!$B$8:$B$107,lista_0,Beruhazasi_ktg!$A$8:$A$107,"alsor",Beruhazasi_ktg!$O$8:$O$107,$B42) -> 0
B43: =CHOOSE(lang!$A$1,lang!$B10,lang!$C10) -> adók, közterhek (ide nem értve a le nem vonható áfát) | C43: 0 | D43: =E43+NPV(Alapadatok!$C$6,F43:I43) -> 0 | E43: =SUMIFS(Beruhazasi_ktg!AN$8:AN$107,Beruhazasi_ktg!$B$8:$B$107,lista_0,Beruhazasi_ktg!$A$8:$A$107,"alsor",Beruhazasi_ktg!$O$8:$O$107,$B43) -> 0 | F43: =SUMIFS(Beruhazasi_ktg!AO$8:AO$107,Beruhazasi_ktg!$B$8:$B$107,lista_0,Beruhazasi_ktg!$A$8:$A$107,"alsor",Beruhazasi_ktg!$O$8:$O$107,$B43) -> 0 | G43: =SUMIFS(Beruhazasi_ktg!AP$8:AP$107,Beruhazasi_ktg!$B$8:$B$107,lista_0,Beruhazasi_ktg!$A$8:$A$107,"alsor",Beruhazasi_ktg!$O$8:$O$107,$B43) -> 0 | H43: =SUMIFS(Beruhazasi_ktg!AQ$8:AQ$107,Beruhazasi_ktg!$B$8:$B$107,lista_0,Beruhazasi_ktg!$A$8:$A$107,"alsor",Beruhazasi_ktg!$O$8:$O$107,$B43) -> 0 | I43: =SUMIFS(Beruhazasi_ktg!AR$8:AR$107,Beruhazasi_ktg!$B$8:$B$107,lista_0,Beruhazasi_ktg!$A$8:$A$107,"alsor",Beruhazasi_ktg!$O$8:$O$107,$B43) -> 0
B44: =CHOOSE(lang!$A$1,lang!$B11,lang!$C11) -> tartalék | C44: 0 | D44: =E44+NPV(Alapadatok!$C$6,F44:I44) -> 0 | E44: =SUMIFS(Beruhazasi_ktg!AN$8:AN$107,Beruhazasi_ktg!$B$8:$B$107,lista_0,Beruhazasi_ktg!$A$8:$A$107,"alsor",Beruhazasi_ktg!$O$8:$O$107,$B44) -> 0 | F44: =SUMIFS(Beruhazasi_ktg!AO$8:AO$107,Beruhazasi_ktg!$B$8:$B$107,lista_0,Beruhazasi_ktg!$A$8:$A$107,"alsor",Beruhazasi_ktg!$O$8:$O$107,$B44) -> 0 | G44: =SUMIFS(Beruhazasi_ktg!AP$8:AP$107,Beruhazasi_ktg!$B$8:$B$107,lista_0,Beruhazasi_ktg!$A$8:$A$107,"alsor",Beruhazasi_ktg!$O$8:$O$107,$B44) -> 0 | H44: =SUMIFS(Beruhazasi_ktg!AQ$8:AQ$107,Beruhazasi_ktg!$B$8:$B$107,lista_0,Beruhazasi_ktg!$A$8:$A$107,"alsor",Beruhazasi_ktg!$O$8:$O$107,$B44) -> 0 | I44: =SUMIFS(Beruhazasi_ktg!AR$8:AR$107,Beruhazasi_ktg!$B$8:$B$107,lista_0,Beruhazasi_ktg!$A$8:$A$107,"alsor",Beruhazasi_ktg!$O$8:$O$107,$B44) -> 0
B45: =CHOOSE(lang!$A$1,lang!$B12,lang!$C12) -> - | C45: 0 | D45: =E45+NPV(Alapadatok!$C$6,F45:I45) -> 0 | E45: =SUMIFS(Beruhazasi_ktg!AN$8:AN$107,Beruhazasi_ktg!$B$8:$B$107,lista_0,Beruhazasi_ktg!$A$8:$A$107,"alsor",Beruhazasi_ktg!$O$8:$O$107,$B45) -> 0 | F45: =SUMIFS(Beruhazasi_ktg!AO$8:AO$107,Beruhazasi_ktg!$B$8:$B$107,lista_0,Beruhazasi_ktg!$A$8:$A$107,"alsor",Beruhazasi_ktg!$O$8:$O$107,$B45) -> 0 | G45: =SUMIFS(Beruhazasi_ktg!AP$8:AP$107,Beruhazasi_ktg!$B$8:$B$107,lista_0,Beruhazasi_ktg!$A$8:$A$107,"alsor",Beruhazasi_ktg!$O$8:$O$107,$B45) -> 0 | H45: =SUMIFS(Beruhazasi_ktg!AQ$8:AQ$107,Beruhazasi_ktg!$B$8:$B$107,lista_0,Beruhazasi_ktg!$A$8:$A$107,"alsor",Beruhazasi_ktg!$O$8:$O$107,$B45) -> 0 | I45: =SUMIFS(Beruhazasi_ktg!AR$8:AR$107,Beruhazasi_ktg!$B$8:$B$107,lista_0,Beruhazasi_ktg!$A$8:$A$107,"alsor",Beruhazasi_ktg!$O$8:$O$107,$B45) -> 0
B46: =CHOOSE(lang!$A$1,lang!$B13,lang!$C13) -> - | C46: 0 | D46: =E46+NPV(Alapadatok!$C$6,F46:I46) -> 0 | E46: =SUMIFS(Beruhazasi_ktg!AN$8:AN$107,Beruhazasi_ktg!$B$8:$B$107,lista_0,Beruhazasi_ktg!$A$8:$A$107,"alsor",Beruhazasi_ktg!$O$8:$O$107,$B46) -> 0 | F46: =SUMIFS(Beruhazasi_ktg!AO$8:AO$107,Beruhazasi_ktg!$B$8:$B$107,lista_0,Beruhazasi_ktg!$A$8:$A$107,"alsor",Beruhazasi_ktg!$O$8:$O$107,$B46) -> 0 | G46: =SUMIFS(Beruhazasi_ktg!AP$8:AP$107,Beruhazasi_ktg!$B$8:$B$107,lista_0,Beruhazasi_ktg!$A$8:$A$107,"alsor",Beruhazasi_ktg!$O$8:$O$107,$B46) -> 0 | H46: =SUMIFS(Beruhazasi_ktg!AQ$8:AQ$107,Beruhazasi_ktg!$B$8:$B$107,lista_0,Beruhazasi_ktg!$A$8:$A$107,"alsor",Beruhazasi_ktg!$O$8:$O$107,$B46) -> 0 | I46: =SUMIFS(Beruhazasi_ktg!AR$8:AR$107,Beruhazasi_ktg!$B$8:$B$107,lista_0,Beruhazasi_ktg!$A$8:$A$107,"alsor",Beruhazasi_ktg!$O$8:$O$107,$B46) -> 0
B47: =CHOOSE(lang!$A$1,lang!$B14,lang!$C14) -> - | C47: 0 | D47: =E47+NPV(Alapadatok!$C$6,F47:I47) -> 0 | E47: =SUMIFS(Beruhazasi_ktg!AN$8:AN$107,Beruhazasi_ktg!$B$8:$B$107,lista_0,Beruhazasi_ktg!$A$8:$A$107,"alsor",Beruhazasi_ktg!$O$8:$O$107,$B47) -> 0 | F47: =SUMIFS(Beruhazasi_ktg!AO$8:AO$107,Beruhazasi_ktg!$B$8:$B$107,lista_0,Beruhazasi_ktg!$A$8:$A$107,"alsor",Beruhazasi_ktg!$O$8:$O$107,$B47) -> 0 | G47: =SUMIFS(Beruhazasi_ktg!AP$8:AP$107,Beruhazasi_ktg!$B$8:$B$107,lista_0,Beruhazasi_ktg!$A$8:$A$107,"alsor",Beruhazasi_ktg!$O$8:$O$107,$B47) -> 0 | H47: =SUMIFS(Beruhazasi_ktg!AQ$8:AQ$107,Beruhazasi_ktg!$B$8:$B$107,lista_0,Beruhazasi_ktg!$A$8:$A$107,"alsor",Beruhazasi_ktg!$O$8:$O$107,$B47) -> 0 | I47: =SUMIFS(Beruhazasi_ktg!AR$8:AR$107,Beruhazasi_ktg!$B$8:$B$107,lista_0,Beruhazasi_ktg!$A$8:$A$107,"alsor",Beruhazasi_ktg!$O$8:$O$107,$B47) -> 0
B48: =CHOOSE(lang!$A$1,lang!$B16,lang!$C16) -> Tartalék nélküli beruházási költség | C48: =SUM(C39:C47)-SUMIF($B39:$B47,lang!$E$11,C39:C47) -> 0 | D48: =SUM(D39:D47)-SUMIF($B39:$B47,lang!$E$11,D39:D47) -> 0 | E48: =SUM(E39:E47)-SUMIF($B39:$B47,lang!$E$11,E39:E47) -> 0 | F48: =SUM(F39:F47)-SUMIF($B39:$B47,lang!$E$11,F39:F47) -> 0 | G48: =SUM(G39:G47)-SUMIF($B39:$B47,lang!$E$11,G39:G47) -> 0 | H48: =SUM(H39:H47)-SUMIF($B39:$B47,lang!$E$11,H39:H47) -> 0 | I48: =SUM(I39:I47)-SUMIF($B39:$B47,lang!$E$11,I39:I47) -> 0
B49: =CHOOSE(lang!$A$1,lang!$B17,lang!$C17) -> Teljes beruházási költség | C49: =SUM(C39:C47) -> 0 | D49: 0 | E49: =SUM(E39:E47) -> 0 | F49: =SUM(F39:F47) -> 0 | G49: 0 | H49: 0 | I49: 0
B51: =CHOOSE(lang!A1,lang!B23,lang!C23) -> elszámolható és nem elszámolható költség | C51: összesen | D51: fpv | E51: =Alapadatok!$C$9 -> 2023 | F51: =E51+1 -> 2024 | G51: =F51+1 -> 2025 | H51: 2026 | I51: 2027
B52: =CHOOSE(lang!$A$1,lang!$B6,lang!$C6) -> projektelőkészítés költségei | C52: =SUM(E52:I52) -> 0 | D52: =E52+NPV(Alapadatok!$C$6,F52:I52) -> 0 | E52: =SUM(E26,E39) -> 0 | F52: 0 | G52: 0 | H52: 0 | I52: 0
B53: =CHOOSE(lang!$A$1,lang!$B7,lang!$C7) -> beruházásihoz kapcsolódó költségek | C53: 0 | D53: =E53+NPV(Alapadatok!$C$6,F53:I53) -> 0 | E53: 0 | F53: 0 | G53: 0 | H53: 0 | I53: 0
B54: =CHOOSE(lang!$A$1,lang!$B8,lang!$C8) -> szakmai megvalósításhoz kapcsolódó szolgáltatások költségei | C54: 0 | D54: =E54+NPV(Alapadatok!$C$6,F54:I54) -> 0 | E54: 0 | F54: 0 | G54: 0 | H54: 0 | I54: 0
B55: =CHOOSE(lang!$A$1,lang!$B9,lang!$C9) -> projektmenedzsment költségek | C55: 0 | D55: =E55+NPV(Alapadatok!$C$6,F55:I55) -> 0 | E55: 0 | F55: 0 | G55: 0 | H55: 0 | I55: 0
B56: =CHOOSE(lang!$A$1,lang!$B10,lang!$C10) -> adók, közterhek (ide nem értve a le nem vonható áfát) | C56: 0 | D56: =E56+NPV(Alapadatok!$C$6,F56:I56) -> 0 | E56: 0 | F56: 0 | G56: 0 | H56: 0 | I56: 0
B57: =CHOOSE(lang!$A$1,lang!$B11,lang!$C11) -> tartalék | C57: 0 | D57: =E57+NPV(Alapadatok!$C$6,F57:I57) -> 0 | E57: 0 | F57: 0 | G57: 0 | H57: 0 | I57: 0
B58: =CHOOSE(lang!$A$1,lang!$B12,lang!$C12) -> - | C58: 0 | D58: =E58+NPV(Alapadatok!$C$6,F58:I58) -> 0 | E58: 0 | F58: 0 | G58: 0 | H58: 0 | I58: 0
B59: =CHOOSE(lang!$A$1,lang!$B13,lang!$C13) -> - | C59: 0 | D59: =E59+NPV(Alapadatok!$C$6,F59:I59) -> 0 | E59: 0 | F59: 0 | G59: 0 | H59: 0 | I59: 0
B60: =CHOOSE(lang!$A$1,lang!$B14,lang!$C14) -> - | C60: 0 | D60: =E60+NPV(Alapadatok!$C$6,F60:I60) -> 0 | E60: 0 | F60: 0 | G60: 0 | H60: 0 | I60: 0
B61: =CHOOSE(lang!$A$1,lang!$B16,lang!$C16) -> Tartalék nélküli beruházási költség | C61: =SUM(C52:C60)-SUMIF($B52:$B60,lang!$E$11,C52:C60) -> 0 | D61: =SUM(D52:D60)-SUMIF($B52:$B60,lang!$E$11,D52:D60) -> 0 | E61: =SUM(E52:E60)-SUMIF($B52:$B60,lang!$E$11,E52:E60) -> 0 | F61: =SUM(F52:F60)-SUMIF($B52:$B60,lang!$E$11,F52:F60) -> 0 | G61: =SUM(G52:G60)-SUMIF($B52:$B60,lang!$E$11,G52:G60) -> 0 | H61: =SUM(H52:H60)-SUMIF($B52:$B60,lang!$E$11,H52:H60) -> 0 | I61: =SUM(I52:I60)-SUMIF($B52:$B60,lang!$E$11,I52:I60) -> 0
B62: =CHOOSE(lang!$A$1,lang!$B17,lang!$C17) -> Teljes beruházási költség | C62: =SUM(C52:C60) -> 0 | D62: 0 | E62: =SUM(E52:E60) -> 0 | F62: =SUM(F52:F60) -> 0 | G62: 0 | H62: 0 | I62: 0
B64: Működési költség
B66: Üzemeltetési és karbantartási költség
B69: =CHOOSE(lang!A1,lang!B27,lang!C27) -> 0 | C69: összesen | D69: fpv | E69: =Alapadatok!$C$9 -> 2023 | F69: =IF(E69="x","x",IF((E69+1)>(Alapadatok!$C$9+Alapadatok!$C$12-1),"x",E69+1)) -> 2024 | G69: =IF(F69="x","x",IF((F69+1)>(Alapadatok!$C$9+Alapadatok!$C$12-1),"x",F69+1)) -> 2025 | H69: =IF(G69="x","x",IF((G69+1)>(Alapadatok!$C$9+Alapadatok!$C$12-1),"x",G69+1)) -> 2026 | I69: =IF(H69="x","x",IF((H69+1)>(Alapadatok!$C$9+Alapadatok!$C$12-1),"x",H69+1)) -> 2027 | J69: =IF(I69="x","x",IF((I69+1)>(Alapadatok!$C$9+Alapadatok!$C$12-1),"x",I69+1)) -> 2028 | K69: =IF(J69="x","x",IF((J69+1)>(Alapadatok!$C$9+Alapadatok!$C$12-1),"x",J69+1)) -> 2029 | L69: =IF(K69="x","x",IF((K69+1)>(Alapadatok!$C$9+Alapadatok!$C$12-1),"x",K69+1)) -> 2030 | M69: =IF(L69="x","x",IF((L69+1)>(Alapadatok!$C$9+Alapadatok!$C$12-1),"x",L69+1)) -> 2031 | N69: =IF(M69="x","x",IF((M69+1)>(Alapadatok!$C$9+Alapadatok!$C$12-1),"x",M69+1)) -> 2032 | O69: =IF(N69="x","x",IF((N69+1)>(Alapadatok!$C$9+Alapadatok!$C$12-1),"x",N69+1)) -> 2033 | P69: =IF(O69="x","x",IF((O69+1)>(Alapadatok!$C$9+Alapadatok!$C$12-1),"x",O69+1)) -> 2034 | Q69: =IF(P69="x","x",IF((P69+1)>(Alapadatok!$C$9+Alapadatok!$C$12-1),"x",P69+1)) -> 2035 | R69: =IF(Q69="x","x",IF((Q69+1)>(Alapadatok!$C$9+Alapadatok!$C$12-1),"x",Q69+1)) -> 2036 | S69: =IF(R69="x","x",IF((R69+1)>(Alapadatok!$C$9+Alapadatok!$C$12-1),"x",R69+1)) -> 2037 | T69: =IF(S69="x","x",IF((S69+1)>(Alapadatok!$C$9+Alapadatok!$C$12-1),"x",S69+1)) -> 2038 | U69: =IF(T69="x","x",IF((T69+1)>(Alapadatok!$C$9+Alapadatok!$C$12-1),"x",T69+1)) -> 2039 | V69: =IF(U69="x","x",IF((U69+1)>(Alapadatok!$C$9+Alapadatok!$C$12-1),"x",U69+1)) -> 2040 | W69: =IF(V69="x","x",IF((V69+1)>(Alapadatok!$C$9+Alapadatok!$C$12-1),"x",V69+1)) -> 2041 | X69: =IF(W69="x","x",IF((W69+1)>(Alapadatok!$C$9+Alapadatok!$C$12-1),"x",W69+1)) -> 2042 | Y69: =IF(X69="x","x",IF((X69+1)>(Alapadatok!$C$9+Alapadatok!$C$12-1),"x",X69+1)) -> 2043 | Z69: =IF(Y69="x","x",IF((Y69+1)>(Alapadatok!$C$9+Alapadatok!$C$12-1),"x",Y69+1)) -> 2044 | AA69: =IF(Z69="x","x",IF((Z69+1)>(Alapadatok!$C$9+Alapadatok!$C$12-1),"x",Z69+1)) -> 2045 | AB69: =IF(AA69="x","x",IF((AA69+1)>(Alapadatok!$C$9+Alapadatok!$C$12-1),"x",AA69+1)) -> 2046 | AC69: =IF(AB69="x","x",IF((AB69+1)>(Alapadatok!$C$9+Alapadatok!$C$12-1),"x",AB69+1)) -> 2047 | AD69: =IF(AC69="x","x",IF((AC69+1)>(Alapadatok!$C$9+Alapadatok!$C$12-1),"x",AC69+1)) -> 2048 | AE69: =IF(AD69="x","x",IF((AD69+1)>(Alapadatok!$C$9+Alapadatok!$C$12-1),"x",AD69+1)) -> 2049 | AF69: =IF(AE69="x","x",IF((AE69+1)>(Alapadatok!$C$9+Alapadatok!$C$12-1),"x",AE69+1)) -> 2050 | AG69: =IF(AF69="x","x",IF((AF69+1)>(Alapadatok!$C$9+Alapadatok!$C$12-1),"x",AF69+1)) -> 2051 | AH69: =IF(AG69="x","x",IF((AG69+1)>(Alapadatok!$C$9+Alapadatok!$C$12-1),"x",AG69+1)) -> 2052
B70: =CHOOSE(lang!$A$1,lang!$B33,lang!$C33) -> 0 | C70: =SUM(E70:AH70) -> 0 | D70: =E70+NPV(Alapadatok!$C$6,$F70:$AH70) -> 0 | E70: =+E74-E78 -> 0 | F70: 0 | G70: 0 | H70: 0 | I70: 0 | J70: 0 | K70: 0 | L70: 0 | M70: 0 | N70: 0 | O70: 0 | P70: 0 | Q70: 0 | R70: 0 | S70: 0 | T70: 0 | U70: 0 | V70: 0 | W70: 0 | X70: 0 | Y70: 0 | Z70: 0 | AA70: 0 | AB70: 0 | AC70: 0 | AD70: 0 | AE70: 0 | AF70: 0 | AG70: 0 | AH70: 0
B71: =CHOOSE(lang!$A$1,lang!$B34,lang!$C34) -> 0 | C71: =SUM(E71:AH71) -> 0 | D71: =E71+NPV(Alapadatok!$C$6,$F71:$AH71) -> 0 | E71: 0 | F71: 0 | G71: 0 | H71: 0 | I71: 0 | J71: 0 | K71: 0 | L71: 0 | M71: 0 | N71: 0 | O71: 0 | P71: 0 | Q71: 0 | R71: 0 | S71: 0 | T71: 0 | U71: 0 | V71: 0 | W71: 0 | X71: 0 | Y71: 0 | Z71: 0 | AA71: 0 | AB71: 0 | AC71: 0 | AD71: 0 | AE71: 0 | AF71: 0 | AG71: 0 | AH71: 0
B73: =CHOOSE(lang!A1,lang!B28,lang!C28) -> 0 | C73: összesen | D73: fpv | E73: =Alapadatok!$C$9 -> 2023 | F73: =IF(E73="x","x",IF((E73+1)>(Alapadatok!$C$9+Alapadatok!$C$12-1),"x",E73+1)) -> 2024 | G73: =IF(F73="x","x",IF((F73+1)>(Alapadatok!$C$9+Alapadatok!$C$12-1),"x",F73+1)) -> 2025 | H73: =IF(G73="x","x",IF((G73+1)>(Alapadatok!$C$9+Alapadatok!$C$12-1),"x",G73+1)) -> 2026 | I73: =IF(H73="x","x",IF((H73+1)>(Alapadatok!$C$9+Alapadatok!$C$12-1),"x",H73+1)) -> 2027 | J73: =IF(I73="x","x",IF((I73+1)>(Alapadatok!$C$9+Alapadatok!$C$12-1),"x",I73+1)) -> 2028 | K73: =IF(J73="x","x",IF((J73+1)>(Alapadatok!$C$9+Alapadatok!$C$12-1),"x",J73+1)) -> 2029 | L73: =IF(K73="x","x",IF((K73+1)>(Alapadatok!$C$9+Alapadatok!$C$12-1),"x",K73+1)) -> 2030 | M73: =IF(L73="x","x",IF((L73+1)>(Alapadatok!$C$9+Alapadatok!$C$12-1),"x",L73+1)) -> 2031 | N73: =IF(M73="x","x",IF((M73+1)>(Alapadatok!$C$9+Alapadatok!$C$12-1),"x",M73+1)) -> 2032 | O73: =IF(N73="x","x",IF((N73+1)>(Alapadatok!$C$9+Alapadatok!$C$12-1),"x",N73+1)) -> 2033 | P73: =IF(O73="x","x",IF((O73+1)>(Alapadatok!$C$9+Alapadatok!$C$12-1),"x",O73+1)) -> 2034 | Q73: =IF(P73="x","x",IF((P73+1)>(Alapadatok!$C$9+Alapadatok!$C$12-1),"x",P73+1)) -> 2035 | R73: =IF(Q73="x","x",IF((Q73+1)>(Alapadatok!$C$9+Alapadatok!$C$12-1),"x",Q73+1)) -> 2036 | S73: =IF(R73="x","x",IF((R73+1)>(Alapadatok!$C$9+Alapadatok!$C$12-1),"x",R73+1)) -> 2037 | T73: =IF(S73="x","x",IF((S73+1)>(Alapadatok!$C$9+Alapadatok!$C$12-1),"x",S73+1)) -> 2038 | U73: =IF(T73="x","x",IF((T73+1)>(Alapadatok!$C$9+Alapadatok!$C$12-1),"x",T73+1)) -> 2039 | V73: =IF(U73="x","x",IF((U73+1)>(Alapadatok!$C$9+Alapadatok!$C$12-1),"x",U73+1)) -> 2040 | W73: =IF(V73="x","x",IF((V73+1)>(Alapadatok!$C$9+Alapadatok!$C$12-1),"x",V73+1)) -> 2041 | X73: =IF(W73="x","x",IF((W73+1)>(Alapadatok!$C$9+Alapadatok!$C$12-1),"x",W73+1)) -> 2042 | Y73: =IF(X73="x","x",IF((X73+1)>(Alapadatok!$C$9+Alapadatok!$C$12-1),"x",X73+1)) -> 2043 | Z73: =IF(Y73="x","x",IF((Y73+1)>(Alapadatok!$C$9+Alapadatok!$C$12-1),"x",Y73+1)) -> 2044 | AA73: =IF(Z73="x","x",IF((Z73+1)>(Alapadatok!$C$9+Alapadatok!$C$12-1),"x",Z73+1)) -> 2045 | AB73: =IF(AA73="x","x",IF((AA73+1)>(Alapadatok!$C$9+Alapadatok!$C$12-1),"x",AA73+1)) -> 2046 | AC73: =IF(AB73="x","x",IF((AB73+1)>(Alapadatok!$C$9+Alapadatok!$C$12-1),"x",AB73+1)) -> 2047 | AD73: =IF(AC73="x","x",IF((AC73+1)>(Alapadatok!$C$9+Alapadatok!$C$12-1),"x",AC73+1)) -> 2048 | AE73: =IF(AD73="x","x",IF((AD73+1)>(Alapadatok!$C$9+Alapadatok!$C$12-1),"x",AD73+1)) -> 2049 | AF73: =IF(AE73="x","x",IF((AE73+1)>(Alapadatok!$C$9+Alapadatok!$C$12-1),"x",AE73+1)) -> 2050 | AG73: =IF(AF73="x","x",IF((AF73+1)>(Alapadatok!$C$9+Alapadatok!$C$12-1),"x",AF73+1)) -> 2051 | AH73: =IF(AG73="x","x",IF((AG73+1)>(Alapadatok!$C$9+Alapadatok!$C$12-1),"x",AG73+1)) -> 2052
A74: =IF(SUMIF(E$73:AH$73,"<="&Hatter!$C$31,kozcelu_szimpla!E74:AH74)=C74,1,"Vizsgálati időtávon túli évek is kitöltve") -> 1 | B74: =CHOOSE(lang!$A$1,lang!$B33,lang!$C33) -> 0 | C74: =SUM(E74:AH74) -> 0 | D74: =E74+NPV(Alapadatok!$C$6,$F74:$AH74) -> 0
A75: =IF(SUMIF(E$73:AH$73,"<="&Hatter!$C$31,kozcelu_szimpla!E75:AH75)=C75,1,"Vizsgálati időtávon túli évek is kitöltve") -> 1 | B75: =CHOOSE(lang!$A$1,lang!$B34,lang!$C34) -> 0 | C75: =SUM(E75:AH75) -> 0 | D75: =E75+NPV(Alapadatok!$C$6,$F75:$AH75) -> 0
B77: =CHOOSE(lang!A1,lang!B29,lang!C29) -> 0 | C77: összesen | D77: fpv | E77: =Alapadatok!$C$9 -> 2023 | F77: =IF(E77="x","x",IF((E77+1)>(Alapadatok!$C$9+Alapadatok!$C$12-1),"x",E77+1)) -> 2024 | G77: =IF(F77="x","x",IF((F77+1)>(Alapadatok!$C$9+Alapadatok!$C$12-1),"x",F77+1)) -> 2025 | H77: =IF(G77="x","x",IF((G77+1)>(Alapadatok!$C$9+Alapadatok!$C$12-1),"x",G77+1)) -> 2026 | I77: =IF(H77="x","x",IF((H77+1)>(Alapadatok!$C$9+Alapadatok!$C$12-1),"x",H77+1)) -> 2027 | J77: =IF(I77="x","x",IF((I77+1)>(Alapadatok!$C$9+Alapadatok!$C$12-1),"x",I77+1)) -> 2028 | K77: =IF(J77="x","x",IF((J77+1)>(Alapadatok!$C$9+Alapadatok!$C$12-1),"x",J77+1)) -> 2029 | L77: =IF(K77="x","x",IF((K77+1)>(Alapadatok!$C$9+Alapadatok!$C$12-1),"x",K77+1)) -> 2030 | M77: =IF(L77="x","x",IF((L77+1)>(Alapadatok!$C$9+Alapadatok!$C$12-1),"x",L77+1)) -> 2031 | N77: =IF(M77="x","x",IF((M77+1)>(Alapadatok!$C$9+Alapadatok!$C$12-1),"x",M77+1)) -> 2032 | O77: =IF(N77="x","x",IF((N77+1)>(Alapadatok!$C$9+Alapadatok!$C$12-1),"x",N77+1)) -> 2033 | P77: =IF(O77="x","x",IF((O77+1)>(Alapadatok!$C$9+Alapadatok!$C$12-1),"x",O77+1)) -> 2034 | Q77: =IF(P77="x","x",IF((P77+1)>(Alapadatok!$C$9+Alapadatok!$C$12-1),"x",P77+1)) -> 2035 | R77: =IF(Q77="x","x",IF((Q77+1)>(Alapadatok!$C$9+Alapadatok!$C$12-1),"x",Q77+1)) -> 2036 | S77: =IF(R77="x","x",IF((R77+1)>(Alapadatok!$C$9+Alapadatok!$C$12-1),"x",R77+1)) -> 2037 | T77: =IF(S77="x","x",IF((S77+1)>(Alapadatok!$C$9+Alapadatok!$C$12-1),"x",S77+1)) -> 2038 | U77: =IF(T77="x","x",IF((T77+1)>(Alapadatok!$C$9+Alapadatok!$C$12-1),"x",T77+1)) -> 2039 | V77: =IF(U77="x","x",IF((U77+1)>(Alapadatok!$C$9+Alapadatok!$C$12-1),"x",U77+1)) -> 2040 | W77: =IF(V77="x","x",IF((V77+1)>(Alapadatok!$C$9+Alapadatok!$C$12-1),"x",V77+1)) -> 2041 | X77: =IF(W77="x","x",IF((W77+1)>(Alapadatok!$C$9+Alapadatok!$C$12-1),"x",W77+1)) -> 2042 | Y77: =IF(X77="x","x",IF((X77+1)>(Alapadatok!$C$9+Alapadatok!$C$12-1),"x",X77+1)) -> 2043 | Z77: =IF(Y77="x","x",IF((Y77+1)>(Alapadatok!$C$9+Alapadatok!$C$12-1),"x",Y77+1)) -> 2044 | AA77: =IF(Z77="x","x",IF((Z77+1)>(Alapadatok!$C$9+Alapadatok!$C$12-1),"x",Z77+1)) -> 2045 | AB77: =IF(AA77="x","x",IF((AA77+1)>(Alapadatok!$C$9+Alapadatok!$C$12-1),"x",AA77+1)) -> 2046 | AC77: =IF(AB77="x","x",IF((AB77+1)>(Alapadatok!$C$9+Alapadatok!$C$12-1),"x",AB77+1)) -> 2047 | AD77: =IF(AC77="x","x",IF((AC77+1)>(Alapadatok!$C$9+Alapadatok!$C$12-1),"x",AC77+1)) -> 2048 | AE77: =IF(AD77="x","x",IF((AD77+1)>(Alapadatok!$C$9+Alapadatok!$C$12-1),"x",AD77+1)) -> 2049 | AF77: =IF(AE77="x","x",IF((AE77+1)>(Alapadatok!$C$9+Alapadatok!$C$12-1),"x",AE77+1)) -> 2050 | AG77: =IF(AF77="x","x",IF((AF77+1)>(Alapadatok!$C$9+Alapadatok!$C$12-1),"x",AF77+1)) -> 2051 | AH77: =IF(AG77="x","x",IF((AG77+1)>(Alapadatok!$C$9+Alapadatok!$C$12-1),"x",AG77+1)) -> 2052
A78: =IF(SUMIF(E$73:AH$73,"<="&Hatter!$C$31,kozcelu_szimpla!E78:AH78)=C78,1,"Vizsgálati időtávon túli évek is kitöltve") -> 1 | B78: =CHOOSE(lang!$A$1,lang!$B33,lang!$C33) -> 0 | C78: =SUM(E78:AH78) -> 0 | D78: =E78+NPV(Alapadatok!$C$6,$F78:$AH78) -> 0
A79: =IF(SUMIF(E$73:AH$73,"<="&Hatter!$C$31,kozcelu_szimpla!E79:AH79)=C79,1,"Vizsgálati időtávon túli évek is kitöltve") -> 1 | B79: =CHOOSE(lang!$A$1,lang!$B34,lang!$C34) -> 0 | C79: =SUM(E79:AH79) -> 0 | D79: =E79+NPV(Alapadatok!$C$6,$F79:$AH79) -> 0
B81: Pótlási költség
B84: =CHOOSE(lang!A1,lang!B27,lang!C27) -> 0 | C84: összesen | D84: fpv | E84: =Alapadatok!$C$9 -> 2023 | F84: =IF(E84="x","x",IF((E84+1)>(Alapadatok!$C$9+Alapadatok!$C$12-1),"x",E84+1)) -> 2024 | G84: =IF(F84="x","x",IF((F84+1)>(Alapadatok!$C$9+Alapadatok!$C$12-1),"x",F84+1)) -> 2025 | H84: =IF(G84="x","x",IF((G84+1)>(Alapadatok!$C$9+Alapadatok!$C$12-1),"x",G84+1)) -> 2026 | I84: =IF(H84="x","x",IF((H84+1)>(Alapadatok!$C$9+Alapadatok!$C$12-1),"x",H84+1)) -> 2027 | J84: =IF(I84="x","x",IF((I84+1)>(Alapadatok!$C$9+Alapadatok!$C$12-1),"x",I84+1)) -> 2028 | K84: =IF(J84="x","x",IF((J84+1)>(Alapadatok!$C$9+Alapadatok!$C$12-1),"x",J84+1)) -> 2029 | L84: =IF(K84="x","x",IF((K84+1)>(Alapadatok!$C$9+Alapadatok!$C$12-1),"x",K84+1)) -> 2030 | M84: =IF(L84="x","x",IF((L84+1)>(Alapadatok!$C$9+Alapadatok!$C$12-1),"x",L84+1)) -> 2031 | N84: =IF(M84="x","x",IF((M84+1)>(Alapadatok!$C$9+Alapadatok!$C$12-1),"x",M84+1)) -> 2032 | O84: =IF(N84="x","x",IF((N84+1)>(Alapadatok!$C$9+Alapadatok!$C$12-1),"x",N84+1)) -> 2033 | P84: =IF(O84="x","x",IF((O84+1)>(Alapadatok!$C$9+Alapadatok!$C$12-1),"x",O84+1)) -> 2034 | Q84: =IF(P84="x","x",IF((P84+1)>(Alapadatok!$C$9+Alapadatok!$C$12-1),"x",P84+1)) -> 2035 | R84: =IF(Q84="x","x",IF((Q84+1)>(Alapadatok!$C$9+Alapadatok!$C$12-1),"x",Q84+1)) -> 2036 | S84: =IF(R84="x","x",IF((R84+1)>(Alapadatok!$C$9+Alapadatok!$C$12-1),"x",R84+1)) -> 2037 | T84: =IF(S84="x","x",IF((S84+1)>(Alapadatok!$C$9+Alapadatok!$C$12-1),"x",S84+1)) -> 2038 | U84: =IF(T84="x","x",IF((T84+1)>(Alapadatok!$C$9+Alapadatok!$C$12-1),"x",T84+1)) -> 2039 | V84: =IF(U84="x","x",IF((U84+1)>(Alapadatok!$C$9+Alapadatok!$C$12-1),"x",U84+1)) -> 2040 | W84: =IF(V84="x","x",IF((V84+1)>(Alapadatok!$C$9+Alapadatok!$C$12-1),"x",V84+1)) -> 2041 | X84: =IF(W84="x","x",IF((W84+1)>(Alapadatok!$C$9+Alapadatok!$C$12-1),"x",W84+1)) -> 2042 | Y84: =IF(X84="x","x",IF((X84+1)>(Alapadatok!$C$9+Alapadatok!$C$12-1),"x",X84+1)) -> 2043 | Z84: =IF(Y84="x","x",IF((Y84+1)>(Alapadatok!$C$9+Alapadatok!$C$12-1),"x",Y84+1)) -> 2044 | AA84: =IF(Z84="x","x",IF((Z84+1)>(Alapadatok!$C$9+Alapadatok!$C$12-1),"x",Z84+1)) -> 2045 | AB84: =IF(AA84="x","x",IF((AA84+1)>(Alapadatok!$C$9+Alapadatok!$C$12-1),"x",AA84+1)) -> 2046 | AC84: =IF(AB84="x","x",IF((AB84+1)>(Alapadatok!$C$9+Alapadatok!$C$12-1),"x",AB84+1)) -> 2047 | AD84: =IF(AC84="x","x",IF((AC84+1)>(Alapadatok!$C$9+Alapadatok!$C$12-1),"x",AC84+1)) -> 2048 | AE84: =IF(AD84="x","x",IF((AD84+1)>(Alapadatok!$C$9+Alapadatok!$C$12-1),"x",AD84+1)) -> 2049 | AF84: =IF(AE84="x","x",IF((AE84+1)>(Alapadatok!$C$9+Alapadatok!$C$12-1),"x",AE84+1)) -> 2050 | AG84: =IF(AF84="x","x",IF((AF84+1)>(Alapadatok!$C$9+Alapadatok!$C$12-1),"x",AF84+1)) -> 2051 | AH84: =IF(AG84="x","x",IF((AG84+1)>(Alapadatok!$C$9+Alapadatok!$C$12-1),"x",AG84+1)) -> 2052
B85: =CHOOSE(lang!$A$1,lang!$B36,lang!$C36) -> 0 | C85: =SUM(E85:AH85) -> 0 | D85: =E85+NPV(Alapadatok!$C$6,$F85:$AH85) -> 0 | E85: =+E88-E91 -> 0 | F85: 0 | G85: 0 | H85: 0 | I85: 0 | J85: 0 | K85: 0 | L85: 0 | M85: 0 | N85: 0 | O85: =+O88-O91 -> 0 | P85: 0 | Q85: 0 | R85: 0 | S85: 0 | T85: 0 | U85: 0 | V85: 0 | W85: 0 | X85: 0 | Y85: 0 | Z85: 0 | AA85: 0 | AB85: 0 | AC85: 0 | AD85: 0 | AE85: 0 | AF85: 0 | AG85: 0 | AH85: 0
B87: =CHOOSE(lang!A1,lang!B28,lang!C28) -> 0 | C87: összesen | D87: fpv | E87: =Alapadatok!$C$9 -> 2023 | F87: =IF(E87="x","x",IF((E87+1)>(Alapadatok!$C$9+Alapadatok!$C$12-1),"x",E87+1)) -> 2024 | G87: =IF(F87="x","x",IF((F87+1)>(Alapadatok!$C$9+Alapadatok!$C$12-1),"x",F87+1)) -> 2025 | H87: =IF(G87="x","x",IF((G87+1)>(Alapadatok!$C$9+Alapadatok!$C$12-1),"x",G87+1)) -> 2026 | I87: =IF(H87="x","x",IF((H87+1)>(Alapadatok!$C$9+Alapadatok!$C$12-1),"x",H87+1)) -> 2027 | J87: =IF(I87="x","x",IF((I87+1)>(Alapadatok!$C$9+Alapadatok!$C$12-1),"x",I87+1)) -> 2028 | K87: =IF(J87="x","x",IF((J87+1)>(Alapadatok!$C$9+Alapadatok!$C$12-1),"x",J87+1)) -> 2029 | L87: =IF(K87="x","x",IF((K87+1)>(Alapadatok!$C$9+Alapadatok!$C$12-1),"x",K87+1)) -> 2030 | M87: =IF(L87="x","x",IF((L87+1)>(Alapadatok!$C$9+Alapadatok!$C$12-1),"x",L87+1)) -> 2031 | N87: =IF(M87="x","x",IF((M87+1)>(Alapadatok!$C$9+Alapadatok!$C$12-1),"x",M87+1)) -> 2032 | O87: =IF(N87="x","x",IF((N87+1)>(Alapadatok!$C$9+Alapadatok!$C$12-1),"x",N87+1)) -> 2033 | P87: =IF(O87="x","x",IF((O87+1)>(Alapadatok!$C$9+Alapadatok!$C$12-1),"x",O87+1)) -> 2034 | Q87: =IF(P87="x","x",IF((P87+1)>(Alapadatok!$C$9+Alapadatok!$C$12-1),"x",P87+1)) -> 2035 | R87: =IF(Q87="x","x",IF((Q87+1)>(Alapadatok!$C$9+Alapadatok!$C$12-1),"x",Q87+1)) -> 2036 | S87: =IF(R87="x","x",IF((R87+1)>(Alapadatok!$C$9+Alapadatok!$C$12-1),"x",R87+1)) -> 2037 | T87: =IF(S87="x","x",IF((S87+1)>(Alapadatok!$C$9+Alapadatok!$C$12-1),"x",S87+1)) -> 2038 | U87: =IF(T87="x","x",IF((T87+1)>(Alapadatok!$C$9+Alapadatok!$C$12-1),"x",T87+1)) -> 2039 | V87: =IF(U87="x","x",IF((U87+1)>(Alapadatok!$C$9+Alapadatok!$C$12-1),"x",U87+1)) -> 2040 | W87: =IF(V87="x","x",IF((V87+1)>(Alapadatok!$C$9+Alapadatok!$C$12-1),"x",V87+1)) -> 2041 | X87: =IF(W87="x","x",IF((W87+1)>(Alapadatok!$C$9+Alapadatok!$C$12-1),"x",W87+1)) -> 2042 | Y87: =IF(X87="x","x",IF((X87+1)>(Alapadatok!$C$9+Alapadatok!$C$12-1),"x",X87+1)) -> 2043 | Z87: =IF(Y87="x","x",IF((Y87+1)>(Alapadatok!$C$9+Alapadatok!$C$12-1),"x",Y87+1)) -> 2044 | AA87: =IF(Z87="x","x",IF((Z87+1)>(Alapadatok!$C$9+Alapadatok!$C$12-1),"x",Z87+1)) -> 2045 | AB87: =IF(AA87="x","x",IF((AA87+1)>(Alapadatok!$C$9+Alapadatok!$C$12-1),"x",AA87+1)) -> 2046 | AC87: =IF(AB87="x","x",IF((AB87+1)>(Alapadatok!$C$9+Alapadatok!$C$12-1),"x",AB87+1)) -> 2047 | AD87: =IF(AC87="x","x",IF((AC87+1)>(Alapadatok!$C$9+Alapadatok!$C$12-1),"x",AC87+1)) -> 2048 | AE87: =IF(AD87="x","x",IF((AD87+1)>(Alapadatok!$C$9+Alapadatok!$C$12-1),"x",AD87+1)) -> 2049 | AF87: =IF(AE87="x","x",IF((AE87+1)>(Alapadatok!$C$9+Alapadatok!$C$12-1),"x",AE87+1)) -> 2050 | AG87: =IF(AF87="x","x",IF((AF87+1)>(Alapadatok!$C$9+Alapadatok!$C$12-1),"x",AF87+1)) -> 2051 | AH87: =IF(AG87="x","x",IF((AG87+1)>(Alapadatok!$C$9+Alapadatok!$C$12-1),"x",AG87+1)) -> 2052
A88: =IF(SUMIF(E$73:AH$73,"<="&Hatter!$C$31,kozcelu_szimpla!E88:AH88)=C88,1,"Vizsgálati időtávon túli évek is kitöltve") -> 1 | B88: =CHOOSE(lang!$A$1,lang!$B36,lang!$C36) -> 0 | C88: =SUM(E88:AH88) -> 0 | D88: =E88+NPV(Alapadatok!$C$6,$F88:$AH88) -> 0
B90: =CHOOSE(lang!A1,lang!B29,lang!C29) -> 0 | C90: összesen | D90: fpv | E90: =Alapadatok!$C$9 -> 2023 | F90: =IF(E90="x","x",IF((E90+1)>(Alapadatok!$C$9+Alapadatok!$C$12-1),"x",E90+1)) -> 2024 | G90: =IF(F90="x","x",IF((F90+1)>(Alapadatok!$C$9+Alapadatok!$C$12-1),"x",F90+1)) -> 2025 | H90: =IF(G90="x","x",IF((G90+1)>(Alapadatok!$C$9+Alapadatok!$C$12-1),"x",G90+1)) -> 2026 | I90: =IF(H90="x","x",IF((H90+1)>(Alapadatok!$C$9+Alapadatok!$C$12-1),"x",H90+1)) -> 2027 | J90: =IF(I90="x","x",IF((I90+1)>(Alapadatok!$C$9+Alapadatok!$C$12-1),"x",I90+1)) -> 2028 | K90: =IF(J90="x","x",IF((J90+1)>(Alapadatok!$C$9+Alapadatok!$C$12-1),"x",J90+1)) -> 2029 | L90: =IF(K90="x","x",IF((K90+1)>(Alapadatok!$C$9+Alapadatok!$C$12-1),"x",K90+1)) -> 2030 | M90: =IF(L90="x","x",IF((L90+1)>(Alapadatok!$C$9+Alapadatok!$C$12-1),"x",L90+1)) -> 2031 | N90: =IF(M90="x","x",IF((M90+1)>(Alapadatok!$C$9+Alapadatok!$C$12-1),"x",M90+1)) -> 2032 | O90: =IF(N90="x","x",IF((N90+1)>(Alapadatok!$C$9+Alapadatok!$C$12-1),"x",N90+1)) -> 2033 | P90: =IF(O90="x","x",IF((O90+1)>(Alapadatok!$C$9+Alapadatok!$C$12-1),"x",O90+1)) -> 2034 | Q90: =IF(P90="x","x",IF((P90+1)>(Alapadatok!$C$9+Alapadatok!$C$12-1),"x",P90+1)) -> 2035 | R90: =IF(Q90="x","x",IF((Q90+1)>(Alapadatok!$C$9+Alapadatok!$C$12-1),"x",Q90+1)) -> 2036 | S90: =IF(R90="x","x",IF((R90+1)>(Alapadatok!$C$9+Alapadatok!$C$12-1),"x",R90+1)) -> 2037 | T90: =IF(S90="x","x",IF((S90+1)>(Alapadatok!$C$9+Alapadatok!$C$12-1),"x",S90+1)) -> 2038 | U90: =IF(T90="x","x",IF((T90+1)>(Alapadatok!$C$9+Alapadatok!$C$12-1),"x",T90+1)) -> 2039 | V90: =IF(U90="x","x",IF((U90+1)>(Alapadatok!$C$9+Alapadatok!$C$12-1),"x",U90+1)) -> 2040 | W90: =IF(V90="x","x",IF((V90+1)>(Alapadatok!$C$9+Alapadatok!$C$12-1),"x",V90+1)) -> 2041 | X90: =IF(W90="x","x",IF((W90+1)>(Alapadatok!$C$9+Alapadatok!$C$12-1),"x",W90+1)) -> 2042 | Y90: =IF(X90="x","x",IF((X90+1)>(Alapadatok!$C$9+Alapadatok!$C$12-1),"x",X90+1)) -> 2043 | Z90: =IF(Y90="x","x",IF((Y90+1)>(Alapadatok!$C$9+Alapadatok!$C$12-1),"x",Y90+1)) -> 2044 | AA90: =IF(Z90="x","x",IF((Z90+1)>(Alapadatok!$C$9+Alapadatok!$C$12-1),"x",Z90+1)) -> 2045 | AB90: =IF(AA90="x","x",IF((AA90+1)>(Alapadatok!$C$9+Alapadatok!$C$12-1),"x",AA90+1)) -> 2046 | AC90: =IF(AB90="x","x",IF((AB90+1)>(Alapadatok!$C$9+Alapadatok!$C$12-1),"x",AB90+1)) -> 2047 | AD90: =IF(AC90="x","x",IF((AC90+1)>(Alapadatok!$C$9+Alapadatok!$C$12-1),"x",AC90+1)) -> 2048 | AE90: =IF(AD90="x","x",IF((AD90+1)>(Alapadatok!$C$9+Alapadatok!$C$12-1),"x",AD90+1)) -> 2049 | AF90: =IF(AE90="x","x",IF((AE90+1)>(Alapadatok!$C$9+Alapadatok!$C$12-1),"x",AE90+1)) -> 2050 | AG90: =IF(AF90="x","x",IF((AF90+1)>(Alapadatok!$C$9+Alapadatok!$C$12-1),"x",AF90+1)) -> 2051 | AH90: =IF(AG90="x","x",IF((AG90+1)>(Alapadatok!$C$9+Alapadatok!$C$12-1),"x",AG90+1)) -> 2052
A91: =IF(SUMIF(E$73:AH$73,"<="&Hatter!$C$31,kozcelu_szimpla!E91:AH91)=C91,1,"Vizsgálati időtávon túli évek is kitöltve") -> 1 | B91: =CHOOSE(lang!$A$1,lang!$B36,lang!$C36) -> 0 | C91: =SUM(E91:AH91) -> 0 | D91: =E91+NPV(Alapadatok!$C$6,$F91:$AH91) -> 0
B93: A pótlás fogalmába az eszközök cseréje tartozik (például selejtezéskor). A költség-haszon elemzés pénzforgalmi szemléleten alapul, így értékcsökkenést nem tartalmazhat. Ezeket a költségeket nem szabad a számításban máshol figyelembe venni.
B95: Bevételi pénzáramok
B98: KÜLÖNBÖZET | C98: összesen | D98: fpv | E98: =Alapadatok!$C$9 -> 2023 | F98: =IF(E98="x","x",IF((E98+1)>(Alapadatok!$C$9+Alapadatok!$C$12-1),"x",E98+1)) -> 2024 | G98: =IF(F98="x","x",IF((F98+1)>(Alapadatok!$C$9+Alapadatok!$C$12-1),"x",F98+1)) -> 2025 | H98: =IF(G98="x","x",IF((G98+1)>(Alapadatok!$C$9+Alapadatok!$C$12-1),"x",G98+1)) -> 2026 | I98: =IF(H98="x","x",IF((H98+1)>(Alapadatok!$C$9+Alapadatok!$C$12-1),"x",H98+1)) -> 2027 | J98: =IF(I98="x","x",IF((I98+1)>(Alapadatok!$C$9+Alapadatok!$C$12-1),"x",I98+1)) -> 2028 | K98: =IF(J98="x","x",IF((J98+1)>(Alapadatok!$C$9+Alapadatok!$C$12-1),"x",J98+1)) -> 2029 | L98: =IF(K98="x","x",IF((K98+1)>(Alapadatok!$C$9+Alapadatok!$C$12-1),"x",K98+1)) -> 2030 | M98: =IF(L98="x","x",IF((L98+1)>(Alapadatok!$C$9+Alapadatok!$C$12-1),"x",L98+1)) -> 2031 | N98: =IF(M98="x","x",IF((M98+1)>(Alapadatok!$C$9+Alapadatok!$C$12-1),"x",M98+1)) -> 2032 | O98: =IF(N98="x","x",IF((N98+1)>(Alapadatok!$C$9+Alapadatok!$C$12-1),"x",N98+1)) -> 2033 | P98: =IF(O98="x","x",IF((O98+1)>(Alapadatok!$C$9+Alapadatok!$C$12-1),"x",O98+1)) -> 2034 | Q98: =IF(P98="x","x",IF((P98+1)>(Alapadatok!$C$9+Alapadatok!$C$12-1),"x",P98+1)) -> 2035 | R98: =IF(Q98="x","x",IF((Q98+1)>(Alapadatok!$C$9+Alapadatok!$C$12-1),"x",Q98+1)) -> 2036 | S98: =IF(R98="x","x",IF((R98+1)>(Alapadatok!$C$9+Alapadatok!$C$12-1),"x",R98+1)) -> 2037 | T98: =IF(S98="x","x",IF((S98+1)>(Alapadatok!$C$9+Alapadatok!$C$12-1),"x",S98+1)) -> 2038 | U98: =IF(T98="x","x",IF((T98+1)>(Alapadatok!$C$9+Alapadatok!$C$12-1),"x",T98+1)) -> 2039 | V98: =IF(U98="x","x",IF((U98+1)>(Alapadatok!$C$9+Alapadatok!$C$12-1),"x",U98+1)) -> 2040 | W98: =IF(V98="x","x",IF((V98+1)>(Alapadatok!$C$9+Alapadatok!$C$12-1),"x",V98+1)) -> 2041 | X98: =IF(W98="x","x",IF((W98+1)>(Alapadatok!$C$9+Alapadatok!$C$12-1),"x",W98+1)) -> 2042 | Y98: =IF(X98="x","x",IF((X98+1)>(Alapadatok!$C$9+Alapadatok!$C$12-1),"x",X98+1)) -> 2043 | Z98: =IF(Y98="x","x",IF((Y98+1)>(Alapadatok!$C$9+Alapadatok!$C$12-1),"x",Y98+1)) -> 2044 | AA98: =IF(Z98="x","x",IF((Z98+1)>(Alapadatok!$C$9+Alapadatok!$C$12-1),"x",Z98+1)) -> 2045 | AB98: =IF(AA98="x","x",IF((AA98+1)>(Alapadatok!$C$9+Alapadatok!$C$12-1),"x",AA98+1)) -> 2046 | AC98: =IF(AB98="x","x",IF((AB98+1)>(Alapadatok!$C$9+Alapadatok!$C$12-1),"x",AB98+1)) -> 2047 | AD98: =IF(AC98="x","x",IF((AC98+1)>(Alapadatok!$C$9+Alapadatok!$C$12-1),"x",AC98+1)) -> 2048 | AE98: =IF(AD98="x","x",IF((AD98+1)>(Alapadatok!$C$9+Alapadatok!$C$12-1),"x",AD98+1)) -> 2049 | AF98: =IF(AE98="x","x",IF((AE98+1)>(Alapadatok!$C$9+Alapadatok!$C$12-1),"x",AE98+1)) -> 2050 | AG98: =IF(AF98="x","x",IF((AF98+1)>(Alapadatok!$C$9+Alapadatok!$C$12-1),"x",AF98+1)) -> 2051 | AH98: =IF(AG98="x","x",IF((AG98+1)>(Alapadatok!$C$9+Alapadatok!$C$12-1),"x",AG98+1)) -> 2052
A99: =IF(SUMIF(E$73:AH$73,"<="&Hatter!$C$31,kozcelu_szimpla!E99:AH99)=C99,1,"Vizsgálati időtávon túli évek is kitöltve") -> 1 | B99: egyéb bejövő pénzáramok | C99: =SUM(E99:AH99) -> 0 | D99: =E99+NPV(Alapadatok!$C$6,$F99:$AH99) -> 0 | E99: =+E103-E107 -> 0 | F99: 0 | G99: 0 | H99: 0 | I99: 0 | J99: 0 | K99: 0 | L99: 0 | M99: 0 | N99: 0 | O99: =+O103-O107 -> 0 | P99: 0 | Q99: 0 | R99: 0 | S99: 0 | T99: 0 | U99: 0 | V99: 0 | W99: 0 | X99: 0 | Y99: 0 | Z99: 0 | AA99: 0 | AB99: 0 | AC99: 0 | AD99: 0 | AE99: 0 | AF99: 0 | AG99: 0 | AH99: 0
B100: Bevételi pénzáramok összesen | C100: 0 | D100: =E100+NPV(Alapadatok!$C$6,$F100:$AH100) -> 0 | E100: =SUM(E99:E99) -> 0 | F100: 0 | G100: 0 | H100: 0 | I100: 0 | J100: 0 | K100: 0 | L100: 0 | M100: 0 | N100: 0 | O100: =SUM(O99:O99) -> 0 | P100: 0 | Q100: 0 | R100: 0 | S100: 0 | T100: 0 | U100: 0 | V100: 0 | W100: 0 | X100: 0 | Y100: 0 | Z100: 0 | AA100: 0 | AB100: 0 | AC100: 0 | AD100: 0 | AE100: 0 | AF100: 0 | AG100: 0 | AH100: 0
B102: PROJEKT ESET | C102: összesen | D102: fpv | E102: =Alapadatok!$C$9 -> 2023 | F102: =IF(E102="x","x",IF((E102+1)>(Alapadatok!$C$9+Alapadatok!$C$12-1),"x",E102+1)) -> 2024 | G102: =IF(F102="x","x",IF((F102+1)>(Alapadatok!$C$9+Alapadatok!$C$12-1),"x",F102+1)) -> 2025 | H102: =IF(G102="x","x",IF((G102+1)>(Alapadatok!$C$9+Alapadatok!$C$12-1),"x",G102+1)) -> 2026 | I102: =IF(H102="x","x",IF((H102+1)>(Alapadatok!$C$9+Alapadatok!$C$12-1),"x",H102+1)) -> 2027 | J102: =IF(I102="x","x",IF((I102+1)>(Alapadatok!$C$9+Alapadatok!$C$12-1),"x",I102+1)) -> 2028 | K102: =IF(J102="x","x",IF((J102+1)>(Alapadatok!$C$9+Alapadatok!$C$12-1),"x",J102+1)) -> 2029 | L102: =IF(K102="x","x",IF((K102+1)>(Alapadatok!$C$9+Alapadatok!$C$12-1),"x",K102+1)) -> 2030 | M102: =IF(L102="x","x",IF((L102+1)>(Alapadatok!$C$9+Alapadatok!$C$12-1),"x",L102+1)) -> 2031 | N102: =IF(M102="x","x",IF((M102+1)>(Alapadatok!$C$9+Alapadatok!$C$12-1),"x",M102+1)) -> 2032 | O102: =IF(N102="x","x",IF((N102+1)>(Alapadatok!$C$9+Alapadatok!$C$12-1),"x",N102+1)) -> 2033 | P102: =IF(O102="x","x",IF((O102+1)>(Alapadatok!$C$9+Alapadatok!$C$12-1),"x",O102+1)) -> 2034 | Q102: =IF(P102="x","x",IF((P102+1)>(Alapadatok!$C$9+Alapadatok!$C$12-1),"x",P102+1)) -> 2035 | R102: =IF(Q102="x","x",IF((Q102+1)>(Alapadatok!$C$9+Alapadatok!$C$12-1),"x",Q102+1)) -> 2036 | S102: =IF(R102="x","x",IF((R102+1)>(Alapadatok!$C$9+Alapadatok!$C$12-1),"x",R102+1)) -> 2037 | T102: =IF(S102="x","x",IF((S102+1)>(Alapadatok!$C$9+Alapadatok!$C$12-1),"x",S102+1)) -> 2038 | U102: =IF(T102="x","x",IF((T102+1)>(Alapadatok!$C$9+Alapadatok!$C$12-1),"x",T102+1)) -> 2039 | V102: =IF(U102="x","x",IF((U102+1)>(Alapadatok!$C$9+Alapadatok!$C$12-1),"x",U102+1)) -> 2040 | W102: =IF(V102="x","x",IF((V102+1)>(Alapadatok!$C$9+Alapadatok!$C$12-1),"x",V102+1)) -> 2041 | X102: =IF(W102="x","x",IF((W102+1)>(Alapadatok!$C$9+Alapadatok!$C$12-1),"x",W102+1)) -> 2042 | Y102: =IF(X102="x","x",IF((X102+1)>(Alapadatok!$C$9+Alapadatok!$C$12-1),"x",X102+1)) -> 2043 | Z102: =IF(Y102="x","x",IF((Y102+1)>(Alapadatok!$C$9+Alapadatok!$C$12-1),"x",Y102+1)) -> 2044 | AA102: =IF(Z102="x","x",IF((Z102+1)>(Alapadatok!$C$9+Alapadatok!$C$12-1),"x",Z102+1)) -> 2045 | AB102: =IF(AA102="x","x",IF((AA102+1)>(Alapadatok!$C$9+Alapadatok!$C$12-1),"x",AA102+1)) -> 2046 | AC102: =IF(AB102="x","x",IF((AB102+1)>(Alapadatok!$C$9+Alapadatok!$C$12-1),"x",AB102+1)) -> 2047 | AD102: =IF(AC102="x","x",IF((AC102+1)>(Alapadatok!$C$9+Alapadatok!$C$12-1),"x",AC102+1)) -> 2048 | AE102: =IF(AD102="x","x",IF((AD102+1)>(Alapadatok!$C$9+Alapadatok!$C$12-1),"x",AD102+1)) -> 2049 | AF102: =IF(AE102="x","x",IF((AE102+1)>(Alapadatok!$C$9+Alapadatok!$C$12-1),"x",AE102+1)) -> 2050 | AG102: =IF(AF102="x","x",IF((AF102+1)>(Alapadatok!$C$9+Alapadatok!$C$12-1),"x",AF102+1)) -> 2051 | AH102: =IF(AG102="x","x",IF((AG102+1)>(Alapadatok!$C$9+Alapadatok!$C$12-1),"x",AG102+1)) -> 2052
A103: =IF(SUMIF(E$73:AH$73,"<="&Hatter!$C$31,kozcelu_szimpla!E103:AH103)=C103,1,"Vizsgálati időtávon túli évek is kitöltve") -> 1 | B103: egyéb bejövő pénzáramok | C103: =SUM(E103:AH103) -> 0 | D103: =E103+NPV(Alapadatok!$C$6,$F103:$AH103) -> 0
B104: Bevételi pénzáramok összesen | C104: 0 | D104: =E104+NPV(Alapadatok!$C$6,$F104:$AH104) -> 0 | E104: =SUM(E103:E103) -> 0 | F104: 0 | G104: 0 | H104: 0 | I104: 0 | J104: 0 | K104: 0 | L104: 0 | M104: 0 | N104: 0 | O104: =SUM(O103:O103) -> 0 | P104: 0 | Q104: 0 | R104: 0 | S104: 0 | T104: 0 | U104: 0 | V104: 0 | W104: 0 | X104: 0 | Y104: 0 | Z104: 0 | AA104: 0 | AB104: 0 | AC104: 0 | AD104: 0 | AE104: 0 | AF104: 0 | AG104: 0 | AH104: 0
B106: PROJEKT NÉLKÜLI ESET | C106: összesen | D106: fpv | E106: =Alapadatok!$C$9 -> 2023 | F106: =IF(E106="x","x",IF((E106+1)>(Alapadatok!$C$9+Alapadatok!$C$12-1),"x",E106+1)) -> 2024 | G106: =IF(F106="x","x",IF((F106+1)>(Alapadatok!$C$9+Alapadatok!$C$12-1),"x",F106+1)) -> 2025 | H106: =IF(G106="x","x",IF((G106+1)>(Alapadatok!$C$9+Alapadatok!$C$12-1),"x",G106+1)) -> 2026 | I106: =IF(H106="x","x",IF((H106+1)>(Alapadatok!$C$9+Alapadatok!$C$12-1),"x",H106+1)) -> 2027 | J106: =IF(I106="x","x",IF((I106+1)>(Alapadatok!$C$9+Alapadatok!$C$12-1),"x",I106+1)) -> 2028 | K106: =IF(J106="x","x",IF((J106+1)>(Alapadatok!$C$9+Alapadatok!$C$12-1),"x",J106+1)) -> 2029 | L106: =IF(K106="x","x",IF((K106+1)>(Alapadatok!$C$9+Alapadatok!$C$12-1),"x",K106+1)) -> 2030 | M106: =IF(L106="x","x",IF((L106+1)>(Alapadatok!$C$9+Alapadatok!$C$12-1),"x",L106+1)) -> 2031 | N106: =IF(M106="x","x",IF((M106+1)>(Alapadatok!$C$9+Alapadatok!$C$12-1),"x",M106+1)) -> 2032 | O106: =IF(N106="x","x",IF((N106+1)>(Alapadatok!$C$9+Alapadatok!$C$12-1),"x",N106+1)) -> 2033 | P106: =IF(O106="x","x",IF((O106+1)>(Alapadatok!$C$9+Alapadatok!$C$12-1),"x",O106+1)) -> 2034 | Q106: =IF(P106="x","x",IF((P106+1)>(Alapadatok!$C$9+Alapadatok!$C$12-1),"x",P106+1)) -> 2035 | R106: =IF(Q106="x","x",IF((Q106+1)>(Alapadatok!$C$9+Alapadatok!$C$12-1),"x",Q106+1)) -> 2036 | S106: =IF(R106="x","x",IF((R106+1)>(Alapadatok!$C$9+Alapadatok!$C$12-1),"x",R106+1)) -> 2037 | T106: =IF(S106="x","x",IF((S106+1)>(Alapadatok!$C$9+Alapadatok!$C$12-1),"x",S106+1)) -> 2038 | U106: =IF(T106="x","x",IF((T106+1)>(Alapadatok!$C$9+Alapadatok!$C$12-1),"x",T106+1)) -> 2039 | V106: =IF(U106="x","x",IF((U106+1)>(Alapadatok!$C$9+Alapadatok!$C$12-1),"x",U106+1)) -> 2040 | W106: =IF(V106="x","x",IF((V106+1)>(Alapadatok!$C$9+Alapadatok!$C$12-1),"x",V106+1)) -> 2041 | X106: =IF(W106="x","x",IF((W106+1)>(Alapadatok!$C$9+Alapadatok!$C$12-1),"x",W106+1)) -> 2042 | Y106: =IF(X106="x","x",IF((X106+1)>(Alapadatok!$C$9+Alapadatok!$C$12-1),"x",X106+1)) -> 2043 | Z106: =IF(Y106="x","x",IF((Y106+1)>(Alapadatok!$C$9+Alapadatok!$C$12-1),"x",Y106+1)) -> 2044 | AA106: =IF(Z106="x","x",IF((Z106+1)>(Alapadatok!$C$9+Alapadatok!$C$12-1),"x",Z106+1)) -> 2045 | AB106: =IF(AA106="x","x",IF((AA106+1)>(Alapadatok!$C$9+Alapadatok!$C$12-1),"x",AA106+1)) -> 2046 | AC106: =IF(AB106="x","x",IF((AB106+1)>(Alapadatok!$C$9+Alapadatok!$C$12-1),"x",AB106+1)) -> 2047 | AD106: =IF(AC106="x","x",IF((AC106+1)>(Alapadatok!$C$9+Alapadatok!$C$12-1),"x",AC106+1)) -> 2048 | AE106: =IF(AD106="x","x",IF((AD106+1)>(Alapadatok!$C$9+Alapadatok!$C$12-1),"x",AD106+1)) -> 2049 | AF106: =IF(AE106="x","x",IF((AE106+1)>(Alapadatok!$C$9+Alapadatok!$C$12-1),"x",AE106+1)) -> 2050 | AG106: =IF(AF106="x","x",IF((AF106+1)>(Alapadatok!$C$9+Alapadatok!$C$12-1),"x",AF106+1)) -> 2051 | AH106: =IF(AG106="x","x",IF((AG106+1)>(Alapadatok!$C$9+Alapadatok!$C$12-1),"x",AG106+1)) -> 2052
A107: =IF(SUMIF(E$73:AH$73,"<="&Hatter!$C$31,kozcelu_szimpla!E107:AH107)=C107,1,"Vizsgálati időtávon túli évek is kitöltve") -> 1 | B107: egyéb bejövő pénzáramok | C107: =SUM(E107:AH107) -> 0 | D107: =E107+NPV(Alapadatok!$C$6,$F107:$AH107) -> 0
B108: Bevételi pénzáramok összesen | C108: 0 | D108: =E108+NPV(Alapadatok!$C$6,$F108:$AH108) -> 0 | E108: =SUM(E107:E107) -> 0 | F108: 0 | G108: 0 | H108: 0 | I108: 0 | J108: 0 | K108: 0 | L108: 0 | M108: 0 | N108: 0 | O108: =SUM(O107:O107) -> 0 | P108: 0 | Q108: 0 | R108: 0 | S108: 0 | T108: 0 | U108: 0 | V108: 0 | W108: 0 | X108: 0 | Y108: 0 | Z108: 0 | AA108: 0 | AB108: 0 | AC108: 0 | AD108: 0 | AE108: 0 | AF108: 0 | AG108: 0 | AH108: 0
B110: Azegyéb bejövő pénzáramok olyan pénzáramok, melyek nem közvetlenül a felhasználóktól származnak, hanem például önkormányzati/állami támogatások.
B113: Önerő, hitel
B116: =CHOOSE(lang!A1,lang!B28,lang!C28) -> 0 | C116: összesen | D116: fpv | E116: =Alapadatok!$C$9 -> 2023 | F116: =IF(E116="x","x",IF((E116+1)>(Alapadatok!$C$9+Alapadatok!$C$12-1),"x",E116+1)) -> 2024 | G116: =IF(F116="x","x",IF((F116+1)>(Alapadatok!$C$9+Alapadatok!$C$12-1),"x",F116+1)) -> 2025 | H116: =IF(G116="x","x",IF((G116+1)>(Alapadatok!$C$9+Alapadatok!$C$12-1),"x",G116+1)) -> 2026 | I116: =IF(H116="x","x",IF((H116+1)>(Alapadatok!$C$9+Alapadatok!$C$12-1),"x",H116+1)) -> 2027 | J116: =IF(I116="x","x",IF((I116+1)>(Alapadatok!$C$9+Alapadatok!$C$12-1),"x",I116+1)) -> 2028 | K116: =IF(J116="x","x",IF((J116+1)>(Alapadatok!$C$9+Alapadatok!$C$12-1),"x",J116+1)) -> 2029 | L116: =IF(K116="x","x",IF((K116+1)>(Alapadatok!$C$9+Alapadatok!$C$12-1),"x",K116+1)) -> 2030 | M116: =IF(L116="x","x",IF((L116+1)>(Alapadatok!$C$9+Alapadatok!$C$12-1),"x",L116+1)) -> 2031 | N116: =IF(M116="x","x",IF((M116+1)>(Alapadatok!$C$9+Alapadatok!$C$12-1),"x",M116+1)) -> 2032 | O116: =IF(N116="x","x",IF((N116+1)>(Alapadatok!$C$9+Alapadatok!$C$12-1),"x",N116+1)) -> 2033 | P116: =IF(O116="x","x",IF((O116+1)>(Alapadatok!$C$9+Alapadatok!$C$12-1),"x",O116+1)) -> 2034 | Q116: =IF(P116="x","x",IF((P116+1)>(Alapadatok!$C$9+Alapadatok!$C$12-1),"x",P116+1)) -> 2035 | R116: =IF(Q116="x","x",IF((Q116+1)>(Alapadatok!$C$9+Alapadatok!$C$12-1),"x",Q116+1)) -> 2036 | S116: =IF(R116="x","x",IF((R116+1)>(Alapadatok!$C$9+Alapadatok!$C$12-1),"x",R116+1)) -> 2037 | T116: =IF(S116="x","x",IF((S116+1)>(Alapadatok!$C$9+Alapadatok!$C$12-1),"x",S116+1)) -> 2038 | U116: =IF(T116="x","x",IF((T116+1)>(Alapadatok!$C$9+Alapadatok!$C$12-1),"x",T116+1)) -> 2039 | V116: =IF(U116="x","x",IF((U116+1)>(Alapadatok!$C$9+Alapadatok!$C$12-1),"x",U116+1)) -> 2040 | W116: =IF(V116="x","x",IF((V116+1)>(Alapadatok!$C$9+Alapadatok!$C$12-1),"x",V116+1)) -> 2041 | X116: =IF(W116="x","x",IF((W116+1)>(Alapadatok!$C$9+Alapadatok!$C$12-1),"x",W116+1)) -> 2042 | Y116: =IF(X116="x","x",IF((X116+1)>(Alapadatok!$C$9+Alapadatok!$C$12-1),"x",X116+1)) -> 2043 | Z116: =IF(Y116="x","x",IF((Y116+1)>(Alapadatok!$C$9+Alapadatok!$C$12-1),"x",Y116+1)) -> 2044 | AA116: =IF(Z116="x","x",IF((Z116+1)>(Alapadatok!$C$9+Alapadatok!$C$12-1),"x",Z116+1)) -> 2045 | AB116: =IF(AA116="x","x",IF((AA116+1)>(Alapadatok!$C$9+Alapadatok!$C$12-1),"x",AA116+1)) -> 2046 | AC116: =IF(AB116="x","x",IF((AB116+1)>(Alapadatok!$C$9+Alapadatok!$C$12-1),"x",AB116+1)) -> 2047 | AD116: =IF(AC116="x","x",IF((AC116+1)>(Alapadatok!$C$9+Alapadatok!$C$12-1),"x",AC116+1)) -> 2048 | AE116: =IF(AD116="x","x",IF((AD116+1)>(Alapadatok!$C$9+Alapadatok!$C$12-1),"x",AD116+1)) -> 2049 | AF116: =IF(AE116="x","x",IF((AE116+1)>(Alapadatok!$C$9+Alapadatok!$C$12-1),"x",AE116+1)) -> 2050 | AG116: =IF(AF116="x","x",IF((AF116+1)>(Alapadatok!$C$9+Alapadatok!$C$12-1),"x",AF116+1)) -> 2051 | AH116: =IF(AG116="x","x",IF((AG116+1)>(Alapadatok!$C$9+Alapadatok!$C$12-1),"x",AG116+1)) -> 2052
A117: =IF(SUMIF(E$73:AH$73,"<="&Hatter!$C$31,kozcelu_szimpla!E117:AH117)=C117,1,"Vizsgálati időtávon túli évek is kitöltve") -> 1 | B117: =CHOOSE(lang!$A$1,lang!$B46,lang!$C46) -> 0 | C117: =SUM(E117:AH117) -> 0 | D117: =E117+NPV(Alapadatok!$C$6,$F117:$AH117) -> 0
A118: =IF(SUMIF(E$73:AH$73,"<="&Hatter!$C$31,kozcelu_szimpla!E118:AH118)=C118,1,"Vizsgálati időtávon túli évek is kitöltve") -> 1 | B118: =CHOOSE(lang!$A$1,lang!$B47,lang!$C47) -> 0 | C118: =SUM(E118:AH118) -> 0 | D118: =E118+NPV(Alapadatok!$C$6,$F118:$AH118) -> 0
A119: =IF(SUMIF(E$73:AH$73,"<="&Hatter!$C$31,kozcelu_szimpla!E119:AH119)=C119,1,"Vizsgálati időtávon túli évek is kitöltve") -> 1 | B119: =CHOOSE(lang!$A$1,lang!$B48,lang!$C48) -> 0 | C119: 0 | D119: =E119+NPV(Alapadatok!$C$6,$F119:$AH119) -> 0
A120: =IF(SUMIF(E$73:AH$73,"<="&Hatter!$C$31,kozcelu_szimpla!E120:AH120)=C120,1,"Vizsgálati időtávon túli évek is kitöltve") -> 1 | B120: =CHOOSE(lang!$A$1,lang!$B49,lang!$C49) -> 0 | C120: 0 | D120: =E120+NPV(Alapadatok!$C$6,$F120:$AH120) -> 0
A121: =IF(SUMIF(E$73:AH$73,"<="&Hatter!$C$31,kozcelu_szimpla!E121:AH121)=C121,1,"Vizsgálati időtávon túli évek is kitöltve") -> 1 | B121: =CHOOSE(lang!$A$1,lang!$B50,lang!$C50) -> 0 | C121: 0 | D121: =E121+NPV(Alapadatok!$C$6,$F121:$AH121) -> 0
B123: A hiteltörlesztés a hitelek tőketörlesztését magában foglaló kimenő pénzáram, melyet az elemzés a pénzügyi fenntarthatóság számításakor vesz figyelembe. Csak olyan hitelek törlesztése vehető figyelembe a soron, melyek a projekthez kapcsolódnak.
B124: A hitelek kamatának törlesztése a tőketörlesztés sorhoz kapcsolódó kamatokat tartalmazó kimenő pénzáram. A pénzügyi fenntarthatóság számításakor kell figyelembe venni.
B125: Az önerő soron a kedvezményezett által a projekt beruházásába/működésébe folyósított, bejövő pénzáram jelenik meg. A pénzügyi fenntarthatóság számításakor kell figyelembe venni.
B126: A hitel a banki (vagy tőkepiaci) forrásból származó bejövő pénzáram, melyet a kedvezményezett a projekt beruházásához/működtetéséhez vesz igénybe. A pénzügyi fenntarthatóság számításakor kell figyelembe venni.
B127: Az egyéb idegen forrás soron kell szerepeltetni minden, a korábbiakban fel nem sorolt bejövő pénzáramot.
B129: Pénzügyi elemzés
B131: Pénzügyi költségek összegzése
B134: Megnevezés | C134: Összesen | D134: fpv | E134: =Alapadatok!$C$9 -> 2023 | F134: =IF(E134="x","x",IF((E134+1)>(Alapadatok!$C$9+Alapadatok!$C$12-1),"x",E134+1)) -> 2024 | G134: =IF(F134="x","x",IF((F134+1)>(Alapadatok!$C$9+Alapadatok!$C$12-1),"x",F134+1)) -> 2025 | H134: =IF(G134="x","x",IF((G134+1)>(Alapadatok!$C$9+Alapadatok!$C$12-1),"x",G134+1)) -> 2026 | I134: =IF(H134="x","x",IF((H134+1)>(Alapadatok!$C$9+Alapadatok!$C$12-1),"x",H134+1)) -> 2027 | J134: =IF(I134="x","x",IF((I134+1)>(Alapadatok!$C$9+Alapadatok!$C$12-1),"x",I134+1)) -> 2028 | K134: =IF(J134="x","x",IF((J134+1)>(Alapadatok!$C$9+Alapadatok!$C$12-1),"x",J134+1)) -> 2029 | L134: =IF(K134="x","x",IF((K134+1)>(Alapadatok!$C$9+Alapadatok!$C$12-1),"x",K134+1)) -> 2030 | M134: =IF(L134="x","x",IF((L134+1)>(Alapadatok!$C$9+Alapadatok!$C$12-1),"x",L134+1)) -> 2031 | N134: =IF(M134="x","x",IF((M134+1)>(Alapadatok!$C$9+Alapadatok!$C$12-1),"x",M134+1)) -> 2032 | O134: =IF(N134="x","x",IF((N134+1)>(Alapadatok!$C$9+Alapadatok!$C$12-1),"x",N134+1)) -> 2033 | P134: =IF(O134="x","x",IF((O134+1)>(Alapadatok!$C$9+Alapadatok!$C$12-1),"x",O134+1)) -> 2034 | Q134: =IF(P134="x","x",IF((P134+1)>(Alapadatok!$C$9+Alapadatok!$C$12-1),"x",P134+1)) -> 2035 | R134: =IF(Q134="x","x",IF((Q134+1)>(Alapadatok!$C$9+Alapadatok!$C$12-1),"x",Q134+1)) -> 2036 | S134: =IF(R134="x","x",IF((R134+1)>(Alapadatok!$C$9+Alapadatok!$C$12-1),"x",R134+1)) -> 2037 | T134: =IF(S134="x","x",IF((S134+1)>(Alapadatok!$C$9+Alapadatok!$C$12-1),"x",S134+1)) -> 2038 | U134: =IF(T134="x","x",IF((T134+1)>(Alapadatok!$C$9+Alapadatok!$C$12-1),"x",T134+1)) -> 2039 | V134: =IF(U134="x","x",IF((U134+1)>(Alapadatok!$C$9+Alapadatok!$C$12-1),"x",U134+1)) -> 2040 | W134: =IF(V134="x","x",IF((V134+1)>(Alapadatok!$C$9+Alapadatok!$C$12-1),"x",V134+1)) -> 2041 | X134: =IF(W134="x","x",IF((W134+1)>(Alapadatok!$C$9+Alapadatok!$C$12-1),"x",W134+1)) -> 2042 | Y134: =IF(X134="x","x",IF((X134+1)>(Alapadatok!$C$9+Alapadatok!$C$12-1),"x",X134+1)) -> 2043 | Z134: =IF(Y134="x","x",IF((Y134+1)>(Alapadatok!$C$9+Alapadatok!$C$12-1),"x",Y134+1)) -> 2044 | AA134: =IF(Z134="x","x",IF((Z134+1)>(Alapadatok!$C$9+Alapadatok!$C$12-1),"x",Z134+1)) -> 2045 | AB134: =IF(AA134="x","x",IF((AA134+1)>(Alapadatok!$C$9+Alapadatok!$C$12-1),"x",AA134+1)) -> 2046 | AC134: =IF(AB134="x","x",IF((AB134+1)>(Alapadatok!$C$9+Alapadatok!$C$12-1),"x",AB134+1)) -> 2047 | AD134: =IF(AC134="x","x",IF((AC134+1)>(Alapadatok!$C$9+Alapadatok!$C$12-1),"x",AC134+1)) -> 2048 | AE134: =IF(AD134="x","x",IF((AD134+1)>(Alapadatok!$C$9+Alapadatok!$C$12-1),"x",AD134+1)) -> 2049 | AF134: =IF(AE134="x","x",IF((AE134+1)>(Alapadatok!$C$9+Alapadatok!$C$12-1),"x",AE134+1)) -> 2050 | AG134: =IF(AF134="x","x",IF((AF134+1)>(Alapadatok!$C$9+Alapadatok!$C$12-1),"x",AF134+1)) -> 2051 | AH134: =IF(AG134="x","x",IF((AG134+1)>(Alapadatok!$C$9+Alapadatok!$C$12-1),"x",AG134+1)) -> 2052
B135: Beruházási költség | C135: =SUM(E135:AH135) -> 0 | D135: =E135+NPV(Alapadatok!$C$6,$F135:$AH135) -> 0 | E135: =E62 -> 0 | F135: =F62 -> 0 | G135: =G62 -> 0 | H135: =H62 -> 0 | I135: =I62 -> 0 | J135: 0 | K135: 0 | L135: 0 | M135: 0 | N135: 0 | O135: 0 | P135: 0 | Q135: 0 | R135: 0 | S135: 0 | T135: 0 | U135: 0 | V135: 0 | W135: 0 | X135: 0 | Y135: 0 | Z135: 0 | AA135: 0 | AB135: 0 | AC135: 0 | AD135: 0 | AE135: 0 | AF135: 0 | AG135: 0 | AH135: 0
B136: Működési költség | C136: 0 | D136: =E136+NPV(Alapadatok!$C$6,$F136:$AH136) -> 0 | E136: =SUM(E137:E139) -> 0 | F136: =SUM(F137:F139) -> 0 | G136: 0 | H136: 0 | I136: 0 | J136: 0 | K136: 0 | L136: 0 | M136: 0 | N136: 0 | O136: =SUM(O137:O139) -> 0 | P136: 0 | Q136: 0 | R136: 0 | S136: 0 | T136: 0 | U136: 0 | V136: 0 | W136: 0 | X136: 0 | Y136: 0 | Z136: 0 | AA136: 0 | AB136: 0 | AC136: 0 | AD136: 0 | AE136: 0 | AF136: 0 | AG136: 0 | AH136: 0
B137: Üzemeltetési költségek | C137: 0 | D137: =E137+NPV(Alapadatok!$C$6,$F137:$AH137) -> 0 | E137: =E70 -> 0 | F137: 0 | G137: 0 | H137: 0 | I137: 0 | J137: 0 | K137: 0 | L137: 0 | M137: 0 | N137: 0 | O137: 0 | P137: 0 | Q137: 0 | R137: 0 | S137: 0 | T137: 0 | U137: 0 | V137: 0 | W137: 0 | X137: 0 | Y137: 0 | Z137: 0 | AA137: 0 | AB137: 0 | AC137: 0 | AD137: 0 | AE137: 0 | AF137: 0 | AG137: 0 | AH137: 0
B138: Karbantartási költségek | C138: 0 | D138: =E138+NPV(Alapadatok!$C$6,$F138:$AH138) -> 0 | E138: =E71 -> 0 | F138: 0 | G138: 0 | H138: 0 | I138: 0 | J138: 0 | K138: 0 | L138: 0 | M138: 0 | N138: 0 | O138: 0 | P138: 0 | Q138: 0 | R138: 0 | S138: 0 | T138: 0 | U138: 0 | V138: 0 | W138: 0 | X138: 0 | Y138: 0 | Z138: 0 | AA138: 0 | AB138: 0 | AC138: 0 | AD138: 0 | AE138: 0 | AF138: 0 | AG138: 0 | AH138: 0
B139: Pótlási költségek | C139: 0 | D139: =E139+NPV(Alapadatok!$C$6,$F139:$AH139) -> 0 | E139: =E85 -> 0 | F139: 0 | G139: 0 | H139: 0 | I139: 0 | J139: 0 | K139: 0 | L139: 0 | M139: 0 | N139: 0 | O139: 0 | P139: 0 | Q139: 0 | R139: 0 | S139: 0 | T139: 0 | U139: 0 | V139: 0 | W139: 0 | X139: 0 | Y139: 0 | Z139: 0 | AA139: 0 | AB139: 0 | AC139: 0 | AD139: 0 | AE139: 0 | AF139: 0 | AG139: 0 | AH139: 0
B140: Összesen | C140: 0 | D140: =E140+NPV(Alapadatok!$C$6,$F140:$AH140) -> 0 | E140: =+E135+E136 -> 0 | F140: 0 | G140: 0 | H140: 0 | I140: 0 | J140: 0 | K140: 0 | L140: 0 | M140: 0 | N140: 0 | O140: 0 | P140: 0 | Q140: 0 | R140: 0 | S140: 0 | T140: 0 | U140: 0 | V140: 0 | W140: 0 | X140: 0 | Y140: 0 | Z140: 0 | AA140: 0 | AB140: 0 | AC140: 0 | AD140: 0 | AE140: 0 | AF140: 0 | AG140: 0 | AH140: 0
B143: Támogatási összeg számítása
B145: maximális társfinanszírozási ráta
B146: =CHOOSE(lang!$A$1,lang!B85,lang!C85) -> Megnevezés | C146: % | D146: Ft | E146: euro
B147: =CHOOSE(lang!$A$1,lang!B86,lang!C86) -> Elszámolható költség (EC) | D147: =C21 -> 0 | E147: =IFERROR(D147/Alapadatok!$C$5,"-") -> 0
B148: =CHOOSE(lang!$A$1,lang!B87,lang!C87) -> Nem elszámolható költség (NEC) | D148: =D21 -> 0 | E148: =IFERROR(D148/Alapadatok!$C$5,"-") -> 0
B149: =CHOOSE(lang!$A$1,lang!B88,lang!C88) -> A támogatási konstrukcióra vonatkozó maximális támogatási arány (R) | C149: =Alapadatok!C37 -> 0
B150: =CHOOSE(lang!$A$1,lang!B89,lang!C89) -> A támogatás összege, azaz OP támogatás (DA=EC*R) | C150: =IFERROR(D150/SUM(D$150:D$151),"-") -> - | D150: =IFERROR(D147*C149,"-") -> 0 | E150: =IFERROR(D150/Alapadatok!$C$5,"-") -> 0
B151: =CHOOSE(lang!$A$1,lang!B90,lang!C90) -> Kedvezményezett hozzájárulása (=EC-DA+NEC) | C151: =IFERROR(D151/SUM(D$150:D$151),"-") -> - | D151: =IFERROR(D147-D150+D148,"-") -> 0 | E151: =IFERROR(D151/Alapadatok!$C$5,"-") -> 0
B153: A támogatási konstrukcióra vonatkozó maximális támogatási arányt a felhívás tartalmazza. Abban az esetben, ha az értéke 100%, az elszámolható költségek egészét OP forrás fedezi.
B156: Pénzügyi fenntarthatóság
B158: Figyelem! Az alábbi táblázat a munkalapon szereplő adatok felhasználásával, a PROJEKT ESETre került összeálításra. Abban az esetben, ha a Felhívás vagy más pályázati dokumentum más típusú fenntarthatósági számítást ír elő, az alábbi számítás helyett az előírtat kell elvégezni. Az alábbi számítás csak tájékoztató jellegű, szükséges az ellenőrzése, szükség szerinti korrekciója.
B160: =CHOOSE(lang!$A$1,lang!$B133,lang!$C133) -> Megnevezés | C160: =Alapadatok!$C$9 -> 2023 | D160: =IF(C160="x","x",IF((C160+1)>(Alapadatok!$C$9+Alapadatok!$C$12-1),"x",C160+1)) -> 2024 | E160: =IF(D160="x","x",IF((D160+1)>(Alapadatok!$C$9+Alapadatok!$C$12-1),"x",D160+1)) -> 2025 | F160: =IF(E160="x","x",IF((E160+1)>(Alapadatok!$C$9+Alapadatok!$C$12-1),"x",E160+1)) -> 2026 | G160: =IF(F160="x","x",IF((F160+1)>(Alapadatok!$C$9+Alapadatok!$C$12-1),"x",F160+1)) -> 2027 | H160: =IF(G160="x","x",IF((G160+1)>(Alapadatok!$C$9+Alapadatok!$C$12-1),"x",G160+1)) -> 2028 | I160: =IF(H160="x","x",IF((H160+1)>(Alapadatok!$C$9+Alapadatok!$C$12-1),"x",H160+1)) -> 2029 | J160: =IF(I160="x","x",IF((I160+1)>(Alapadatok!$C$9+Alapadatok!$C$12-1),"x",I160+1)) -> 2030 | K160: =IF(J160="x","x",IF((J160+1)>(Alapadatok!$C$9+Alapadatok!$C$12-1),"x",J160+1)) -> 2031 | L160: =IF(K160="x","x",IF((K160+1)>(Alapadatok!$C$9+Alapadatok!$C$12-1),"x",K160+1)) -> 2032 | M160: =IF(L160="x","x",IF((L160+1)>(Alapadatok!$C$9+Alapadatok!$C$12-1),"x",L160+1)) -> 2033 | N160: =IF(M160="x","x",IF((M160+1)>(Alapadatok!$C$9+Alapadatok!$C$12-1),"x",M160+1)) -> 2034 | O160: =IF(N160="x","x",IF((N160+1)>(Alapadatok!$C$9+Alapadatok!$C$12-1),"x",N160+1)) -> 2035 | P160: =IF(O160="x","x",IF((O160+1)>(Alapadatok!$C$9+Alapadatok!$C$12-1),"x",O160+1)) -> 2036 | Q160: =IF(P160="x","x",IF((P160+1)>(Alapadatok!$C$9+Alapadatok!$C$12-1),"x",P160+1)) -> 2037 | R160: =IF(Q160="x","x",IF((Q160+1)>(Alapadatok!$C$9+Alapadatok!$C$12-1),"x",Q160+1)) -> 2038 | S160: =IF(R160="x","x",IF((R160+1)>(Alapadatok!$C$9+Alapadatok!$C$12-1),"x",R160+1)) -> 2039 | T160: =IF(S160="x","x",IF((S160+1)>(Alapadatok!$C$9+Alapadatok!$C$12-1),"x",S160+1)) -> 2040 | U160: =IF(T160="x","x",IF((T160+1)>(Alapadatok!$C$9+Alapadatok!$C$12-1),"x",T160+1)) -> 2041 | V160: =IF(U160="x","x",IF((U160+1)>(Alapadatok!$C$9+Alapadatok!$C$12-1),"x",U160+1)) -> 2042 | W160: =IF(V160="x","x",IF((V160+1)>(Alapadatok!$C$9+Alapadatok!$C$12-1),"x",V160+1)) -> 2043 | X160: =IF(W160="x","x",IF((W160+1)>(Alapadatok!$C$9+Alapadatok!$C$12-1),"x",W160+1)) -> 2044 | Y160: =IF(X160="x","x",IF((X160+1)>(Alapadatok!$C$9+Alapadatok!$C$12-1),"x",X160+1)) -> 2045 | Z160: =IF(Y160="x","x",IF((Y160+1)>(Alapadatok!$C$9+Alapadatok!$C$12-1),"x",Y160+1)) -> 2046 | AA160: =IF(Z160="x","x",IF((Z160+1)>(Alapadatok!$C$9+Alapadatok!$C$12-1),"x",Z160+1)) -> 2047 | AB160: =IF(AA160="x","x",IF((AA160+1)>(Alapadatok!$C$9+Alapadatok!$C$12-1),"x",AA160+1)) -> 2048 | AC160: =IF(AB160="x","x",IF((AB160+1)>(Alapadatok!$C$9+Alapadatok!$C$12-1),"x",AB160+1)) -> 2049 | AD160: =IF(AC160="x","x",IF((AC160+1)>(Alapadatok!$C$9+Alapadatok!$C$12-1),"x",AC160+1)) -> 2050 | AE160: =IF(AD160="x","x",IF((AD160+1)>(Alapadatok!$C$9+Alapadatok!$C$12-1),"x",AD160+1)) -> 2051 | AF160: =IF(AE160="x","x",IF((AE160+1)>(Alapadatok!$C$9+Alapadatok!$C$12-1),"x",AE160+1)) -> 2052
B161: =CHOOSE(lang!$A$1,lang!$B134,lang!$C134) -> 1. Pénzügyi beruházási költség | C161: =E135 -> 0 | D161: =F135 -> 0 | E161: =G135 -> 0 | F161: =H135 -> 0 | G161: =I135 -> 0 | H161: =J62 -> 0 | I161: 0 | J161: 0 | K161: 0 | L161: 0 | M161: 0 | N161: 0 | O161: 0 | P161: 0 | Q161: 0 | R161: 0 | S161: 0 | T161: 0 | U161: 0 | V161: 0 | W161: 0 | X161: 0 | Y161: 0 | Z161: 0 | AA161: 0 | AB161: 0 | AC161: 0 | AD161: 0 | AE161: 0 | AF161: 0
B162: =CHOOSE(lang!$A$1,lang!$B135,lang!$C135) -> 2. Pénzügyi működési költség | C162: =E74+E75 -> 0 | D162: 0 | E162: 0 | F162: 0 | G162: 0 | H162: 0 | I162: 0 | J162: 0 | K162: 0 | L162: 0 | M162: 0 | N162: 0 | O162: 0 | P162: 0 | Q162: 0 | R162: 0 | S162: 0 | T162: 0 | U162: 0 | V162: 0 | W162: 0 | X162: 0 | Y162: 0 | Z162: 0 | AA162: 0 | AB162: 0 | AC162: 0 | AD162: 0 | AE162: 0 | AF162: 0
B163: =CHOOSE(lang!$A$1,lang!$B136,lang!$C136) -> 3. Hiteltörlesztés | C163: =E117 -> 0 | D163: 0 | E163: 0 | F163: 0 | G163: 0 | H163: 0 | I163: 0 | J163: 0 | K163: 0 | L163: 0 | M163: =O117 -> 0 | N163: 0 | O163: 0 | P163: 0 | Q163: 0 | R163: 0 | S163: 0 | T163: 0 | U163: 0 | V163: 0 | W163: =Y117 -> 0 | X163: 0 | Y163: 0 | Z163: 0 | AA163: 0 | AB163: 0 | AC163: 0 | AD163: 0 | AE163: 0 | AF163: 0
B164: =CHOOSE(lang!$A$1,lang!$B137,lang!$C137) -> 4. Hitel kamatának törlesztése | C164: 0 | D164: 0 | E164: 0 | F164: 0 | G164: 0 | H164: 0 | I164: 0 | J164: 0 | K164: 0 | L164: 0 | M164: 0 | N164: 0 | O164: 0 | P164: 0 | Q164: 0 | R164: 0 | S164: 0 | T164: 0 | U164: 0 | V164: 0 | W164: 0 | X164: 0 | Y164: 0 | Z164: 0 | AA164: 0 | AB164: 0 | AC164: 0 | AD164: 0 | AE164: 0 | AF164: 0
B165: =CHOOSE(lang!$A$1,lang!$B138,lang!$C138) -> 5. Egyéb
B166: =CHOOSE(lang!$A$1,lang!$B139,lang!$C139) -> 6. Kiadási pénzáram (1+2+3+4+5) | C166: =SUM(C161:C165) -> 0 | D166: =SUM(D161:D165) -> 0 | E166: =SUM(E161:E165) -> 0 | F166: 0 | G166: 0 | H166: 0 | I166: 0 | J166: 0 | K166: 0 | L166: 0 | M166: =SUM(M161:M165) -> 0 | N166: 0 | O166: 0 | P166: 0 | Q166: 0 | R166: 0 | S166: 0 | T166: 0 | U166: 0 | V166: 0 | W166: 0 | X166: 0 | Y166: 0 | Z166: 0 | AA166: 0 | AB166: 0 | AC166: 0 | AD166: 0 | AE166: 0 | AF166: 0
B167: =CHOOSE(lang!$A$1,lang!$B140,lang!$C140) -> 7. Pénzügyi bevétel | C167: 0 | D167: 0 | E167: 0 | F167: 0 | G167: 0 | H167: 0 | I167: 0 | J167: 0 | K167: 0 | L167: 0 | M167: 0 | N167: 0 | O167: 0 | P167: 0 | Q167: 0 | R167: 0 | S167: 0 | T167: 0 | U167: 0 | V167: 0 | W167: 0 | X167: 0 | Y167: 0 | Z167: 0 | AA167: 0 | AB167: 0 | AC167: 0 | AD167: 0 | AE167: 0 | AF167: 0
B168: =CHOOSE(lang!$A$1,lang!$B141,lang!$C141) -> 8. Egyéb bejövő pénzáram | C168: =E104 -> 0 | D168: 0 | E168: 0 | F168: 0 | G168: 0 | H168: 0 | I168: 0 | J168: 0 | K168: 0 | L168: 0 | M168: 0 | N168: 0 | O168: 0 | P168: 0 | Q168: 0 | R168: 0 | S168: 0 | T168: 0 | U168: 0 | V168: 0 | W168: 0 | X168: 0 | Y168: 0 | Z168: 0 | AA168: 0 | AB168: 0 | AC168: 0 | AD168: 0 | AE168: 0 | AF168: 0
B169: =CHOOSE(lang!$A$1,lang!$B142,lang!$C142) -> 9. EU támogatás | C169: =$C$149*E36 -> 0 | D169: =$C$149*F36 -> 0 | E169: =$C$149*G36 -> 0 | F169: =$C$149*H36 -> 0 | G169: =$C$149*I36 -> 0 | H169: 0 | I169: 0 | J169: 0 | K169: 0 | L169: 0 | M169: 0 | N169: 0 | O169: 0 | P169: 0 | Q169: 0 | R169: 0 | S169: 0 | T169: 0 | U169: 0 | V169: 0 | W169: 0 | X169: 0 | Y169: 0 | Z169: 0 | AA169: 0 | AB169: 0 | AC169: 0 | AD169: 0 | AE169: 0 | AF169: 0
B170: =CHOOSE(lang!$A$1,lang!$B143,lang!$C143) -> 10. Nemzeti hozzájárulás (11+12) | C170: =C171+C172 -> 0 | D170: =D171+D172 -> 0 | E170: =E171+E172 -> 0 | F170: =F171+F172 -> 0 | G170: =G171+G172 -> 0 | H170: =H171+H172 -> 0 | I170: =I171+I172 -> 0 | J170: =J171+J172 -> 0 | K170: =K171+K172 -> 0 | L170: =L171+L172 -> 0 | M170: =M171+M172 -> 0 | N170: =N171+N172 -> 0 | O170: =O171+O172 -> 0 | P170: =P171+P172 -> 0 | Q170: =Q171+Q172 -> 0 | R170: =R171+R172 -> 0 | S170: =S171+S172 -> 0 | T170: =T171+T172 -> 0 | U170: =U171+U172 -> 0 | V170: =V171+V172 -> 0 | W170: =W171+W172 -> 0 | X170: =X171+X172 -> 0 | Y170: =Y171+Y172 -> 0 | Z170: =Z171+Z172 -> 0 | AA170: =AA171+AA172 -> 0 | AB170: =AB171+AB172 -> 0 | AC170: =AC171+AC172 -> 0 | AD170: =AD171+AD172 -> 0 | AE170: =AE171+AE172 -> 0 | AF170: =AF171+AF172 -> 0
B171: =CHOOSE(lang!$A$1,lang!$B144,lang!$C144) -> 11. Központi költségvetés hozzájárulása | C171: =C161-C169 -> 0 | D171: 0 | E171: 0 | F171: 0 | G171: 0 | H171: 0 | I171: 0 | J171: 0 | K171: 0 | L171: 0 | M171: 0 | N171: 0 | O171: 0 | P171: 0 | Q171: 0 | R171: 0 | S171: 0 | T171: 0 | U171: 0 | V171: 0 | W171: 0 | X171: 0 | Y171: 0 | Z171: 0 | AA171: 0 | AB171: 0 | AC171: 0 | AD171: 0 | AE171: 0 | AF171: 0
B172: =CHOOSE(lang!$A$1,lang!$B145,lang!$C145) -> 12. Saját forrás (13+14) | C172: =SUM(C173:C174) -> 0 | D172: =SUM(D173:D174) -> 0 | E172: =SUM(E173:E174) -> 0 | F172: 0 | G172: 0 | H172: 0 | I172: 0 | J172: 0 | K172: 0 | L172: 0 | M172: =SUM(M173:M174) -> 0 | N172: 0 | O172: 0 | P172: 0 | Q172: 0 | R172: 0 | S172: 0 | T172: 0 | U172: 0 | V172: 0 | W172: 0 | X172: 0 | Y172: 0 | Z172: 0 | AA172: 0 | AB172: 0 | AC172: 0 | AD172: 0 | AE172: 0 | AF172: 0
B173: =CHOOSE(lang!$A$1,lang!$B146,lang!$C146) -> 13. Önerő (készpénz, munkaerő hozzájárulás) | C173: =E119 -> 0 | D173: 0 | E173: 0 | F173: 0 | G173: 0 | H173: 0 | I173: 0 | J173: 0 | K173: 0 | L173: 0 | M173: 0 | N173: 0 | O173: 0 | P173: 0 | Q173: 0 | R173: 0 | S173: 0 | T173: 0 | U173: 0 | V173: 0 | W173: 0 | X173: 0 | Y173: 0 | Z173: 0 | AA173: 0 | AB173: 0 | AC173: 0 | AD173: 0 | AE173: 0 | AF173: 0
B174: =CHOOSE(lang!$A$1,lang!$B147,lang!$C147) -> 14. Idegen forrás (15+16) | C174: =SUM(C175:C176) -> 0 | D174: =SUM(D175:D176) -> 0 | E174: =SUM(E175:E176) -> 0 | F174: 0 | G174: 0 | H174: 0 | I174: 0 | J174: 0 | K174: 0 | L174: 0 | M174: =SUM(M175:M176) -> 0 | N174: 0 | O174: 0 | P174: 0 | Q174: 0 | R174: 0 | S174: 0 | T174: 0 | U174: 0 | V174: 0 | W174: 0 | X174: 0 | Y174: 0 | Z174: 0 | AA174: 0 | AB174: 0 | AC174: 0 | AD174: 0 | AE174: 0 | AF174: 0
B175: =CHOOSE(lang!$A$1,lang!$B148,lang!$C148) -> 15. Hitel | C175: =E120 -> 0 | D175: 0 | E175: 0 | F175: 0 | G175: 0 | H175: 0 | I175: 0 | J175: 0 | K175: 0 | L175: 0 | M175: =O120 -> 0 | N175: 0 | O175: 0 | P175: 0 | Q175: 0 | R175: 0 | S175: 0 | T175: 0 | U175: 0 | V175: 0 | W175: =Y120 -> 0 | X175: 0 | Y175: 0 | Z175: 0 | AA175: 0 | AB175: 0 | AC175: 0 | AD175: 0 | AE175: 0 | AF175: 0
B176: =CHOOSE(lang!$A$1,lang!$B149,lang!$C149) -> 16. Egyéb idegen forrás | C176: 0 | D176: 0 | E176: 0 | F176: 0 | G176: 0 | H176: 0 | I176: 0 | J176: 0 | K176: 0 | L176: 0 | M176: 0 | N176: 0 | O176: 0 | P176: 0 | Q176: 0 | R176: 0 | S176: 0 | T176: 0 | U176: 0 | V176: 0 | W176: 0 | X176: 0 | Y176: 0 | Z176: 0 | AA176: 0 | AB176: 0 | AC176: 0 | AD176: 0 | AE176: 0 | AF176: 0
B177: =CHOOSE(lang!$A$1,lang!$B150,lang!$C150) -> 17. Pénzügyi maradványérték | C177: 0 | D177: 0 | E177: 0 | F177: 0 | G177: 0 | H177: 0 | I177: 0 | J177: 0 | K177: 0 | L177: 0 | M177: 0 | N177: 0 | O177: 0 | P177: 0 | Q177: 0 | R177: 0 | S177: 0 | T177: 0 | U177: 0 | V177: 0 | W177: 0 | X177: 0 | Y177: 0 | Z177: 0 | AA177: 0 | AB177: 0 | AC177: 0 | AD177: 0 | AE177: 0 | AF177: 0
B178: =CHOOSE(lang!$A$1,lang!$B151,lang!$C151) -> 18. Bevételi pénzáram (7+8+9+10) | C178: =SUM(C167:C170,C177) -> 0 | D178: =SUM(D167:D170,D177) -> 0 | E178: =SUM(E167:E170,E177) -> 0 | F178: 0 | G178: 0 | H178: 0 | I178: 0 | J178: 0 | K178: 0 | L178: 0 | M178: =SUM(M167:M170,M177) -> 0 | N178: 0 | O178: 0 | P178: 0 | Q178: 0 | R178: 0 | S178: 0 | T178: 0 | U178: 0 | V178: 0 | W178: 0 | X178: 0 | Y178: 0 | Z178: 0 | AA178: 0 | AB178: 0 | AC178: 0 | AD178: 0 | AE178: 0 | AF178: 0
B179: =CHOOSE(lang!$A$1,lang!$B152,lang!$C152) -> 19. Nettó összes pénzügyi pénzáram (18-6) | C179: =C178-C166 -> 0 | D179: =D178-D166 -> 0 | E179: =E178-E166 -> 0 | F179: 0 | G179: 0 | H179: 0 | I179: 0 | J179: 0 | K179: 0 | L179: 0 | M179: =M178-M166 -> 0 | N179: =N178-N166 -> 0 | O179: =O178-O166 -> 0 | P179: =P178-P166 -> 0 | Q179: =Q178-Q166 -> 0 | R179: =R178-R166 -> 0 | S179: =S178-S166 -> 0 | T179: =T178-T166 -> 0 | U179: =U178-U166 -> 0 | V179: =V178-V166 -> 0 | W179: =W178-W166 -> 0 | X179: =X178-X166 -> 0 | Y179: =Y178-Y166 -> 0 | Z179: =Z178-Z166 -> 0 | AA179: =AA178-AA166 -> 0 | AB179: =AB178-AB166 -> 0 | AC179: =AC178-AC166 -> 0 | AD179: =AD178-AD166 -> 0 | AE179: =AE178-AE166 -> 0 | AF179: =AF178-AF166 -> 0
B180: =CHOOSE(lang!$A$1,lang!$B153,lang!$C153) -> 20. Nettó halmozott pénzügyi pénzáram | C180: =C179 -> 0 | D180: =C180+D179 -> 0 | E180: =D180+E179 -> 0 | F180: 0 | G180: 0 | H180: 0 | I180: 0 | J180: 0 | K180: 0 | L180: 0 | M180: =L180+M179 -> 0 | N180: =M180+N179 -> 0 | O180: =N180+O179 -> 0 | P180: =O180+P179 -> 0 | Q180: =P180+Q179 -> 0 | R180: =Q180+R179 -> 0 | S180: =R180+S179 -> 0 | T180: =S180+T179 -> 0 | U180: =T180+U179 -> 0 | V180: =U180+V179 -> 0 | W180: =V180+W179 -> 0 | X180: =W180+X179 -> 0 | Y180: =X180+Y179 -> 0 | Z180: =Y180+Z179 -> 0 | AA180: =Z180+AA179 -> 0 | AB180: =AA180+AB179 -> 0 | AC180: =AB180+AC179 -> 0 | AD180: =AC180+AD179 -> 0 | AE180: =AD180+AE179 -> 0 | AF180: =AE180+AF179 -> 0
B182: A halmozott pénzügyi pénzáram egyik évben sem lehet negatív.
B184: Az alábbi táblázatban a pénzügyi fenntarthatósági számítás egyéb esete számítható.
B186: =CHOOSE(lang!$A$1,lang!$B133,lang!$C133) -> Megnevezés | C186: =Alapadatok!$C$9 -> 2023 | D186: =IF(C186="x","x",IF((C186+1)>(Alapadatok!$C$9+Alapadatok!$C$12-1),"x",C186+1)) -> 2024 | E186: =IF(D186="x","x",IF((D186+1)>(Alapadatok!$C$9+Alapadatok!$C$12-1),"x",D186+1)) -> 2025 | F186: =IF(E186="x","x",IF((E186+1)>(Alapadatok!$C$9+Alapadatok!$C$12-1),"x",E186+1)) -> 2026 | G186: =IF(F186="x","x",IF((F186+1)>(Alapadatok!$C$9+Alapadatok!$C$12-1),"x",F186+1)) -> 2027 | H186: =IF(G186="x","x",IF((G186+1)>(Alapadatok!$C$9+Alapadatok!$C$12-1),"x",G186+1)) -> 2028 | I186: =IF(H186="x","x",IF((H186+1)>(Alapadatok!$C$9+Alapadatok!$C$12-1),"x",H186+1)) -> 2029 | J186: =IF(I186="x","x",IF((I186+1)>(Alapadatok!$C$9+Alapadatok!$C$12-1),"x",I186+1)) -> 2030 | K186: =IF(J186="x","x",IF((J186+1)>(Alapadatok!$C$9+Alapadatok!$C$12-1),"x",J186+1)) -> 2031 | L186: =IF(K186="x","x",IF((K186+1)>(Alapadatok!$C$9+Alapadatok!$C$12-1),"x",K186+1)) -> 2032 | M186: =IF(L186="x","x",IF((L186+1)>(Alapadatok!$C$9+Alapadatok!$C$12-1),"x",L186+1)) -> 2033 | N186: =IF(M186="x","x",IF((M186+1)>(Alapadatok!$C$9+Alapadatok!$C$12-1),"x",M186+1)) -> 2034 | O186: =IF(N186="x","x",IF((N186+1)>(Alapadatok!$C$9+Alapadatok!$C$12-1),"x",N186+1)) -> 2035 | P186: =IF(O186="x","x",IF((O186+1)>(Alapadatok!$C$9+Alapadatok!$C$12-1),"x",O186+1)) -> 2036 | Q186: =IF(P186="x","x",IF((P186+1)>(Alapadatok!$C$9+Alapadatok!$C$12-1),"x",P186+1)) -> 2037 | R186: =IF(Q186="x","x",IF((Q186+1)>(Alapadatok!$C$9+Alapadatok!$C$12-1),"x",Q186+1)) -> 2038 | S186: =IF(R186="x","x",IF((R186+1)>(Alapadatok!$C$9+Alapadatok!$C$12-1),"x",R186+1)) -> 2039 | T186: =IF(S186="x","x",IF((S186+1)>(Alapadatok!$C$9+Alapadatok!$C$12-1),"x",S186+1)) -> 2040 | U186: =IF(T186="x","x",IF((T186+1)>(Alapadatok!$C$9+Alapadatok!$C$12-1),"x",T186+1)) -> 2041 | V186: =IF(U186="x","x",IF((U186+1)>(Alapadatok!$C$9+Alapadatok!$C$12-1),"x",U186+1)) -> 2042 | W186: =IF(V186="x","x",IF((V186+1)>(Alapadatok!$C$9+Alapadatok!$C$12-1),"x",V186+1)) -> 2043 | X186: =IF(W186="x","x",IF((W186+1)>(Alapadatok!$C$9+Alapadatok!$C$12-1),"x",W186+1)) -> 2044 | Y186: =IF(X186="x","x",IF((X186+1)>(Alapadatok!$C$9+Alapadatok!$C$12-1),"x",X186+1)) -> 2045 | Z186: =IF(Y186="x","x",IF((Y186+1)>(Alapadatok!$C$9+Alapadatok!$C$12-1),"x",Y186+1)) -> 2046 | AA186: =IF(Z186="x","x",IF((Z186+1)>(Alapadatok!$C$9+Alapadatok!$C$12-1),"x",Z186+1)) -> 2047 | AB186: =IF(AA186="x","x",IF((AA186+1)>(Alapadatok!$C$9+Alapadatok!$C$12-1),"x",AA186+1)) -> 2048 | AC186: =IF(AB186="x","x",IF((AB186+1)>(Alapadatok!$C$9+Alapadatok!$C$12-1),"x",AB186+1)) -> 2049 | AD186: =IF(AC186="x","x",IF((AC186+1)>(Alapadatok!$C$9+Alapadatok!$C$12-1),"x",AC186+1)) -> 2050 | AE186: =IF(AD186="x","x",IF((AD186+1)>(Alapadatok!$C$9+Alapadatok!$C$12-1),"x",AD186+1)) -> 2051 | AF186: =IF(AE186="x","x",IF((AE186+1)>(Alapadatok!$C$9+Alapadatok!$C$12-1),"x",AE186+1)) -> 2052
B187: =CHOOSE(lang!$A$1,lang!$B134,lang!$C134) -> 1. Pénzügyi beruházási költség
B188: =CHOOSE(lang!$A$1,lang!$B135,lang!$C135) -> 2. Pénzügyi működési költség
B189: =CHOOSE(lang!$A$1,lang!$B136,lang!$C136) -> 3. Hiteltörlesztés
B190: =CHOOSE(lang!$A$1,lang!$B137,lang!$C137) -> 4. Hitel kamatának törlesztése
B191: =CHOOSE(lang!$A$1,lang!$B138,lang!$C138) -> 5. Egyéb
B192: =CHOOSE(lang!$A$1,lang!$B139,lang!$C139) -> 6. Kiadási pénzáram (1+2+3+4+5)
B193: =CHOOSE(lang!$A$1,lang!$B140,lang!$C140) -> 7. Pénzügyi bevétel
B194: =CHOOSE(lang!$A$1,lang!$B141,lang!$C141) -> 8. Egyéb bejövő pénzáram
B195: =CHOOSE(lang!$A$1,lang!$B142,lang!$C142) -> 9. EU támogatás
B196: =CHOOSE(lang!$A$1,lang!$B143,lang!$C143) -> 10. Nemzeti hozzájárulás (11+12)
B197: =CHOOSE(lang!$A$1,lang!$B144,lang!$C144) -> 11. Központi költségvetés hozzájárulása
B198: =CHOOSE(lang!$A$1,lang!$B145,lang!$C145) -> 12. Saját forrás (13+14)
B199: =CHOOSE(lang!$A$1,lang!$B146,lang!$C146) -> 13. Önerő (készpénz, munkaerő hozzájárulás)
B200: =CHOOSE(lang!$A$1,lang!$B147,lang!$C147) -> 14. Idegen forrás (15+16)
B201: =CHOOSE(lang!$A$1,lang!$B148,lang!$C148) -> 15. Hitel
B202: =CHOOSE(lang!$A$1,lang!$B149,lang!$C149) -> 16. Egyéb idegen forrás
B203: =CHOOSE(lang!$A$1,lang!$B150,lang!$C150) -> 17. Pénzügyi maradványérték
B204: =CHOOSE(lang!$A$1,lang!$B151,lang!$C151) -> 18. Bevételi pénzáram (7+8+9+10)
B205: =CHOOSE(lang!$A$1,lang!$B152,lang!$C152) -> 19. Nettó összes pénzügyi pénzáram (18-6)
B206: =CHOOSE(lang!$A$1,lang!$B153,lang!$C153) -> 20. Nettó halmozott pénzügyi pénzáram

Sheet kozcelu_komplex (hidden)
B1: Vissza a tartalomjegyzékhez
B3: támogatási kategória
B4: =Hatter!B11 -> nem állami támogatás (közcélú), komplex számítás
B6: A lap olyan projektek elemzésére alkalmas, melyek 1m euró feletti elszámolható költségűek és működésük során rendszeres vagy egyszeri bevételt termelnek és/vagy költségmegtakarítást eredményeznek. Mivel a bevétel termelés és a működési költség megtakarítás miatt a nettó bevétel termelést vizsgálni kell, ezért az elemzés során több adat megadása szükséges ahhoz, hogy a nettó működési bevétel összege pontosan megállapítható legyen.
B8: Beruházási költség
C10: teljes elszámolható költség | D10: nem elszámolható költség | E10: összes költség
B11: =CHOOSE(lang!$A$1,lang!$B6,lang!$C6) -> projektelőkészítés költségei | C11: =SUM(E26:I26) -> 0 | D11: =SUM(E39:I39) -> 0 | E11: =C11+D11 -> 0
B12: =CHOOSE(lang!$A$1,lang!$B7,lang!$C7) -> beruházásihoz kapcsolódó költségek | C12: 0 | D12: 0 | E12: =C12+D12 -> 0
B13: =CHOOSE(lang!$A$1,lang!$B8,lang!$C8) -> szakmai megvalósításhoz kapcsolódó szolgáltatások költségei | C13: 0 | D13: 0 | E13: 0
B14: =CHOOSE(lang!$A$1,lang!$B9,lang!$C9) -> projektmenedzsment költségek | C14: 0 | D14: 0 | E14: 0
B15: =CHOOSE(lang!$A$1,lang!$B10,lang!$C10) -> adók, közterhek (ide nem értve a le nem vonható áfát) | C15: 0 | D15: 0 | E15: 0
B16: =CHOOSE(lang!$A$1,lang!$B11,lang!$C11) -> tartalék | C16: 0 | D16: 0 | E16: 0
B17: =CHOOSE(lang!$A$1,lang!$B12,lang!$C12) -> - | C17: 0 | D17: 0 | E17: 0
B18: =CHOOSE(lang!$A$1,lang!$B13,lang!$C13) -> - | C18: 0 | D18: 0 | E18: 0
B19: =CHOOSE(lang!$A$1,lang!$B14,lang!$C14) -> - | C19: 0 | D19: 0 | E19: 0
B20: =CHOOSE(lang!$A$1,lang!$B16,lang!$C16) -> Tartalék nélküli beruházási költség | C20: =SUM(E35:I35) -> 0 | D20: =SUM(E48:I48) -> 0 | E20: 0
B21: =CHOOSE(lang!$A$1,lang!$B17,lang!$C17) -> Teljes beruházási költség | C21: =SUM(C11:C19) -> 0 | D21: =SUM(D11:D19) -> 0 | E21: =SUM(E11:E19) -> 0
B23: A beruházási költségeka korábban megadott adatok alapján kerülnek számításra. A "beruhazasi_ktg" lapon szükséges megadni a költségelem támogatási kategóriáját, elszámolhatóságát, költségtípusát, beruházási évét és ÁFA státuszát.
B25: =CHOOSE(lang!A1,lang!B21,lang!C21) -> elszámolható költség | C25: összesen | D25: fpv | E25: =Alapadatok!$C$9 -> 2023 | F25: =E25+1 -> 2024 | G25: =F25+1 -> 2025 | H25: 2026 | I25: 2027
B26: =CHOOSE(lang!$A$1,lang!$B6,lang!$C6) -> projektelőkészítés költségei | C26: =SUM(E26:I26) -> 0 | D26: =E26+NPV(Alapadatok!$C$6,F26:I26) -> 0 | E26: =SUMIFS(Beruhazasi_ktg!AI$8:AI$107,Beruhazasi_ktg!$B$8:$B$107,lista_0,Beruhazasi_ktg!$A$8:$A$107,"alsor",Beruhazasi_ktg!$O$8:$O$107,$B26) -> 0 | F26: =SUMIFS(Beruhazasi_ktg!AJ$8:AJ$107,Beruhazasi_ktg!$B$8:$B$107,lista_0,Beruhazasi_ktg!$A$8:$A$107,"alsor",Beruhazasi_ktg!$O$8:$O$107,$B26) -> 0 | G26: =SUMIFS(Beruhazasi_ktg!AK$8:AK$107,Beruhazasi_ktg!$B$8:$B$107,lista_0,Beruhazasi_ktg!$A$8:$A$107,"alsor",Beruhazasi_ktg!$O$8:$O$107,$B26) -> 0 | H26: =SUMIFS(Beruhazasi_ktg!AL$8:AL$107,Beruhazasi_ktg!$B$8:$B$107,lista_0,Beruhazasi_ktg!$A$8:$A$107,"alsor",Beruhazasi_ktg!$O$8:$O$107,$B26) -> 0 | I26: =SUMIFS(Beruhazasi_ktg!AM$8:AM$107,Beruhazasi_ktg!$B$8:$B$107,lista_0,Beruhazasi_ktg!$A$8:$A$107,"alsor",Beruhazasi_ktg!$O$8:$O$107,$B26) -> 0
B27: =CHOOSE(lang!$A$1,lang!$B7,lang!$C7) -> beruházásihoz kapcsolódó költségek | C27: =SUM(E27:I27) -> 0 | D27: =E27+NPV(Alapadatok!$C$6,F27:I27) -> 0 | E27: =SUMIFS(Beruhazasi_ktg!AI$8:AI$107,Beruhazasi_ktg!$B$8:$B$107,lista_0,Beruhazasi_ktg!$A$8:$A$107,"alsor",Beruhazasi_ktg!$O$8:$O$107,$B27) -> 0 | F27: =SUMIFS(Beruhazasi_ktg!AJ$8:AJ$107,Beruhazasi_ktg!$B$8:$B$107,lista_0,Beruhazasi_ktg!$A$8:$A$107,"alsor",Beruhazasi_ktg!$O$8:$O$107,$B27) -> 0 | G27: =SUMIFS(Beruhazasi_ktg!AK$8:AK$107,Beruhazasi_ktg!$B$8:$B$107,lista_0,Beruhazasi_ktg!$A$8:$A$107,"alsor",Beruhazasi_ktg!$O$8:$O$107,$B27) -> 0 | H27: =SUMIFS(Beruhazasi_ktg!AL$8:AL$107,Beruhazasi_ktg!$B$8:$B$107,lista_0,Beruhazasi_ktg!$A$8:$A$107,"alsor",Beruhazasi_ktg!$O$8:$O$107,$B27) -> 0 | I27: =SUMIFS(Beruhazasi_ktg!AM$8:AM$107,Beruhazasi_ktg!$B$8:$B$107,lista_0,Beruhazasi_ktg!$A$8:$A$107,"alsor",Beruhazasi_ktg!$O$8:$O$107,$B27) -> 0
B28: =CHOOSE(lang!$A$1,lang!$B8,lang!$C8) -> szakmai megvalósításhoz kapcsolódó szolgáltatások költségei | C28: 0 | D28: =E28+NPV(Alapadatok!$C$6,F28:I28) -> 0 | E28: =SUMIFS(Beruhazasi_ktg!AI$8:AI$107,Beruhazasi_ktg!$B$8:$B$107,lista_0,Beruhazasi_ktg!$A$8:$A$107,"alsor",Beruhazasi_ktg!$O$8:$O$107,$B28) -> 0 | F28: =SUMIFS(Beruhazasi_ktg!AJ$8:AJ$107,Beruhazasi_ktg!$B$8:$B$107,lista_0,Beruhazasi_ktg!$A$8:$A$107,"alsor",Beruhazasi_ktg!$O$8:$O$107,$B28) -> 0 | G28: =SUMIFS(Beruhazasi_ktg!AK$8:AK$107,Beruhazasi_ktg!$B$8:$B$107,lista_0,Beruhazasi_ktg!$A$8:$A$107,"alsor",Beruhazasi_ktg!$O$8:$O$107,$B28) -> 0 | H28: =SUMIFS(Beruhazasi_ktg!AL$8:AL$107,Beruhazasi_ktg!$B$8:$B$107,lista_0,Beruhazasi_ktg!$A$8:$A$107,"alsor",Beruhazasi_ktg!$O$8:$O$107,$B28) -> 0 | I28: =SUMIFS(Beruhazasi_ktg!AM$8:AM$107,Beruhazasi_ktg!$B$8:$B$107,lista_0,Beruhazasi_ktg!$A$8:$A$107,"alsor",Beruhazasi_ktg!$O$8:$O$107,$B28) -> 0
B29: =CHOOSE(lang!$A$1,lang!$B9,lang!$C9) -> projektmenedzsment költségek | C29: 0 | D29: =E29+NPV(Alapadatok!$C$6,F29:I29) -> 0 | E29: =SUMIFS(Beruhazasi_ktg!AI$8:AI$107,Beruhazasi_ktg!$B$8:$B$107,lista_0,Beruhazasi_ktg!$A$8:$A$107,"alsor",Beruhazasi_ktg!$O$8:$O$107,$B29) -> 0 | F29: =SUMIFS(Beruhazasi_ktg!AJ$8:AJ$107,Beruhazasi_ktg!$B$8:$B$107,lista_0,Beruhazasi_ktg!$A$8:$A$107,"alsor",Beruhazasi_ktg!$O$8:$O$107,$B29) -> 0 | G29: =SUMIFS(Beruhazasi_ktg!AK$8:AK$107,Beruhazasi_ktg!$B$8:$B$107,lista_0,Beruhazasi_ktg!$A$8:$A$107,"alsor",Beruhazasi_ktg!$O$8:$O$107,$B29) -> 0 | H29: =SUMIFS(Beruhazasi_ktg!AL$8:AL$107,Beruhazasi_ktg!$B$8:$B$107,lista_0,Beruhazasi_ktg!$A$8:$A$107,"alsor",Beruhazasi_ktg!$O$8:$O$107,$B29) -> 0 | I29: =SUMIFS(Beruhazasi_ktg!AM$8:AM$107,Beruhazasi_ktg!$B$8:$B$107,lista_0,Beruhazasi_ktg!$A$8:$A$107,"alsor",Beruhazasi_ktg!$O$8:$O$107,$B29) -> 0
B30: =CHOOSE(lang!$A$1,lang!$B10,lang!$C10) -> adók, közterhek (ide nem értve a le nem vonható áfát) | C30: 0 | D30: =E30+NPV(Alapadatok!$C$6,F30:I30) -> 0 | E30: =SUMIFS(Beruhazasi_ktg!AI$8:AI$107,Beruhazasi_ktg!$B$8:$B$107,lista_0,Beruhazasi_ktg!$A$8:$A$107,"alsor",Beruhazasi_ktg!$O$8:$O$107,$B30) -> 0 | F30: =SUMIFS(Beruhazasi_ktg!AJ$8:AJ$107,Beruhazasi_ktg!$B$8:$B$107,lista_0,Beruhazasi_ktg!$A$8:$A$107,"alsor",Beruhazasi_ktg!$O$8:$O$107,$B30) -> 0 | G30: =SUMIFS(Beruhazasi_ktg!AK$8:AK$107,Beruhazasi_ktg!$B$8:$B$107,lista_0,Beruhazasi_ktg!$A$8:$A$107,"alsor",Beruhazasi_ktg!$O$8:$O$107,$B30) -> 0 | H30: =SUMIFS(Beruhazasi_ktg!AL$8:AL$107,Beruhazasi_ktg!$B$8:$B$107,lista_0,Beruhazasi_ktg!$A$8:$A$107,"alsor",Beruhazasi_ktg!$O$8:$O$107,$B30) -> 0 | I30: =SUMIFS(Beruhazasi_ktg!AM$8:AM$107,Beruhazasi_ktg!$B$8:$B$107,lista_0,Beruhazasi_ktg!$A$8:$A$107,"alsor",Beruhazasi_ktg!$O$8:$O$107,$B30) -> 0
B31: =CHOOSE(lang!$A$1,lang!$B11,lang!$C11) -> tartalék | C31: 0 | D31: =E31+NPV(Alapadatok!$C$6,F31:I31) -> 0 | E31: =SUMIFS(Beruhazasi_ktg!AI$8:AI$107,Beruhazasi_ktg!$B$8:$B$107,lista_0,Beruhazasi_ktg!$A$8:$A$107,"alsor",Beruhazasi_ktg!$O$8:$O$107,$B31) -> 0 | F31: =SUMIFS(Beruhazasi_ktg!AJ$8:AJ$107,Beruhazasi_ktg!$B$8:$B$107,lista_0,Beruhazasi_ktg!$A$8:$A$107,"alsor",Beruhazasi_ktg!$O$8:$O$107,$B31) -> 0 | G31: =SUMIFS(Beruhazasi_ktg!AK$8:AK$107,Beruhazasi_ktg!$B$8:$B$107,lista_0,Beruhazasi_ktg!$A$8:$A$107,"alsor",Beruhazasi_ktg!$O$8:$O$107,$B31) -> 0 | H31: =SUMIFS(Beruhazasi_ktg!AL$8:AL$107,Beruhazasi_ktg!$B$8:$B$107,lista_0,Beruhazasi_ktg!$A$8:$A$107,"alsor",Beruhazasi_ktg!$O$8:$O$107,$B31) -> 0 | I31: =SUMIFS(Beruhazasi_ktg!AM$8:AM$107,Beruhazasi_ktg!$B$8:$B$107,lista_0,Beruhazasi_ktg!$A$8:$A$107,"alsor",Beruhazasi_ktg!$O$8:$O$107,$B31) -> 0
B32: =CHOOSE(lang!$A$1,lang!$B12,lang!$C12) -> - | C32: 0 | D32: =E32+NPV(Alapadatok!$C$6,F32:I32) -> 0 | E32: =SUMIFS(Beruhazasi_ktg!AI$8:AI$107,Beruhazasi_ktg!$B$8:$B$107,lista_0,Beruhazasi_ktg!$A$8:$A$107,"alsor",Beruhazasi_ktg!$O$8:$O$107,$B32) -> 0 | F32: =SUMIFS(Beruhazasi_ktg!AJ$8:AJ$107,Beruhazasi_ktg!$B$8:$B$107,lista_0,Beruhazasi_ktg!$A$8:$A$107,"alsor",Beruhazasi_ktg!$O$8:$O$107,$B32) -> 0 | G32: =SUMIFS(Beruhazasi_ktg!AK$8:AK$107,Beruhazasi_ktg!$B$8:$B$107,lista_0,Beruhazasi_ktg!$A$8:$A$107,"alsor",Beruhazasi_ktg!$O$8:$O$107,$B32) -> 0 | H32: =SUMIFS(Beruhazasi_ktg!AL$8:AL$107,Beruhazasi_ktg!$B$8:$B$107,lista_0,Beruhazasi_ktg!$A$8:$A$107,"alsor",Beruhazasi_ktg!$O$8:$O$107,$B32) -> 0 | I32: =SUMIFS(Beruhazasi_ktg!AM$8:AM$107,Beruhazasi_ktg!$B$8:$B$107,lista_0,Beruhazasi_ktg!$A$8:$A$107,"alsor",Beruhazasi_ktg!$O$8:$O$107,$B32) -> 0
B33: =CHOOSE(lang!$A$1,lang!$B13,lang!$C13) -> - | C33: 0 | D33: =E33+NPV(Alapadatok!$C$6,F33:I33) -> 0 | E33: =SUMIFS(Beruhazasi_ktg!AI$8:AI$107,Beruhazasi_ktg!$B$8:$B$107,lista_0,Beruhazasi_ktg!$A$8:$A$107,"alsor",Beruhazasi_ktg!$O$8:$O$107,$B33) -> 0 | F33: =SUMIFS(Beruhazasi_ktg!AJ$8:AJ$107,Beruhazasi_ktg!$B$8:$B$107,lista_0,Beruhazasi_ktg!$A$8:$A$107,"alsor",Beruhazasi_ktg!$O$8:$O$107,$B33) -> 0 | G33: =SUMIFS(Beruhazasi_ktg!AK$8:AK$107,Beruhazasi_ktg!$B$8:$B$107,lista_0,Beruhazasi_ktg!$A$8:$A$107,"alsor",Beruhazasi_ktg!$O$8:$O$107,$B33) -> 0 | H33: =SUMIFS(Beruhazasi_ktg!AL$8:AL$107,Beruhazasi_ktg!$B$8:$B$107,lista_0,Beruhazasi_ktg!$A$8:$A$107,"alsor",Beruhazasi_ktg!$O$8:$O$107,$B33) -> 0 | I33: =SUMIFS(Beruhazasi_ktg!AM$8:AM$107,Beruhazasi_ktg!$B$8:$B$107,lista_0,Beruhazasi_ktg!$A$8:$A$107,"alsor",Beruhazasi_ktg!$O$8:$O$107,$B33) -> 0
B34: =CHOOSE(lang!$A$1,lang!$B14,lang!$C14) -> - | C34: 0 | D34: =E34+NPV(Alapadatok!$C$6,F34:I34) -> 0 | E34: =SUMIFS(Beruhazasi_ktg!AI$8:AI$107,Beruhazasi_ktg!$B$8:$B$107,lista_0,Beruhazasi_ktg!$A$8:$A$107,"alsor",Beruhazasi_ktg!$O$8:$O$107,$B34) -> 0 | F34: =SUMIFS(Beruhazasi_ktg!AJ$8:AJ$107,Beruhazasi_ktg!$B$8:$B$107,lista_0,Beruhazasi_ktg!$A$8:$A$107,"alsor",Beruhazasi_ktg!$O$8:$O$107,$B34) -> 0 | G34: =SUMIFS(Beruhazasi_ktg!AK$8:AK$107,Beruhazasi_ktg!$B$8:$B$107,lista_0,Beruhazasi_ktg!$A$8:$A$107,"alsor",Beruhazasi_ktg!$O$8:$O$107,$B34) -> 0 | H34: =SUMIFS(Beruhazasi_ktg!AL$8:AL$107,Beruhazasi_ktg!$B$8:$B$107,lista_0,Beruhazasi_ktg!$A$8:$A$107,"alsor",Beruhazasi_ktg!$O$8:$O$107,$B34) -> 0 | I34: =SUMIFS(Beruhazasi_ktg!AM$8:AM$107,Beruhazasi_ktg!$B$8:$B$107,lista_0,Beruhazasi_ktg!$A$8:$A$107,"alsor",Beruhazasi_ktg!$O$8:$O$107,$B34) -> 0
B35: =CHOOSE(lang!$A$1,lang!$B16,lang!$C16) -> Tartalék nélküli beruházási költség | C35: =SUM(C26:C34)-SUMIF($B26:$B34,lang!$E$11,C26:C34) -> 0 | D35: =SUM(D26:D34)-SUMIF($B26:$B34,lang!$E$11,D26:D34) -> 0 | E35: =SUM(E26:E34)-SUMIF($B26:$B34,lang!$E$11,E26:E34) -> 0 | F35: =SUM(F26:F34)-SUMIF($B26:$B34,lang!$E$11,F26:F34) -> 0 | G35: =SUM(G26:G34)-SUMIF($B26:$B34,lang!$E$11,G26:G34) -> 0 | H35: =SUM(H26:H34)-SUMIF($B26:$B34,lang!$E$11,H26:H34) -> 0 | I35: =SUM(I26:I34)-SUMIF($B26:$B34,lang!$E$11,I26:I34) -> 0
B36: =CHOOSE(lang!$A$1,lang!$B17,lang!$C17) -> Teljes beruházási költség | C36: =SUM(C26:C34) -> 0 | D36: 0 | E36: =SUM(E26:E34) -> 0 | F36: =SUM(F26:F34) -> 0 | G36: =SUM(G26:G34) -> 0 | H36: =SUM(H26:H34) -> 0 | I36: =SUM(I26:I34) -> 0
B38: =CHOOSE(lang!A1,lang!B22,lang!C22) -> nem elszámolható költség | C38: összesen | D38: fpv | E38: =Alapadatok!$C$9 -> 2023 | F38: =E38+1 -> 2024 | G38: =F38+1 -> 2025 | H38: 2026 | I38: 2027
B39: =CHOOSE(lang!$A$1,lang!$B6,lang!$C6) -> projektelőkészítés költségei | C39: =SUM(E39:I39) -> 0 | D39: =E39+NPV(Alapadatok!$C$6,F39:I39) -> 0 | E39: =SUMIFS(Beruhazasi_ktg!AN$8:AN$107,Beruhazasi_ktg!$B$8:$B$107,lista_0,Beruhazasi_ktg!$A$8:$A$107,"alsor",Beruhazasi_ktg!$O$8:$O$107,$B39) -> 0 | F39: =SUMIFS(Beruhazasi_ktg!AO$8:AO$107,Beruhazasi_ktg!$B$8:$B$107,lista_0,Beruhazasi_ktg!$A$8:$A$107,"alsor",Beruhazasi_ktg!$O$8:$O$107,$B39) -> 0 | G39: =SUMIFS(Beruhazasi_ktg!AP$8:AP$107,Beruhazasi_ktg!$B$8:$B$107,lista_0,Beruhazasi_ktg!$A$8:$A$107,"alsor",Beruhazasi_ktg!$O$8:$O$107,$B39) -> 0 | H39: =SUMIFS(Beruhazasi_ktg!AQ$8:AQ$107,Beruhazasi_ktg!$B$8:$B$107,lista_0,Beruhazasi_ktg!$A$8:$A$107,"alsor",Beruhazasi_ktg!$O$8:$O$107,$B39) -> 0 | I39: =SUMIFS(Beruhazasi_ktg!AR$8:AR$107,Beruhazasi_ktg!$B$8:$B$107,lista_0,Beruhazasi_ktg!$A$8:$A$107,"alsor",Beruhazasi_ktg!$O$8:$O$107,$B39) -> 0
B40: =CHOOSE(lang!$A$1,lang!$B7,lang!$C7) -> beruházásihoz kapcsolódó költségek | C40: 0 | D40: =E40+NPV(Alapadatok!$C$6,F40:I40) -> 0 | E40: =SUMIFS(Beruhazasi_ktg!AN$8:AN$107,Beruhazasi_ktg!$B$8:$B$107,lista_0,Beruhazasi_ktg!$A$8:$A$107,"alsor",Beruhazasi_ktg!$O$8:$O$107,$B40) -> 0 | F40: =SUMIFS(Beruhazasi_ktg!AO$8:AO$107,Beruhazasi_ktg!$B$8:$B$107,lista_0,Beruhazasi_ktg!$A$8:$A$107,"alsor",Beruhazasi_ktg!$O$8:$O$107,$B40) -> 0 | G40: =SUMIFS(Beruhazasi_ktg!AP$8:AP$107,Beruhazasi_ktg!$B$8:$B$107,lista_0,Beruhazasi_ktg!$A$8:$A$107,"alsor",Beruhazasi_ktg!$O$8:$O$107,$B40) -> 0 | H40: =SUMIFS(Beruhazasi_ktg!AQ$8:AQ$107,Beruhazasi_ktg!$B$8:$B$107,lista_0,Beruhazasi_ktg!$A$8:$A$107,"alsor",Beruhazasi_ktg!$O$8:$O$107,$B40) -> 0 | I40: =SUMIFS(Beruhazasi_ktg!AR$8:AR$107,Beruhazasi_ktg!$B$8:$B$107,lista_0,Beruhazasi_ktg!$A$8:$A$107,"alsor",Beruhazasi_ktg!$O$8:$O$107,$B40) -> 0
B41: =CHOOSE(lang!$A$1,lang!$B8,lang!$C8) -> szakmai megvalósításhoz kapcsolódó szolgáltatások költségei | C41: 0 | D41: =E41+NPV(Alapadatok!$C$6,F41:I41) -> 0 | E41: =SUMIFS(Beruhazasi_ktg!AN$8:AN$107,Beruhazasi_ktg!$B$8:$B$107,lista_0,Beruhazasi_ktg!$A$8:$A$107,"alsor",Beruhazasi_ktg!$O$8:$O$107,$B41) -> 0 | F41: =SUMIFS(Beruhazasi_ktg!AO$8:AO$107,Beruhazasi_ktg!$B$8:$B$107,lista_0,Beruhazasi_ktg!$A$8:$A$107,"alsor",Beruhazasi_ktg!$O$8:$O$107,$B41) -> 0 | G41: =SUMIFS(Beruhazasi_ktg!AP$8:AP$107,Beruhazasi_ktg!$B$8:$B$107,lista_0,Beruhazasi_ktg!$A$8:$A$107,"alsor",Beruhazasi_ktg!$O$8:$O$107,$B41) -> 0 | H41: =SUMIFS(Beruhazasi_ktg!AQ$8:AQ$107,Beruhazasi_ktg!$B$8:$B$107,lista_0,Beruhazasi_ktg!$A$8:$A$107,"alsor",Beruhazasi_ktg!$O$8:$O$107,$B41) -> 0 | I41: =SUMIFS(Beruhazasi_ktg!AR$8:AR$107,Beruhazasi_ktg!$B$8:$B$107,lista_0,Beruhazasi_ktg!$A$8:$A$107,"alsor",Beruhazasi_ktg!$O$8:$O$107,$B41) -> 0
B42: =CHOOSE(lang!$A$1,lang!$B9,lang!$C9) -> projektmenedzsment költségek | C42: 0 | D42: =E42+NPV(Alapadatok!$C$6,F42:I42) -> 0 | E42: =SUMIFS(Beruhazasi_ktg!AN$8:AN$107,Beruhazasi_ktg!$B$8:$B$107,lista_0,Beruhazasi_ktg!$A$8:$A$107,"alsor",Beruhazasi_ktg!$O$8:$O$107,$B42) -> 0 | F42: =SUMIFS(Beruhazasi_ktg!AO$8:AO$107,Beruhazasi_ktg!$B$8:$B$107,lista_0,Beruhazasi_ktg!$A$8:$A$107,"alsor",Beruhazasi_ktg!$O$8:$O$107,$B42) -> 0 | G42: =SUMIFS(Beruhazasi_ktg!AP$8:AP$107,Beruhazasi_ktg!$B$8:$B$107,lista_0,Beruhazasi_ktg!$A$8:$A$107,"alsor",Beruhazasi_ktg!$O$8:$O$107,$B42) -> 0 | H42: =SUMIFS(Beruhazasi_ktg!AQ$8:AQ$107,Beruhazasi_ktg!$B$8:$B$107,lista_0,Beruhazasi_ktg!$A$8:$A$107,"alsor",Beruhazasi_ktg!$O$8:$O$107,$B42) -> 0 | I42: =SUMIFS(Beruhazasi_ktg!AR$8:AR$107,Beruhazasi_ktg!$B$8:$B$107,lista_0,Beruhazasi_ktg!$A$8:$A$107,"alsor",Beruhazasi_ktg!$O$8:$O$107,$B42) -> 0
B43: =CHOOSE(lang!$A$1,lang!$B10,lang!$C10) -> adók, közterhek (ide nem értve a le nem vonható áfát) | C43: 0 | D43: =E43+NPV(Alapadatok!$C$6,F43:I43) -> 0 | E43: =SUMIFS(Beruhazasi_ktg!AN$8:AN$107,Beruhazasi_ktg!$B$8:$B$107,lista_0,Beruhazasi_ktg!$A$8:$A$107,"alsor",Beruhazasi_ktg!$O$8:$O$107,$B43) -> 0 | F43: =SUMIFS(Beruhazasi_ktg!AO$8:AO$107,Beruhazasi_ktg!$B$8:$B$107,lista_0,Beruhazasi_ktg!$A$8:$A$107,"alsor",Beruhazasi_ktg!$O$8:$O$107,$B43) -> 0 | G43: =SUMIFS(Beruhazasi_ktg!AP$8:AP$107,Beruhazasi_ktg!$B$8:$B$107,lista_0,Beruhazasi_ktg!$A$8:$A$107,"alsor",Beruhazasi_ktg!$O$8:$O$107,$B43) -> 0 | H43: =SUMIFS(Beruhazasi_ktg!AQ$8:AQ$107,Beruhazasi_ktg!$B$8:$B$107,lista_0,Beruhazasi_ktg!$A$8:$A$107,"alsor",Beruhazasi_ktg!$O$8:$O$107,$B43) -> 0 | I43: =SUMIFS(Beruhazasi_ktg!AR$8:AR$107,Beruhazasi_ktg!$B$8:$B$107,lista_0,Beruhazasi_ktg!$A$8:$A$107,"alsor",Beruhazasi_ktg!$O$8:$O$107,$B43) -> 0
B44: =CHOOSE(lang!$A$1,lang!$B11,lang!$C11) -> tartalék | C44: 0 | D44: =E44+NPV(Alapadatok!$C$6,F44:I44) -> 0 | E44: =SUMIFS(Beruhazasi_ktg!AN$8:AN$107,Beruhazasi_ktg!$B$8:$B$107,lista_0,Beruhazasi_ktg!$A$8:$A$107,"alsor",Beruhazasi_ktg!$O$8:$O$107,$B44) -> 0 | F44: =SUMIFS(Beruhazasi_ktg!AO$8:AO$107,Beruhazasi_ktg!$B$8:$B$107,lista_0,Beruhazasi_ktg!$A$8:$A$107,"alsor",Beruhazasi_ktg!$O$8:$O$107,$B44) -> 0 | G44: =SUMIFS(Beruhazasi_ktg!AP$8:AP$107,Beruhazasi_ktg!$B$8:$B$107,lista_0,Beruhazasi_ktg!$A$8:$A$107,"alsor",Beruhazasi_ktg!$O$8:$O$107,$B44) -> 0 | H44: =SUMIFS(Beruhazasi_ktg!AQ$8:AQ$107,Beruhazasi_ktg!$B$8:$B$107,lista_0,Beruhazasi_ktg!$A$8:$A$107,"alsor",Beruhazasi_ktg!$O$8:$O$107,$B44) -> 0 | I44: =SUMIFS(Beruhazasi_ktg!AR$8:AR$107,Beruhazasi_ktg!$B$8:$B$107,lista_0,Beruhazasi_ktg!$A$8:$A$107,"alsor",Beruhazasi_ktg!$O$8:$O$107,$B44) -> 0
B45: =CHOOSE(lang!$A$1,lang!$B12,lang!$C12) -> - | C45: 0 | D45: =E45+NPV(Alapadatok!$C$6,F45:I45) -> 0 | E45: =SUMIFS(Beruhazasi_ktg!AN$8:AN$107,Beruhazasi_ktg!$B$8:$B$107,lista_0,Beruhazasi_ktg!$A$8:$A$107,"alsor",Beruhazasi_ktg!$O$8:$O$107,$B45) -> 0 | F45: =SUMIFS(Beruhazasi_ktg!AO$8:AO$107,Beruhazasi_ktg!$B$8:$B$107,lista_0,Beruhazasi_ktg!$A$8:$A$107,"alsor",Beruhazasi_ktg!$O$8:$O$107,$B45) -> 0 | G45: =SUMIFS(Beruhazasi_ktg!AP$8:AP$107,Beruhazasi_ktg!$B$8:$B$107,lista_0,Beruhazasi_ktg!$A$8:$A$107,"alsor",Beruhazasi_ktg!$O$8:$O$107,$B45) -> 0 | H45: =SUMIFS(Beruhazasi_ktg!AQ$8:AQ$107,Beruhazasi_ktg!$B$8:$B$107,lista_0,Beruhazasi_ktg!$A$8:$A$107,"alsor",Beruhazasi_ktg!$O$8:$O$107,$B45) -> 0 | I45: =SUMIFS(Beruhazasi_ktg!AR$8:AR$107,Beruhazasi_ktg!$B$8:$B$107,lista_0,Beruhazasi_ktg!$A$8:$A$107,"alsor",Beruhazasi_ktg!$O$8:$O$107,$B45) -> 0
B46: =CHOOSE(lang!$A$1,lang!$B13,lang!$C13) -> - | C46: 0 | D46: =E46+NPV(Alapadatok!$C$6,F46:I46) -> 0 | E46: =SUMIFS(Beruhazasi_ktg!AN$8:AN$107,Beruhazasi_ktg!$B$8:$B$107,lista_0,Beruhazasi_ktg!$A$8:$A$107,"alsor",Beruhazasi_ktg!$O$8:$O$107,$B46) -> 0 | F46: =SUMIFS(Beruhazasi_ktg!AO$8:AO$107,Beruhazasi_ktg!$B$8:$B$107,lista_0,Beruhazasi_ktg!$A$8:$A$107,"alsor",Beruhazasi_ktg!$O$8:$O$107,$B46) -> 0 | G46: =SUMIFS(Beruhazasi_ktg!AP$8:AP$107,Beruhazasi_ktg!$B$8:$B$107,lista_0,Beruhazasi_ktg!$A$8:$A$107,"alsor",Beruhazasi_ktg!$O$8:$O$107,$B46) -> 0 | H46: =SUMIFS(Beruhazasi_ktg!AQ$8:AQ$107,Beruhazasi_ktg!$B$8:$B$107,lista_0,Beruhazasi_ktg!$A$8:$A$107,"alsor",Beruhazasi_ktg!$O$8:$O$107,$B46) -> 0 | I46: =SUMIFS(Beruhazasi_ktg!AR$8:AR$107,Beruhazasi_ktg!$B$8:$B$107,lista_0,Beruhazasi_ktg!$A$8:$A$107,"alsor",Beruhazasi_ktg!$O$8:$O$107,$B46) -> 0
B47: =CHOOSE(lang!$A$1,lang!$B14,lang!$C14) -> - | C47: 0 | D47: =E47+NPV(Alapadatok!$C$6,F47:I47) -> 0 | E47: =SUMIFS(Beruhazasi_ktg!AN$8:AN$107,Beruhazasi_ktg!$B$8:$B$107,lista_0,Beruhazasi_ktg!$A$8:$A$107,"alsor",Beruhazasi_ktg!$O$8:$O$107,$B47) -> 0 | F47: =SUMIFS(Beruhazasi_ktg!AO$8:AO$107,Beruhazasi_ktg!$B$8:$B$107,lista_0,Beruhazasi_ktg!$A$8:$A$107,"alsor",Beruhazasi_ktg!$O$8:$O$107,$B47) -> 0 | G47: =SUMIFS(Beruhazasi_ktg!AP$8:AP$107,Beruhazasi_ktg!$B$8:$B$107,lista_0,Beruhazasi_ktg!$A$8:$A$107,"alsor",Beruhazasi_ktg!$O$8:$O$107,$B47) -> 0 | H47: =SUMIFS(Beruhazasi_ktg!AQ$8:AQ$107,Beruhazasi_ktg!$B$8:$B$107,lista_0,Beruhazasi_ktg!$A$8:$A$107,"alsor",Beruhazasi_ktg!$O$8:$O$107,$B47) -> 0 | I47: =SUMIFS(Beruhazasi_ktg!AR$8:AR$107,Beruhazasi_ktg!$B$8:$B$107,lista_0,Beruhazasi_ktg!$A$8:$A$107,"alsor",Beruhazasi_ktg!$O$8:$O$107,$B47) -> 0
B48: =CHOOSE(lang!$A$1,lang!$B16,lang!$C16) -> Tartalék nélküli beruházási költség | C48: =SUM(C39:C47)-SUMIF($B39:$B47,lang!$E$11,C39:C47) -> 0 | D48: =SUM(D39:D47)-SUMIF($B39:$B47,lang!$E$11,D39:D47) -> 0 | E48: =SUM(E39:E47)-SUMIF($B39:$B47,lang!$E$11,E39:E47) -> 0 | F48: =SUM(F39:F47)-SUMIF($B39:$B47,lang!$E$11,F39:F47) -> 0 | G48: =SUM(G39:G47)-SUMIF($B39:$B47,lang!$E$11,G39:G47) -> 0 | H48: =SUM(H39:H47)-SUMIF($B39:$B47,lang!$E$11,H39:H47) -> 0 | I48: =SUM(I39:I47)-SUMIF($B39:$B47,lang!$E$11,I39:I47) -> 0
B49: =CHOOSE(lang!$A$1,lang!$B17,lang!$C17) -> Teljes beruházási költség | C49: =SUM(C39:C47) -> 0 | D49: 0 | E49: =SUM(E39:E47) -> 0 | F49: =SUM(F39:F47) -> 0 | G49: =SUM(G39:G47) -> 0 | H49: =SUM(H39:H47) -> 0 | I49: =SUM(I39:I47) -> 0
B51: =CHOOSE(lang!A1,lang!B23,lang!C23) -> elszámolható és nem elszámolható költség | C51: összesen | D51: fpv | E51: =Alapadatok!$C$9 -> 2023 | F51: =E51+1 -> 2024 | G51: =F51+1 -> 2025 | H51: 2026 | I51: 2027
B52: =CHOOSE(lang!$A$1,lang!$B6,lang!$C6) -> projektelőkészítés költségei | C52: =SUM(E52:I52) -> 0 | D52: =E52+NPV(Alapadatok!$C$6,F52:I52) -> 0 | E52: =SUM(E26,E39) -> 0 | F52: 0 | G52: 0 | H52: 0 | I52: 0
B53: =CHOOSE(lang!$A$1,lang!$B7,lang!$C7) -> beruházásihoz kapcsolódó költségek | C53: 0 | D53: =E53+NPV(Alapadatok!$C$6,F53:I53) -> 0 | E53: 0 | F53: 0 | G53: 0 | H53: 0 | I53: 0
B54: =CHOOSE(lang!$A$1,lang!$B8,lang!$C8) -> szakmai megvalósításhoz kapcsolódó szolgáltatások költségei | C54: 0 | D54: =E54+NPV(Alapadatok!$C$6,F54:I54) -> 0 | E54: 0 | F54: 0 | G54: 0 | H54: 0 | I54: 0
B55: =CHOOSE(lang!$A$1,lang!$B9,lang!$C9) -> projektmenedzsment költségek | C55: 0 | D55: =E55+NPV(Alapadatok!$C$6,F55:I55) -> 0 | E55: 0 | F55: 0 | G55: 0 | H55: 0 | I55: 0
B56: =CHOOSE(lang!$A$1,lang!$B10,lang!$C10) -> adók, közterhek (ide nem értve a le nem vonható áfát) | C56: 0 | D56: =E56+NPV(Alapadatok!$C$6,F56:I56) -> 0 | E56: 0 | F56: 0 | G56: 0 | H56: 0 | I56: 0
B57: =CHOOSE(lang!$A$1,lang!$B11,lang!$C11) -> tartalék | C57: 0 | D57: =E57+NPV(Alapadatok!$C$6,F57:I57) -> 0 | E57: 0 | F57: 0 | G57: 0 | H57: 0 | I57: 0
B58: =CHOOSE(lang!$A$1,lang!$B12,lang!$C12) -> - | C58: 0 | D58: =E58+NPV(Alapadatok!$C$6,F58:I58) -> 0 | E58: 0 | F58: 0 | G58: 0 | H58: 0 | I58: 0
B59: =CHOOSE(lang!$A$1,lang!$B13,lang!$C13) -> - | C59: 0 | D59: =E59+NPV(Alapadatok!$C$6,F59:I59) -> 0 | E59: 0 | F59: 0 | G59: 0 | H59: 0 | I59: 0
B60: =CHOOSE(lang!$A$1,lang!$B14,lang!$C14) -> - | C60: 0 | D60: =E60+NPV(Alapadatok!$C$6,F60:I60) -> 0 | E60: 0 | F60: 0 | G60: 0 | H60: 0 | I60: 0
B61: =CHOOSE(lang!$A$1,lang!$B16,lang!$C16) -> Tartalék nélküli beruházási költség | C61: =SUM(C52:C60)-SUMIF($B52:$B60,lang!$E$11,C52:C60) -> 0 | D61: =SUM(D52:D60)-SUMIF($B52:$B60,lang!$E$11,D52:D60) -> 0 | E61: =SUM(E52:E60)-SUMIF($B52:$B60,lang!$E$11,E52:E60) -> 0 | F61: =SUM(F52:F60)-SUMIF($B52:$B60,lang!$E$11,F52:F60) -> 0 | G61: =SUM(G52:G60)-SUMIF($B52:$B60,lang!$E$11,G52:G60) -> 0 | H61: =SUM(H52:H60)-SUMIF($B52:$B60,lang!$E$11,H52:H60) -> 0 | I61: =SUM(I52:I60)-SUMIF($B52:$B60,lang!$E$11,I52:I60) -> 0
B62: =CHOOSE(lang!$A$1,lang!$B17,lang!$C17) -> Teljes beruházási költség | C62: =SUM(C52:C60) -> 0 | D62: 0 | E62: =SUM(E52:E60) -> 0 | F62: =SUM(F52:F60) -> 0 | G62: =SUM(G52:G60) -> 0 | H62: =SUM(H52:H60) -> 0 | I62: =SUM(I52:I60) -> 0
B64: Működési költség
B66: Üzemeltetési és karbantartási költség
B69: =CHOOSE(lang!A1,lang!B27,lang!C27) -> 0 | C69: összesen | D69: fpv | E69: =Alapadatok!$C$9 -> 2023 | F69: =IF(E69="x","x",IF((E69+1)>(Alapadatok!$C$9+Alapadatok!$C$12-1),"x",E69+1)) -> 2024 | G69: =IF(F69="x","x",IF((F69+1)>(Alapadatok!$C$9+Alapadatok!$C$12-1),"x",F69+1)) -> 2025 | H69: =IF(G69="x","x",IF((G69+1)>(Alapadatok!$C$9+Alapadatok!$C$12-1),"x",G69+1)) -> 2026 | I69: =IF(H69="x","x",IF((H69+1)>(Alapadatok!$C$9+Alapadatok!$C$12-1),"x",H69+1)) -> 2027 | J69: =IF(I69="x","x",IF((I69+1)>(Alapadatok!$C$9+Alapadatok!$C$12-1),"x",I69+1)) -> 2028 | K69: =IF(J69="x","x",IF((J69+1)>(Alapadatok!$C$9+Alapadatok!$C$12-1),"x",J69+1)) -> 2029 | L69: =IF(K69="x","x",IF((K69+1)>(Alapadatok!$C$9+Alapadatok!$C$12-1),"x",K69+1)) -> 2030 | M69: =IF(L69="x","x",IF((L69+1)>(Alapadatok!$C$9+Alapadatok!$C$12-1),"x",L69+1)) -> 2031 | N69: =IF(M69="x","x",IF((M69+1)>(Alapadatok!$C$9+Alapadatok!$C$12-1),"x",M69+1)) -> 2032 | O69: =IF(N69="x","x",IF((N69+1)>(Alapadatok!$C$9+Alapadatok!$C$12-1),"x",N69+1)) -> 2033 | P69: =IF(O69="x","x",IF((O69+1)>(Alapadatok!$C$9+Alapadatok!$C$12-1),"x",O69+1)) -> 2034 | Q69: =IF(P69="x","x",IF((P69+1)>(Alapadatok!$C$9+Alapadatok!$C$12-1),"x",P69+1)) -> 2035 | R69: =IF(Q69="x","x",IF((Q69+1)>(Alapadatok!$C$9+Alapadatok!$C$12-1),"x",Q69+1)) -> 2036 | S69: =IF(R69="x","x",IF((R69+1)>(Alapadatok!$C$9+Alapadatok!$C$12-1),"x",R69+1)) -> 2037 | T69: =IF(S69="x","x",IF((S69+1)>(Alapadatok!$C$9+Alapadatok!$C$12-1),"x",S69+1)) -> 2038 | U69: =IF(T69="x","x",IF((T69+1)>(Alapadatok!$C$9+Alapadatok!$C$12-1),"x",T69+1)) -> 2039 | V69: =IF(U69="x","x",IF((U69+1)>(Alapadatok!$C$9+Alapadatok!$C$12-1),"x",U69+1)) -> 2040 | W69: =IF(V69="x","x",IF((V69+1)>(Alapadatok!$C$9+Alapadatok!$C$12-1),"x",V69+1)) -> 2041 | X69: =IF(W69="x","x",IF((W69+1)>(Alapadatok!$C$9+Alapadatok!$C$12-1),"x",W69+1)) -> 2042 | Y69: =IF(X69="x","x",IF((X69+1)>(Alapadatok!$C$9+Alapadatok!$C$12-1),"x",X69+1)) -> 2043 | Z69: =IF(Y69="x","x",IF((Y69+1)>(Alapadatok!$C$9+Alapadatok!$C$12-1),"x",Y69+1)) -> 2044 | AA69: =IF(Z69="x","x",IF((Z69+1)>(Alapadatok!$C$9+Alapadatok!$C$12-1),"x",Z69+1)) -> 2045 | AB69: =IF(AA69="x","x",IF((AA69+1)>(Alapadatok!$C$9+Alapadatok!$C$12-1),"x",AA69+1)) -> 2046 | AC69: =IF(AB69="x","x",IF((AB69+1)>(Alapadatok!$C$9+Alapadatok!$C$12-1),"x",AB69+1)) -> 2047 | AD69: =IF(AC69="x","x",IF((AC69+1)>(Alapadatok!$C$9+Alapadatok!$C$12-1),"x",AC69+1)) -> 2048 | AE69: =IF(AD69="x","x",IF((AD69+1)>(Alapadatok!$C$9+Alapadatok!$C$12-1),"x",AD69+1)) -> 2049 | AF69: =IF(AE69="x","x",IF((AE69+1)>(Alapadatok!$C$9+Alapadatok!$C$12-1),"x",AE69+1)) -> 2050 | AG69: =IF(AF69="x","x",IF((AF69+1)>(Alapadatok!$C$9+Alapadatok!$C$12-1),"x",AF69+1)) -> 2051 | AH69: =IF(AG69="x","x",IF((AG69+1)>(Alapadatok!$C$9+Alapadatok!$C$12-1),"x",AG69+1)) -> 2052
B70: =CHOOSE(lang!$A$1,lang!$B33,lang!$C33) -> 0 | C70: =SUM(E70:AH70) -> 0 | D70: =E70+NPV(Alapadatok!$C$6,$F70:$AH70) -> 0 | E70: =+E74-E78 -> 0 | F70: 0 | G70: 0 | H70: 0 | I70: 0 | J70: 0 | K70: 0 | L70: 0 | M70: 0 | N70: 0 | O70: 0 | P70: 0 | Q70: 0 | R70: 0 | S70: 0 | T70: 0 | U70: 0 | V70: 0 | W70: 0 | X70: 0 | Y70: 0 | Z70: 0 | AA70: 0 | AB70: 0 | AC70: 0 | AD70: 0 | AE70: 0 | AF70: 0 | AG70: 0 | AH70: 0
B71: =CHOOSE(lang!$A$1,lang!$B34,lang!$C34) -> 0 | C71: =SUM(E71:AH71) -> 0 | D71: =E71+NPV(Alapadatok!$C$6,$F71:$AH71) -> 0 | E71: 0 | F71: 0 | G71: 0 | H71: 0 | I71: 0 | J71: 0 | K71: 0 | L71: 0 | M71: 0 | N71: 0 | O71: 0 | P71: 0 | Q71: 0 | R71: 0 | S71: 0 | T71: 0 | U71: 0 | V71: 0 | W71: 0 | X71: 0 | Y71: 0 | Z71: 0 | AA71: 0 | AB71: 0 | AC71: 0 | AD71: 0 | AE71: 0 | AF71: 0 | AG71: 0 | AH71: 0
B73: =CHOOSE(lang!A1,lang!B28,lang!C28) -> 0 | C73: összesen | D73: fpv | E73: =Alapadatok!$C$9 -> 2023 | F73: =IF(E73="x","x",IF((E73+1)>(Alapadatok!$C$9+Alapadatok!$C$12-1),"x",E73+1)) -> 2024 | G73: =IF(F73="x","x",IF((F73+1)>(Alapadatok!$C$9+Alapadatok!$C$12-1),"x",F73+1)) -> 2025 | H73: =IF(G73="x","x",IF((G73+1)>(Alapadatok!$C$9+Alapadatok!$C$12-1),"x",G73+1)) -> 2026 | I73: =IF(H73="x","x",IF((H73+1)>(Alapadatok!$C$9+Alapadatok!$C$12-1),"x",H73+1)) -> 2027 | J73: =IF(I73="x","x",IF((I73+1)>(Alapadatok!$C$9+Alapadatok!$C$12-1),"x",I73+1)) -> 2028 | K73: =IF(J73="x","x",IF((J73+1)>(Alapadatok!$C$9+Alapadatok!$C$12-1),"x",J73+1)) -> 2029 | L73: =IF(K73="x","x",IF((K73+1)>(Alapadatok!$C$9+Alapadatok!$C$12-1),"x",K73+1)) -> 2030 | M73: =IF(L73="x","x",IF((L73+1)>(Alapadatok!$C$9+Alapadatok!$C$12-1),"x",L73+1)) -> 2031 | N73: =IF(M73="x","x",IF((M73+1)>(Alapadatok!$C$9+Alapadatok!$C$12-1),"x",M73+1)) -> 2032 | O73: =IF(N73="x","x",IF((N73+1)>(Alapadatok!$C$9+Alapadatok!$C$12-1),"x",N73+1)) -> 2033 | P73: =IF(O73="x","x",IF((O73+1)>(Alapadatok!$C$9+Alapadatok!$C$12-1),"x",O73+1)) -> 2034 | Q73: =IF(P73="x","x",IF((P73+1)>(Alapadatok!$C$9+Alapadatok!$C$12-1),"x",P73+1)) -> 2035 | R73: =IF(Q73="x","x",IF((Q73+1)>(Alapadatok!$C$9+Alapadatok!$C$12-1),"x",Q73+1)) -> 2036 | S73: =IF(R73="x","x",IF((R73+1)>(Alapadatok!$C$9+Alapadatok!$C$12-1),"x",R73+1)) -> 2037 | T73: =IF(S73="x","x",IF((S73+1)>(Alapadatok!$C$9+Alapadatok!$C$12-1),"x",S73+1)) -> 2038 | U73: =IF(T73="x","x",IF((T73+1)>(Alapadatok!$C$9+Alapadatok!$C$12-1),"x",T73+1)) -> 2039 | V73: =IF(U73="x","x",IF((U73+1)>(Alapadatok!$C$9+Alapadatok!$C$12-1),"x",U73+1)) -> 2040 | W73: =IF(V73="x","x",IF((V73+1)>(Alapadatok!$C$9+Alapadatok!$C$12-1),"x",V73+1)) -> 2041 | X73: =IF(W73="x","x",IF((W73+1)>(Alapadatok!$C$9+Alapadatok!$C$12-1),"x",W73+1)) -> 2042 | Y73: =IF(X73="x","x",IF((X73+1)>(Alapadatok!$C$9+Alapadatok!$C$12-1),"x",X73+1)) -> 2043 | Z73: =IF(Y73="x","x",IF((Y73+1)>(Alapadatok!$C$9+Alapadatok!$C$12-1),"x",Y73+1)) -> 2044 | AA73: =IF(Z73="x","x",IF((Z73+1)>(Alapadatok!$C$9+Alapadatok!$C$12-1),"x",Z73+1)) -> 2045 | AB73: =IF(AA73="x","x",IF((AA73+1)>(Alapadatok!$C$9+Alapadatok!$C$12-1),"x",AA73+1)) -> 2046 | AC73: =IF(AB73="x","x",IF((AB73+1)>(Alapadatok!$C$9+Alapadatok!$C$12-1),"x",AB73+1)) -> 2047 | AD73: =IF(AC73="x","x",IF((AC73+1)>(Alapadatok!$C$9+Alapadatok!$C$12-1),"x",AC73+1)) -> 2048 | AE73: =IF(AD73="x","x",IF((AD73+1)>(Alapadatok!$C$9+Alapadatok!$C$12-1),"x",AD73+1)) -> 2049 | AF73: =IF(AE73="x","x",IF((AE73+1)>(Alapadatok!$C$9+Alapadatok!$C$12-1),"x",AE73+1)) -> 2050 | AG73: =IF(AF73="x","x",IF((AF73+1)>(Alapadatok!$C$9+Alapadatok!$C$12-1),"x",AF73+1)) -> 2051 | AH73: =IF(AG73="x","x",IF((AG73+1)>(Alapadatok!$C$9+Alapadatok!$C$12-1),"x",AG73+1)) -> 2052
A74: =IF(SUMIF(E$73:AH$73,"<="&Hatter!$C$31,E74:AH74)=C74,1,"Vizsgálati időtávon túli évek is kitöltve") -> 1 | B74: =CHOOSE(lang!$A$1,lang!$B33,lang!$C33) -> 0 | C74: =SUM(E74:AH74) -> 0 | D74: =E74+NPV(Alapadatok!$C$6,$F74:$AH74) -> 0
A75: =IF(SUMIF(E$73:AH$73,"<="&Hatter!$C$31,E75:AH75)=C75,1,"Vizsgálati időtávon túli évek is kitöltve") -> 1 | B75: =CHOOSE(lang!$A$1,lang!$B34,lang!$C34) -> 0 | C75: =SUM(E75:AH75) -> 0 | D75: =E75+NPV(Alapadatok!$C$6,$F75:$AH75) -> 0
B77: =CHOOSE(lang!A1,lang!B29,lang!C29) -> 0 | C77: összesen | D77: fpv | E77: =Alapadatok!$C$9 -> 2023 | F77: =IF(E77="x","x",IF((E77+1)>(Alapadatok!$C$9+Alapadatok!$C$12-1),"x",E77+1)) -> 2024 | G77: =IF(F77="x","x",IF((F77+1)>(Alapadatok!$C$9+Alapadatok!$C$12-1),"x",F77+1)) -> 2025 | H77: =IF(G77="x","x",IF((G77+1)>(Alapadatok!$C$9+Alapadatok!$C$12-1),"x",G77+1)) -> 2026 | I77: =IF(H77="x","x",IF((H77+1)>(Alapadatok!$C$9+Alapadatok!$C$12-1),"x",H77+1)) -> 2027 | J77: =IF(I77="x","x",IF((I77+1)>(Alapadatok!$C$9+Alapadatok!$C$12-1),"x",I77+1)) -> 2028 | K77: =IF(J77="x","x",IF((J77+1)>(Alapadatok!$C$9+Alapadatok!$C$12-1),"x",J77+1)) -> 2029 | L77: =IF(K77="x","x",IF((K77+1)>(Alapadatok!$C$9+Alapadatok!$C$12-1),"x",K77+1)) -> 2030 | M77: =IF(L77="x","x",IF((L77+1)>(Alapadatok!$C$9+Alapadatok!$C$12-1),"x",L77+1)) -> 2031 | N77: =IF(M77="x","x",IF((M77+1)>(Alapadatok!$C$9+Alapadatok!$C$12-1),"x",M77+1)) -> 2032 | O77: =IF(N77="x","x",IF((N77+1)>(Alapadatok!$C$9+Alapadatok!$C$12-1),"x",N77+1)) -> 2033 | P77: =IF(O77="x","x",IF((O77+1)>(Alapadatok!$C$9+Alapadatok!$C$12-1),"x",O77+1)) -> 2034 | Q77: =IF(P77="x","x",IF((P77+1)>(Alapadatok!$C$9+Alapadatok!$C$12-1),"x",P77+1)) -> 2035 | R77: =IF(Q77="x","x",IF((Q77+1)>(Alapadatok!$C$9+Alapadatok!$C$12-1),"x",Q77+1)) -> 2036 | S77: =IF(R77="x","x",IF((R77+1)>(Alapadatok!$C$9+Alapadatok!$C$12-1),"x",R77+1)) -> 2037 | T77: =IF(S77="x","x",IF((S77+1)>(Alapadatok!$C$9+Alapadatok!$C$12-1),"x",S77+1)) -> 2038 | U77: =IF(T77="x","x",IF((T77+1)>(Alapadatok!$C$9+Alapadatok!$C$12-1),"x",T77+1)) -> 2039 | V77: =IF(U77="x","x",IF((U77+1)>(Alapadatok!$C$9+Alapadatok!$C$12-1),"x",U77+1)) -> 2040 | W77: =IF(V77="x","x",IF((V77+1)>(Alapadatok!$C$9+Alapadatok!$C$12-1),"x",V77+1)) -> 2041 | X77: =IF(W77="x","x",IF((W77+1)>(Alapadatok!$C$9+Alapadatok!$C$12-1),"x",W77+1)) -> 2042 | Y77: =IF(X77="x","x",IF((X77+1)>(Alapadatok!$C$9+Alapadatok!$C$12-1),"x",X77+1)) -> 2043 | Z77: =IF(Y77="x","x",IF((Y77+1)>(Alapadatok!$C$9+Alapadatok!$C$12-1),"x",Y77+1)) -> 2044 | AA77: =IF(Z77="x","x",IF((Z77+1)>(Alapadatok!$C$9+Alapadatok!$C$12-1),"x",Z77+1)) -> 2045 | AB77: =IF(AA77="x","x",IF((AA77+1)>(Alapadatok!$C$9+Alapadatok!$C$12-1),"x",AA77+1)) -> 2046 | AC77: =IF(AB77="x","x",IF((AB77+1)>(Alapadatok!$C$9+Alapadatok!$C$12-1),"x",AB77+1)) -> 2047 | AD77: =IF(AC77="x","x",IF((AC77+1)>(Alapadatok!$C$9+Alapadatok!$C$12-1),"x",AC77+1)) -> 2048 | AE77: =IF(AD77="x","x",IF((AD77+1)>(Alapadatok!$C$9+Alapadatok!$C$12-1),"x",AD77+1)) -> 2049 | AF77: =IF(AE77="x","x",IF((AE77+1)>(Alapadatok!$C$9+Alapadatok!$C$12-1),"x",AE77+1)) -> 2050 | AG77: =IF(AF77="x","x",IF((AF77+1)>(Alapadatok!$C$9+Alapadatok!$C$12-1),"x",AF77+1)) -> 2051 | AH77: =IF(AG77="x","x",IF((AG77+1)>(Alapadatok!$C$9+Alapadatok!$C$12-1),"x",AG77+1)) -> 2052
A78: =IF(SUMIF(E$73:AH$73,"<="&Hatter!$C$31,E78:AH78)=C78,1,"Vizsgálati időtávon túli évek is kitöltve") -> 1 | B78: =CHOOSE(lang!$A$1,lang!$B33,lang!$C33) -> 0 | C78: =SUM(E78:AH78) -> 0 | D78: =E78+NPV(Alapadatok!$C$6,$F78:$AH78) -> 0
A79: =IF(SUMIF(E$73:AH$73,"<="&Hatter!$C$31,E79:AH79)=C79,1,"Vizsgálati időtávon túli évek is kitöltve") -> 1 | B79: =CHOOSE(lang!$A$1,lang!$B34,lang!$C34) -> 0 | C79: =SUM(E79:AH79) -> 0 | D79: =E79+NPV(Alapadatok!$C$6,$F79:$AH79) -> 0
B81: Pótlási költség
B84: =CHOOSE(lang!A1,lang!B27,lang!C27) -> 0 | C84: összesen | D84: fpv | E84: =Alapadatok!$C$9 -> 2023 | F84: =IF(E84="x","x",IF((E84+1)>(Alapadatok!$C$9+Alapadatok!$C$12-1),"x",E84+1)) -> 2024 | G84: =IF(F84="x","x",IF((F84+1)>(Alapadatok!$C$9+Alapadatok!$C$12-1),"x",F84+1)) -> 2025 | H84: =IF(G84="x","x",IF((G84+1)>(Alapadatok!$C$9+Alapadatok!$C$12-1),"x",G84+1)) -> 2026 | I84: =IF(H84="x","x",IF((H84+1)>(Alapadatok!$C$9+Alapadatok!$C$12-1),"x",H84+1)) -> 2027 | J84: =IF(I84="x","x",IF((I84+1)>(Alapadatok!$C$9+Alapadatok!$C$12-1),"x",I84+1)) -> 2028 | K84: =IF(J84="x","x",IF((J84+1)>(Alapadatok!$C$9+Alapadatok!$C$12-1),"x",J84+1)) -> 2029 | L84: =IF(K84="x","x",IF((K84+1)>(Alapadatok!$C$9+Alapadatok!$C$12-1),"x",K84+1)) -> 2030 | M84: =IF(L84="x","x",IF((L84+1)>(Alapadatok!$C$9+Alapadatok!$C$12-1),"x",L84+1)) -> 2031 | N84: =IF(M84="x","x",IF((M84+1)>(Alapadatok!$C$9+Alapadatok!$C$12-1),"x",M84+1)) -> 2032 | O84: =IF(N84="x","x",IF((N84+1)>(Alapadatok!$C$9+Alapadatok!$C$12-1),"x",N84+1)) -> 2033 | P84: =IF(O84="x","x",IF((O84+1)>(Alapadatok!$C$9+Alapadatok!$C$12-1),"x",O84+1)) -> 2034 | Q84: =IF(P84="x","x",IF((P84+1)>(Alapadatok!$C$9+Alapadatok!$C$12-1),"x",P84+1)) -> 2035 | R84: =IF(Q84="x","x",IF((Q84+1)>(Alapadatok!$C$9+Alapadatok!$C$12-1),"x",Q84+1)) -> 2036 | S84: =IF(R84="x","x",IF((R84+1)>(Alapadatok!$C$9+Alapadatok!$C$12-1),"x",R84+1)) -> 2037 | T84: =IF(S84="x","x",IF((S84+1)>(Alapadatok!$C$9+Alapadatok!$C$12-1),"x",S84+1)) -> 2038 | U84: =IF(T84="x","x",IF((T84+1)>(Alapadatok!$C$9+Alapadatok!$C$12-1),"x",T84+1)) -> 2039 | V84: =IF(U84="x","x",IF((U84+1)>(Alapadatok!$C$9+Alapadatok!$C$12-1),"x",U84+1)) -> 2040 | W84: =IF(V84="x","x",IF((V84+1)>(Alapadatok!$C$9+Alapadatok!$C$12-1),"x",V84+1)) -> 2041 | X84: =IF(W84="x","x",IF((W84+1)>(Alapadatok!$C$9+Alapadatok!$C$12-1),"x",W84+1)) -> 2042 | Y84: =IF(X84="x","x",IF((X84+1)>(Alapadatok!$C$9+Alapadatok!$C$12-1),"x",X84+1)) -> 2043 | Z84: =IF(Y84="x","x",IF((Y84+1)>(Alapadatok!$C$9+Alapadatok!$C$12-1),"x",Y84+1)) -> 2044 | AA84: =IF(Z84="x","x",IF((Z84+1)>(Alapadatok!$C$9+Alapadatok!$C$12-1),"x",Z84+1)) -> 2045 | AB84: =IF(AA84="x","x",IF((AA84+1)>(Alapadatok!$C$9+Alapadatok!$C$12-1),"x",AA84+1)) -> 2046 | AC84: =IF(AB84="x","x",IF((AB84+1)>(Alapadatok!$C$9+Alapadatok!$C$12-1),"x",AB84+1)) -> 2047 | AD84: =IF(AC84="x","x",IF((AC84+1)>(Alapadatok!$C$9+Alapadatok!$C$12-1),"x",AC84+1)) -> 2048 | AE84: =IF(AD84="x","x",IF((AD84+1)>(Alapadatok!$C$9+Alapadatok!$C$12-1),"x",AD84+1)) -> 2049 | AF84: =IF(AE84="x","x",IF((AE84+1)>(Alapadatok!$C$9+Alapadatok!$C$12-1),"x",AE84+1)) -> 2050 | AG84: =IF(AF84="x","x",IF((AF84+1)>(Alapadatok!$C$9+Alapadatok!$C$12-1),"x",AF84+1)) -> 2051 | AH84: =IF(AG84="x","x",IF((AG84+1)>(Alapadatok!$C$9+Alapadatok!$C$12-1),"x",AG84+1)) -> 2052
B85: =CHOOSE(lang!$A$1,lang!$B36,lang!$C36) -> 0 | C85: =SUM(E85:AH85) -> 0 | D85: =E85+NPV(Alapadatok!$C$6,$F85:$AH85) -> 0 | E85: =+E88-E91 -> 0 | F85: 0 | G85: 0 | H85: 0 | I85: 0 | J85: 0 | K85: 0 | L85: 0 | M85: 0 | N85: 0 | O85: =+O88-O91 -> 0 | P85: 0 | Q85: 0 | R85: 0 | S85: 0 | T85: 0 | U85: 0 | V85: 0 | W85: 0 | X85: 0 | Y85: 0 | Z85: 0 | AA85: 0 | AB85: 0 | AC85: 0 | AD85: 0 | AE85: 0 | AF85: 0 | AG85: 0 | AH85: 0
B87: =CHOOSE(lang!A1,lang!B28,lang!C28) -> 0 | C87: összesen | D87: fpv | E87: =Alapadatok!$C$9 -> 2023 | F87: =IF(E87="x","x",IF((E87+1)>(Alapadatok!$C$9+Alapadatok!$C$12-1),"x",E87+1)) -> 2024 | G87: =IF(F87="x","x",IF((F87+1)>(Alapadatok!$C$9+Alapadatok!$C$12-1),"x",F87+1)) -> 2025 | H87: =IF(G87="x","x",IF((G87+1)>(Alapadatok!$C$9+Alapadatok!$C$12-1),"x",G87+1)) -> 2026 | I87: =IF(H87="x","x",IF((H87+1)>(Alapadatok!$C$9+Alapadatok!$C$12-1),"x",H87+1)) -> 2027 | J87: =IF(I87="x","x",IF((I87+1)>(Alapadatok!$C$9+Alapadatok!$C$12-1),"x",I87+1)) -> 2028 | K87: =IF(J87="x","x",IF((J87+1)>(Alapadatok!$C$9+Alapadatok!$C$12-1),"x",J87+1)) -> 2029 | L87: =IF(K87="x","x",IF((K87+1)>(Alapadatok!$C$9+Alapadatok!$C$12-1),"x",K87+1)) -> 2030 | M87: =IF(L87="x","x",IF((L87+1)>(Alapadatok!$C$9+Alapadatok!$C$12-1),"x",L87+1)) -> 2031 | N87: =IF(M87="x","x",IF((M87+1)>(Alapadatok!$C$9+Alapadatok!$C$12-1),"x",M87+1)) -> 2032 | O87: =IF(N87="x","x",IF((N87+1)>(Alapadatok!$C$9+Alapadatok!$C$12-1),"x",N87+1)) -> 2033 | P87: =IF(O87="x","x",IF((O87+1)>(Alapadatok!$C$9+Alapadatok!$C$12-1),"x",O87+1)) -> 2034 | Q87: =IF(P87="x","x",IF((P87+1)>(Alapadatok!$C$9+Alapadatok!$C$12-1),"x",P87+1)) -> 2035 | R87: =IF(Q87="x","x",IF((Q87+1)>(Alapadatok!$C$9+Alapadatok!$C$12-1),"x",Q87+1)) -> 2036 | S87: =IF(R87="x","x",IF((R87+1)>(Alapadatok!$C$9+Alapadatok!$C$12-1),"x",R87+1)) -> 2037 | T87: =IF(S87="x","x",IF((S87+1)>(Alapadatok!$C$9+Alapadatok!$C$12-1),"x",S87+1)) -> 2038 | U87: =IF(T87="x","x",IF((T87+1)>(Alapadatok!$C$9+Alapadatok!$C$12-1),"x",T87+1)) -> 2039 | V87: =IF(U87="x","x",IF((U87+1)>(Alapadatok!$C$9+Alapadatok!$C$12-1),"x",U87+1)) -> 2040 | W87: =IF(V87="x","x",IF((V87+1)>(Alapadatok!$C$9+Alapadatok!$C$12-1),"x",V87+1)) -> 2041 | X87: =IF(W87="x","x",IF((W87+1)>(Alapadatok!$C$9+Alapadatok!$C$12-1),"x",W87+1)) -> 2042 | Y87: =IF(X87="x","x",IF((X87+1)>(Alapadatok!$C$9+Alapadatok!$C$12-1),"x",X87+1)) -> 2043 | Z87: =IF(Y87="x","x",IF((Y87+1)>(Alapadatok!$C$9+Alapadatok!$C$12-1),"x",Y87+1)) -> 2044 | AA87: =IF(Z87="x","x",IF((Z87+1)>(Alapadatok!$C$9+Alapadatok!$C$12-1),"x",Z87+1)) -> 2045 | AB87: =IF(AA87="x","x",IF((AA87+1)>(Alapadatok!$C$9+Alapadatok!$C$12-1),"x",AA87+1)) -> 2046 | AC87: =IF(AB87="x","x",IF((AB87+1)>(Alapadatok!$C$9+Alapadatok!$C$12-1),"x",AB87+1)) -> 2047 | AD87: =IF(AC87="x","x",IF((AC87+1)>(Alapadatok!$C$9+Alapadatok!$C$12-1),"x",AC87+1)) -> 2048 | AE87: =IF(AD87="x","x",IF((AD87+1)>(Alapadatok!$C$9+Alapadatok!$C$12-1),"x",AD87+1)) -> 2049 | AF87: =IF(AE87="x","x",IF((AE87+1)>(Alapadatok!$C$9+Alapadatok!$C$12-1),"x",AE87+1)) -> 2050 | AG87: =IF(AF87="x","x",IF((AF87+1)>(Alapadatok!$C$9+Alapadatok!$C$12-1),"x",AF87+1)) -> 2051 | AH87: =IF(AG87="x","x",IF((AG87+1)>(Alapadatok!$C$9+Alapadatok!$C$12-1),"x",AG87+1)) -> 2052
A88: =IF(SUMIF(E$73:AH$73,"<="&Hatter!$C$31,E88:AH88)=C88,1,"Vizsgálati időtávon túli évek is kitöltve") -> 1 | B88: =CHOOSE(lang!$A$1,lang!$B36,lang!$C36) -> 0 | C88: =SUM(E88:AH88) -> 0 | D88: =E88+NPV(Alapadatok!$C$6,$F88:$AH88) -> 0
B90: =CHOOSE(lang!A1,lang!B29,lang!C29) -> 0 | C90: összesen | D90: fpv | E90: =Alapadatok!$C$9 -> 2023 | F90: =IF(E90="x","x",IF((E90+1)>(Alapadatok!$C$9+Alapadatok!$C$12-1),"x",E90+1)) -> 2024 | G90: =IF(F90="x","x",IF((F90+1)>(Alapadatok!$C$9+Alapadatok!$C$12-1),"x",F90+1)) -> 2025 | H90: =IF(G90="x","x",IF((G90+1)>(Alapadatok!$C$9+Alapadatok!$C$12-1),"x",G90+1)) -> 2026 | I90: =IF(H90="x","x",IF((H90+1)>(Alapadatok!$C$9+Alapadatok!$C$12-1),"x",H90+1)) -> 2027 | J90: =IF(I90="x","x",IF((I90+1)>(Alapadatok!$C$9+Alapadatok!$C$12-1),"x",I90+1)) -> 2028 | K90: =IF(J90="x","x",IF((J90+1)>(Alapadatok!$C$9+Alapadatok!$C$12-1),"x",J90+1)) -> 2029 | L90: =IF(K90="x","x",IF((K90+1)>(Alapadatok!$C$9+Alapadatok!$C$12-1),"x",K90+1)) -> 2030 | M90: =IF(L90="x","x",IF((L90+1)>(Alapadatok!$C$9+Alapadatok!$C$12-1),"x",L90+1)) -> 2031 | N90: =IF(M90="x","x",IF((M90+1)>(Alapadatok!$C$9+Alapadatok!$C$12-1),"x",M90+1)) -> 2032 | O90: =IF(N90="x","x",IF((N90+1)>(Alapadatok!$C$9+Alapadatok!$C$12-1),"x",N90+1)) -> 2033 | P90: =IF(O90="x","x",IF((O90+1)>(Alapadatok!$C$9+Alapadatok!$C$12-1),"x",O90+1)) -> 2034 | Q90: =IF(P90="x","x",IF((P90+1)>(Alapadatok!$C$9+Alapadatok!$C$12-1),"x",P90+1)) -> 2035 | R90: =IF(Q90="x","x",IF((Q90+1)>(Alapadatok!$C$9+Alapadatok!$C$12-1),"x",Q90+1)) -> 2036 | S90: =IF(R90="x","x",IF((R90+1)>(Alapadatok!$C$9+Alapadatok!$C$12-1),"x",R90+1)) -> 2037 | T90: =IF(S90="x","x",IF((S90+1)>(Alapadatok!$C$9+Alapadatok!$C$12-1),"x",S90+1)) -> 2038 | U90: =IF(T90="x","x",IF((T90+1)>(Alapadatok!$C$9+Alapadatok!$C$12-1),"x",T90+1)) -> 2039 | V90: =IF(U90="x","x",IF((U90+1)>(Alapadatok!$C$9+Alapadatok!$C$12-1),"x",U90+1)) -> 2040 | W90: =IF(V90="x","x",IF((V90+1)>(Alapadatok!$C$9+Alapadatok!$C$12-1),"x",V90+1)) -> 2041 | X90: =IF(W90="x","x",IF((W90+1)>(Alapadatok!$C$9+Alapadatok!$C$12-1),"x",W90+1)) -> 2042 | Y90: =IF(X90="x","x",IF((X90+1)>(Alapadatok!$C$9+Alapadatok!$C$12-1),"x",X90+1)) -> 2043 | Z90: =IF(Y90="x","x",IF((Y90+1)>(Alapadatok!$C$9+Alapadatok!$C$12-1),"x",Y90+1)) -> 2044 | AA90: =IF(Z90="x","x",IF((Z90+1)>(Alapadatok!$C$9+Alapadatok!$C$12-1),"x",Z90+1)) -> 2045 | AB90: =IF(AA90="x","x",IF((AA90+1)>(Alapadatok!$C$9+Alapadatok!$C$12-1),"x",AA90+1)) -> 2046 | AC90: =IF(AB90="x","x",IF((AB90+1)>(Alapadatok!$C$9+Alapadatok!$C$12-1),"x",AB90+1)) -> 2047 | AD90: =IF(AC90="x","x",IF((AC90+1)>(Alapadatok!$C$9+Alapadatok!$C$12-1),"x",AC90+1)) -> 2048 | AE90: =IF(AD90="x","x",IF((AD90+1)>(Alapadatok!$C$9+Alapadatok!$C$12-1),"x",AD90+1)) -> 2049 | AF90: =IF(AE90="x","x",IF((AE90+1)>(Alapadatok!$C$9+Alapadatok!$C$12-1),"x",AE90+1)) -> 2050 | AG90: =IF(AF90="x","x",IF((AF90+1)>(Alapadatok!$C$9+Alapadatok!$C$12-1),"x",AF90+1)) -> 2051 | AH90: =IF(AG90="x","x",IF((AG90+1)>(Alapadatok!$C$9+Alapadatok!$C$12-1),"x",AG90+1)) -> 2052
A91: =IF(SUMIF(E$73:AH$73,"<="&Hatter!$C$31,E91:AH91)=C91,1,"Vizsgálati időtávon túli évek is kitöltve") -> 1 | B91: =CHOOSE(lang!$A$1,lang!$B36,lang!$C36) -> 0 | C91: =SUM(E91:AH91) -> 0 | D91: =E91+NPV(Alapadatok!$C$6,$F91:$AH91) -> 0
B93: A pótlás fogalmába az eszközök cseréje tartozik (például selejtezéskor). A költség-haszon elemzés pénzforgalmi szemléleten alapul, így értékcsökkenést nem tartalmazhat. Ezeket a költségeket nem szabad a számításban máshol figyelembe venni.
B95: Bevételek
B98: KÜLÖNBÖZET | C98: összesen | D98: fpv | E98: =Alapadatok!$C$9 -> 2023 | F98: =IF(E98="x","x",IF((E98+1)>(Alapadatok!$C$9+Alapadatok!$C$12-1),"x",E98+1)) -> 2024 | G98: =IF(F98="x","x",IF((F98+1)>(Alapadatok!$C$9+Alapadatok!$C$12-1),"x",F98+1)) -> 2025 | H98: =IF(G98="x","x",IF((G98+1)>(Alapadatok!$C$9+Alapadatok!$C$12-1),"x",G98+1)) -> 2026 | I98: =IF(H98="x","x",IF((H98+1)>(Alapadatok!$C$9+Alapadatok!$C$12-1),"x",H98+1)) -> 2027 | J98: =IF(I98="x","x",IF((I98+1)>(Alapadatok!$C$9+Alapadatok!$C$12-1),"x",I98+1)) -> 2028 | K98: =IF(J98="x","x",IF((J98+1)>(Alapadatok!$C$9+Alapadatok!$C$12-1),"x",J98+1)) -> 2029 | L98: =IF(K98="x","x",IF((K98+1)>(Alapadatok!$C$9+Alapadatok!$C$12-1),"x",K98+1)) -> 2030 | M98: =IF(L98="x","x",IF((L98+1)>(Alapadatok!$C$9+Alapadatok!$C$12-1),"x",L98+1)) -> 2031 | N98: =IF(M98="x","x",IF((M98+1)>(Alapadatok!$C$9+Alapadatok!$C$12-1),"x",M98+1)) -> 2032 | O98: =IF(N98="x","x",IF((N98+1)>(Alapadatok!$C$9+Alapadatok!$C$12-1),"x",N98+1)) -> 2033 | P98: =IF(O98="x","x",IF((O98+1)>(Alapadatok!$C$9+Alapadatok!$C$12-1),"x",O98+1)) -> 2034 | Q98: =IF(P98="x","x",IF((P98+1)>(Alapadatok!$C$9+Alapadatok!$C$12-1),"x",P98+1)) -> 2035 | R98: =IF(Q98="x","x",IF((Q98+1)>(Alapadatok!$C$9+Alapadatok!$C$12-1),"x",Q98+1)) -> 2036 | S98: =IF(R98="x","x",IF((R98+1)>(Alapadatok!$C$9+Alapadatok!$C$12-1),"x",R98+1)) -> 2037 | T98: =IF(S98="x","x",IF((S98+1)>(Alapadatok!$C$9+Alapadatok!$C$12-1),"x",S98+1)) -> 2038 | U98: =IF(T98="x","x",IF((T98+1)>(Alapadatok!$C$9+Alapadatok!$C$12-1),"x",T98+1)) -> 2039 | V98: =IF(U98="x","x",IF((U98+1)>(Alapadatok!$C$9+Alapadatok!$C$12-1),"x",U98+1)) -> 2040 | W98: =IF(V98="x","x",IF((V98+1)>(Alapadatok!$C$9+Alapadatok!$C$12-1),"x",V98+1)) -> 2041 | X98: =IF(W98="x","x",IF((W98+1)>(Alapadatok!$C$9+Alapadatok!$C$12-1),"x",W98+1)) -> 2042 | Y98: =IF(X98="x","x",IF((X98+1)>(Alapadatok!$C$9+Alapadatok!$C$12-1),"x",X98+1)) -> 2043 | Z98: =IF(Y98="x","x",IF((Y98+1)>(Alapadatok!$C$9+Alapadatok!$C$12-1),"x",Y98+1)) -> 2044 | AA98: =IF(Z98="x","x",IF((Z98+1)>(Alapadatok!$C$9+Alapadatok!$C$12-1),"x",Z98+1)) -> 2045 | AB98: =IF(AA98="x","x",IF((AA98+1)>(Alapadatok!$C$9+Alapadatok!$C$12-1),"x",AA98+1)) -> 2046 | AC98: =IF(AB98="x","x",IF((AB98+1)>(Alapadatok!$C$9+Alapadatok!$C$12-1),"x",AB98+1)) -> 2047 | AD98: =IF(AC98="x","x",IF((AC98+1)>(Alapadatok!$C$9+Alapadatok!$C$12-1),"x",AC98+1)) -> 2048 | AE98: =IF(AD98="x","x",IF((AD98+1)>(Alapadatok!$C$9+Alapadatok!$C$12-1),"x",AD98+1)) -> 2049 | AF98: =IF(AE98="x","x",IF((AE98+1)>(Alapadatok!$C$9+Alapadatok!$C$12-1),"x",AE98+1)) -> 2050 | AG98: =IF(AF98="x","x",IF((AF98+1)>(Alapadatok!$C$9+Alapadatok!$C$12-1),"x",AF98+1)) -> 2051 | AH98: =IF(AG98="x","x",IF((AG98+1)>(Alapadatok!$C$9+Alapadatok!$C$12-1),"x",AG98+1)) -> 2052
B99: az infrastruktúra használatáért közvetlenül a felhasználókat terhelő díjak | C99: =SUM(E99:AH99) -> 0 | D99: =E99+NPV(Alapadatok!$C$6,$F99:$AH99) -> 0 | E99: =+E111-E123 -> 0 | F99: =+F111-F123 -> 0 | G99: 0 | H99: 0 | I99: 0 | J99: 0 | K99: 0 | L99: 0 | M99: 0 | N99: 0 | O99: 0 | P99: 0 | Q99: 0 | R99: 0 | S99: 0 | T99: 0 | U99: 0 | V99: 0 | W99: 0 | X99: 0 | Y99: 0 | Z99: 0 | AA99: 0 | AB99: 0 | AC99: 0 | AD99: 0 | AE99: 0 | AF99: 0 | AG99: 0 | AH99: 0
B100: a föld vagy az épületek eladásából vagy bérbeadásából származó bevételeket | C100: =SUM(E100:AH100) -> 0 | D100: =E100+NPV(Alapadatok!$C$6,$F100:$AH100) -> 0 | E100: =+E112-E124 -> 0 | F100: =+F112-F124 -> 0 | G100: 0 | H100: 0 | I100: 0 | J100: 0 | K100: 0 | L100: 0 | M100: 0 | N100: 0 | O100: 0 | P100: 0 | Q100: 0 | R100: 0 | S100: 0 | T100: 0 | U100: 0 | V100: 0 | W100: 0 | X100: 0 | Y100: 0 | Z100: 0 | AA100: 0 | AB100: 0 | AC100: 0 | AD100: 0 | AE100: 0 | AF100: 0 | AG100: 0 | AH100: 0
B101: a szolgáltatásokért kapott ellentételezést | C101: 0 | D101: =E101+NPV(Alapadatok!$C$6,$F101:$AH101) -> 0 | E101: =+E113-E125 -> 0 | F101: =+F113-F125 -> 0 | G101: 0 | H101: 0 | I101: 0 | J101: 0 | K101: 0 | L101: 0 | M101: 0 | N101: 0 | O101: 0 | P101: 0 | Q101: 0 | R101: 0 | S101: 0 | T101: 0 | U101: 0 | V101: 0 | W101: 0 | X101: 0 | Y101: 0 | Z101: 0 | AA101: 0 | AB101: 0 | AC101: 0 | AD101: 0 | AE101: 0 | AF101: 0 | AG101: 0 | AH101: 0
B102: egyéb bevételek | C102: 0 | D102: =E102+NPV(Alapadatok!$C$6,$F102:$AH102) -> 0 | E102: =+E114-E126 -> 0 | F102: =+F114-F126 -> 0 | G102: 0 | H102: 0 | I102: 0 | J102: 0 | K102: 0 | L102: 0 | M102: 0 | N102: 0 | O102: 0 | P102: 0 | Q102: 0 | R102: 0 | S102: 0 | T102: 0 | U102: 0 | V102: 0 | W102: 0 | X102: 0 | Y102: 0 | Z102: 0 | AA102: 0 | AB102: 0 | AC102: 0 | AD102: 0 | AE102: 0 | AF102: 0 | AG102: 0 | AH102: 0
B103: pénzügyi bevételek összesen | C103: 0 | D103: =E103+NPV(Alapadatok!$C$6,$F103:$AH103) -> 0 | E103: =SUM(E99:E102) -> 0 | F103: =SUM(F99:F102) -> 0 | G103: 0 | H103: 0 | I103: 0 | J103: 0 | K103: 0 | L103: 0 | M103: 0 | N103: 0 | O103: 0 | P103: 0 | Q103: 0 | R103: 0 | S103: 0 | T103: 0 | U103: 0 | V103: 0 | W103: 0 | X103: 0 | Y103: 0 | Z103: 0 | AA103: 0 | AB103: 0 | AC103: 0 | AD103: 0 | AE103: 0 | AF103: 0 | AG103: 0 | AH103: 0
B104: működési támogatások - nem energiaköltség | C104: =SUM(E104:AH104) -> 0 | D104: =E104+NPV(Alapadatok!$C$6,$F104:$AH104) -> 0 | E104: 0 | F104: 0 | G104: 0 | H104: 0 | I104: 0 | J104: 0 | K104: 0 | L104: 0 | M104: 0 | N104: 0 | O104: 0 | P104: 0 | Q104: 0 | R104: 0 | S104: 0 | T104: 0 | U104: =+U116-U128 -> 0 | V104: 0 | W104: 0 | X104: 0 | Y104: 0 | Z104: 0 | AA104: 0 | AB104: 0 | AC104: 0 | AD104: 0 | AE104: 0 | AF104: 0 | AG104: 0 | AH104: 0
B105: működési támogatások - energiaköltség | C105: 0 | D105: =E105+NPV(Alapadatok!$C$6,$F105:$AH105) -> 0 | E105: 0 | F105: 0 | G105: 0 | H105: 0 | I105: 0 | J105: 0 | K105: 0 | L105: 0 | M105: 0 | N105: 0 | O105: 0 | P105: 0 | Q105: 0 | R105: 0 | S105: 0 | T105: 0 | U105: 0 | V105: 0 | W105: 0 | X105: 0 | Y105: 0 | Z105: 0 | AA105: 0 | AB105: 0 | AC105: 0 | AD105: 0 | AE105: 0 | AF105: 0 | AG105: 0 | AH105: 0
B106: máshová nem sorolható egyéb bejövő pénzáramok | C106: 0 | D106: =E106+NPV(Alapadatok!$C$6,$F106:$AH106) -> 0 | E106: 0 | F106: 0 | G106: 0 | H106: 0 | I106: 0 | J106: 0 | K106: 0 | L106: 0 | M106: 0 | N106: 0 | O106: 0 | P106: 0 | Q106: 0 | R106: 0 | S106: 0 | T106: 0 | U106: 0 | V106: 0 | W106: 0 | X106: 0 | Y106: 0 | Z106: 0 | AA106: 0 | AB106: 0 | AC106: 0 | AD106: 0 | AE106: 0 | AF106: 0 | AG106: 0 | AH106: 0
B107: egyéb bejövő pénzáramok | C107: 0 | D107: =E107+NPV(Alapadatok!$C$6,$F107:$AH107) -> 0 | E107: =+E119-E131 -> 0 | F107: =+F119-F131 -> 0 | G107: 0 | H107: 0 | I107: 0 | J107: 0 | K107: 0 | L107: 0 | M107: 0 | N107: 0 | O107: 0 | P107: 0 | Q107: 0 | R107: 0 | S107: 0 | T107: 0 | U107: 0 | V107: 0 | W107: 0 | X107: 0 | Y107: 0 | Z107: 0 | AA107: 0 | AB107: 0 | AC107: 0 | AD107: 0 | AE107: 0 | AF107: 0 | AG107: 0 | AH107: 0
B108: Bevételi pénzáramok összesen | C108: 0 | D108: =E108+NPV(Alapadatok!$C$6,$F108:$AH108) -> 0 | E108: =SUM(E103:E107) -> 0 | F108: =SUM(F103:F107) -> 0 | G108: 0 | H108: 0 | I108: 0 | J108: 0 | K108: 0 | L108: 0 | M108: 0 | N108: 0 | O108: 0 | P108: 0 | Q108: 0 | R108: 0 | S108: 0 | T108: 0 | U108: 0 | V108: 0 | W108: 0 | X108: 0 | Y108: 0 | Z108: 0 | AA108: 0 | AB108: 0 | AC108: 0 | AD108: 0 | AE108: 0 | AF108: 0 | AG108: 0 | AH108: 0
B110: PROJEKT ESET | C110: összesen | D110: fpv | E110: =Alapadatok!$C$9 -> 2023 | F110: =IF(E110="x","x",IF((E110+1)>(Alapadatok!$C$9+Alapadatok!$C$12-1),"x",E110+1)) -> 2024 | G110: =IF(F110="x","x",IF((F110+1)>(Alapadatok!$C$9+Alapadatok!$C$12-1),"x",F110+1)) -> 2025 | H110: =IF(G110="x","x",IF((G110+1)>(Alapadatok!$C$9+Alapadatok!$C$12-1),"x",G110+1)) -> 2026 | I110: =IF(H110="x","x",IF((H110+1)>(Alapadatok!$C$9+Alapadatok!$C$12-1),"x",H110+1)) -> 2027 | J110: =IF(I110="x","x",IF((I110+1)>(Alapadatok!$C$9+Alapadatok!$C$12-1),"x",I110+1)) -> 2028 | K110: =IF(J110="x","x",IF((J110+1)>(Alapadatok!$C$9+Alapadatok!$C$12-1),"x",J110+1)) -> 2029 | L110: =IF(K110="x","x",IF((K110+1)>(Alapadatok!$C$9+Alapadatok!$C$12-1),"x",K110+1)) -> 2030 | M110: =IF(L110="x","x",IF((L110+1)>(Alapadatok!$C$9+Alapadatok!$C$12-1),"x",L110+1)) -> 2031 | N110: =IF(M110="x","x",IF((M110+1)>(Alapadatok!$C$9+Alapadatok!$C$12-1),"x",M110+1)) -> 2032 | O110: =IF(N110="x","x",IF((N110+1)>(Alapadatok!$C$9+Alapadatok!$C$12-1),"x",N110+1)) -> 2033 | P110: =IF(O110="x","x",IF((O110+1)>(Alapadatok!$C$9+Alapadatok!$C$12-1),"x",O110+1)) -> 2034 | Q110: =IF(P110="x","x",IF((P110+1)>(Alapadatok!$C$9+Alapadatok!$C$12-1),"x",P110+1)) -> 2035 | R110: =IF(Q110="x","x",IF((Q110+1)>(Alapadatok!$C$9+Alapadatok!$C$12-1),"x",Q110+1)) -> 2036 | S110: =IF(R110="x","x",IF((R110+1)>(Alapadatok!$C$9+Alapadatok!$C$12-1),"x",R110+1)) -> 2037 | T110: =IF(S110="x","x",IF((S110+1)>(Alapadatok!$C$9+Alapadatok!$C$12-1),"x",S110+1)) -> 2038 | U110: =IF(T110="x","x",IF((T110+1)>(Alapadatok!$C$9+Alapadatok!$C$12-1),"x",T110+1)) -> 2039 | V110: =IF(U110="x","x",IF((U110+1)>(Alapadatok!$C$9+Alapadatok!$C$12-1),"x",U110+1)) -> 2040 | W110: =IF(V110="x","x",IF((V110+1)>(Alapadatok!$C$9+Alapadatok!$C$12-1),"x",V110+1)) -> 2041 | X110: =IF(W110="x","x",IF((W110+1)>(Alapadatok!$C$9+Alapadatok!$C$12-1),"x",W110+1)) -> 2042 | Y110: =IF(X110="x","x",IF((X110+1)>(Alapadatok!$C$9+Alapadatok!$C$12-1),"x",X110+1)) -> 2043 | Z110: =IF(Y110="x","x",IF((Y110+1)>(Alapadatok!$C$9+Alapadatok!$C$12-1),"x",Y110+1)) -> 2044 | AA110: =IF(Z110="x","x",IF((Z110+1)>(Alapadatok!$C$9+Alapadatok!$C$12-1),"x",Z110+1)) -> 2045 | AB110: =IF(AA110="x","x",IF((AA110+1)>(Alapadatok!$C$9+Alapadatok!$C$12-1),"x",AA110+1)) -> 2046 | AC110: =IF(AB110="x","x",IF((AB110+1)>(Alapadatok!$C$9+Alapadatok!$C$12-1),"x",AB110+1)) -> 2047 | AD110: =IF(AC110="x","x",IF((AC110+1)>(Alapadatok!$C$9+Alapadatok!$C$12-1),"x",AC110+1)) -> 2048 | AE110: =IF(AD110="x","x",IF((AD110+1)>(Alapadatok!$C$9+Alapadatok!$C$12-1),"x",AD110+1)) -> 2049 | AF110: =IF(AE110="x","x",IF((AE110+1)>(Alapadatok!$C$9+Alapadatok!$C$12-1),"x",AE110+1)) -> 2050 | AG110: =IF(AF110="x","x",IF((AF110+1)>(Alapadatok!$C$9+Alapadatok!$C$12-1),"x",AF110+1)) -> 2051 | AH110: =IF(AG110="x","x",IF((AG110+1)>(Alapadatok!$C$9+Alapadatok!$C$12-1),"x",AG110+1)) -> 2052
A111: =IF(SUMIF(E$73:AH$73,"<="&Hatter!$C$31,E111:AH111)=C111,1,"Vizsgálati időtávon túli évek is kitöltve") -> 1 | B111: az infrastruktúra használatáért közvetlenül a felhasználókat terhelő díjak | C111: =SUM(E111:AH111) -> 0 | D111: =E111+NPV(Alapadatok!$C$6,$F111:$AH111) -> 0
A112: =IF(SUMIF(E$73:AH$73,"<="&Hatter!$C$31,E112:AH112)=C112,1,"Vizsgálati időtávon túli évek is kitöltve") -> 1 | B112: a föld vagy az épületek eladásából vagy bérbeadásából származó bevételeket | C112: =SUM(E112:AH112) -> 0 | D112: =E112+NPV(Alapadatok!$C$6,$F112:$AH112) -> 0
A113: =IF(SUMIF(E$73:AH$73,"<="&Hatter!$C$31,E113:AH113)=C113,1,"Vizsgálati időtávon túli évek is kitöltve") -> 1 | B113: a szolgáltatásokért kapott ellentételezést | C113: 0 | D113: =E113+NPV(Alapadatok!$C$6,$F113:$AH113) -> 0
